Workbook

Sheet Disclaimer

Sheet Automotive
A1: Panasonic Automotive Inductor Quick Search | CE1: =COUNTA(BA:BA)-1 -> 142
A2: Please select parameters below to find the capacitors to match your requirements.
A3: Filters | AN3: Output
AN6: (uH) | AO6: Tol. (%) | AP6: Method B typ (A) | AQ6: Method A typ (A) | AR6: ⊿L=-30% typ (A) | AS6: ⊿L=-20% typ (A) | AT6: Typ (mOhm) | AU6: Max (mOhm) | AV6: Size (mm) | AW6: Max Height (mm) | AX6: Temp Range (deg.C) | AY6: Automotive Grade | AZ6: Status | BA6: Part Number | BB6: URL | BI6: Feature | BJ6: URL
AN7: 0.105 | AO7: 0.2 | AP7: 22.7 | AQ7: 18.9 | AR7: 37.3 | AS7: 25.5 | AT7: 1.52 | AU7: 1.67 | AV7: 5.5 x 5 | AW7: 3 | AX7: -55 to +155 | AY7: Yes | AZ7: MP | BA7: ETQP3MR10KVP | BB7: https://industrial.panasonic.com/ww/products/pt/automotive-inductors/models/ETQP3MR10KVP | BC7: =IF(BA7="","", INDEX('All Data'!$AT:$AT,MATCH(BA7,'All Data'!$O:$O,0))) -> https://industrial.panasonic.com/content/data/CC/pictures/lineup-LP.gif | BD7: =IF(BA7="","",IFERROR(_xlfn.IMAGE(BC7,"--"),"--")) ->  | BI7: =IF(BA7="","", INDEX('All Data'!$K:$K,MATCH(BA7,'All Data'!$O:$O,0))) -> LP (Low Profile) | BJ7: =IF(BB7="","",HYPERLINK(BB7)) -> https://industrial.panasonic.com/ww/products/pt/automotive-inductors/models/ETQP3MR10KVP
AN8: 0.22 | AO8: 0.2 | AP8: 44 | AQ8: 32 | AR8: 63.7 | AS8: 45 | AT8: 0.71 | AU8: 0.78 | AV8: 7.9 x 7 | AW8: 5 | AX8: -55 to +155 | AY8: Yes | AZ8: MP | BA8: ETQP5MR22CVM | BB8: https://industrial.panasonic.com/ww/products/pt/automotive-inductors/models/ETQP3M220KVP | BC8: =IF(BA8="","", INDEX('All Data'!$AT:$AT,MATCH(BA8,'All Data'!$O:$O,0))) -> https://industrial.panasonic.com/content/data/CC/pictures/lineup-LL.gif | BD8: =IF(BA8="","",IFERROR(_xlfn.IMAGE(BC8,"--"),"--")) ->  | BI8: =IF(BA8="","", INDEX('All Data'!$K:$K,MATCH(BA8,'All Data'!$O:$O,0))) -> LL (Low Inductance) | BJ8: =IF(BB8="","",HYPERLINK(BB8)) -> https://industrial.panasonic.com/ww/products/pt/automotive-inductors/models/ETQP3M220KVP
AN9: 0.33 | AO9: 0.2 | AP9: 39.7 | AQ9: 33.2 | AR9: 56.7 | AS9: 42.63 | AT9: 1.1 | AU9: 1.21 | AV9: 10.9 x 10 | AW9: 5 | AX9: -40 to +150 | AY9: Yes | AZ9: MP | BA9: ETQP5MR33YLC | BB9: https://industrial.panasonic.com/ww/products/pt/automotive-inductors/models/ETQP5MR33YLC | BC9: =IF(BA9="","", INDEX('All Data'!$AT:$AT,MATCH(BA9,'All Data'!$O:$O,0))) -> https://industrial.panasonic.com/content/data/CC/pictures/lineup-Metal-core.gif | BI9: =IF(BA9="","", INDEX('All Data'!$K:$K,MATCH(BA9,'All Data'!$O:$O,0))) -> High Isat (Standard) | BJ9: https://industrial.panasonic.com/ww/products/pt/automotive-inductors/models/ETQP5MR33YLC
AP10: 53.5 | AQ10: 44.4 | AR10: 84.5 | AS10: 55.85 | AT10: 0.7 | AU10: 0.77 | AV10: 12.6 x 13.2 | AW10: 8 | AX10: -40 to +160 | AY10: Yes | AZ10: MP | BA10: ETQP8MR33JFA | BB10: https://industrial.panasonic.com/ww/products/pt/automotive-inductors/models/ETQP8MR33JFA | BC10: =IF(BA10="","", INDEX('All Data'!$AT:$AT,MATCH(BA10,'All Data'!$O:$O,0))) -> https://industrial.panasonic.com/content/data/CC/pictures/lineup-Large%20current.gif | BI10: =IF(BA10="","", INDEX('All Data'!$K:$K,MATCH(BA10,'All Data'!$O:$O,0))) -> High Current (≥□12) | BJ10: https://industrial.panasonic.com/ww/products/pt/automotive-inductors/models/ETQP8MR33JFA
AP11: 12.7 | AQ11: 10.6 | AR11: 21.8 | AS11: 14.5 | AT11: 4.85 | AU11: 5.34 | AV11: 5.5 x 5 | AW11: 3 | AX11: -55 to +155 | AY11: Yes | AZ11: MP | BA11: ETQP3MR33KVP | BB11: https://industrial.panasonic.com/ww/products/pt/automotive-inductors/models/ETQP3MR33KVP | BC11: =IF(BA11="","", INDEX('All Data'!$AT:$AT,MATCH(BA11,'All Data'!$O:$O,0))) -> https://industrial.panasonic.com/content/data/CC/pictures/lineup-LP.gif | BI11: =IF(BA11="","", INDEX('All Data'!$K:$K,MATCH(BA11,'All Data'!$O:$O,0))) -> LP (Low Profile) | BJ11: https://industrial.panasonic.com/ww/products/pt/automotive-inductors/models/ETQP3MR33KVP
AP12: 83 | AQ12: 69 | AR12: 103 | AS12: 75 | AT12: 0.42 | AU12: 0.48 | AV12: 15.6 x 17.2 | AW12: 10.5 | AX12: -40 to +160 | AY12: Yes | AZ12: MP | BA12: ETQPAMR33JFW | BB12: https://industrial.panasonic.com/ww/products/pt/automotive-inductors/models/ETQPAMR33JFW | BC12: =IF(BA12="","", INDEX('All Data'!$AT:$AT,MATCH(BA12,'All Data'!$O:$O,0))) -> https://industrial.panasonic.com/content/data/CC/pictures/lineup-Large%20current.gif | BI12: =IF(BA12="","", INDEX('All Data'!$K:$K,MATCH(BA12,'All Data'!$O:$O,0))) -> High Current (≥□12) | BJ12: https://industrial.panasonic.com/ww/products/pt/automotive-inductors/models/ETQPAMR33JFW
AN13: 0.47 | AO13: 0.2 | AP13: 15.7 | AQ13: 12.8 | AR13: 20 | AS13: 15.5 | AT13: 3.7 | AU13: 4.07 | AV13: 6 x 6.4 | AW13: 3 | AX13: -55 to +155 | AY13: Yes | AZ13: MP | BA13: ETQP3MR47KVN | BB13: https://industrial.panasonic.com/ww/products/pt/automotive-inductors/models/ETQP3MR47KVN | BC13: =IF(BA13="","", INDEX('All Data'!$AT:$AT,MATCH(BA13,'All Data'!$O:$O,0))) -> https://industrial.panasonic.com/content/data/CC/pictures/lineup-LP.gif | BI13: =IF(BA13="","", INDEX('All Data'!$K:$K,MATCH(BA13,'All Data'!$O:$O,0))) -> LP (Low Profile) | BJ13: https://industrial.panasonic.com/ww/products/pt/automotive-inductors/models/ETQP3MR47KVN
AP14: 19.8 | AQ14: 14.7 | AR14: 29.8 | AS14: 21.7 | AT14: 3.3 | AU14: 3.63 | AV14: 7.4 x 7 | AW14: 4.8 | AX14: -40 to +150 | AY14: Yes | AZ14: MP | BA14: ETQP4MR47KFM | BB14: https://industrial.panasonic.com/ww/products/pt/automotive-inductors/models/ETQP4MR47KFM | BC14: =IF(BA14="","", INDEX('All Data'!$AT:$AT,MATCH(BA14,'All Data'!$O:$O,0))) -> https://industrial.panasonic.com/content/data/CC/pictures/lineup-LE.gif | BI14: =IF(BA14="","", INDEX('All Data'!$K:$K,MATCH(BA14,'All Data'!$O:$O,0))) -> LE (Low Price) | BJ14: https://industrial.panasonic.com/ww/products/pt/automotive-inductors/models/ETQP4MR47KFM
AP15: 11.6 | AQ15: 9.6 | AR15: 17.9 | AS15: 12.9 | AT15: 5.8 | AU15: 6.38 | AV15: 5.5 x 5 | AW15: 3 | AX15: -55 to +155 | AY15: Yes | AZ15: MP | BA15: ETQP3MR47KVP | BB15: https://industrial.panasonic.com/ww/products/pt/automotive-inductors/models/ETQP3MR47KVP | BC15: =IF(BA15="","", INDEX('All Data'!$AT:$AT,MATCH(BA15,'All Data'!$O:$O,0))) -> https://industrial.panasonic.com/content/data/CC/pictures/lineup-LP.gif | BI15: =IF(BA15="","", INDEX('All Data'!$K:$K,MATCH(BA15,'All Data'!$O:$O,0))) -> LP (Low Profile) | BJ15: https://industrial.panasonic.com/ww/products/pt/automotive-inductors/models/ETQP3MR47KVP
AP16: 31.1 | AQ16: 24.9 | AR16: 47.3 | AS16: 33.2 | AT16: 1.53 | AU16: 1.68 | AV16: 10.9 x 10 | AW16: 4 | AX16: -40 to +150 | AY16: Yes | AZ16: MP | BA16: ETQP4MR47KLC | BB16: https://industrial.panasonic.com/ww/products/pt/automotive-inductors/models/ETQP4MR47KLC | BC16: =IF(BA16="","", INDEX('All Data'!$AT:$AT,MATCH(BA16,'All Data'!$O:$O,0))) -> https://industrial.panasonic.com/content/data/CC/pictures/lineup-Metal-core.gif | BI16: =IF(BA16="","", INDEX('All Data'!$K:$K,MATCH(BA16,'All Data'!$O:$O,0))) -> High Isat (Standard) | BJ16: https://industrial.panasonic.com/ww/products/pt/automotive-inductors/models/ETQP4MR47KLC
AN17: 0.68 | AO17: 0.2 | AP17: 12 | AQ17: 9.8 | AR17: 24 | AS17: 17.66 | AT17: 6.3 | AU17: 6.93 | AV17: 6.5 x 6 | AW17: 3 | AX17: -40 to +150 | AY17: Yes | AZ17: MP | BA17: ETQP3MR68YFN | BB17: https://industrial.panasonic.com/ww/products/pt/automotive-inductors/models/ETQP3MR68YFN | BC17: =IF(BA17="","", INDEX('All Data'!$AT:$AT,MATCH(BA17,'All Data'!$O:$O,0))) -> https://industrial.panasonic.com/content/data/CC/pictures/lineup-Metal-core.gif | BI17: =IF(BA17="","", INDEX('All Data'!$K:$K,MATCH(BA17,'All Data'!$O:$O,0))) -> High Isat (Standard) | BJ17: https://industrial.panasonic.com/ww/products/pt/automotive-inductors/models/ETQP3MR68YFN
AP18: 31.5 | AQ18: 26.3 | AR18: 40 | AS18: 28.37 | AT18: 1.75 | AU18: 1.93 | AV18: 10.9 x 10 | AW18: 5 | AX18: -40 to +150 | AY18: Yes | AZ18: MP | BA18: ETQP5MR68YLC | BB18: https://industrial.panasonic.com/ww/products/pt/automotive-inductors/models/ETQP5MR68YLC | BC18: =IF(BA18="","", INDEX('All Data'!$AT:$AT,MATCH(BA18,'All Data'!$O:$O,0))) -> https://industrial.panasonic.com/content/data/CC/pictures/lineup-Metal-core.gif | BI18: =IF(BA18="","", INDEX('All Data'!$K:$K,MATCH(BA18,'All Data'!$O:$O,0))) -> High Isat (Standard) | BJ18: https://industrial.panasonic.com/ww/products/pt/automotive-inductors/models/ETQP5MR68YLC
AP19: 42.6 | AQ19: 35.4 | AR19: 56.9 | AS19: 40.33 | AT19: 1.1 | AU19: 1.21 | AV19: 12.6 x 13.2 | AW19: 8 | AX19: -40 to +160 | AY19: Yes | AZ19: MP | BA19: ETQP8MR68JFA | BB19: https://industrial.panasonic.com/ww/products/pt/automotive-inductors/models/ETQP8MR68JFA | BC19: =IF(BA19="","", INDEX('All Data'!$AT:$AT,MATCH(BA19,'All Data'!$O:$O,0))) -> https://industrial.panasonic.com/content/data/CC/pictures/lineup-Large%20current.gif | BI19: =IF(BA19="","", INDEX('All Data'!$K:$K,MATCH(BA19,'All Data'!$O:$O,0))) -> High Current (≥□12) | BJ19: https://industrial.panasonic.com/ww/products/pt/automotive-inductors/models/ETQP8MR68JFA
AP20: 10.2 | AQ20: 8.4 | AR20: 15.9 | AS20: 10.4 | AT20: 7.6 | AU20: 8.36 | AV20: 5.5 x 5 | AW20: 3 | AX20: -55 to +155 | AY20: Yes | AZ20: MP | BA20: ETQP3MR68KVP | BB20: https://industrial.panasonic.com/ww/products/pt/automotive-inductors/models/ETQP3MR68KVP | BC20: =IF(BA20="","", INDEX('All Data'!$AT:$AT,MATCH(BA20,'All Data'!$O:$O,0))) -> https://industrial.panasonic.com/content/data/CC/pictures/lineup-LP.gif | BI20: =IF(BA20="","", INDEX('All Data'!$K:$K,MATCH(BA20,'All Data'!$O:$O,0))) -> LP (Low Profile) | BJ20: https://industrial.panasonic.com/ww/products/pt/automotive-inductors/models/ETQP3MR68KVP
AP21: 13.2 | AQ21: 10.8 | AR21: 20.2 | AS21: 14.25 | AT21: 5.2 | AU21: 5.72 | AV21: 6.4 x 6 | AW21: 3 | AX21: -55 to +155 | AY21: Yes | AZ21: MP | BA21: ETQP3MR68KVN | BB21: https://industrial.panasonic.com/ww/products/pt/automotive-inductors/models/ETQP3MR68KVN | BC21: =IF(BA21="","", INDEX('All Data'!$AT:$AT,MATCH(BA21,'All Data'!$O:$O,0))) -> https://industrial.panasonic.com/content/data/CC/pictures/lineup-LP.gif | BI21: =IF(BA21="","", INDEX('All Data'!$K:$K,MATCH(BA21,'All Data'!$O:$O,0))) -> LP (Low Profile) | BJ21: https://industrial.panasonic.com/ww/products/pt/automotive-inductors/models/ETQP3MR68KVN
AP22: 19.5 | AQ22: 16.6 | AR22: 29 | AS22: 20.99 | AT22: 2.92 | AU22: 3.21 | AV22: 8.5 x 8 | AW22: 4 | AX22: -55 to +155 | AY22: Yes | AZ22: MP | BA22: ETQP4MR68KVK | BB22: https://industrial.panasonic.com/ww/products/pt/automotive-inductors/models/ETQP4MR68KVK | BC22: =IF(BA22="","", INDEX('All Data'!$AT:$AT,MATCH(BA22,'All Data'!$O:$O,0))) -> https://industrial.panasonic.com/content/data/CC/pictures/lineup-LP.gif | BI22: =IF(BA22="","", INDEX('All Data'!$K:$K,MATCH(BA22,'All Data'!$O:$O,0))) -> LP (Low Profile) | BJ22: https://industrial.panasonic.com/ww/products/pt/automotive-inductors/models/ETQP4MR68KVK
AP23: 32.3 | AQ23: 27 | AR23: 40 | AS23: 28.1 | AT23: 1.66 | AU23: 1.83 | AV23: 10.9 x 10 | AW23: 5 | AX23: -40 to +150 | AY23: Yes | AZ23: MP | BA23: ETQP5MR68YSC | BB23: https://industrial.panasonic.com/ww/products/pt/automotive-inductors/models/ETQP5MR68YSC | BC23: =IF(BA23="","", INDEX('All Data'!$AT:$AT,MATCH(BA23,'All Data'!$O:$O,0))) -> https://industrial.panasonic.com/content/data/CC/pictures/lineup-High%20Vibration%20Acceleration.gif | BI23: =IF(BA23="","", INDEX('All Data'!$K:$K,MATCH(BA23,'All Data'!$O:$O,0))) -> High Anti-vibration | BJ23: https://industrial.panasonic.com/ww/products/pt/automotive-inductors/models/ETQP5MR68YSC
AP24: 65 | AQ24: 53 | AR24: 71 | AS24: 51 | AT24: 0.7 | AU24: 0.77 | AV24: 15.6 x 17.2 | AW24: 10.5 | AX24: -40 to +160 | AY24: Yes | AZ24: MP | BA24: ETQPAMR68JFW | BB24: https://industrial.panasonic.com/ww/products/pt/automotive-inductors/models/ETQPAMR68JFW | BC24: =IF(BA24="","", INDEX('All Data'!$AT:$AT,MATCH(BA24,'All Data'!$O:$O,0))) -> https://industrial.panasonic.com/content/data/CC/pictures/lineup-Large%20current.gif | BI24: =IF(BA24="","", INDEX('All Data'!$K:$K,MATCH(BA24,'All Data'!$O:$O,0))) -> High Current (≥□12) | BJ24: https://industrial.panasonic.com/ww/products/pt/automotive-inductors/models/ETQPAMR68JFW
AN25: 1 | AO25: 0.2 | AP25: 10.7 | AQ25: 8.8 | AR25: 20 | AS25: 14.47 | AT25: 7.9 | AU25: 8.69 | AV25: 6.5 x 6 | AW25: 3 | AX25: -40 to +150 | AY25: Yes | AZ25: MP | BA25: ETQP3M1R0YFN | BB25: https://industrial.panasonic.com/ww/products/pt/automotive-inductors/models/ETQP3M1R0YFN | BC25: =IF(BA25="","", INDEX('All Data'!$AT:$AT,MATCH(BA25,'All Data'!$O:$O,0))) -> https://industrial.panasonic.com/content/data/CC/pictures/lineup-Metal-core.gif | BI25: =IF(BA25="","", INDEX('All Data'!$K:$K,MATCH(BA25,'All Data'!$O:$O,0))) -> High Isat (Standard) | BJ25: https://industrial.panasonic.com/ww/products/pt/automotive-inductors/models/ETQP3M1R0YFN
AP26: 27.5 | AQ26: 23 | AR26: 37.8 | AS26: 24.6 | AT26: 2.3 | AU26: 2.53 | AV26: 10.9 x 10 | AW26: 5 | AX26: -40 to +150 | AY26: Yes | AZ26: MP | BA26: ETQP5M1R0YLC | BB26: https://industrial.panasonic.com/ww/products/pt/automotive-inductors/models/ETQP5M1R0YLC | BC26: =IF(BA26="","", INDEX('All Data'!$AT:$AT,MATCH(BA26,'All Data'!$O:$O,0))) -> https://industrial.panasonic.com/content/data/CC/pictures/lineup-Metal-core.gif | BI26: =IF(BA26="","", INDEX('All Data'!$K:$K,MATCH(BA26,'All Data'!$O:$O,0))) -> High Isat (Standard) | BJ26: https://industrial.panasonic.com/ww/products/pt/automotive-inductors/models/ETQP5M1R0YLC
AP27: 38.3 | AQ27: 31.8 | AR27: 44.4 | AS27: 31.56 | AT27: 1.36 | AU27: 1.5 | AV27: 12.6 x 13.2 | AW27: 8 | AX27: -40 to +160 | AY27: Yes | AZ27: MP | BA27: ETQP8M1R0JFA | BB27: https://industrial.panasonic.com/ww/products/pt/automotive-inductors/models/ETQP8M1R0JFA | BC27: =IF(BA27="","", INDEX('All Data'!$AT:$AT,MATCH(BA27,'All Data'!$O:$O,0))) -> https://industrial.panasonic.com/content/data/CC/pictures/lineup-Large%20current.gif | BI27: =IF(BA27="","", INDEX('All Data'!$K:$K,MATCH(BA27,'All Data'!$O:$O,0))) -> High Current (≥□12) | BJ27: https://industrial.panasonic.com/ww/products/pt/automotive-inductors/models/ETQP8M1R0JFA
AP28: 9 | AQ28: 7.5 | AR28: 14.1 | AS28: 10.4 | AT28: 9.6 | AU28: 10.56 | AV28: 5.5 x 5 | AW28: 3 | AX28: -55 to +155 | AY28: Yes | AZ28: MP | BA28: ETQP3M1R0KVP | BB28: https://industrial.panasonic.com/ww/products/pt/automotive-inductors/models/ETQP3M1R0KVP | BC28: =IF(BA28="","", INDEX('All Data'!$AT:$AT,MATCH(BA28,'All Data'!$O:$O,0))) -> https://industrial.panasonic.com/content/data/CC/pictures/lineup-LP.gif | BI28: =IF(BA28="","", INDEX('All Data'!$K:$K,MATCH(BA28,'All Data'!$O:$O,0))) -> LP (Low Profile) | BJ28: https://industrial.panasonic.com/ww/products/pt/automotive-inductors/models/ETQP3M1R0KVP
AP29: 12.1 | AQ29: 9.9 | AR29: 16 | AS29: 10.65 | AT29: 6.2 | AU29: 6.82 | AV29: 6.4 x 6 | AW29: 3 | AX29: -55 to +155 | AY29: Yes | AZ29: MP | BA29: ETQP3M1R0KVN | BB29: https://industrial.panasonic.com/ww/products/pt/automotive-inductors/models/ETQP3M1R0KVN | BC29: =IF(BA29="","", INDEX('All Data'!$AT:$AT,MATCH(BA29,'All Data'!$O:$O,0))) -> https://industrial.panasonic.com/content/data/CC/pictures/lineup-LP.gif | BI29: =IF(BA29="","", INDEX('All Data'!$K:$K,MATCH(BA29,'All Data'!$O:$O,0))) -> LP (Low Profile) | BJ29: https://industrial.panasonic.com/ww/products/pt/automotive-inductors/models/ETQP3M1R0KVN
AP30: 17.3 | AQ30: 14.8 | AR30: 24.4 | AS30: 19.06 | AT30: 3.7 | AU30: 4.07 | AV30: 8.5 x 8 | AW30: 4 | AX30: -55 to +155 | AY30: Yes | AZ30: MP | BA30: ETQP4M1R0KVK | BB30: https://industrial.panasonic.com/ww/products/pt/automotive-inductors/models/ETQP4M1R0KVK | BC30: =IF(BA30="","", INDEX('All Data'!$AT:$AT,MATCH(BA30,'All Data'!$O:$O,0))) -> https://industrial.panasonic.com/content/data/CC/pictures/lineup-LP.gif | BI30: =IF(BA30="","", INDEX('All Data'!$K:$K,MATCH(BA30,'All Data'!$O:$O,0))) -> LP (Low Profile) | BJ30: https://industrial.panasonic.com/ww/products/pt/automotive-inductors/models/ETQP4M1R0KVK
AP31: 23.9 | AQ31: 19.6 | AR31: 34.6 | AS31: 24 | AT31: 2.6 | AU31: 2.86 | AV31: 10.7 x 10 | AW31: 4 | AX31: -55 to +155 | AY31: Yes | AZ31: MP | BA31: ETQP4M1R0KVC | BB31: https://industrial.panasonic.com/ww/products/pt/automotive-inductors/models/ETQP4M1R0KVC | BC31: =IF(BA31="","", INDEX('All Data'!$AT:$AT,MATCH(BA31,'All Data'!$O:$O,0))) -> https://industrial.panasonic.com/content/data/CC/pictures/lineup-LP.gif | BI31: =IF(BA31="","", INDEX('All Data'!$K:$K,MATCH(BA31,'All Data'!$O:$O,0))) -> LP (Low Profile) | BJ31: https://industrial.panasonic.com/ww/products/pt/automotive-inductors/models/ETQP4M1R0KVC
AP32: 57 | AQ32: 47 | AR32: 52 | AS32: 36.2 | AT32: 0.88 | AU32: 0.97 | AV32: 15.6 x 17.2 | AW32: 10.5 | AX32: -40 to +160 | AY32: Yes | AZ32: MP | BA32: ETQPAM1R0JFW | BB32: https://industrial.panasonic.com/ww/products/pt/automotive-inductors/models/ETQPAM1R0JFW | BC32: =IF(BA32="","", INDEX('All Data'!$AT:$AT,MATCH(BA32,'All Data'!$O:$O,0))) -> https://industrial.panasonic.com/content/data/CC/pictures/lineup-Large%20current.gif | BI32: =IF(BA32="","", INDEX('All Data'!$K:$K,MATCH(BA32,'All Data'!$O:$O,0))) -> High Current (≥□12) | BJ32: https://industrial.panasonic.com/ww/products/pt/automotive-inductors/models/ETQPAM1R0JFW
AN33: 1.5 | AO33: 0.2 | AP33: 21.4 | AQ33: 17.9 | AR33: 35.1 | AS33: 25.52 | AT33: 3.8 | AU33: 4.18 | AV33: 10.7 x 10 | AW33: 5.4 | AX33: -40 to +150 | AY33: Yes | AZ33: MP | BA33: ETQP5M1R5YFC | BB33: https://industrial.panasonic.com/ww/products/pt/automotive-inductors/models/ETQP5M1R5YFC | BC33: =IF(BA33="","", INDEX('All Data'!$AT:$AT,MATCH(BA33,'All Data'!$O:$O,0))) -> https://industrial.panasonic.com/content/data/CC/pictures/lineup-Metal-core.gif | BI33: =IF(BA33="","", INDEX('All Data'!$K:$K,MATCH(BA33,'All Data'!$O:$O,0))) -> High Isat (Standard) | BJ33: https://industrial.panasonic.com/ww/products/pt/automotive-inductors/models/ETQP5M1R5YFC
AP34: 23.3 | AQ34: 19.5 | AR34: 32 | AS34: 22.19 | AT34: 3.2 | AU34: 3.52 | AV34: 10.9 x 10 | AW34: 6 | AX34: -40 to +150 | AY34: Yes | AZ34: MP | BA34: ETQP6M1R5YLC | BB34: https://industrial.panasonic.com/ww/products/pt/automotive-inductors/models/ETQP6M1R5YLC | BC34: =IF(BA34="","", INDEX('All Data'!$AT:$AT,MATCH(BA34,'All Data'!$O:$O,0))) -> https://industrial.panasonic.com/content/data/CC/pictures/lineup-Metal-core.gif | BI34: =IF(BA34="","", INDEX('All Data'!$K:$K,MATCH(BA34,'All Data'!$O:$O,0))) -> High Isat (Standard) | BJ34: https://industrial.panasonic.com/ww/products/pt/automotive-inductors/models/ETQP6M1R5YLC
AP35: 33.3 | AQ35: 27.7 | AR35: 29.9 | AS35: 21.51 | AT35: 1.8 | AU35: 1.98 | AV35: 12.6 x 13.2 | AW35: 8 | AX35: -40 to +160 | AY35: Yes | AZ35: MP | BA35: ETQP8M1R5JFA | BB35: https://industrial.panasonic.com/ww/products/pt/automotive-inductors/models/ETQP8M1R5JFA | BC35: =IF(BA35="","", INDEX('All Data'!$AT:$AT,MATCH(BA35,'All Data'!$O:$O,0))) -> https://industrial.panasonic.com/content/data/CC/pictures/lineup-Large%20current.gif | BI35: =IF(BA35="","", INDEX('All Data'!$K:$K,MATCH(BA35,'All Data'!$O:$O,0))) -> High Current (≥□12) | BJ35: https://industrial.panasonic.com/ww/products/pt/automotive-inductors/models/ETQP8M1R5JFA
AP36: 8.1 | AQ36: 6.7 | AR36: 12 | AS36: 9.61 | AT36: 12 | AU36: 13.2 | AV36: 5.5 x 5 | AW36: 3 | AX36: -55 to +155 | AY36: Yes | AZ36: MP | BA36: ETQP3M1R5KVP | BB36: https://industrial.panasonic.com/ww/products/pt/automotive-inductors/models/ETQP3M1R5KVP | BC36: =IF(BA36="","", INDEX('All Data'!$AT:$AT,MATCH(BA36,'All Data'!$O:$O,0))) -> https://industrial.panasonic.com/content/data/CC/pictures/lineup-LP.gif | BI36: =IF(BA36="","", INDEX('All Data'!$K:$K,MATCH(BA36,'All Data'!$O:$O,0))) -> LP (Low Profile) | BJ36: https://industrial.panasonic.com/ww/products/pt/automotive-inductors/models/ETQP3M1R5KVP
AP37: 9.1 | AQ37: 7.4 | AR37: 14.2 | AS37: 10.37 | AT37: 11 | AU37: 12.1 | AV37: 6.4 x 6 | AW37: 3 | AX37: -55 to +155 | AY37: Yes | AZ37: MP | BA37: ETQP3M1R5KVN | BB37: https://industrial.panasonic.com/ww/products/pt/automotive-inductors/models/ETQP3M1R5KVN | BC37: =IF(BA37="","", INDEX('All Data'!$AT:$AT,MATCH(BA37,'All Data'!$O:$O,0))) -> https://industrial.panasonic.com/content/data/CC/pictures/lineup-LP.gif | BI37: =IF(BA37="","", INDEX('All Data'!$K:$K,MATCH(BA37,'All Data'!$O:$O,0))) -> LP (Low Profile) | BJ37: https://industrial.panasonic.com/ww/products/pt/automotive-inductors/models/ETQP3M1R5KVN
AP38: 15.1 | AQ38: 12.8 | AR38: 22.5 | AS38: 17.56 | AT38: 4.9 | AU38: 5.39 | AV38: 8.5 x 8 | AW38: 4 | AX38: -55 to +155 | AY38: Yes | AZ38: MP | BA38: ETQP4M1R5KVK | BB38: https://industrial.panasonic.com/ww/products/pt/automotive-inductors/models/ETQP4M1R5KVK | BC38: =IF(BA38="","", INDEX('All Data'!$AT:$AT,MATCH(BA38,'All Data'!$O:$O,0))) -> https://industrial.panasonic.com/content/data/CC/pictures/lineup-LP.gif | BI38: =IF(BA38="","", INDEX('All Data'!$K:$K,MATCH(BA38,'All Data'!$O:$O,0))) -> LP (Low Profile) | BJ38: https://industrial.panasonic.com/ww/products/pt/automotive-inductors/models/ETQP4M1R5KVK
AP39: 17.4 | AQ39: 14.3 | AR39: 25 | AS39: 19.36 | AT39: 4.9 | AU39: 5.39 | AV39: 10.7 x 10 | AW39: 4 | AX39: -55 to +155 | AY39: Yes | AZ39: MP | BA39: ETQP4M1R5KVC | BB39: https://industrial.panasonic.com/ww/products/pt/automotive-inductors/models/ETQP4M1R5KVC | BC39: =IF(BA39="","", INDEX('All Data'!$AT:$AT,MATCH(BA39,'All Data'!$O:$O,0))) -> https://industrial.panasonic.com/content/data/CC/pictures/lineup-LP.gif | BI39: =IF(BA39="","", INDEX('All Data'!$K:$K,MATCH(BA39,'All Data'!$O:$O,0))) -> LP (Low Profile) | BJ39: https://industrial.panasonic.com/ww/products/pt/automotive-inductors/models/ETQP4M1R5KVC
AP40: 52 | AQ40: 43 | AR40: 43 | AS40: 30.5 | AT40: 1.1 | AU40: 1.21 | AV40: 15.6 x 17.2 | AW40: 10.5 | AX40: -40 to +160 | AY40: Yes | AZ40: MP | BA40: ETQPAM1R5JFW | BB40: https://industrial.panasonic.com/ww/products/pt/automotive-inductors/models/ETQPAM1R5JFW | BC40: =IF(BA40="","", INDEX('All Data'!$AT:$AT,MATCH(BA40,'All Data'!$O:$O,0))) -> https://industrial.panasonic.com/content/data/CC/pictures/lineup-Large%20current.gif | BI40: =IF(BA40="","", INDEX('All Data'!$K:$K,MATCH(BA40,'All Data'!$O:$O,0))) -> High Current (≥□12) | BJ40: =IF(BB40="","",HYPERLINK(BB40)) -> https://industrial.panasonic.com/ww/products/pt/automotive-inductors/models/ETQPAM1R5JFW
AN41: 1.9 | AO41: 0.2 | AP41: 19.8 | AQ41: 16.5 | AR41: 29.8 | AS41: 21 | AT41: 4.45 | AU41: 4.9 | AV41: 10.9 x 10 | AW41: 5 | AX41: -40 to +150 | AY41: Yes | AZ41: MP | BA41: ETQP5M2R0YSC | BB41: https://industrial.panasonic.com/ww/products/pt/automotive-inductors/models/ETQP5M2R0YSC | BC41: =IF(BA41="","", INDEX('All Data'!$AT:$AT,MATCH(BA41,'All Data'!$O:$O,0))) -> https://industrial.panasonic.com/content/data/CC/pictures/lineup-Metal-core.gif | BI41: =IF(BA41="","", INDEX('All Data'!$K:$K,MATCH(BA41,'All Data'!$O:$O,0))) -> High Anti-vibration | BJ41: https://industrial.panasonic.com/ww/products/pt/automotive-inductors/models/ETQP5M2R0YSC
AN42: 2 | AO42: 0.2 | AP42: 19.4 | AQ42: 16.2 | AR42: 31.3 | AS42: 22.17 | AT42: 4.6 | AU42: 5.06 | AV42: 10.9 x 10 | AW42: 5 | AX42: -40 to +150 | AY42: Yes | AZ42: MP | BA42: ETQP5M2R0YLC | BB42: https://industrial.panasonic.com/ww/products/pt/automotive-inductors/models/ETQP5M2R0YLC | BC42: =IF(BA42="","", INDEX('All Data'!$AT:$AT,MATCH(BA42,'All Data'!$O:$O,0))) -> https://industrial.panasonic.com/content/data/CC/pictures/lineup-Metal-core.gif | BI42: =IF(BA42="","", INDEX('All Data'!$K:$K,MATCH(BA42,'All Data'!$O:$O,0))) -> High Isat (Standard) | BJ42: https://industrial.panasonic.com/ww/products/pt/automotive-inductors/models/ETQP5M2R0YLC
AN43: 2.2 | AO43: 0.2 | AP43: 5.8 | AQ43: 4.8 | AR43: 10.9 | AS43: 7.96 | AT43: 22.6 | AU43: 24.8 | AV43: 5.5 x 5 | AW43: 3 | AX43: -40 to +150 | AY43: Yes | AZ43: MP | BA43: ETQP3M2R2YFP | BB43: https://industrial.panasonic.com/ww/products/pt/automotive-inductors/models/ETQP3M2R2YFP | BC43: =IF(BA43="","", INDEX('All Data'!$AT:$AT,MATCH(BA43,'All Data'!$O:$O,0))) -> https://industrial.panasonic.com/content/data/CC/pictures/lineup-Metal-core.gif | BI43: =IF(BA43="","", INDEX('All Data'!$K:$K,MATCH(BA43,'All Data'!$O:$O,0))) -> High Isat (Standard) | BJ43: https://industrial.panasonic.com/ww/products/pt/automotive-inductors/models/ETQP3M2R2YFP
AP44: 6.3 | AQ44: 5.2 | AR44: 9 | AS44: 6.4 | AT44: 19.5 | AU44: 21.45 | AV44: 5.5 x 5 | AW44: 3 | AX44: -40 to +150 | AY44: Yes | AZ44: MP | BA44: ETQP3M2R2HFP | BB44: https://industrial.panasonic.com/ww/products/pt/automotive-inductors/models/ETQP3M2R2HFP | BC44: =IF(BA44="","", INDEX('All Data'!$AT:$AT,MATCH(BA44,'All Data'!$O:$O,0))) -> https://industrial.panasonic.com/content/data/CC/pictures/lineup-H.gif | BI44: =IF(BA44="","", INDEX('All Data'!$K:$K,MATCH(BA44,'All Data'!$O:$O,0))) -> High Frequency | BJ44: https://industrial.panasonic.com/ww/products/pt/automotive-inductors/models/ETQP3M2R2HFP
AR45: 10.1 | AS45: 7.38 | AT45: 20 | AU45: 22 | AV45: 5.5 x 5 | AW45: 3 | AX45: -55 to +155 | AY45: Yes | AZ45: MP | BA45: ETQP3M2R2KVP | BB45: https://industrial.panasonic.com/ww/products/pt/automotive-inductors/models/ETQP3M2R2KVP | BC45: =IF(BA45="","", INDEX('All Data'!$AT:$AT,MATCH(BA45,'All Data'!$O:$O,0))) -> https://industrial.panasonic.com/content/data/CC/pictures/lineup-LP.gif | BI45: =IF(BA45="","", INDEX('All Data'!$K:$K,MATCH(BA45,'All Data'!$O:$O,0))) -> LP (Low Profile) | BJ45: https://industrial.panasonic.com/ww/products/pt/automotive-inductors/models/ETQP3M2R2KVP
AP46: 10.2 | AQ46: 8 | AR46: 14.4 | AS46: 10.41 | AT46: 10.4 | AU46: 11.44 | AV46: 6.5 x 6 | AW46: 4.5 | AX46: -40 to +150 | AY46: Yes | AZ46: MP | BA46: ETQP4M2R2YFN | BB46: https://industrial.panasonic.com/ww/products/pt/automotive-inductors/models/ETQP4M2R2YFN | BC46: =IF(BA46="","", INDEX('All Data'!$AT:$AT,MATCH(BA46,'All Data'!$O:$O,0))) -> https://industrial.panasonic.com/content/data/CC/pictures/lineup-Metal-core.gif | BI46: =IF(BA46="","", INDEX('All Data'!$K:$K,MATCH(BA46,'All Data'!$O:$O,0))) -> High Isat (Standard) | BJ46: =IF(BB46="","",HYPERLINK(BB46)) -> https://industrial.panasonic.com/ww/products/pt/automotive-inductors/models/ETQP4M2R2YFN
AP47: 7.9 | AQ47: 6.5 | AR47: 12.8 | AS47: 8.9 | AT47: 14.5 | AU47: 15.95 | AV47: 6.4 x 6 | AW47: 3 | AX47: -55 to +155 | AY47: Yes | AZ47: MP | BA47: ETQP3M2R2KVN | BB47: https://industrial.panasonic.com/ww/products/pt/automotive-inductors/models/ETQP3M2R2KVN
AP48: 11.4 | AQ48: 9.8 | AR48: 20.4 | AS48: 15.16 | AT48: 8.5 | AU48: 9.35 | AV48: 8.5 x 8 | AW48: 4 | AX48: -55 to +155 | AY48: Yes | AZ48: MP | BA48: ETQP4M2R2KVK | BB48: https://industrial.panasonic.com/ww/products/pt/automotive-inductors/models/ETQP4M2R2KVK
AP49: 14.8 | AQ49: 12.1 | AR49: 21 | AS49: 16.92 | AT49: 6.8 | AU49: 7.48 | AV49: 10.7 x 10 | AW49: 4 | AX49: -55 to +155 | AY49: Yes | AZ49: MP | BA49: ETQP4M2R2KVC | BB49: https://industrial.panasonic.com/ww/products/pt/automotive-inductors/models/ETQP4M2R2KVC
AN50: 2.45 | AO50: 0.2 | AP50: 14.1 | AQ50: 12 | AR50: 19.3 | AS50: 13.7 | AT50: 7.4 | AU50: 8.14 | AV50: 8.5 x 8 | AW50: 5.4 | AX50: -40 to +150 | AY50: Yes | AZ50: MP | BA50: ETQP5M2R5YSK | BB50: https://industrial.panasonic.com/ww/products/pt/automotive-inductors/models/ETQP5M2R5YSK
AN51: 2.5 | AO51: 0.2 | AP51: 18.1 | AQ51: 15.1 | AR51: 27.2 | AS51: 19.74 | AT51: 5.3 | AU51: 5.9 | AV51: 10.7 x 10 | AW51: 5.4 | AX51: -40 to +150 | AY51: Yes | AZ51: MP | BA51: ETQP5M2R5YFC | BB51: https://industrial.panasonic.com/ww/products/pt/automotive-inductors/models/ETQP5M2R5YFC
AS52: 20 | AT52: 5.3 | AU52: 5.83 | AV52: 10.9 x 10 | AW52: 5.4 | AX52: -40 to +150 | AY52: Yes | AZ52: MP | BA52: ETQP5M2R5YTC | BB52: https://industrial.panasonic.com/ww/products/pt/automotive-inductors/models/ETQP5M2R5YTC
AP53: 14 | AQ53: 11.9 | AR53: 20.1 | AS53: 14.54 | AT53: 7.6 | AU53: 8.36 | AV53: 8.5 x 8 | AW53: 5.4 | AX53: -40 to +150 | AY53: Yes | AZ53: MP | BA53: ETQP5M2R5YFK | BB53: https://industrial.panasonic.com/ww/products/pt/automotive-inductors/models/ETQP5M2R5YFK
AP54: 19.6 | AQ54: 16.3 | AR54: 25.8 | AS54: 17.2 | AT54: 4.55 | AU54: 5 | AV54: 10.9 x 10 | AW54: 6 | AX54: -40 to +150 | AY54: Yes | AZ54: MP | BA54: ETQP6M2R5YLC | BB54: https://industrial.panasonic.com/ww/products/pt/automotive-inductors/models/ETQP6M2R5YLC
AP55: 27.7 | AQ55: 23 | AR55: 32.1 | AS55: 23.07 | AT55: 2.6 | AU55: 2.86 | AV55: 12.6 x 13.2 | AW55: 8 | AX55: -40 to +160 | AY55: Yes | AZ55: MP | BA55: ETQP8M2R5JFA | BB55: https://industrial.panasonic.com/ww/products/pt/automotive-inductors/models/ETQP8M2R5JFA
AP56: 19.7 | AQ56: 16.4 | AR56: 23.7 | AS56: 16.6 | AT56: 4.48 | AU56: 4.93 | AV56: 10.9 x 10 | AW56: 6 | AX56: -40 to +150 | AY56: Yes | AZ56: MP | BA56: ETQP6M2R5YSC | BB56: https://industrial.panasonic.com/ww/products/pt/automotive-inductors/models/ETQP6M2R5YSC
AP57: 42 | AQ57: 34 | AR57: 41 | AS57: 29.1 | AT57: 1.7 | AU57: 1.87 | AV57: 15.6 x 17.2 | AW57: 10.5 | AX57: -40 to +160 | AY57: Yes | AZ57: MP | BA57: ETQPAM2R5JFW | BB57: https://industrial.panasonic.com/ww/products/pt/automotive-inductors/models/ETQPAM2R5JFW
AN58: 3.3 | AO58: 0.2 | AP58: 8.2 | AQ58: 6.4 | AR58: 13.3 | AS58: 9.28 | AT58: 16.1 | AU58: 17.71 | AV58: 6.5 x 6 | AW58: 4.5 | AX58: -40 to +150 | AY58: Yes | AZ58: MP | BA58: ETQP4M3R3YFN | BB58: https://industrial.panasonic.com/ww/products/pt/automotive-inductors/models/ETQP4M3R3YFN
AP59: 5 | AQ59: 4.1 | AR59: 8.6 | AS59: 6.15 | AT59: 31.3 | AU59: 34.43 | AV59: 5.5 x 5 | AW59: 3 | AX59: -40 to +150 | AY59: Yes | AZ59: MP | BA59: ETQP3M3R3YFP | BB59: https://industrial.panasonic.com/ww/products/pt/automotive-inductors/models/ETQP3M3R3YFP
AP60: 15.7 | AQ60: 13.1 | AR60: 22.7 | AS60: 16.27 | AT60: 7.1 | AU60: 7.81 | AV60: 10.7 x 10 | AW60: 5.4 | AX60: -40 to +150 | AY60: Yes | AZ60: MP | BA60: ETQP5M3R3YFC | BB60: https://industrial.panasonic.com/ww/products/pt/automotive-inductors/models/ETQP5M3R3YFC
AS61: 17.5 | AT61: 7.1 | AU61: 7.81 | AV61: 10.9 x 10 | AW61: 5.4 | AX61: -40 to +150 | AY61: Yes | AZ61: MP | BA61: ETQP5M3R3YTC | BB61: https://industrial.panasonic.com/ww/products/pt/automotive-inductors/models/ETQP5M3R3YTC
AP62: 17 | AQ62: 14.2 | AR62: 26.3 | AS62: 19.69 | AT62: 6 | AU62: 6.6 | AV62: 10.9 x 10 | AW62: 6 | AX62: -40 to +150 | AY62: Yes | AZ62: MP | BA62: ETQP6M3R3YLC | BB62: https://industrial.panasonic.com/ww/products/pt/automotive-inductors/models/ETQP6M3R3YLC
AP63: 23.6 | AQ63: 19.6 | AR63: 27.6 | AS63: 19.78 | AT63: 3.6 | AU63: 3.96 | AV63: 12.6 x 13.1 | AW63: 8 | AX63: -40 to +160 | AY63: Yes | AZ63: MP | BA63: ETQP8M3R3JFA | BB63: https://industrial.panasonic.com/ww/products/pt/automotive-inductors/models/ETQP8M3R3JFA
AP64: 5.4 | AQ64: 4.4 | AR64: 8 | AS64: 5.81 | AT64: 27.3 | AU64: 30.03 | AV64: 5.5 x 5 | AW64: 3 | AX64: -55 to +155 | AY64: Yes | AZ64: MP | BA64: ETQP3M3R3KVP | BB64: https://industrial.panasonic.com/ww/products/pt/automotive-inductors/models/ETQP3M3R3KVP
AP65: 6.1 | AQ65: 5 | AR65: 11.5 | AS65: 7.3 | AT65: 24.1 | AU65: 26.51 | AV65: 6.4 x 6 | AW65: 3 | AX65: -55 to +155 | AY65: Yes | AZ65: MP | BA65: ETQP3M3R3KVN | BB65: https://industrial.panasonic.com/ww/products/pt/automotive-inductors/models/ETQP3M3R3KVN
AP66: 8.9 | AQ66: 7.6 | AR66: 17.4 | AS66: 11.71 | AT66: 14.1 | AU66: 15.51 | AV66: 8.5 x 8 | AW66: 4 | AX66: -55 to +155 | AY66: Yes | AZ66: MP | BA66: ETQP4M3R3KVK | BB66: https://industrial.panasonic.com/ww/products/pt/automotive-inductors/models/ETQP4M3R3KVK
AP67: 12.6 | AQ67: 10.3 | AR67: 17.1 | AS67: 12.66 | AT67: 9.4 | AU67: 10.34 | AV67: 10.7 x 10 | AW67: 4 | AX67: -55 to +155 | AY67: Yes | AZ67: MP | BA67: ETQP4M3R3KVC | BB67: https://industrial.panasonic.com/ww/products/pt/automotive-inductors/models/ETQP4M3R3KVC
AP68: 9.2 | AQ68: 7.2 | AR68: 12 | AS68: 8.9 | AT68: 13.1 | AU68: 14.41 | AV68: 6.4 x 6 | AW68: 4.8 | AX68: -40 to +150 | AY68: Yes | AZ68: MP | BA68: ETQP4M3R3KFN | BB68: https://industrial.panasonic.com/ww/products/pt/automotive-inductors/models/ETQP4M3R3KFN
AP69: 10.4 | AQ69: 8.3 | AR69: 14.4 | AS69: 10.34 | AT69: 11.9 | AU69: 13.09 | AV69: 7.5 x 7 | AW69: 5.4 | AX69: -40 to +150 | AY69: Yes | AZ69: MP | BA69: ETQP5M3R3YFM | BB69: https://industrial.panasonic.com/ww/products/pt/automotive-inductors/models/ETQP5M3R3YFM
AP70: 12.5 | AQ70: 10.7 | AR70: 17.9 | AS70: 12.96 | AT70: 9.5 | AU70: 10.45 | AV70: 8.5 x 8 | AW70: 5.4 | AX70: -40 to +150 | AY70: Yes | AZ70: MP | BA70: ETQP5M3R3YFK | BB70: https://industrial.panasonic.com/ww/products/pt/automotive-inductors/models/ETQP5M3R3YFK
AP71: 14.7 | AQ71: 11.8 | AR71: 23.4 | AS71: 16.63 | AT71: 7.1 | AU71: 7.81 | AV71: 10.7 x 10 | AW71: 5 | AX71: -40 to +150 | AY71: Yes | AZ71: MP | BA71: ETQP5M3R3YGC | BB71: https://industrial.panasonic.com/ww/products/pt/automotive-inductors/models/ETQP5M3R3YGC
AP72: 35 | AQ72: 29 | AR72: 37 | AS72: 26.1 | AT72: 2.4 | AU72: 2.64 | AV72: 15.6 x 17.2 | AW72: 10.5 | AX72: -40 to +160 | AY72: Yes | AZ72: MP | BA72: ETQPAM3R3JFW | BB72: https://industrial.panasonic.com/ww/products/pt/automotive-inductors/models/ETQPAM3R3JFW
AN73: 4.7 | AO73: 0.2 | AP73: 4.8 | AQ73: 4 | AR73: 7.7 | AS73: 5.6 | AT73: 36 | AU73: 39.6 | AV73: 5.5 x 5 | AW73: 4 | AX73: -40 to +150 | AY73: Yes | AZ73: MP | BA73: ETQP4M4R7YFP | BB73: https://industrial.panasonic.com/ww/products/pt/automotive-inductors/models/ETQP4M4R7YFP
AP74: 13.1 | AQ74: 10.9 | AR74: 20 | AS74: 14.75 | AT74: 10.2 | AU74: 11.3 | AV74: 10.7 x 10 | AW74: 5.4 | AX74: -40 to +150 | AY74: Yes | AZ74: MP | BA74: ETQP5M4R7YFC | BB74: https://industrial.panasonic.com/ww/products/pt/automotive-inductors/models/ETQP5M4R7YFC
AP75: 8 | AQ75: 6.3 | AR75: 13.1 | AS75: 9.45 | AT75: 20.4 | AU75: 22.5 | AV75: 7.5 x 7 | AW75: 5.4 | AX75: -40 to +150 | AY75: Yes | AZ75: MP | BA75: ETQP5M4R7YFM | BB75: https://industrial.panasonic.com/ww/products/pt/automotive-inductors/models/ETQP5M4R7YFM
AP76: 14.1 | AQ76: 11.8 | AR76: 22.5 | AS76: 15.17 | AT76: 8.7 | AU76: 9.57 | AV76: 10.9 x 10 | AW76: 6 | AX76: -40 to +150 | AY76: Yes | AZ76: MP | BA76: ETQP6M4R7YLC | BB76: https://industrial.panasonic.com/ww/products/pt/automotive-inductors/models/ETQP6M4R7YLC
AP77: 20.2 | AQ77: 16.8 | AR77: 24.7 | AS77: 17.6 | AT77: 4.9 | AU77: 5.39 | AV77: 12.6 x 13.1 | AW77: 8 | AX77: -40 to +160 | AY77: Yes | AZ77: MP | BA77: ETQP8M4R7JFA | BB77: https://industrial.panasonic.com/ww/products/pt/automotive-inductors/models/ETQP8M4R7JFA
AP78: 4.1 | AQ78: 3.4 | AR78: 6.7 | AS78: 5.4 | AT78: 45.6 | AU78: 50.16 | AV78: 5.5 x 5 | AW78: 3 | AX78: -55 to +155 | AY78: Yes | AZ78: MP | BA78: ETQP3M4R7KVP | BB78: https://industrial.panasonic.com/ww/products/pt/automotive-inductors/models/ETQP3M4R7KVP
AP79: 5.6 | AQ79: 4.6 | AR79: 9.8 | AS79: 7.19 | AT79: 29 | AU79: 31.9 | AV79: 6.4 x 6 | AW79: 3 | AX79: -55 to +155 | AY79: Yes | AZ79: MP | BA79: ETQP3M4R7KVN | BB79: https://industrial.panasonic.com/ww/products/pt/automotive-inductors/models/ETQP3M4R7KVN
AP80: 8.3 | AQ80: 7.1 | AR80: 15.1 | AS80: 9.24 | AT80: 16.1 | AU80: 17.71 | AV80: 8.5 x 8 | AW80: 4 | AX80: -55 to +155 | AY80: Yes | AZ80: MP | BA80: ETQP4M4R7KVK | BB80: https://industrial.panasonic.com/ww/products/pt/automotive-inductors/models/ETQP4M4R7KVK
AP81: 11.2 | AQ81: 9.2 | AR81: 13.9 | AS81: 10.58 | AT81: 12.3 | AU81: 13.53 | AV81: 10.7 x 10 | AW81: 4 | AX81: -55 to +155 | AY81: Yes | AZ81: MP | BA81: ETQP4M4R7KVC | BB81: https://industrial.panasonic.com/ww/products/pt/automotive-inductors/models/ETQP4M4R7KVC
AP82: 7.3 | AQ82: 5.7 | AR82: 10.2 | AS82: 7.31 | AT82: 20.7 | AU82: 22.77 | AV82: 6.4 x 6 | AW82: 4.8 | AX82: -40 to +150 | AY82: Yes | AZ82: MP | BA82: ETQP4M4R7KFN | BB82: https://industrial.panasonic.com/ww/products/pt/automotive-inductors/models/ETQP4M4R7KFN
AP83: 8.8 | AQ83: 6.5 | AR83: 10.7 | AS83: 7.7 | AT83: 16.8 | AU83: 18.48 | AV83: 7.4 x 7 | AW83: 4.8 | AX83: -40 to +150 | AY83: Yes | AZ83: MP | BA83: ETQP4M4R7KFM | BB83: https://industrial.panasonic.com/ww/products/pt/automotive-inductors/models/ETQP4M4R7KFM
AP84: 31 | AQ84: 26 | AR84: 30 | AS84: 21.1 | AT84: 3.1 | AU84: 3.41 | AV84: 15.6 x 17.2 | AW84: 10.5 | AX84: -40 to +160 | AY84: Yes | AZ84: MP | BA84: ETQPAM4R7JFW | BB84: https://industrial.panasonic.com/ww/products/pt/automotive-inductors/models/ETQPAM4R7JFW
AN85: 6.8 | AO85: 0.2 | AP85: 5.2 | AQ85: 4.1 | AR85: 10 | AS85: 7.2 | AT85: 39.3 | AU85: 43.23 | AV85: 6.5 x 6 | AW85: 4.5 | AX85: -40 to +150 | AY85: Yes | AZ85: MP | BA85: ETQP4M6R8YFN | BB85: https://industrial.panasonic.com/ww/products/pt/automotive-inductors/models/ETQP4M6R8YFN
AP86: 4.5 | AQ86: 3.6 | AR86: 8.1 | AS86: 5.48 | AT86: 45.6 | AU86: 50.16 | AV86: 6.4 x 6 | AW86: 3 | AX86: -55 to +155 | AY86: Yes | AZ86: MP | BA86: ETQP3M6R8KVN | BB86: https://industrial.panasonic.com/ww/products/pt/automotive-inductors/models/ETQP3M6R8KVN
AP87: 6.9 | AQ87: 5.5 | AR87: 12.1 | AS87: 8.6 | AT87: 26.7 | AU87: 29.4 | AV87: 7.5 x 7 | AW87: 5.4 | AX87: -40 to +150 | AY87: Yes | AZ87: MP | BA87: ETQP5M6R8YFM | BB87: https://industrial.panasonic.com/ww/products/pt/automotive-inductors/models/ETQP5M6R8YFM
AQ88: 5.9 | AR88: 11 | AS88: 7.59 | AT88: 23.5 | AU88: 25.85 | AV88: 8.5 x 8 | AW88: 4 | AX88: -55 to +155 | AY88: Yes | AZ88: MP | BA88: ETQP4M6R8KVK | BB88: https://industrial.panasonic.com/ww/products/pt/automotive-inductors/models/ETQP4M6R8KVK
AP89: 3.5 | AQ89: 2.9 | AR89: 6.1 | AS89: 4.54 | AT89: 65.7 | AU89: 72.27 | AV89: 5.5 x 5 | AW89: 3 | AX89: -55 to +155 | AY89: Yes | AZ89: MP | BA89: ETQP3M6R8KVP | BB89: https://industrial.panasonic.com/ww/products/pt/automotive-inductors/models/ETQP3M6R8KVP
AP90: 8.9 | AQ90: 7.4 | AR90: 12.1 | AS90: 8.92 | AT90: 18.5 | AU90: 20.35 | AV90: 10.7 x 10 | AW90: 4 | AX90: -55 to +155 | AY90: Yes | AZ90: MP | BA90: ETQP4M6R8KVC | BB90: https://industrial.panasonic.com/ww/products/pt/automotive-inductors/models/ETQP4M6R8KVC
AP91: 5.9 | AQ91: 4.6 | AR91: 9.9 | AS91: 7.1 | AT91: 32.1 | AU91: 35.31 | AV91: 6.4 x 6 | AW91: 4.8 | AX91: -40 to +150 | AY91: Yes | AZ91: MP | BA91: ETQP4M6R8KFN | BB91: https://industrial.panasonic.com/ww/products/pt/automotive-inductors/models/ETQP4M6R8KFN
AN92: 10 | AO92: 0.2 | AP92: 5.2 | AQ92: 4.1 | AR92: 8.1 | AS92: 6.6 | AT92: 40.4 | AU92: 44.44 | AV92: 6.4 x 6 | AW92: 4.8 | AX92: -40 to +150 | AY92: Yes | AZ92: MP | BA92: ETQP4M100KFN | BB92: https://industrial.panasonic.com/ww/products/pt/automotive-inductors/models/ETQP4M100KFN
AQ93: 4.4 | AR93: 9.1 | AS93: 6.79 | AT93: 41.6 | AU93: 45.76 | AV93: 8.5 x 8 | AW93: 4 | AX93: -55 to +155 | AY93: Yes | AZ93: MP | BA93: ETQP4M100KVK | BB93: https://industrial.panasonic.com/ww/products/pt/automotive-inductors/models/ETQP4M100KVK
AP94: 4.5 | AQ94: 3.5 | AR94: 8.3 | AS94: 5.77 | AT94: 54.2 | AU94: 59.62 | AV94: 6.5 x 6 | AW94: 4.5 | AX94: -40 to +150 | AY94: Yes | AZ94: MP | BA94: ETQP4M100YFN | BB94: https://industrial.panasonic.com/ww/products/pt/automotive-inductors/models/ETQP4M100YFN
AP95: 2.9 | AQ95: 2.4 | AR95: 4.2 | AS95: 3.35 | AT95: 96 | AU95: 105.6 | AV95: 5.5 x 5 | AW95: 3 | AX95: -55 to +155 | AY95: Yes | AZ95: MP | BA95: ETQP3M100KVP | BB95: https://industrial.panasonic.com/ww/products/pt/automotive-inductors/models/ETQP3M100KVP
AP96: 8.5 | AQ96: 7.1 | AR96: 10.7 | AS96: 8.8 | AT96: 23.8 | AU96: 26.2 | AV96: 10.7 x 10 | AW96: 5.4 | AX96: -40 to +150 | AY96: Yes | AZ96: MP | BA96: ETQP5M100YFC | BB96: https://industrial.panasonic.com/ww/products/pt/automotive-inductors/models/ETQP5M100YFC
AP97: 3.6 | AQ97: 2.9 | AR97: 5.8 | AS97: 4.22 | AT97: 71 | AU97: 78.1 | AV97: 6.4 x 6 | AW97: 3 | AX97: -55 to +155 | AY97: Yes | AZ97: MP | BA97: ETQP3M100KVN | BB97: https://industrial.panasonic.com/ww/products/pt/automotive-inductors/models/ETQP3M100KVN
AP98: 6.7 | AQ98: 5.7 | AR98: 13 | AS98: 8.04 | AT98: 33.4 | AU98: 36.8 | AV98: 8.5 x 8 | AW98: 5.4 | AX98: -40 to +150 | AY98: Yes | AZ98: MP | BA98: ETQP5M100YFK | BB98: https://industrial.panasonic.com/ww/products/pt/automotive-inductors/models/ETQP5M100YFK
AP99: 6.9 | AQ99: 5.9 | AR99: 11.1 | AS99: 7.7 | AT99: 31.5 | AU99: 34.65 | AV99: 8.5 x 8 | AW99: 5.4 | AX99: -40 to +150 | AY99: Yes | AZ99: MP | BA99: ETQP5M100GAK | BB99: https://industrial.panasonic.com/ww/products/pt/automotive-inductors/models/ETQP5M100GAK
AP100: 5.7 | AQ100: 4.7 | AR100: 10.6 | AS100: 7.56 | AT100: 37.6 | AU100: 41.3 | AV100: 7.5 x 7 | AW100: 5.4 | AX100: -40 to +150 | AY100: Yes | AZ100: MP | BA100: ETQP5M100YFM | BB100: https://industrial.panasonic.com/ww/products/pt/automotive-inductors/models/ETQP5M100YFM
AP101: 3.7 | AQ101: 3 | AR101: 5.5 | AS101: 3.8 | AT101: 68 | AU101: 74.8 | AV101: 6.5 x 6 | AW101: 3 | AX101: -40 to +150 | AY101: Yes | AZ101: MP | BA101: ETQP3M100HFN | BB101: https://industrial.panasonic.com/ww/products/pt/automotive-inductors/models/ETQP3M100HFN
AP102: 3 | AQ102: 2.5 | AR102: 3.9 | AS102: 2.75 | AT102: 95 | AU102: 104.5 | AV102: 5.5 x 5 | AW102: 4 | AX102: -40 to +150 | AY102: Yes | AZ102: MP | BA102: ETQP4M100YFP | BB102: https://industrial.panasonic.com/ww/products/pt/automotive-inductors/models/ETQP4M100YFP
AP103: 7.6 | AQ103: 6.3 | AR103: 10.8 | AS103: 8.09 | AT103: 25.4 | AU103: 27.94 | AV103: 10.7 x 10 | AW103: 4 | AX103: -55 to +155 | AY103: Yes | AZ103: MP | BA103: ETQP4M100KVC | BB103: https://industrial.panasonic.com/ww/products/pt/automotive-inductors/models/ETQP4M100KVC
AP104: 6 | AQ104: 4.5 | AR104: 9.6 | AS104: 6.7 | AT104: 36 | AU104: 39.6 | AV104: 7.4 x 7 | AW104: 4.8 | AX104: -40 to +150 | AY104: Yes | AZ104: MP | BA104: ETQP4M100KFM | BB104: https://industrial.panasonic.com/ww/products/pt/automotive-inductors/models/ETQP4M100KFM
AN105: 14 | AO105: 0.2 | AP105: 7.9 | AQ105: 6.5 | AR105: 11.2 | AS105: 8 | AT105: 28 | AU105: 30.8 | AV105: 10.9 x 10 | AW105: 6 | AX105: -40 to +150 | AY105: Yes | AZ105: MP | BA105: ETQP6M150KLC | BB105: https://industrial.panasonic.com/ww/products/pt/automotive-inductors/models/ETQP6M150KLC
AN106: 15 | AO106: 0.2 | AP106: 4.5 | AQ106: 3.8 | AR106: 7.6 | AS106: 5.82 | AT106: 55 | AU106: 60.5 | AV106: 8.5 x 8 | AW106: 4 | AX106: -55 to +155 | AY106: Yes | AZ106: MP | BA106: ETQP4M150KVK | BB106: https://industrial.panasonic.com/ww/products/pt/automotive-inductors/models/ETQP4M150KVK
AP107: 7 | AQ107: 5.8 | AR107: 12 | AS107: 7.33 | AT107: 35.6 | AU107: 39.16 | AV107: 10.7 x 10 | AW107: 5.4 | AX107: -40 to +150 | AY107: Yes | AZ107: MP | BA107: ETQP5M150YFC | BB107: https://industrial.panasonic.com/ww/products/pt/automotive-inductors/models/ETQP5M150YFC
AP108: 4.2 | AQ108: 3.3 | AR108: 6.7 | AS108: 5 | AT108: 63.8 | AU108: 70.18 | AV108: 6.4 x 6 | AW108: 4.8 | AX108: -40 to +150 | AY108: Yes | AZ108: MP | BA108: ETQP4M150KFN | BB108: https://industrial.panasonic.com/ww/products/pt/automotive-inductors/models/ETQP4M150KFN
AP109: 5.5 | AQ109: 4.7 | AR109: 7.2 | AS109: 5.58 | AT109: 48.2 | AU109: 53.1 | AV109: 8.5 x 8 | AW109: 5.4 | AX109: -40 to +150 | AY109: Yes | AZ109: MP | BA109: ETQP5M150YFK | BB109: https://industrial.panasonic.com/ww/products/pt/automotive-inductors/models/ETQP5M150YFK
AP110: 6.3 | AQ110: 5.2 | AR110: 9.2 | AS110: 5.96 | AT110: 37 | AU110: 40.7 | AV110: 10.7 x 10 | AW110: 4 | AX110: -55 to +155 | AY110: Yes | AZ110: MP | BA110: ETQP4M150KVC | BB110: https://industrial.panasonic.com/ww/products/pt/automotive-inductors/models/ETQP4M150KVC
AP111: 3 | AQ111: 2.5 | AR111: 5.1 | AS111: 3.45 | AT111: 99.2 | AU111: 109.12 | AV111: 6.4 x 6 | AW111: 3 | AX111: -55 to +155 | AY111: Yes | AZ111: MP | BA111: ETQP3M150KVN | BB111: https://industrial.panasonic.com/ww/products/pt/automotive-inductors/models/ETQP3M150KVN
AP112: 4.6 | AQ112: 3.4 | AR112: 7.2 | AS112: 5.2 | AT112: 60.7 | AU112: 66.77 | AV112: 7.4 x 7 | AW112: 4.8 | AX112: -40 to +150 | AY112: Yes | AZ112: MP | BA112: ETQP4M150KFM | BB112: https://industrial.panasonic.com/ww/products/pt/automotive-inductors/models/ETQP4M150KFM
AN113: 20 | AO113: 0.2 | AP113: 6.2 | AQ113: 5.2 | AR113: 7.9 | AS113: 5.5 | AT113: 45.5 | AU113: 50.05 | AV113: 10.9 x 10 | AW113: 5.6 | AX113: -40 to +150 | AY113: Yes | AZ113: MP | BA113: ETQP5M220YSC | BB113: https://industrial.panasonic.com/ww/products/pt/automotive-inductors/models/ETQP5M220YSC
AN114: 22 | AO114: 0.2 | AP114: 2.9 | AQ114: 2.3 | AR114: 6 | AS114: 3.94 | AT114: 126 | AU114: 138.6 | AV114: 6.5 x 6 | AW114: 4.5 | AX114: -40 to +150 | AY114: Yes | AZ114: MP | BA114: ETQP4M220YFN | BB114: https://industrial.panasonic.com/ww/products/pt/automotive-inductors/models/ETQP4M220YFN
AP115: 2.5 | AQ115: 2.1 | AR115: 4 | AS115: 2.9 | AT115: 144 | AU115: 158.4 | AV115: 6.5 x 6 | AW115: 3 | AX115: -40 to +150 | AY115: Yes | AZ115: MP | BA115: ETQP3M220HFN | BB115: https://industrial.panasonic.com/ww/products/pt/automotive-inductors/models/ETQP3M220HFN
AP116: 2.2 | AQ116: 1.8 | AR116: 2.8 | AS116: 1.9 | AT116: 165 | AU116: 181.5 | AV116: 5.5 x 5 | AW116: 3 | AX116: -55 to +155 | AY116: Yes | AZ116: MP | BA116: ETQP3M220KVP | BB116: https://industrial.panasonic.com/ww/products/pt/automotive-inductors/models/ETQP3M220KVP
AP117: 5 | AQ117: 4.1 | AR117: 7.4 | AS117: 5.63 | AT117: 60 | AU117: 66 | AV117: 10.7 x 10 | AW117: 4 | AX117: -55 to +155 | AY117: Yes | AZ117: MP | BA117: ETQP4M220KVC | BB117: https://industrial.panasonic.com/ww/products/pt/automotive-inductors/models/ETQP4M220KVC | BD117: =IFERROR(_xlfn.IMAGE(BC117,"--"),"--") -> --
AP118: 4.8 | AQ118: 4.1 | AR118: 6.9 | AS118: 4.92 | AT118: 63 | AU118: 70 | AV118: 8.5 x 8 | AW118: 5.4 | AX118: -40 to +150 | AY118: Yes | AZ118: MP | BA118: ETQP5M220YFK | BB118: https://industrial.panasonic.com/ww/products/pt/automotive-inductors/models/ETQP5M220YFK | BD118: --
AP119: 2.3 | AQ119: 1.9 | AR119: 3.1 | AS119: 2.35 | AT119: 163 | AU119: 179 | AV119: 5.5 x 5 | AW119: 4 | AX119: -40 to +150 | AY119: Yes | AZ119: MP | BA119: ETQP4M220YFP | BB119: https://industrial.panasonic.com/ww/products/pt/automotive-inductors/models/ETQP4M220YFP | BD119: --
AP120: 6.2 | AQ120: 5.2 | AR120: 9.2 | AS120: 6.64 | AT120: 45 | AU120: 50 | AV120: 10.7 x 10 | AW120: 5.4 | AX120: -40 to +150 | AY120: Yes | AZ120: MP | BA120: ETQP5M220YFC | BB120: https://industrial.panasonic.com/ww/products/pt/automotive-inductors/models/ETQP5M220YFC | BD120: --
AP121: 2.7 | AQ121: 2.2 | AR121: 4.3 | AS121: 2.79 | AT121: 128 | AU121: 140.8 | AV121: 6.4 x 6 | AW121: 3 | AX121: -55 to +155 | AY121: Yes | AZ121: MP | BA121: ETQP3M220KVN | BB121: https://industrial.panasonic.com/ww/products/pt/automotive-inductors/models/ETQP3M220KVN | BD121: --
AP122: 3.7 | AQ122: 3 | AR122: 5.8 | AS122: 3.97 | AT122: 92 | AU122: 102 | AV122: 7.5 x 7 | AW122: 5.4 | AX122: -40 to +150 | AY122: Yes | AZ122: MP | BA122: ETQP5M220YFM | BB122: https://industrial.panasonic.com/ww/products/pt/automotive-inductors/models/ETQP5M220YFM | BD122: --
AP123: 3.1 | AQ123: 2.4 | AR123: 4.1 | AS123: 2.9 | AT123: 113 | AU123: 124.3 | AV123: 6.4 x 6 | AW123: 4.8 | AX123: -40 to +150 | AY123: Yes | AZ123: MP | BA123: ETQP4M220KFN | BB123: https://industrial.panasonic.com/ww/products/pt/automotive-inductors/models/ETQP4M220KFN | BD123: --
AP124: 3.8 | AQ124: 3.2 | AR124: 6 | AS124: 5 | AT124: 78.4 | AU124: 86.24 | AV124: 8.5 x 8 | AW124: 4 | AX124: -55 to +155 | AY124: Yes | AZ124: MP | BA124: ETQP4M220KVK | BB124: https://industrial.panasonic.com/ww/products/pt/automotive-inductors/models/ETQP4M220KVK | BD124: --
AP125: 3.9 | AQ125: 2.9 | AR125: 4.6 | AS125: 3.7 | AT125: 84.1 | AU125: 92.51 | AV125: 7.4 x 7 | AW125: 4.8 | AX125: -40 to +150 | AY125: Yes | AZ125: MP | BA125: ETQP4M220KFM | BB125: https://industrial.panasonic.com/ww/products/pt/automotive-inductors/models/ETQP4M220KFM | BD125: --
AN126: 33 | AO126: 0.2 | AP126: 2.5 | AQ126: 2 | AR126: 4.1 | AS126: 2.98 | AT126: 172 | AU126: 189.2 | AV126: 6.5 x 6 | AW126: 4.5 | AX126: -40 to +150 | AY126: Yes | AZ126: MP | BA126: ETQP4M330YFN | BB126: https://industrial.panasonic.com/ww/products/pt/automotive-inductors/models/ETQP4M330YFN | BD126: --
AP127: 5 | AQ127: 4.2 | AR127: 7.6 | AS127: 5.48 | AT127: 68.5 | AU127: 75.4 | AV127: 10.7 x 10 | AW127: 5.4 | AX127: -40 to +150 | AY127: Yes | AZ127: MP | BA127: ETQP5M330YFC | BB127: https://industrial.panasonic.com/ww/products/pt/automotive-inductors/models/ETQP5M330YFC | BD127: --
AP128: 4.2 | AQ128: 3.4 | AR128: 5.6 | AS128: 4.06 | AT128: 84.6 | AU128: 93.06 | AV128: 10.7 x 10 | AW128: 4 | AX128: -55 to +155 | AY128: Yes | AZ128: MP | BA128: ETQP4M330KVC | BB128: https://industrial.panasonic.com/ww/products/pt/automotive-inductors/models/ETQP4M330KVC | BD128: --
AP129: 3.4 | AQ129: 2.5 | AR129: 4.2 | AS129: 3.1 | AT129: 115 | AU129: 126.5 | AV129: 7.4 x 7 | AW129: 4.8 | AX129: -40 to +150 | AY129: Yes | AZ129: MP | BA129: ETQP4M330KFM | BB129: https://industrial.panasonic.com/ww/products/pt/automotive-inductors/models/ETQP4M330KFM | BD129: --
AP130: 2.1 | AQ130: 1.7 | AR130: 3 | AS130: 2.1 | AT130: 206 | AU130: 226.6 | AV130: 6.4 x 6 | AW130: 3 | AX130: -55 to +155 | AY130: Yes | AZ130: MP | BA130: ETQP3M330KVN | BB130: https://industrial.panasonic.com/ww/products/pt/automotive-inductors/models/ETQP3M330KVN | BD130: --
AP131: 3.3 | AQ131: 2.6 | AR131: 4.8 | AS131: 3.4 | AT131: 120 | AU131: 132 | AV131: 7.5 x 7 | AW131: 5.4 | AX131: -40 to +150 | AY131: Yes | AZ131: MP | BA131: ETQP5M330YFM | BB131: https://industrial.panasonic.com/ww/products/pt/automotive-inductors/models/ETQP5M330YFM | BD131: --
AP132: 3.1 | AQ132: 2.6 | AR132: 4.7 | AS132: 3.74 | AT132: 118 | AU132: 129.8 | AV132: 8.5 x 8 | AW132: 4 | AX132: -55 to +155 | AY132: Yes | AZ132: MP | BA132: ETQP4M330KVK | BB132: https://industrial.panasonic.com/ww/products/pt/automotive-inductors/models/ETQP4M330KVK | BD132: --
AN133: 36 | AO133: 0.3 | AP133: (空白) | AQ133: 6.9 | AR133: (空白) | AS133: - | AT133: 25.8 | AU133: - | AV133: 14 x 14 | AW133: 13.1 | AX133: -40 to +150 | AY133: Yes | AZ133: MP | BA133: ETQPDH240DTV | BB133: https://industrial.panasonic.com/ww/products/pt/automotive-inductors/models/ETQPDH240DTV | BD133: --
AN134: 44 | AO134: 0.2 | AP134: 4.1 | AQ134: 3.4 | AR134: 5.6 | AS134: 4.5 | AT134: 102 | AU134: 112.2 | AV134: 10.9 x 10 | AW134: 5.4 | AX134: -40 to +150 | AY134: Yes | AZ134: MP | BA134: ETQP5M470YSC | BB134: https://industrial.panasonic.com/ww/products/pt/automotive-inductors/models/ETQP5M470YSC | BD134: --
AN135: 47 | AO135: 0.2 | AP135: 2.9 | AQ135: 2.2 | AR135: 3.7 | AS135: 2.7 | AT135: 148.6 | AU135: 163.46 | AV135: 7.4 x 7 | AW135: 4.8 | AX135: -40 to +150 | AY135: Yes | AZ135: MP | BA135: ETQP4M470KFM | BB135: https://industrial.panasonic.com/ww/products/pt/automotive-inductors/models/ETQP4M470KFM | BD135: --
AP136: 2.2 | AQ136: 1.8 | AR136: 3.8 | AS136: 2.6 | AT136: 210 | AU136: 231 | AV136: 6.5 x 6 | AW136: 4.5 | AX136: -40 to +150 | AY136: Yes | AZ136: MP | BA136: ETQP4M470YFN | BB136: https://industrial.panasonic.com/ww/products/pt/automotive-inductors/models/ETQP4M470YFN | BD136: =IFERROR(_xlfn.IMAGE(BC136,"--"),"--") -> --
AP137: 4.2 | AQ137: 3.5 | AR137: 6.8 | AS137: 4.87 | AT137: 99 | AU137: 108.9 | AV137: 10.7 x 10 | AW137: 5.4 | AX137: -40 to +150 | AY137: Yes | AZ137: MP | BA137: ETQP5M470YFC | BB137: https://industrial.panasonic.com/ww/products/pt/automotive-inductors/models/ETQP5M470YFC | BD137: --
AP138: 3.4 | AQ138: 2.8 | AR138: 4.7 | AS138: 3.34 | AT138: 132 | AU138: 145.2 | AV138: 10.7 x 10 | AW138: 4 | AX138: -55 to +155 | AY138: Yes | AZ138: MP | BA138: ETQP4M470KVC | BB138: https://industrial.panasonic.com/ww/products/pt/automotive-inductors/models/ETQP4M470KVC | BD138: --
AN139: 48 | AO139: 0.2 | AP139: 2.9 | AQ139: 2.3 | AR139: 4.1 | AS139: 2.94 | AT139: 156 | AU139: 172 | AV139: 7.5 x 7 | AW139: 5.4 | AX139: -40 to +150 | AY139: Yes | AZ139: MP | BA139: ETQP5M470YFM | BB139: https://industrial.panasonic.com/ww/products/pt/automotive-inductors/models/ETQP5M470YFM | BD139: --
AP140: 3.4 | AQ140: 2.9 | AR140: 5.4 | AS140: 3.96 | AT140: 125 | AU140: 138 | AV140: 8.5 x 8 | AW140: 5.4 | AX140: -40 to +150 | AY140: Yes | AZ140: MP | BA140: ETQP5M470YFK | BB140: https://industrial.panasonic.com/ww/products/pt/automotive-inductors/models/ETQP5M470YFK | BD140: --
AN141: 66 | AO141: 0.2 | AP141: 3.6 | AQ141: 3 | AR141: 4.9 | AS141: 3.75 | AT141: 136 | AU141: 149.6 | AV141: 10.7 x 10 | AW141: 5.4 | AX141: -40 to +150 | AY141: Yes | AZ141: MP | BA141: ETQP5M680YFC | BB141: https://industrial.panasonic.com/ww/products/pt/automotive-inductors/models/ETQP5M680YFC | BD141: --
AN142: 68 | AO142: 0.2 | AP142: 2.9 | AQ142: 2.4 | AR142: 4.7 | AS142: 3.35 | AT142: 178.4 | AU142: 196.24 | AV142: 10.7 x 10 | AW142: 4 | AX142: -55 to +155 | AY142: Yes | AZ142: MP | BA142: ETQP4M680KVC | BB142: https://industrial.panasonic.com/ww/products/pt/automotive-inductors/models/ETQP4M680KVC | BD142: --
AP143: 2.3 | AQ143: 1.9 | AR143: 3.9 | AS143: 2.75 | AT143: 251 | AU143: 276.1 | AV143: 7.5 x 7 | AW143: 5.4 | AX143: -40 to +150 | AY143: Yes | AZ143: MP | BA143: ETQP5M680YFM | BB143: https://industrial.panasonic.com/ww/products/pt/automotive-inductors/models/ETQP5M680YFM
AN144: 82 | AO144: 0.2 | AP144: 2.8 | AQ144: 2.2 | AR144: 4.3 | AS144: 3.1 | AT144: 194 | AU144: 213.4 | AV144: 10.7 x 10 | AW144: 5 | AX144: -40 to +150 | AY144: Yes | AZ144: MP | BA144: ETQP5M820YGC | BB144: https://industrial.panasonic.com/ww/products/pt/automotive-inductors/models/ETQP5M820YGC
AN145: 95 | AO145: 0.2 | AP145: 1.9 | AQ145: 1.4 | AR145: 3.1 | AS145: 2.47 | AT145: 348 | AU145: 382.8 | AV145: 7.5 x 7 | AW145: 5 | AX145: -40 to +150 | AY145: Yes | AZ145: MP | BA145: ETQP5M101YGM | BB145: https://industrial.panasonic.com/ww/products/pt/automotive-inductors/models/ETQP5M101YGM
AN146: 97 | AO146: 0.2 | AP146: 2.7 | AQ146: 2.2 | AR146: 3 | AS146: 2.18 | AT146: 208 | AU146: 229 | AV146: 10.7 x 10 | AW146: 5 | AX146: -40 to +150 | AY146: Yes | AZ146: MP | BA146: ETQP5M101YGC | BB146: https://industrial.panasonic.com/ww/products/pt/automotive-inductors/models/ETQP5M101YGC
AN147: 100 | AO147: 0.2 | AP147: 2.5 | AQ147: 2 | AR147: 3.5 | AS147: 2.5 | AT147: 242 | AU147: 266.2 | AV147: 10.7 x 10 | AW147: 4 | AX147: -55 to +155 | AY147: Yes | AZ147: MP | BA147: ETQP4M101KVC | BB147: https://industrial.panasonic.com/ww/products/pt/automotive-inductors/models/ETQP4M101KVC
AP148: 2.1 | AQ148: 1.7 | AR148: 3 | AS148: 1.98 | AT148: 302 | AU148: 333 | AV148: 8.5 x 8 | AW148: 5 | AX148: -40 to +150 | AY148: Yes | AZ148: MP | BA148: ETQP5M101YGK | BB148: https://industrial.panasonic.com/ww/products/pt/automotive-inductors/models/ETQP5M101YGK

Sheet Non Auto
AK1: Panasonic Non-Automotive Inductor Quick Search
AL6: - | AM6: Status | AN6: Lo (uH) | AO6: Lo Tol. (%) | AP6: Method B typ (A) | AQ6: Method A typ (A) | AR6: ⊿L=-30% typ (A) | AS6: ⊿L=-20% typ (A) | AT6: DCR Typ (mOhm) | AU6: DCR Max (mOhm) | AV6: Size (mm) | AW6: Max Height (mm) | AX6: Temp Range (deg.C) | AY6: Automotive Grade | AZ6: Status | BA6: Part Number | BB6: L1 (uH) | BE6: URL
AM7: NRND | AN7: 0.15 | AO7: 0.2 | AP7: - | AQ7: 29 | AR7: 40 | AS7: 30 | AT7: 0.614 (+/-7%) | AU7: 0.66 | AV7: 8.7 x 7 | AW7: 3 | AX7: -40 to +130 | AY7: No | AZ7: MP | BA7: ETQP3LR15CFM | BB7: - | BE7: https://industrial.panasonic.com/ww/products/pt/inductors-for-consumer/models/ETQP3LR15CFM
AM8: NRND | AN8: 0.15 | AO8: 0.2 | AP8: - | AQ8: 29 | AR8: 45 | AS8: 34 | AT8: 0.66 (+/-7%) | AU8: 0.7062 | AV8: 8.7 x 7 | AW8: 4 | AX8: -40 to +130 | AY8: No | AZ8: MP | BA8: ETQP4LR15AFM | BB8: - | BE8: https://industrial.panasonic.com/ww/products/pt/inductors-for-consumer/models/ETQP4LR15AFM
AM9: NRND | AN9: 0.15 | AO9: 0.2 | AP9: - | AQ9: 42 | AR9: 70 | AS9: 50 | AT9: 0.41 (+/-7%) | AU9: 0.45 | AV9: 11.7 x 10 | AW9: 4 | AX9: -40 to +130 | AY9: No | AZ9: MP | BA9: ETQP4LR15AFC | BB9: 0.13 | BE9: https://industrial.panasonic.com/ww/products/pt/inductors-for-consumer/models/ETQP4LR15AFC
AM10: NRND | AN10: 0.2 | AO10: 0.2 | AP10: 38 | AQ10: 28 | AR10: 68 | AS10: 50 | AT10: 0.7 (+/-10%) | AU10: 0.77 | AV10: 11.5 x 10 | AW10: 4 | AX10: -40 to +130 | AY10: No | AZ10: MP | BA10: ETQP4LR19WFC | BB10: 0.19 | BE10: https://industrial.panasonic.com/ww/products/pt/inductors-for-consumer/models/ETQP4LR19WFC
AM11: NRND | AN11: 0.24 | AO11: 0.2 | AP11: 35 | AQ11: 22 | AR11: 30 | AS11: 22 | AT11: 1.12 (+/-7%) | AU11: 1.1984 | AV11: 8.7 x 7 | AW11: 3 | AX11: -40 to +130 | AY11: No | AZ11: MP | BA11: ETQP3LR24CFM | BB11: 0.19 | BE11: https://industrial.panasonic.com/ww/products/pt/inductors-for-consumer/models/ETQP3LR24CFM
AM12: NRND | AN12: 0.24 | AO12: 0.2 | AP12: 35.5 | AQ12: 24 | AR12: 35 | AS12: 27 | AT12: 1 (+/-7%) | AU12: 1.07 | AV12: 8.7 x 7 | AW12: 4 | AX12: -40 to +130 | AY12: No | AZ12: MP | BA12: ETQP4LR24AFM | BB12: 0.2 | BE12: https://industrial.panasonic.com/ww/products/pt/inductors-for-consumer/models/ETQP4LR24AFM
AM13: NRND | AN13: 0.36 | AO13: 0.2 | AP13: 31 | AQ13: 20 | AR13: 35 | AS13: 25 | AT13: 1.35 (+/-7%) | AU13: 1.4445 | AV13: 8.7 x 7 | AW13: 4 | AX13: -40 to +130 | AY13: No | AZ13: MP | BA13: ETQP4LR36AFM | BB13: 0.3 | BE13: https://industrial.panasonic.com/ww/products/pt/inductors-for-consumer/models/ETQP4LR36AFM
AM14: NRND | AN14: 0.36 | AO14: 0.2 | AP14: 40 | AQ14: 30 | AR14: 46 | AS14: 35 | AT14: 0.76 (+/-5%) | AU14: 0.798 | AV14: 11.7 x 10 | AW14: 4 | AX14: -40 to +130 | AY14: No | AZ14: MP | BA14: ETQP4LR36AFC | BB14: 0.29 | BE14: https://industrial.panasonic.com/ww/products/pt/inductors-for-consumer/models/ETQP4LR36AFC
AM15: NRND | AN15: 0.37 | AO15: 0.2 | AP15: 33 | AQ15: 24 | AR15: 50 | AS15: 34 | AT15: 1.1 (+/-5%) | AU15: 1.155 | AV15: 11.5 x 10 | AW15: 4 | AX15: -40 to +130 | AY15: No | AZ15: MP | BA15: ETQP4LR36WFC | BB15: 0.36 | BE15: https://industrial.panasonic.com/ww/products/pt/inductors-for-consumer/models/ETQP4LR36WFC
AM16: NRND | AN16: 0.42 | AO16: 0.2 | AP16: 28.5 | AQ16: 17 | AR16: 26 | AS16: 20 | AT16: 1.5 (+/-7%) | AU16: 1.605 | AV16: 8.7 x 7 | AW16: 4 | AX16: -40 to +130 | AY16: No | AZ16: MP | BA16: ETQP4LR42AFM | BB16: 0.35 | BE16: https://industrial.panasonic.com/ww/products/pt/inductors-for-consumer/models/ETQP4LR42AFM
AM17: NRND | AN17: 0.45 | AO17: +20%, -25% | AP17: 33 | AQ17: 25 | AR17: 40 | AS17: 28 | AT17: 1.1 (+/-5%) | AU17: 1.155 | AV17: 11.5 x 10 | AW17: 4 | AX17: -40 to +130 | AY17: No | AZ17: MP | BA17: ETQP4LR45XFC | BB17: 0.34 | BE17: https://industrial.panasonic.com/ww/products/pt/inductors-for-consumer/models/ETQP4LR45XFC
AM18: NRND | AN18: 0.5 | AO18: 0.2 | AP18: - | AQ18: 30 | AR18: - | AS18: 42 (-10%) | AT18: 0.80 (+/-7%) | AU18: 0.856 | AV18: 14.5 x 12.5 | AW18: 4 | AX18: -40 to +130 | AY18: No | AZ18: MP | BA18: ETQP5LR50XFA | BB18: 0.34 | BE18: https://industrial.panasonic.com/jp/products/pt/inductors-for-consumer/models/ETQP5LR50XFA
AM19: NRND | AN19: 0.6 | AO19: 0.2 | AP19: 28 | AQ19: 21 | AR19: 42 | AS19: 28 | AT19: 1.56 (+/-5%) | AU19: 1.638 | AV19: 11.5 x 10 | AW19: 4 | AX19: -40 to +130 | AY19: No | AZ19: MP | BA19: ETQP4LR56WFC | BB19: 0.56 | BE19: https://industrial.panasonic.com/ww/products/pt/inductors-for-consumer/models/ETQP4LR56WFC
AM20: NRND | AN20: 0.6 | AO20: 0.2 | AP20: - | AQ20: 30 | AR20: - | AS20: 54 (-10%) | AT20: 1.10 (+/-5%) | AU20: 1.155 | AV20: 14.5 x 12.5 | AW20: 5 | AX20: -40 to +130 | AY20: No | AZ20: MP | BA20: ETQP5LR60XFA | BE20: https://industrial.panasonic.com/jp/products/pt/inductors-for-consumer/models/ETQP5LR60XFA
AM21: NRND | AN21: 0.68 | AO21: 0.2 | AP21: 28 | AQ21: 21 | AR21: - | AS21: 26 | AT21: 1.58 (+/-5%) | AU21: 1.659 | AV21: 11.7 x 10 | AW21: 4 | AX21: -40 to +130 | AY21: No | AZ21: MP | BA21: ETQP4LR68XFC | BB21: 0.59 | BE21: https://industrial.panasonic.com/ww/products/pt/inductors-for-consumer/models/ETQP4LR68XFC

Sheet PN->Parameter
B1: Panasonic Inductor Quick Search
B6: v | C6: check | D6: Status | E6: # | F6: Part Number | G6: Automotive Grade | H6: Lo (uH) | I6: Size (mm) | J6: Height (mm) | K6: I Method B typ (A) | L6: I Method A typ (A) | M6: Isat ⊿L=-30% typ (A) | N6: Isat ⊿L=-20% typ (A) | O6: DCR typ (mΩ) | P6: DCR max (mΩ) | Q6: Temp. Range | R6: Core | S6: Feature | T6: URL | U6: Summary
D7: =IF(F7="","",INDEX('All Data'!$F:$F,MATCH(F7,'All Data'!$O:$O,0))) -> MP | E7: =IF(F7<>"",COUNTIF($F$7:F7,"*")&".","") -> 1. | F7: ETQP3MR10KVP | G7: =IF(F7="","",INDEX('All Data'!$N:$N,MATCH(F7,'All Data'!$O:$O,0))) -> Yes | H7: =IF(F7="","",INDEX('All Data'!$Q:$Q,MATCH(F7,'All Data'!$O:$O,0))) -> 0.105 | I7: =IF(F7="","",INDEX('All Data'!$AF:$AF,MATCH(F7,'All Data'!$O:$O,0))) -> 5.5 x 5 | J7: =IF(F7="","",INDEX('All Data'!$AD:$AD,MATCH(F7,'All Data'!$O:$O,0))) -> 3 | K7: =IF(F7="","",INDEX('All Data'!$X:$X,MATCH(F7,'All Data'!$O:$O,0))) -> 22.7 | L7: =IF(F7="","",INDEX('All Data'!$Y:$Y,MATCH(F7,'All Data'!$O:$O,0))) -> 18.9 | M7: =IF(F7="","",INDEX('All Data'!$Z:$Z,MATCH(F7,'All Data'!$O:$O,0))) -> 37.3 | N7: =IF(F7="","",INDEX('All Data'!$AA:$AA,MATCH(F7,'All Data'!$O:$O,0))) -> 25.5 | O7: =IF(F7="","",INDEX('All Data'!$U:$U,MATCH(F7,'All Data'!$O:$O,0))) -> 1.52 | P7: =IF(F7="","",INDEX('All Data'!$V:$V,MATCH(F7,'All Data'!$O:$O,0))) -> 1.67 | Q7: =IF(F7="","",INDEX('All Data'!$AK:$AK,MATCH(F7,'All Data'!$O:$O,0))) -> -55 to +155 | R7: =IF(F7="","",INDEX('All Data'!$I:$I,MATCH(F7,'All Data'!$O:$O,0))) -> Metal Composite | S7: =IF(F7="","",INDEX('All Data'!$K:$K,MATCH(F7,'All Data'!$O:$O,0))) -> LP (Low Profile) | T7: =IF(F7="","",INDEX('All Data'!$AS:$AS,MATCH(F7,'All Data'!$O:$O,0))) -> https://industrial.panasonic.com/ww/products/pt/automotive-inductors/models/ETQP3MR10KVP | U7: =IF(F7="","",H7&"uH, "&I7&" x "&J7&"mm, "&K7&"A(40C), "&M7&"A(L-30%), "&P7&"mΩ max") -> 0.105uH, 5.5 x 5 x 3mm, 22.7A(40C), 37.3A(L-30%), 1.67mΩ max
D8: =IF(F8="","",INDEX('All Data'!$F:$F,MATCH(F8,'All Data'!$O:$O,0))) ->  | E8: =IF(F8<>"",COUNTIF($F$7:F8,"*")&".","") ->  | G8: =IF(F8="","",INDEX('All Data'!$N:$N,MATCH(F8,'All Data'!$O:$O,0))) ->  | H8: =IF(F8="","",INDEX('All Data'!$Q:$Q,MATCH(F8,'All Data'!$O:$O,0))) ->  | I8: =IF(F8="","",INDEX('All Data'!$AF:$AF,MATCH(F8,'All Data'!$O:$O,0))) ->  | J8: =IF(F8="","",INDEX('All Data'!$AD:$AD,MATCH(F8,'All Data'!$O:$O,0))) ->  | K8: =IF(F8="","",INDEX('All Data'!$X:$X,MATCH(F8,'All Data'!$O:$O,0))) ->  | L8: =IF(F8="","",INDEX('All Data'!$Y:$Y,MATCH(F8,'All Data'!$O:$O,0))) ->  | M8: =IF(F8="","",INDEX('All Data'!$Z:$Z,MATCH(F8,'All Data'!$O:$O,0))) ->  | N8: =IF(F8="","",INDEX('All Data'!$AA:$AA,MATCH(F8,'All Data'!$O:$O,0))) ->  | O8: =IF(F8="","",INDEX('All Data'!$U:$U,MATCH(F8,'All Data'!$O:$O,0))) ->  | P8: =IF(F8="","",INDEX('All Data'!$V:$V,MATCH(F8,'All Data'!$O:$O,0))) ->  | Q8: =IF(F8="","",INDEX('All Data'!$AK:$AK,MATCH(F8,'All Data'!$O:$O,0))) ->  | R8: =IF(F8="","",INDEX('All Data'!$I:$I,MATCH(F8,'All Data'!$O:$O,0))) ->  | S8: =IF(F8="","",INDEX('All Data'!$K:$K,MATCH(F8,'All Data'!$O:$O,0))) ->  | T8: =IF(F8="","",INDEX('All Data'!$AS:$AS,MATCH(F8,'All Data'!$O:$O,0))) -> 
D9: =IF(F9="","",INDEX('All Data'!$F:$F,MATCH(F9,'All Data'!$O:$O,0))) ->  | E9: =IF(F9<>"",COUNTIF($F$7:F9,"*")&".","") ->  | G9: =IF(F9="","",INDEX('All Data'!$N:$N,MATCH(F9,'All Data'!$O:$O,0))) ->  | H9: =IF(F9="","",INDEX('All Data'!$Q:$Q,MATCH(F9,'All Data'!$O:$O,0))) ->  | I9: =IF(F9="","",INDEX('All Data'!$AF:$AF,MATCH(F9,'All Data'!$O:$O,0))) ->  | J9: =IF(F9="","",INDEX('All Data'!$AD:$AD,MATCH(F9,'All Data'!$O:$O,0))) ->  | K9: =IF(F9="","",INDEX('All Data'!$X:$X,MATCH(F9,'All Data'!$O:$O,0))) ->  | L9: =IF(F9="","",INDEX('All Data'!$Y:$Y,MATCH(F9,'All Data'!$O:$O,0))) ->  | M9: =IF(F9="","",INDEX('All Data'!$Z:$Z,MATCH(F9,'All Data'!$O:$O,0))) ->  | N9: =IF(F9="","",INDEX('All Data'!$AA:$AA,MATCH(F9,'All Data'!$O:$O,0))) ->  | O9: =IF(F9="","",INDEX('All Data'!$U:$U,MATCH(F9,'All Data'!$O:$O,0))) ->  | P9: =IF(F9="","",INDEX('All Data'!$V:$V,MATCH(F9,'All Data'!$O:$O,0))) ->  | Q9: =IF(F9="","",INDEX('All Data'!$AK:$AK,MATCH(F9,'All Data'!$O:$O,0))) ->  | R9: =IF(F9="","",INDEX('All Data'!$I:$I,MATCH(F9,'All Data'!$O:$O,0))) ->  | S9: =IF(F9="","",INDEX('All Data'!$K:$K,MATCH(F9,'All Data'!$O:$O,0))) ->  | T9: =IF(F9="","",INDEX('All Data'!$AS:$AS,MATCH(F9,'All Data'!$O:$O,0))) -> 
D10: =IF(F10="","",INDEX('All Data'!$F:$F,MATCH(F10,'All Data'!$O:$O,0))) ->  | E10: =IF(F10<>"",COUNTIF($F$7:F10,"*")&".","") ->  | G10: =IF(F10="","",INDEX('All Data'!$N:$N,MATCH(F10,'All Data'!$O:$O,0))) ->  | H10: =IF(F10="","",INDEX('All Data'!$Q:$Q,MATCH(F10,'All Data'!$O:$O,0))) ->  | I10: =IF(F10="","",INDEX('All Data'!$AF:$AF,MATCH(F10,'All Data'!$O:$O,0))) ->  | J10: =IF(F10="","",INDEX('All Data'!$AD:$AD,MATCH(F10,'All Data'!$O:$O,0))) ->  | K10: =IF(F10="","",INDEX('All Data'!$X:$X,MATCH(F10,'All Data'!$O:$O,0))) ->  | L10: =IF(F10="","",INDEX('All Data'!$Y:$Y,MATCH(F10,'All Data'!$O:$O,0))) ->  | M10: =IF(F10="","",INDEX('All Data'!$Z:$Z,MATCH(F10,'All Data'!$O:$O,0))) ->  | N10: =IF(F10="","",INDEX('All Data'!$AA:$AA,MATCH(F10,'All Data'!$O:$O,0))) ->  | O10: =IF(F10="","",INDEX('All Data'!$U:$U,MATCH(F10,'All Data'!$O:$O,0))) ->  | P10: =IF(F10="","",INDEX('All Data'!$V:$V,MATCH(F10,'All Data'!$O:$O,0))) ->  | Q10: =IF(F10="","",INDEX('All Data'!$AK:$AK,MATCH(F10,'All Data'!$O:$O,0))) ->  | R10: =IF(F10="","",INDEX('All Data'!$I:$I,MATCH(F10,'All Data'!$O:$O,0))) ->  | S10: =IF(F10="","",INDEX('All Data'!$K:$K,MATCH(F10,'All Data'!$O:$O,0))) ->  | T10: =IF(F10="","",INDEX('All Data'!$AS:$AS,MATCH(F10,'All Data'!$O:$O,0))) -> 
D11: =IF(F11="","",INDEX('All Data'!$F:$F,MATCH(F11,'All Data'!$O:$O,0))) ->  | E11: =IF(F11<>"",COUNTIF($F$7:F11,"*")&".","") ->  | G11: =IF(F11="","",INDEX('All Data'!$N:$N,MATCH(F11,'All Data'!$O:$O,0))) ->  | H11: =IF(F11="","",INDEX('All Data'!$Q:$Q,MATCH(F11,'All Data'!$O:$O,0))) ->  | I11: =IF(F11="","",INDEX('All Data'!$AF:$AF,MATCH(F11,'All Data'!$O:$O,0))) ->  | J11: =IF(F11="","",INDEX('All Data'!$AD:$AD,MATCH(F11,'All Data'!$O:$O,0))) ->  | K11: =IF(F11="","",INDEX('All Data'!$X:$X,MATCH(F11,'All Data'!$O:$O,0))) ->  | L11: =IF(F11="","",INDEX('All Data'!$Y:$Y,MATCH(F11,'All Data'!$O:$O,0))) ->  | M11: =IF(F11="","",INDEX('All Data'!$Z:$Z,MATCH(F11,'All Data'!$O:$O,0))) ->  | N11: =IF(F11="","",INDEX('All Data'!$AA:$AA,MATCH(F11,'All Data'!$O:$O,0))) ->  | O11: =IF(F11="","",INDEX('All Data'!$U:$U,MATCH(F11,'All Data'!$O:$O,0))) ->  | P11: =IF(F11="","",INDEX('All Data'!$V:$V,MATCH(F11,'All Data'!$O:$O,0))) ->  | Q11: =IF(F11="","",INDEX('All Data'!$AK:$AK,MATCH(F11,'All Data'!$O:$O,0))) ->  | R11: =IF(F11="","",INDEX('All Data'!$I:$I,MATCH(F11,'All Data'!$O:$O,0))) ->  | S11: =IF(F11="","",INDEX('All Data'!$K:$K,MATCH(F11,'All Data'!$O:$O,0))) ->  | T11: =IF(F11="","",INDEX('All Data'!$AS:$AS,MATCH(F11,'All Data'!$O:$O,0))) -> 
D12: =IF(F12="","",INDEX('All Data'!$F:$F,MATCH(F12,'All Data'!$O:$O,0))) ->  | E12: =IF(F12<>"",COUNTIF($F$7:F12,"*")&".","") ->  | G12: =IF(F12="","",INDEX('All Data'!$N:$N,MATCH(F12,'All Data'!$O:$O,0))) ->  | H12: =IF(F12="","",INDEX('All Data'!$Q:$Q,MATCH(F12,'All Data'!$O:$O,0))) ->  | I12: =IF(F12="","",INDEX('All Data'!$AF:$AF,MATCH(F12,'All Data'!$O:$O,0))) ->  | J12: =IF(F12="","",INDEX('All Data'!$AD:$AD,MATCH(F12,'All Data'!$O:$O,0))) ->  | K12: =IF(F12="","",INDEX('All Data'!$X:$X,MATCH(F12,'All Data'!$O:$O,0))) ->  | L12: =IF(F12="","",INDEX('All Data'!$Y:$Y,MATCH(F12,'All Data'!$O:$O,0))) ->  | M12: =IF(F12="","",INDEX('All Data'!$Z:$Z,MATCH(F12,'All Data'!$O:$O,0))) ->  | N12: =IF(F12="","",INDEX('All Data'!$AA:$AA,MATCH(F12,'All Data'!$O:$O,0))) ->  | O12: =IF(F12="","",INDEX('All Data'!$U:$U,MATCH(F12,'All Data'!$O:$O,0))) ->  | P12: =IF(F12="","",INDEX('All Data'!$V:$V,MATCH(F12,'All Data'!$O:$O,0))) ->  | Q12: =IF(F12="","",INDEX('All Data'!$AK:$AK,MATCH(F12,'All Data'!$O:$O,0))) ->  | R12: =IF(F12="","",INDEX('All Data'!$I:$I,MATCH(F12,'All Data'!$O:$O,0))) ->  | S12: =IF(F12="","",INDEX('All Data'!$K:$K,MATCH(F12,'All Data'!$O:$O,0))) ->  | T12: =IF(F12="","",INDEX('All Data'!$AS:$AS,MATCH(F12,'All Data'!$O:$O,0))) -> 
D13: =IF(F13="","",INDEX('All Data'!$F:$F,MATCH(F13,'All Data'!$O:$O,0))) ->  | E13: =IF(F13<>"",COUNTIF($F$7:F13,"*")&".","") ->  | G13: =IF(F13="","",INDEX('All Data'!$N:$N,MATCH(F13,'All Data'!$O:$O,0))) ->  | H13: =IF(F13="","",INDEX('All Data'!$Q:$Q,MATCH(F13,'All Data'!$O:$O,0))) ->  | I13: =IF(F13="","",INDEX('All Data'!$AF:$AF,MATCH(F13,'All Data'!$O:$O,0))) ->  | J13: =IF(F13="","",INDEX('All Data'!$AD:$AD,MATCH(F13,'All Data'!$O:$O,0))) ->  | K13: =IF(F13="","",INDEX('All Data'!$X:$X,MATCH(F13,'All Data'!$O:$O,0))) ->  | L13: =IF(F13="","",INDEX('All Data'!$Y:$Y,MATCH(F13,'All Data'!$O:$O,0))) ->  | M13: =IF(F13="","",INDEX('All Data'!$Z:$Z,MATCH(F13,'All Data'!$O:$O,0))) ->  | N13: =IF(F13="","",INDEX('All Data'!$AA:$AA,MATCH(F13,'All Data'!$O:$O,0))) ->  | O13: =IF(F13="","",INDEX('All Data'!$U:$U,MATCH(F13,'All Data'!$O:$O,0))) ->  | P13: =IF(F13="","",INDEX('All Data'!$V:$V,MATCH(F13,'All Data'!$O:$O,0))) ->  | Q13: =IF(F13="","",INDEX('All Data'!$AK:$AK,MATCH(F13,'All Data'!$O:$O,0))) ->  | R13: =IF(F13="","",INDEX('All Data'!$I:$I,MATCH(F13,'All Data'!$O:$O,0))) ->  | S13: =IF(F13="","",INDEX('All Data'!$K:$K,MATCH(F13,'All Data'!$O:$O,0))) ->  | T13: =IF(F13="","",INDEX('All Data'!$AS:$AS,MATCH(F13,'All Data'!$O:$O,0))) -> 
D14: =IF(F14="","",INDEX('All Data'!$F:$F,MATCH(F14,'All Data'!$O:$O,0))) ->  | E14: =IF(F14<>"",COUNTIF($F$7:F14,"*")&".","") ->  | G14: =IF(F14="","",INDEX('All Data'!$N:$N,MATCH(F14,'All Data'!$O:$O,0))) ->  | H14: =IF(F14="","",INDEX('All Data'!$Q:$Q,MATCH(F14,'All Data'!$O:$O,0))) ->  | I14: =IF(F14="","",INDEX('All Data'!$AF:$AF,MATCH(F14,'All Data'!$O:$O,0))) ->  | J14: =IF(F14="","",INDEX('All Data'!$AD:$AD,MATCH(F14,'All Data'!$O:$O,0))) ->  | K14: =IF(F14="","",INDEX('All Data'!$X:$X,MATCH(F14,'All Data'!$O:$O,0))) ->  | L14: =IF(F14="","",INDEX('All Data'!$Y:$Y,MATCH(F14,'All Data'!$O:$O,0))) ->  | M14: =IF(F14="","",INDEX('All Data'!$Z:$Z,MATCH(F14,'All Data'!$O:$O,0))) ->  | N14: =IF(F14="","",INDEX('All Data'!$AA:$AA,MATCH(F14,'All Data'!$O:$O,0))) ->  | O14: =IF(F14="","",INDEX('All Data'!$U:$U,MATCH(F14,'All Data'!$O:$O,0))) ->  | P14: =IF(F14="","",INDEX('All Data'!$V:$V,MATCH(F14,'All Data'!$O:$O,0))) ->  | Q14: =IF(F14="","",INDEX('All Data'!$AK:$AK,MATCH(F14,'All Data'!$O:$O,0))) ->  | R14: =IF(F14="","",INDEX('All Data'!$I:$I,MATCH(F14,'All Data'!$O:$O,0))) ->  | S14: =IF(F14="","",INDEX('All Data'!$K:$K,MATCH(F14,'All Data'!$O:$O,0))) ->  | T14: =IF(F14="","",INDEX('All Data'!$AS:$AS,MATCH(F14,'All Data'!$O:$O,0))) -> 
D15: =IF(F15="","",INDEX('All Data'!$F:$F,MATCH(F15,'All Data'!$O:$O,0))) ->  | E15: =IF(F15<>"",COUNTIF($F$7:F15,"*")&".","") ->  | G15: =IF(F15="","",INDEX('All Data'!$N:$N,MATCH(F15,'All Data'!$O:$O,0))) ->  | H15: =IF(F15="","",INDEX('All Data'!$Q:$Q,MATCH(F15,'All Data'!$O:$O,0))) ->  | I15: =IF(F15="","",INDEX('All Data'!$AF:$AF,MATCH(F15,'All Data'!$O:$O,0))) ->  | J15: =IF(F15="","",INDEX('All Data'!$AD:$AD,MATCH(F15,'All Data'!$O:$O,0))) ->  | K15: =IF(F15="","",INDEX('All Data'!$X:$X,MATCH(F15,'All Data'!$O:$O,0))) ->  | L15: =IF(F15="","",INDEX('All Data'!$Y:$Y,MATCH(F15,'All Data'!$O:$O,0))) ->  | M15: =IF(F15="","",INDEX('All Data'!$Z:$Z,MATCH(F15,'All Data'!$O:$O,0))) ->  | N15: =IF(F15="","",INDEX('All Data'!$AA:$AA,MATCH(F15,'All Data'!$O:$O,0))) ->  | O15: =IF(F15="","",INDEX('All Data'!$U:$U,MATCH(F15,'All Data'!$O:$O,0))) ->  | P15: =IF(F15="","",INDEX('All Data'!$V:$V,MATCH(F15,'All Data'!$O:$O,0))) ->  | Q15: =IF(F15="","",INDEX('All Data'!$AK:$AK,MATCH(F15,'All Data'!$O:$O,0))) ->  | R15: =IF(F15="","",INDEX('All Data'!$I:$I,MATCH(F15,'All Data'!$O:$O,0))) ->  | S15: =IF(F15="","",INDEX('All Data'!$K:$K,MATCH(F15,'All Data'!$O:$O,0))) ->  | T15: =IF(F15="","",INDEX('All Data'!$AS:$AS,MATCH(F15,'All Data'!$O:$O,0))) -> 
D16: =IF(F16="","",INDEX('All Data'!$F:$F,MATCH(F16,'All Data'!$O:$O,0))) ->  | E16: =IF(F16<>"",COUNTIF($F$7:F16,"*")&".","") ->  | G16: =IF(F16="","",INDEX('All Data'!$N:$N,MATCH(F16,'All Data'!$O:$O,0))) ->  | H16: =IF(F16="","",INDEX('All Data'!$Q:$Q,MATCH(F16,'All Data'!$O:$O,0))) ->  | I16: =IF(F16="","",INDEX('All Data'!$AF:$AF,MATCH(F16,'All Data'!$O:$O,0))) ->  | J16: =IF(F16="","",INDEX('All Data'!$AD:$AD,MATCH(F16,'All Data'!$O:$O,0))) ->  | K16: =IF(F16="","",INDEX('All Data'!$X:$X,MATCH(F16,'All Data'!$O:$O,0))) ->  | L16: =IF(F16="","",INDEX('All Data'!$Y:$Y,MATCH(F16,'All Data'!$O:$O,0))) ->  | M16: =IF(F16="","",INDEX('All Data'!$Z:$Z,MATCH(F16,'All Data'!$O:$O,0))) ->  | N16: =IF(F16="","",INDEX('All Data'!$AA:$AA,MATCH(F16,'All Data'!$O:$O,0))) ->  | O16: =IF(F16="","",INDEX('All Data'!$U:$U,MATCH(F16,'All Data'!$O:$O,0))) ->  | P16: =IF(F16="","",INDEX('All Data'!$V:$V,MATCH(F16,'All Data'!$O:$O,0))) ->  | Q16: =IF(F16="","",INDEX('All Data'!$AK:$AK,MATCH(F16,'All Data'!$O:$O,0))) ->  | R16: =IF(F16="","",INDEX('All Data'!$I:$I,MATCH(F16,'All Data'!$O:$O,0))) ->  | S16: =IF(F16="","",INDEX('All Data'!$K:$K,MATCH(F16,'All Data'!$O:$O,0))) ->  | T16: =IF(F16="","",INDEX('All Data'!$AS:$AS,MATCH(F16,'All Data'!$O:$O,0))) -> 
D17: =IF(F17="","",INDEX('All Data'!$F:$F,MATCH(F17,'All Data'!$O:$O,0))) ->  | E17: =IF(F17<>"",COUNTIF($F$7:F17,"*")&".","") ->  | G17: =IF(F17="","",INDEX('All Data'!$N:$N,MATCH(F17,'All Data'!$O:$O,0))) ->  | H17: =IF(F17="","",INDEX('All Data'!$Q:$Q,MATCH(F17,'All Data'!$O:$O,0))) ->  | I17: =IF(F17="","",INDEX('All Data'!$AF:$AF,MATCH(F17,'All Data'!$O:$O,0))) ->  | J17: =IF(F17="","",INDEX('All Data'!$AD:$AD,MATCH(F17,'All Data'!$O:$O,0))) ->  | K17: =IF(F17="","",INDEX('All Data'!$X:$X,MATCH(F17,'All Data'!$O:$O,0))) ->  | L17: =IF(F17="","",INDEX('All Data'!$Y:$Y,MATCH(F17,'All Data'!$O:$O,0))) ->  | M17: =IF(F17="","",INDEX('All Data'!$Z:$Z,MATCH(F17,'All Data'!$O:$O,0))) ->  | N17: =IF(F17="","",INDEX('All Data'!$AA:$AA,MATCH(F17,'All Data'!$O:$O,0))) ->  | O17: =IF(F17="","",INDEX('All Data'!$U:$U,MATCH(F17,'All Data'!$O:$O,0))) ->  | P17: =IF(F17="","",INDEX('All Data'!$V:$V,MATCH(F17,'All Data'!$O:$O,0))) ->  | Q17: =IF(F17="","",INDEX('All Data'!$AK:$AK,MATCH(F17,'All Data'!$O:$O,0))) ->  | R17: =IF(F17="","",INDEX('All Data'!$I:$I,MATCH(F17,'All Data'!$O:$O,0))) ->  | S17: =IF(F17="","",INDEX('All Data'!$K:$K,MATCH(F17,'All Data'!$O:$O,0))) ->  | T17: =IF(F17="","",INDEX('All Data'!$AS:$AS,MATCH(F17,'All Data'!$O:$O,0))) -> 
D18: =IF(F18="","",INDEX('All Data'!$F:$F,MATCH(F18,'All Data'!$O:$O,0))) ->  | E18: =IF(F18<>"",COUNTIF($F$7:F18,"*")&".","") ->  | G18: =IF(F18="","",INDEX('All Data'!$N:$N,MATCH(F18,'All Data'!$O:$O,0))) ->  | H18: =IF(F18="","",INDEX('All Data'!$Q:$Q,MATCH(F18,'All Data'!$O:$O,0))) ->  | I18: =IF(F18="","",INDEX('All Data'!$AF:$AF,MATCH(F18,'All Data'!$O:$O,0))) ->  | J18: =IF(F18="","",INDEX('All Data'!$AD:$AD,MATCH(F18,'All Data'!$O:$O,0))) ->  | K18: =IF(F18="","",INDEX('All Data'!$X:$X,MATCH(F18,'All Data'!$O:$O,0))) ->  | L18: =IF(F18="","",INDEX('All Data'!$Y:$Y,MATCH(F18,'All Data'!$O:$O,0))) ->  | M18: =IF(F18="","",INDEX('All Data'!$Z:$Z,MATCH(F18,'All Data'!$O:$O,0))) ->  | N18: =IF(F18="","",INDEX('All Data'!$AA:$AA,MATCH(F18,'All Data'!$O:$O,0))) ->  | O18: =IF(F18="","",INDEX('All Data'!$U:$U,MATCH(F18,'All Data'!$O:$O,0))) ->  | P18: =IF(F18="","",INDEX('All Data'!$V:$V,MATCH(F18,'All Data'!$O:$O,0))) ->  | Q18: =IF(F18="","",INDEX('All Data'!$AK:$AK,MATCH(F18,'All Data'!$O:$O,0))) ->  | R18: =IF(F18="","",INDEX('All Data'!$I:$I,MATCH(F18,'All Data'!$O:$O,0))) ->  | S18: =IF(F18="","",INDEX('All Data'!$K:$K,MATCH(F18,'All Data'!$O:$O,0))) ->  | T18: =IF(F18="","",INDEX('All Data'!$AS:$AS,MATCH(F18,'All Data'!$O:$O,0))) -> 
D19: =IF(F19="","",INDEX('All Data'!$F:$F,MATCH(F19,'All Data'!$O:$O,0))) ->  | E19: =IF(F19<>"",COUNTIF($F$7:F19,"*")&".","") ->  | G19: =IF(F19="","",INDEX('All Data'!$N:$N,MATCH(F19,'All Data'!$O:$O,0))) ->  | H19: =IF(F19="","",INDEX('All Data'!$Q:$Q,MATCH(F19,'All Data'!$O:$O,0))) ->  | I19: =IF(F19="","",INDEX('All Data'!$AF:$AF,MATCH(F19,'All Data'!$O:$O,0))) ->  | J19: =IF(F19="","",INDEX('All Data'!$AD:$AD,MATCH(F19,'All Data'!$O:$O,0))) ->  | K19: =IF(F19="","",INDEX('All Data'!$X:$X,MATCH(F19,'All Data'!$O:$O,0))) ->  | L19: =IF(F19="","",INDEX('All Data'!$Y:$Y,MATCH(F19,'All Data'!$O:$O,0))) ->  | M19: =IF(F19="","",INDEX('All Data'!$Z:$Z,MATCH(F19,'All Data'!$O:$O,0))) ->  | N19: =IF(F19="","",INDEX('All Data'!$AA:$AA,MATCH(F19,'All Data'!$O:$O,0))) ->  | O19: =IF(F19="","",INDEX('All Data'!$U:$U,MATCH(F19,'All Data'!$O:$O,0))) ->  | P19: =IF(F19="","",INDEX('All Data'!$V:$V,MATCH(F19,'All Data'!$O:$O,0))) ->  | Q19: =IF(F19="","",INDEX('All Data'!$AK:$AK,MATCH(F19,'All Data'!$O:$O,0))) ->  | R19: =IF(F19="","",INDEX('All Data'!$I:$I,MATCH(F19,'All Data'!$O:$O,0))) ->  | S19: =IF(F19="","",INDEX('All Data'!$K:$K,MATCH(F19,'All Data'!$O:$O,0))) ->  | T19: =IF(F19="","",INDEX('All Data'!$AS:$AS,MATCH(F19,'All Data'!$O:$O,0))) -> 
D20: =IF(F20="","",INDEX('All Data'!$F:$F,MATCH(F20,'All Data'!$O:$O,0))) ->  | E20: =IF(F20<>"",COUNTIF($F$7:F20,"*")&".","") ->  | G20: =IF(F20="","",INDEX('All Data'!$N:$N,MATCH(F20,'All Data'!$O:$O,0))) ->  | H20: =IF(F20="","",INDEX('All Data'!$Q:$Q,MATCH(F20,'All Data'!$O:$O,0))) ->  | I20: =IF(F20="","",INDEX('All Data'!$AF:$AF,MATCH(F20,'All Data'!$O:$O,0))) ->  | J20: =IF(F20="","",INDEX('All Data'!$AD:$AD,MATCH(F20,'All Data'!$O:$O,0))) ->  | K20: =IF(F20="","",INDEX('All Data'!$X:$X,MATCH(F20,'All Data'!$O:$O,0))) ->  | L20: =IF(F20="","",INDEX('All Data'!$Y:$Y,MATCH(F20,'All Data'!$O:$O,0))) ->  | M20: =IF(F20="","",INDEX('All Data'!$Z:$Z,MATCH(F20,'All Data'!$O:$O,0))) ->  | N20: =IF(F20="","",INDEX('All Data'!$AA:$AA,MATCH(F20,'All Data'!$O:$O,0))) ->  | O20: =IF(F20="","",INDEX('All Data'!$U:$U,MATCH(F20,'All Data'!$O:$O,0))) ->  | P20: =IF(F20="","",INDEX('All Data'!$V:$V,MATCH(F20,'All Data'!$O:$O,0))) ->  | Q20: =IF(F20="","",INDEX('All Data'!$AK:$AK,MATCH(F20,'All Data'!$O:$O,0))) ->  | R20: =IF(F20="","",INDEX('All Data'!$I:$I,MATCH(F20,'All Data'!$O:$O,0))) ->  | S20: =IF(F20="","",INDEX('All Data'!$K:$K,MATCH(F20,'All Data'!$O:$O,0))) ->  | T20: =IF(F20="","",INDEX('All Data'!$AS:$AS,MATCH(F20,'All Data'!$O:$O,0))) -> 
D21: =IF(F21="","",INDEX('All Data'!$F:$F,MATCH(F21,'All Data'!$O:$O,0))) ->  | E21: =IF(F21<>"",COUNTIF($F$7:F21,"*")&".","") ->  | G21: =IF(F21="","",INDEX('All Data'!$N:$N,MATCH(F21,'All Data'!$O:$O,0))) ->  | H21: =IF(F21="","",INDEX('All Data'!$Q:$Q,MATCH(F21,'All Data'!$O:$O,0))) ->  | I21: =IF(F21="","",INDEX('All Data'!$AF:$AF,MATCH(F21,'All Data'!$O:$O,0))) ->  | J21: =IF(F21="","",INDEX('All Data'!$AD:$AD,MATCH(F21,'All Data'!$O:$O,0))) ->  | K21: =IF(F21="","",INDEX('All Data'!$X:$X,MATCH(F21,'All Data'!$O:$O,0))) ->  | L21: =IF(F21="","",INDEX('All Data'!$Y:$Y,MATCH(F21,'All Data'!$O:$O,0))) ->  | M21: =IF(F21="","",INDEX('All Data'!$Z:$Z,MATCH(F21,'All Data'!$O:$O,0))) ->  | N21: =IF(F21="","",INDEX('All Data'!$AA:$AA,MATCH(F21,'All Data'!$O:$O,0))) ->  | O21: =IF(F21="","",INDEX('All Data'!$U:$U,MATCH(F21,'All Data'!$O:$O,0))) ->  | P21: =IF(F21="","",INDEX('All Data'!$V:$V,MATCH(F21,'All Data'!$O:$O,0))) ->  | Q21: =IF(F21="","",INDEX('All Data'!$AK:$AK,MATCH(F21,'All Data'!$O:$O,0))) ->  | R21: =IF(F21="","",INDEX('All Data'!$I:$I,MATCH(F21,'All Data'!$O:$O,0))) ->  | S21: =IF(F21="","",INDEX('All Data'!$K:$K,MATCH(F21,'All Data'!$O:$O,0))) ->  | T21: =IF(F21="","",INDEX('All Data'!$AS:$AS,MATCH(F21,'All Data'!$O:$O,0))) -> 
D22: =IF(F22="","",INDEX('All Data'!$F:$F,MATCH(F22,'All Data'!$O:$O,0))) ->  | E22: =IF(F22<>"",COUNTIF($F$7:F22,"*")&".","") ->  | G22: =IF(F22="","",INDEX('All Data'!$N:$N,MATCH(F22,'All Data'!$O:$O,0))) ->  | H22: =IF(F22="","",INDEX('All Data'!$Q:$Q,MATCH(F22,'All Data'!$O:$O,0))) ->  | I22: =IF(F22="","",INDEX('All Data'!$AF:$AF,MATCH(F22,'All Data'!$O:$O,0))) ->  | J22: =IF(F22="","",INDEX('All Data'!$AD:$AD,MATCH(F22,'All Data'!$O:$O,0))) ->  | K22: =IF(F22="","",INDEX('All Data'!$X:$X,MATCH(F22,'All Data'!$O:$O,0))) ->  | L22: =IF(F22="","",INDEX('All Data'!$Y:$Y,MATCH(F22,'All Data'!$O:$O,0))) ->  | M22: =IF(F22="","",INDEX('All Data'!$Z:$Z,MATCH(F22,'All Data'!$O:$O,0))) ->  | N22: =IF(F22="","",INDEX('All Data'!$AA:$AA,MATCH(F22,'All Data'!$O:$O,0))) ->  | O22: =IF(F22="","",INDEX('All Data'!$U:$U,MATCH(F22,'All Data'!$O:$O,0))) ->  | P22: =IF(F22="","",INDEX('All Data'!$V:$V,MATCH(F22,'All Data'!$O:$O,0))) ->  | Q22: =IF(F22="","",INDEX('All Data'!$AK:$AK,MATCH(F22,'All Data'!$O:$O,0))) ->  | R22: =IF(F22="","",INDEX('All Data'!$I:$I,MATCH(F22,'All Data'!$O:$O,0))) ->  | S22: =IF(F22="","",INDEX('All Data'!$K:$K,MATCH(F22,'All Data'!$O:$O,0))) ->  | T22: =IF(F22="","",INDEX('All Data'!$AS:$AS,MATCH(F22,'All Data'!$O:$O,0))) -> 
D23: =IF(F23="","",INDEX('All Data'!$F:$F,MATCH(F23,'All Data'!$O:$O,0))) ->  | E23: =IF(F23<>"",COUNTIF($F$7:F23,"*")&".","") ->  | G23: =IF(F23="","",INDEX('All Data'!$N:$N,MATCH(F23,'All Data'!$O:$O,0))) ->  | H23: =IF(F23="","",INDEX('All Data'!$Q:$Q,MATCH(F23,'All Data'!$O:$O,0))) ->  | I23: =IF(F23="","",INDEX('All Data'!$AF:$AF,MATCH(F23,'All Data'!$O:$O,0))) ->  | J23: =IF(F23="","",INDEX('All Data'!$AD:$AD,MATCH(F23,'All Data'!$O:$O,0))) ->  | K23: =IF(F23="","",INDEX('All Data'!$X:$X,MATCH(F23,'All Data'!$O:$O,0))) ->  | L23: =IF(F23="","",INDEX('All Data'!$Y:$Y,MATCH(F23,'All Data'!$O:$O,0))) ->  | M23: =IF(F23="","",INDEX('All Data'!$Z:$Z,MATCH(F23,'All Data'!$O:$O,0))) ->  | N23: =IF(F23="","",INDEX('All Data'!$AA:$AA,MATCH(F23,'All Data'!$O:$O,0))) ->  | O23: =IF(F23="","",INDEX('All Data'!$U:$U,MATCH(F23,'All Data'!$O:$O,0))) ->  | P23: =IF(F23="","",INDEX('All Data'!$V:$V,MATCH(F23,'All Data'!$O:$O,0))) ->  | Q23: =IF(F23="","",INDEX('All Data'!$AK:$AK,MATCH(F23,'All Data'!$O:$O,0))) ->  | R23: =IF(F23="","",INDEX('All Data'!$I:$I,MATCH(F23,'All Data'!$O:$O,0))) ->  | S23: =IF(F23="","",INDEX('All Data'!$K:$K,MATCH(F23,'All Data'!$O:$O,0))) ->  | T23: =IF(F23="","",INDEX('All Data'!$AS:$AS,MATCH(F23,'All Data'!$O:$O,0))) -> 
D24: =IF(F24="","",INDEX('All Data'!$F:$F,MATCH(F24,'All Data'!$O:$O,0))) ->  | E24: =IF(F24<>"",COUNTIF($F$7:F24,"*")&".","") ->  | G24: =IF(F24="","",INDEX('All Data'!$N:$N,MATCH(F24,'All Data'!$O:$O,0))) ->  | H24: =IF(F24="","",INDEX('All Data'!$Q:$Q,MATCH(F24,'All Data'!$O:$O,0))) ->  | I24: =IF(F24="","",INDEX('All Data'!$AF:$AF,MATCH(F24,'All Data'!$O:$O,0))) ->  | J24: =IF(F24="","",INDEX('All Data'!$AD:$AD,MATCH(F24,'All Data'!$O:$O,0))) ->  | K24: =IF(F24="","",INDEX('All Data'!$X:$X,MATCH(F24,'All Data'!$O:$O,0))) ->  | L24: =IF(F24="","",INDEX('All Data'!$Y:$Y,MATCH(F24,'All Data'!$O:$O,0))) ->  | M24: =IF(F24="","",INDEX('All Data'!$Z:$Z,MATCH(F24,'All Data'!$O:$O,0))) ->  | N24: =IF(F24="","",INDEX('All Data'!$AA:$AA,MATCH(F24,'All Data'!$O:$O,0))) ->  | O24: =IF(F24="","",INDEX('All Data'!$U:$U,MATCH(F24,'All Data'!$O:$O,0))) ->  | P24: =IF(F24="","",INDEX('All Data'!$V:$V,MATCH(F24,'All Data'!$O:$O,0))) ->  | Q24: =IF(F24="","",INDEX('All Data'!$AK:$AK,MATCH(F24,'All Data'!$O:$O,0))) ->  | R24: =IF(F24="","",INDEX('All Data'!$I:$I,MATCH(F24,'All Data'!$O:$O,0))) ->  | S24: =IF(F24="","",INDEX('All Data'!$K:$K,MATCH(F24,'All Data'!$O:$O,0))) ->  | T24: =IF(F24="","",INDEX('All Data'!$AS:$AS,MATCH(F24,'All Data'!$O:$O,0))) -> 
D25: =IF(F25="","",INDEX('All Data'!$F:$F,MATCH(F25,'All Data'!$O:$O,0))) ->  | E25: =IF(F25<>"",COUNTIF($F$7:F25,"*")&".","") ->  | G25: =IF(F25="","",INDEX('All Data'!$N:$N,MATCH(F25,'All Data'!$O:$O,0))) ->  | H25: =IF(F25="","",INDEX('All Data'!$Q:$Q,MATCH(F25,'All Data'!$O:$O,0))) ->  | I25: =IF(F25="","",INDEX('All Data'!$AF:$AF,MATCH(F25,'All Data'!$O:$O,0))) ->  | J25: =IF(F25="","",INDEX('All Data'!$AD:$AD,MATCH(F25,'All Data'!$O:$O,0))) ->  | K25: =IF(F25="","",INDEX('All Data'!$X:$X,MATCH(F25,'All Data'!$O:$O,0))) ->  | L25: =IF(F25="","",INDEX('All Data'!$Y:$Y,MATCH(F25,'All Data'!$O:$O,0))) ->  | M25: =IF(F25="","",INDEX('All Data'!$Z:$Z,MATCH(F25,'All Data'!$O:$O,0))) ->  | N25: =IF(F25="","",INDEX('All Data'!$AA:$AA,MATCH(F25,'All Data'!$O:$O,0))) ->  | O25: =IF(F25="","",INDEX('All Data'!$U:$U,MATCH(F25,'All Data'!$O:$O,0))) ->  | P25: =IF(F25="","",INDEX('All Data'!$V:$V,MATCH(F25,'All Data'!$O:$O,0))) ->  | Q25: =IF(F25="","",INDEX('All Data'!$AK:$AK,MATCH(F25,'All Data'!$O:$O,0))) ->  | R25: =IF(F25="","",INDEX('All Data'!$I:$I,MATCH(F25,'All Data'!$O:$O,0))) ->  | S25: =IF(F25="","",INDEX('All Data'!$K:$K,MATCH(F25,'All Data'!$O:$O,0))) ->  | T25: =IF(F25="","",INDEX('All Data'!$AS:$AS,MATCH(F25,'All Data'!$O:$O,0))) -> 
D26: =IF(F26="","",INDEX('All Data'!$F:$F,MATCH(F26,'All Data'!$O:$O,0))) ->  | E26: =IF(F26<>"",COUNTIF($F$7:F26,"*")&".","") ->  | G26: =IF(F26="","",INDEX('All Data'!$N:$N,MATCH(F26,'All Data'!$O:$O,0))) ->  | H26: =IF(F26="","",INDEX('All Data'!$Q:$Q,MATCH(F26,'All Data'!$O:$O,0))) ->  | I26: =IF(F26="","",INDEX('All Data'!$AF:$AF,MATCH(F26,'All Data'!$O:$O,0))) ->  | J26: =IF(F26="","",INDEX('All Data'!$AD:$AD,MATCH(F26,'All Data'!$O:$O,0))) ->  | K26: =IF(F26="","",INDEX('All Data'!$X:$X,MATCH(F26,'All Data'!$O:$O,0))) ->  | L26: =IF(F26="","",INDEX('All Data'!$Y:$Y,MATCH(F26,'All Data'!$O:$O,0))) ->  | M26: =IF(F26="","",INDEX('All Data'!$Z:$Z,MATCH(F26,'All Data'!$O:$O,0))) ->  | N26: =IF(F26="","",INDEX('All Data'!$AA:$AA,MATCH(F26,'All Data'!$O:$O,0))) ->  | O26: =IF(F26="","",INDEX('All Data'!$U:$U,MATCH(F26,'All Data'!$O:$O,0))) ->  | P26: =IF(F26="","",INDEX('All Data'!$V:$V,MATCH(F26,'All Data'!$O:$O,0))) ->  | Q26: =IF(F26="","",INDEX('All Data'!$AK:$AK,MATCH(F26,'All Data'!$O:$O,0))) ->  | R26: =IF(F26="","",INDEX('All Data'!$I:$I,MATCH(F26,'All Data'!$O:$O,0))) ->  | S26: =IF(F26="","",INDEX('All Data'!$K:$K,MATCH(F26,'All Data'!$O:$O,0))) ->  | T26: =IF(F26="","",INDEX('All Data'!$AS:$AS,MATCH(F26,'All Data'!$O:$O,0))) -> 
D27: =IF(F27="","",INDEX('All Data'!$F:$F,MATCH(F27,'All Data'!$O:$O,0))) ->  | E27: =IF(F27<>"",COUNTIF($F$7:F27,"*")&".","") ->  | G27: =IF(F27="","",INDEX('All Data'!$N:$N,MATCH(F27,'All Data'!$O:$O,0))) ->  | H27: =IF(F27="","",INDEX('All Data'!$Q:$Q,MATCH(F27,'All Data'!$O:$O,0))) ->  | I27: =IF(F27="","",INDEX('All Data'!$AF:$AF,MATCH(F27,'All Data'!$O:$O,0))) ->  | J27: =IF(F27="","",INDEX('All Data'!$AD:$AD,MATCH(F27,'All Data'!$O:$O,0))) ->  | K27: =IF(F27="","",INDEX('All Data'!$X:$X,MATCH(F27,'All Data'!$O:$O,0))) ->  | L27: =IF(F27="","",INDEX('All Data'!$Y:$Y,MATCH(F27,'All Data'!$O:$O,0))) ->  | M27: =IF(F27="","",INDEX('All Data'!$Z:$Z,MATCH(F27,'All Data'!$O:$O,0))) ->  | N27: =IF(F27="","",INDEX('All Data'!$AA:$AA,MATCH(F27,'All Data'!$O:$O,0))) ->  | O27: =IF(F27="","",INDEX('All Data'!$U:$U,MATCH(F27,'All Data'!$O:$O,0))) ->  | P27: =IF(F27="","",INDEX('All Data'!$V:$V,MATCH(F27,'All Data'!$O:$O,0))) ->  | Q27: =IF(F27="","",INDEX('All Data'!$AK:$AK,MATCH(F27,'All Data'!$O:$O,0))) ->  | R27: =IF(F27="","",INDEX('All Data'!$I:$I,MATCH(F27,'All Data'!$O:$O,0))) ->  | S27: =IF(F27="","",INDEX('All Data'!$K:$K,MATCH(F27,'All Data'!$O:$O,0))) ->  | T27: =IF(F27="","",INDEX('All Data'!$AS:$AS,MATCH(F27,'All Data'!$O:$O,0))) -> 
D28: =IF(F28="","",INDEX('All Data'!$F:$F,MATCH(F28,'All Data'!$O:$O,0))) ->  | E28: =IF(F28<>"",COUNTIF($F$7:F28,"*")&".","") ->  | G28: =IF(F28="","",INDEX('All Data'!$N:$N,MATCH(F28,'All Data'!$O:$O,0))) ->  | H28: =IF(F28="","",INDEX('All Data'!$Q:$Q,MATCH(F28,'All Data'!$O:$O,0))) ->  | I28: =IF(F28="","",INDEX('All Data'!$AF:$AF,MATCH(F28,'All Data'!$O:$O,0))) ->  | J28: =IF(F28="","",INDEX('All Data'!$AD:$AD,MATCH(F28,'All Data'!$O:$O,0))) ->  | K28: =IF(F28="","",INDEX('All Data'!$X:$X,MATCH(F28,'All Data'!$O:$O,0))) ->  | L28: =IF(F28="","",INDEX('All Data'!$Y:$Y,MATCH(F28,'All Data'!$O:$O,0))) ->  | M28: =IF(F28="","",INDEX('All Data'!$Z:$Z,MATCH(F28,'All Data'!$O:$O,0))) ->  | N28: =IF(F28="","",INDEX('All Data'!$AA:$AA,MATCH(F28,'All Data'!$O:$O,0))) ->  | O28: =IF(F28="","",INDEX('All Data'!$U:$U,MATCH(F28,'All Data'!$O:$O,0))) ->  | P28: =IF(F28="","",INDEX('All Data'!$V:$V,MATCH(F28,'All Data'!$O:$O,0))) ->  | Q28: =IF(F28="","",INDEX('All Data'!$AK:$AK,MATCH(F28,'All Data'!$O:$O,0))) ->  | R28: =IF(F28="","",INDEX('All Data'!$I:$I,MATCH(F28,'All Data'!$O:$O,0))) ->  | S28: =IF(F28="","",INDEX('All Data'!$K:$K,MATCH(F28,'All Data'!$O:$O,0))) ->  | T28: =IF(F28="","",INDEX('All Data'!$AS:$AS,MATCH(F28,'All Data'!$O:$O,0))) -> 
D29: =IF(F29="","",INDEX('All Data'!$F:$F,MATCH(F29,'All Data'!$O:$O,0))) ->  | E29: =IF(F29<>"",COUNTIF($F$7:F29,"*")&".","") ->  | G29: =IF(F29="","",INDEX('All Data'!$N:$N,MATCH(F29,'All Data'!$O:$O,0))) ->  | H29: =IF(F29="","",INDEX('All Data'!$Q:$Q,MATCH(F29,'All Data'!$O:$O,0))) ->  | I29: =IF(F29="","",INDEX('All Data'!$AF:$AF,MATCH(F29,'All Data'!$O:$O,0))) ->  | J29: =IF(F29="","",INDEX('All Data'!$AD:$AD,MATCH(F29,'All Data'!$O:$O,0))) ->  | K29: =IF(F29="","",INDEX('All Data'!$X:$X,MATCH(F29,'All Data'!$O:$O,0))) ->  | L29: =IF(F29="","",INDEX('All Data'!$Y:$Y,MATCH(F29,'All Data'!$O:$O,0))) ->  | M29: =IF(F29="","",INDEX('All Data'!$Z:$Z,MATCH(F29,'All Data'!$O:$O,0))) ->  | N29: =IF(F29="","",INDEX('All Data'!$AA:$AA,MATCH(F29,'All Data'!$O:$O,0))) ->  | O29: =IF(F29="","",INDEX('All Data'!$U:$U,MATCH(F29,'All Data'!$O:$O,0))) ->  | P29: =IF(F29="","",INDEX('All Data'!$V:$V,MATCH(F29,'All Data'!$O:$O,0))) ->  | Q29: =IF(F29="","",INDEX('All Data'!$AK:$AK,MATCH(F29,'All Data'!$O:$O,0))) ->  | R29: =IF(F29="","",INDEX('All Data'!$I:$I,MATCH(F29,'All Data'!$O:$O,0))) ->  | S29: =IF(F29="","",INDEX('All Data'!$K:$K,MATCH(F29,'All Data'!$O:$O,0))) ->  | T29: =IF(F29="","",INDEX('All Data'!$AS:$AS,MATCH(F29,'All Data'!$O:$O,0))) -> 
D30: =IF(F30="","",INDEX('All Data'!$F:$F,MATCH(F30,'All Data'!$O:$O,0))) ->  | E30: =IF(F30<>"",COUNTIF($F$7:F30,"*")&".","") ->  | G30: =IF(F30="","",INDEX('All Data'!$N:$N,MATCH(F30,'All Data'!$O:$O,0))) ->  | H30: =IF(F30="","",INDEX('All Data'!$Q:$Q,MATCH(F30,'All Data'!$O:$O,0))) ->  | I30: =IF(F30="","",INDEX('All Data'!$AF:$AF,MATCH(F30,'All Data'!$O:$O,0))) ->  | J30: =IF(F30="","",INDEX('All Data'!$AD:$AD,MATCH(F30,'All Data'!$O:$O,0))) ->  | K30: =IF(F30="","",INDEX('All Data'!$X:$X,MATCH(F30,'All Data'!$O:$O,0))) ->  | L30: =IF(F30="","",INDEX('All Data'!$Y:$Y,MATCH(F30,'All Data'!$O:$O,0))) ->  | M30: =IF(F30="","",INDEX('All Data'!$Z:$Z,MATCH(F30,'All Data'!$O:$O,0))) ->  | N30: =IF(F30="","",INDEX('All Data'!$AA:$AA,MATCH(F30,'All Data'!$O:$O,0))) ->  | O30: =IF(F30="","",INDEX('All Data'!$U:$U,MATCH(F30,'All Data'!$O:$O,0))) ->  | P30: =IF(F30="","",INDEX('All Data'!$V:$V,MATCH(F30,'All Data'!$O:$O,0))) ->  | Q30: =IF(F30="","",INDEX('All Data'!$AK:$AK,MATCH(F30,'All Data'!$O:$O,0))) ->  | R30: =IF(F30="","",INDEX('All Data'!$I:$I,MATCH(F30,'All Data'!$O:$O,0))) ->  | S30: =IF(F30="","",INDEX('All Data'!$K:$K,MATCH(F30,'All Data'!$O:$O,0))) ->  | T30: =IF(F30="","",INDEX('All Data'!$AS:$AS,MATCH(F30,'All Data'!$O:$O,0))) -> 
D31: =IF(F31="","",INDEX('All Data'!$F:$F,MATCH(F31,'All Data'!$O:$O,0))) ->  | E31: =IF(F31<>"",COUNTIF($F$7:F31,"*")&".","") ->  | G31: =IF(F31="","",INDEX('All Data'!$N:$N,MATCH(F31,'All Data'!$O:$O,0))) ->  | H31: =IF(F31="","",INDEX('All Data'!$Q:$Q,MATCH(F31,'All Data'!$O:$O,0))) ->  | I31: =IF(F31="","",INDEX('All Data'!$AF:$AF,MATCH(F31,'All Data'!$O:$O,0))) ->  | J31: =IF(F31="","",INDEX('All Data'!$AD:$AD,MATCH(F31,'All Data'!$O:$O,0))) ->  | K31: =IF(F31="","",INDEX('All Data'!$X:$X,MATCH(F31,'All Data'!$O:$O,0))) ->  | L31: =IF(F31="","",INDEX('All Data'!$Y:$Y,MATCH(F31,'All Data'!$O:$O,0))) ->  | M31: =IF(F31="","",INDEX('All Data'!$Z:$Z,MATCH(F31,'All Data'!$O:$O,0))) ->  | N31: =IF(F31="","",INDEX('All Data'!$AA:$AA,MATCH(F31,'All Data'!$O:$O,0))) ->  | O31: =IF(F31="","",INDEX('All Data'!$U:$U,MATCH(F31,'All Data'!$O:$O,0))) ->  | P31: =IF(F31="","",INDEX('All Data'!$V:$V,MATCH(F31,'All Data'!$O:$O,0))) ->  | Q31: =IF(F31="","",INDEX('All Data'!$AK:$AK,MATCH(F31,'All Data'!$O:$O,0))) ->  | R31: =IF(F31="","",INDEX('All Data'!$I:$I,MATCH(F31,'All Data'!$O:$O,0))) ->  | S31: =IF(F31="","",INDEX('All Data'!$K:$K,MATCH(F31,'All Data'!$O:$O,0))) ->  | T31: =IF(F31="","",INDEX('All Data'!$AS:$AS,MATCH(F31,'All Data'!$O:$O,0))) -> 
D32: =IF(F32="","",INDEX('All Data'!$F:$F,MATCH(F32,'All Data'!$O:$O,0))) ->  | E32: =IF(F32<>"",COUNTIF($F$7:F32,"*")&".","") ->  | G32: =IF(F32="","",INDEX('All Data'!$N:$N,MATCH(F32,'All Data'!$O:$O,0))) ->  | H32: =IF(F32="","",INDEX('All Data'!$Q:$Q,MATCH(F32,'All Data'!$O:$O,0))) ->  | I32: =IF(F32="","",INDEX('All Data'!$AF:$AF,MATCH(F32,'All Data'!$O:$O,0))) ->  | J32: =IF(F32="","",INDEX('All Data'!$AD:$AD,MATCH(F32,'All Data'!$O:$O,0))) ->  | K32: =IF(F32="","",INDEX('All Data'!$X:$X,MATCH(F32,'All Data'!$O:$O,0))) ->  | L32: =IF(F32="","",INDEX('All Data'!$Y:$Y,MATCH(F32,'All Data'!$O:$O,0))) ->  | M32: =IF(F32="","",INDEX('All Data'!$Z:$Z,MATCH(F32,'All Data'!$O:$O,0))) ->  | N32: =IF(F32="","",INDEX('All Data'!$AA:$AA,MATCH(F32,'All Data'!$O:$O,0))) ->  | O32: =IF(F32="","",INDEX('All Data'!$U:$U,MATCH(F32,'All Data'!$O:$O,0))) ->  | P32: =IF(F32="","",INDEX('All Data'!$V:$V,MATCH(F32,'All Data'!$O:$O,0))) ->  | Q32: =IF(F32="","",INDEX('All Data'!$AK:$AK,MATCH(F32,'All Data'!$O:$O,0))) ->  | R32: =IF(F32="","",INDEX('All Data'!$I:$I,MATCH(F32,'All Data'!$O:$O,0))) ->  | S32: =IF(F32="","",INDEX('All Data'!$K:$K,MATCH(F32,'All Data'!$O:$O,0))) ->  | T32: =IF(F32="","",INDEX('All Data'!$AS:$AS,MATCH(F32,'All Data'!$O:$O,0))) -> 
D33: =IF(F33="","",INDEX('All Data'!$F:$F,MATCH(F33,'All Data'!$O:$O,0))) ->  | E33: =IF(F33<>"",COUNTIF($F$7:F33,"*")&".","") ->  | G33: =IF(F33="","",INDEX('All Data'!$N:$N,MATCH(F33,'All Data'!$O:$O,0))) ->  | H33: =IF(F33="","",INDEX('All Data'!$Q:$Q,MATCH(F33,'All Data'!$O:$O,0))) ->  | I33: =IF(F33="","",INDEX('All Data'!$AF:$AF,MATCH(F33,'All Data'!$O:$O,0))) ->  | J33: =IF(F33="","",INDEX('All Data'!$AD:$AD,MATCH(F33,'All Data'!$O:$O,0))) ->  | K33: =IF(F33="","",INDEX('All Data'!$X:$X,MATCH(F33,'All Data'!$O:$O,0))) ->  | L33: =IF(F33="","",INDEX('All Data'!$Y:$Y,MATCH(F33,'All Data'!$O:$O,0))) ->  | M33: =IF(F33="","",INDEX('All Data'!$Z:$Z,MATCH(F33,'All Data'!$O:$O,0))) ->  | N33: =IF(F33="","",INDEX('All Data'!$AA:$AA,MATCH(F33,'All Data'!$O:$O,0))) ->  | O33: =IF(F33="","",INDEX('All Data'!$U:$U,MATCH(F33,'All Data'!$O:$O,0))) ->  | P33: =IF(F33="","",INDEX('All Data'!$V:$V,MATCH(F33,'All Data'!$O:$O,0))) ->  | Q33: =IF(F33="","",INDEX('All Data'!$AK:$AK,MATCH(F33,'All Data'!$O:$O,0))) ->  | R33: =IF(F33="","",INDEX('All Data'!$I:$I,MATCH(F33,'All Data'!$O:$O,0))) ->  | S33: =IF(F33="","",INDEX('All Data'!$K:$K,MATCH(F33,'All Data'!$O:$O,0))) ->  | T33: =IF(F33="","",INDEX('All Data'!$AS:$AS,MATCH(F33,'All Data'!$O:$O,0))) -> 
D34: =IF(F34="","",INDEX('All Data'!$F:$F,MATCH(F34,'All Data'!$O:$O,0))) ->  | E34: =IF(F34<>"",COUNTIF($F$7:F34,"*")&".","") ->  | G34: =IF(F34="","",INDEX('All Data'!$N:$N,MATCH(F34,'All Data'!$O:$O,0))) ->  | H34: =IF(F34="","",INDEX('All Data'!$Q:$Q,MATCH(F34,'All Data'!$O:$O,0))) ->  | I34: =IF(F34="","",INDEX('All Data'!$AF:$AF,MATCH(F34,'All Data'!$O:$O,0))) ->  | J34: =IF(F34="","",INDEX('All Data'!$AD:$AD,MATCH(F34,'All Data'!$O:$O,0))) ->  | K34: =IF(F34="","",INDEX('All Data'!$X:$X,MATCH(F34,'All Data'!$O:$O,0))) ->  | L34: =IF(F34="","",INDEX('All Data'!$Y:$Y,MATCH(F34,'All Data'!$O:$O,0))) ->  | M34: =IF(F34="","",INDEX('All Data'!$Z:$Z,MATCH(F34,'All Data'!$O:$O,0))) ->  | N34: =IF(F34="","",INDEX('All Data'!$AA:$AA,MATCH(F34,'All Data'!$O:$O,0))) ->  | O34: =IF(F34="","",INDEX('All Data'!$U:$U,MATCH(F34,'All Data'!$O:$O,0))) ->  | P34: =IF(F34="","",INDEX('All Data'!$V:$V,MATCH(F34,'All Data'!$O:$O,0))) ->  | Q34: =IF(F34="","",INDEX('All Data'!$AK:$AK,MATCH(F34,'All Data'!$O:$O,0))) ->  | R34: =IF(F34="","",INDEX('All Data'!$I:$I,MATCH(F34,'All Data'!$O:$O,0))) ->  | S34: =IF(F34="","",INDEX('All Data'!$K:$K,MATCH(F34,'All Data'!$O:$O,0))) ->  | T34: =IF(F34="","",INDEX('All Data'!$AS:$AS,MATCH(F34,'All Data'!$O:$O,0))) -> 
D35: =IF(F35="","",INDEX('All Data'!$F:$F,MATCH(F35,'All Data'!$O:$O,0))) ->  | E35: =IF(F35<>"",COUNTIF($F$7:F35,"*")&".","") ->  | G35: =IF(F35="","",INDEX('All Data'!$N:$N,MATCH(F35,'All Data'!$O:$O,0))) ->  | H35: =IF(F35="","",INDEX('All Data'!$Q:$Q,MATCH(F35,'All Data'!$O:$O,0))) ->  | I35: =IF(F35="","",INDEX('All Data'!$AF:$AF,MATCH(F35,'All Data'!$O:$O,0))) ->  | J35: =IF(F35="","",INDEX('All Data'!$AD:$AD,MATCH(F35,'All Data'!$O:$O,0))) ->  | K35: =IF(F35="","",INDEX('All Data'!$X:$X,MATCH(F35,'All Data'!$O:$O,0))) ->  | L35: =IF(F35="","",INDEX('All Data'!$Y:$Y,MATCH(F35,'All Data'!$O:$O,0))) ->  | M35: =IF(F35="","",INDEX('All Data'!$Z:$Z,MATCH(F35,'All Data'!$O:$O,0))) ->  | N35: =IF(F35="","",INDEX('All Data'!$AA:$AA,MATCH(F35,'All Data'!$O:$O,0))) ->  | O35: =IF(F35="","",INDEX('All Data'!$U:$U,MATCH(F35,'All Data'!$O:$O,0))) ->  | P35: =IF(F35="","",INDEX('All Data'!$V:$V,MATCH(F35,'All Data'!$O:$O,0))) ->  | Q35: =IF(F35="","",INDEX('All Data'!$AK:$AK,MATCH(F35,'All Data'!$O:$O,0))) ->  | R35: =IF(F35="","",INDEX('All Data'!$I:$I,MATCH(F35,'All Data'!$O:$O,0))) ->  | S35: =IF(F35="","",INDEX('All Data'!$K:$K,MATCH(F35,'All Data'!$O:$O,0))) ->  | T35: =IF(F35="","",INDEX('All Data'!$AS:$AS,MATCH(F35,'All Data'!$O:$O,0))) -> 
D36: =IF(F36="","",INDEX('All Data'!$F:$F,MATCH(F36,'All Data'!$O:$O,0))) ->  | E36: =IF(F36<>"",COUNTIF($F$7:F36,"*")&".","") ->  | G36: =IF(F36="","",INDEX('All Data'!$N:$N,MATCH(F36,'All Data'!$O:$O,0))) ->  | H36: =IF(F36="","",INDEX('All Data'!$Q:$Q,MATCH(F36,'All Data'!$O:$O,0))) ->  | I36: =IF(F36="","",INDEX('All Data'!$AF:$AF,MATCH(F36,'All Data'!$O:$O,0))) ->  | J36: =IF(F36="","",INDEX('All Data'!$AD:$AD,MATCH(F36,'All Data'!$O:$O,0))) ->  | K36: =IF(F36="","",INDEX('All Data'!$X:$X,MATCH(F36,'All Data'!$O:$O,0))) ->  | L36: =IF(F36="","",INDEX('All Data'!$Y:$Y,MATCH(F36,'All Data'!$O:$O,0))) ->  | M36: =IF(F36="","",INDEX('All Data'!$Z:$Z,MATCH(F36,'All Data'!$O:$O,0))) ->  | N36: =IF(F36="","",INDEX('All Data'!$AA:$AA,MATCH(F36,'All Data'!$O:$O,0))) ->  | O36: =IF(F36="","",INDEX('All Data'!$U:$U,MATCH(F36,'All Data'!$O:$O,0))) ->  | P36: =IF(F36="","",INDEX('All Data'!$V:$V,MATCH(F36,'All Data'!$O:$O,0))) ->  | Q36: =IF(F36="","",INDEX('All Data'!$AK:$AK,MATCH(F36,'All Data'!$O:$O,0))) ->  | R36: =IF(F36="","",INDEX('All Data'!$I:$I,MATCH(F36,'All Data'!$O:$O,0))) ->  | S36: =IF(F36="","",INDEX('All Data'!$K:$K,MATCH(F36,'All Data'!$O:$O,0))) ->  | T36: =IF(F36="","",INDEX('All Data'!$AS:$AS,MATCH(F36,'All Data'!$O:$O,0))) -> 
D37: =IF(F37="","",INDEX('All Data'!$F:$F,MATCH(F37,'All Data'!$O:$O,0))) ->  | E37: =IF(F37<>"",COUNTIF($F$7:F37,"*")&".","") ->  | G37: =IF(F37="","",INDEX('All Data'!$N:$N,MATCH(F37,'All Data'!$O:$O,0))) ->  | H37: =IF(F37="","",INDEX('All Data'!$Q:$Q,MATCH(F37,'All Data'!$O:$O,0))) ->  | I37: =IF(F37="","",INDEX('All Data'!$AF:$AF,MATCH(F37,'All Data'!$O:$O,0))) ->  | J37: =IF(F37="","",INDEX('All Data'!$AD:$AD,MATCH(F37,'All Data'!$O:$O,0))) ->  | K37: =IF(F37="","",INDEX('All Data'!$X:$X,MATCH(F37,'All Data'!$O:$O,0))) ->  | L37: =IF(F37="","",INDEX('All Data'!$Y:$Y,MATCH(F37,'All Data'!$O:$O,0))) ->  | M37: =IF(F37="","",INDEX('All Data'!$Z:$Z,MATCH(F37,'All Data'!$O:$O,0))) ->  | N37: =IF(F37="","",INDEX('All Data'!$AA:$AA,MATCH(F37,'All Data'!$O:$O,0))) ->  | O37: =IF(F37="","",INDEX('All Data'!$U:$U,MATCH(F37,'All Data'!$O:$O,0))) ->  | P37: =IF(F37="","",INDEX('All Data'!$V:$V,MATCH(F37,'All Data'!$O:$O,0))) ->  | Q37: =IF(F37="","",INDEX('All Data'!$AK:$AK,MATCH(F37,'All Data'!$O:$O,0))) ->  | R37: =IF(F37="","",INDEX('All Data'!$I:$I,MATCH(F37,'All Data'!$O:$O,0))) ->  | S37: =IF(F37="","",INDEX('All Data'!$K:$K,MATCH(F37,'All Data'!$O:$O,0))) ->  | T37: =IF(F37="","",INDEX('All Data'!$AS:$AS,MATCH(F37,'All Data'!$O:$O,0))) -> 
D38: =IF(F38="","",INDEX('All Data'!$F:$F,MATCH(F38,'All Data'!$O:$O,0))) ->  | E38: =IF(F38<>"",COUNTIF($F$7:F38,"*")&".","") ->  | G38: =IF(F38="","",INDEX('All Data'!$N:$N,MATCH(F38,'All Data'!$O:$O,0))) ->  | H38: =IF(F38="","",INDEX('All Data'!$Q:$Q,MATCH(F38,'All Data'!$O:$O,0))) ->  | I38: =IF(F38="","",INDEX('All Data'!$AF:$AF,MATCH(F38,'All Data'!$O:$O,0))) ->  | J38: =IF(F38="","",INDEX('All Data'!$AD:$AD,MATCH(F38,'All Data'!$O:$O,0))) ->  | K38: =IF(F38="","",INDEX('All Data'!$X:$X,MATCH(F38,'All Data'!$O:$O,0))) ->  | L38: =IF(F38="","",INDEX('All Data'!$Y:$Y,MATCH(F38,'All Data'!$O:$O,0))) ->  | M38: =IF(F38="","",INDEX('All Data'!$Z:$Z,MATCH(F38,'All Data'!$O:$O,0))) ->  | N38: =IF(F38="","",INDEX('All Data'!$AA:$AA,MATCH(F38,'All Data'!$O:$O,0))) ->  | O38: =IF(F38="","",INDEX('All Data'!$U:$U,MATCH(F38,'All Data'!$O:$O,0))) ->  | P38: =IF(F38="","",INDEX('All Data'!$V:$V,MATCH(F38,'All Data'!$O:$O,0))) ->  | Q38: =IF(F38="","",INDEX('All Data'!$AK:$AK,MATCH(F38,'All Data'!$O:$O,0))) ->  | R38: =IF(F38="","",INDEX('All Data'!$I:$I,MATCH(F38,'All Data'!$O:$O,0))) ->  | S38: =IF(F38="","",INDEX('All Data'!$K:$K,MATCH(F38,'All Data'!$O:$O,0))) ->  | T38: =IF(F38="","",INDEX('All Data'!$AS:$AS,MATCH(F38,'All Data'!$O:$O,0))) -> 
D39: =IF(F39="","",INDEX('All Data'!$F:$F,MATCH(F39,'All Data'!$O:$O,0))) ->  | E39: =IF(F39<>"",COUNTIF($F$7:F39,"*")&".","") ->  | G39: =IF(F39="","",INDEX('All Data'!$N:$N,MATCH(F39,'All Data'!$O:$O,0))) ->  | H39: =IF(F39="","",INDEX('All Data'!$Q:$Q,MATCH(F39,'All Data'!$O:$O,0))) ->  | I39: =IF(F39="","",INDEX('All Data'!$AF:$AF,MATCH(F39,'All Data'!$O:$O,0))) ->  | J39: =IF(F39="","",INDEX('All Data'!$AD:$AD,MATCH(F39,'All Data'!$O:$O,0))) ->  | K39: =IF(F39="","",INDEX('All Data'!$X:$X,MATCH(F39,'All Data'!$O:$O,0))) ->  | L39: =IF(F39="","",INDEX('All Data'!$Y:$Y,MATCH(F39,'All Data'!$O:$O,0))) ->  | M39: =IF(F39="","",INDEX('All Data'!$Z:$Z,MATCH(F39,'All Data'!$O:$O,0))) ->  | N39: =IF(F39="","",INDEX('All Data'!$AA:$AA,MATCH(F39,'All Data'!$O:$O,0))) ->  | O39: =IF(F39="","",INDEX('All Data'!$U:$U,MATCH(F39,'All Data'!$O:$O,0))) ->  | P39: =IF(F39="","",INDEX('All Data'!$V:$V,MATCH(F39,'All Data'!$O:$O,0))) ->  | Q39: =IF(F39="","",INDEX('All Data'!$AK:$AK,MATCH(F39,'All Data'!$O:$O,0))) ->  | R39: =IF(F39="","",INDEX('All Data'!$I:$I,MATCH(F39,'All Data'!$O:$O,0))) ->  | S39: =IF(F39="","",INDEX('All Data'!$K:$K,MATCH(F39,'All Data'!$O:$O,0))) ->  | T39: =IF(F39="","",INDEX('All Data'!$AS:$AS,MATCH(F39,'All Data'!$O:$O,0))) -> 
D40: =IF(F40="","",INDEX('All Data'!$F:$F,MATCH(F40,'All Data'!$O:$O,0))) ->  | E40: =IF(F40<>"",COUNTIF($F$7:F40,"*")&".","") ->  | G40: =IF(F40="","",INDEX('All Data'!$N:$N,MATCH(F40,'All Data'!$O:$O,0))) ->  | H40: =IF(F40="","",INDEX('All Data'!$Q:$Q,MATCH(F40,'All Data'!$O:$O,0))) ->  | I40: =IF(F40="","",INDEX('All Data'!$AF:$AF,MATCH(F40,'All Data'!$O:$O,0))) ->  | J40: =IF(F40="","",INDEX('All Data'!$AD:$AD,MATCH(F40,'All Data'!$O:$O,0))) ->  | K40: =IF(F40="","",INDEX('All Data'!$X:$X,MATCH(F40,'All Data'!$O:$O,0))) ->  | L40: =IF(F40="","",INDEX('All Data'!$Y:$Y,MATCH(F40,'All Data'!$O:$O,0))) ->  | M40: =IF(F40="","",INDEX('All Data'!$Z:$Z,MATCH(F40,'All Data'!$O:$O,0))) ->  | N40: =IF(F40="","",INDEX('All Data'!$AA:$AA,MATCH(F40,'All Data'!$O:$O,0))) ->  | O40: =IF(F40="","",INDEX('All Data'!$U:$U,MATCH(F40,'All Data'!$O:$O,0))) ->  | P40: =IF(F40="","",INDEX('All Data'!$V:$V,MATCH(F40,'All Data'!$O:$O,0))) ->  | Q40: =IF(F40="","",INDEX('All Data'!$AK:$AK,MATCH(F40,'All Data'!$O:$O,0))) ->  | R40: =IF(F40="","",INDEX('All Data'!$I:$I,MATCH(F40,'All Data'!$O:$O,0))) ->  | S40: =IF(F40="","",INDEX('All Data'!$K:$K,MATCH(F40,'All Data'!$O:$O,0))) ->  | T40: =IF(F40="","",INDEX('All Data'!$AS:$AS,MATCH(F40,'All Data'!$O:$O,0))) -> 
D41: =IF(F41="","",INDEX('All Data'!$F:$F,MATCH(F41,'All Data'!$O:$O,0))) ->  | E41: =IF(F41<>"",COUNTIF($F$7:F41,"*")&".","") ->  | G41: =IF(F41="","",INDEX('All Data'!$N:$N,MATCH(F41,'All Data'!$O:$O,0))) ->  | H41: =IF(F41="","",INDEX('All Data'!$Q:$Q,MATCH(F41,'All Data'!$O:$O,0))) ->  | I41: =IF(F41="","",INDEX('All Data'!$AF:$AF,MATCH(F41,'All Data'!$O:$O,0))) ->  | J41: =IF(F41="","",INDEX('All Data'!$AD:$AD,MATCH(F41,'All Data'!$O:$O,0))) ->  | K41: =IF(F41="","",INDEX('All Data'!$X:$X,MATCH(F41,'All Data'!$O:$O,0))) ->  | L41: =IF(F41="","",INDEX('All Data'!$Y:$Y,MATCH(F41,'All Data'!$O:$O,0))) ->  | M41: =IF(F41="","",INDEX('All Data'!$Z:$Z,MATCH(F41,'All Data'!$O:$O,0))) ->  | N41: =IF(F41="","",INDEX('All Data'!$AA:$AA,MATCH(F41,'All Data'!$O:$O,0))) ->  | O41: =IF(F41="","",INDEX('All Data'!$U:$U,MATCH(F41,'All Data'!$O:$O,0))) ->  | P41: =IF(F41="","",INDEX('All Data'!$V:$V,MATCH(F41,'All Data'!$O:$O,0))) ->  | Q41: =IF(F41="","",INDEX('All Data'!$AK:$AK,MATCH(F41,'All Data'!$O:$O,0))) ->  | R41: =IF(F41="","",INDEX('All Data'!$I:$I,MATCH(F41,'All Data'!$O:$O,0))) ->  | S41: =IF(F41="","",INDEX('All Data'!$K:$K,MATCH(F41,'All Data'!$O:$O,0))) ->  | T41: =IF(F41="","",INDEX('All Data'!$AS:$AS,MATCH(F41,'All Data'!$O:$O,0))) -> 
D42: =IF(F42="","",INDEX('All Data'!$F:$F,MATCH(F42,'All Data'!$O:$O,0))) ->  | E42: =IF(F42<>"",COUNTIF($F$7:F42,"*")&".","") ->  | G42: =IF(F42="","",INDEX('All Data'!$N:$N,MATCH(F42,'All Data'!$O:$O,0))) ->  | H42: =IF(F42="","",INDEX('All Data'!$Q:$Q,MATCH(F42,'All Data'!$O:$O,0))) ->  | I42: =IF(F42="","",INDEX('All Data'!$AF:$AF,MATCH(F42,'All Data'!$O:$O,0))) ->  | J42: =IF(F42="","",INDEX('All Data'!$AD:$AD,MATCH(F42,'All Data'!$O:$O,0))) ->  | K42: =IF(F42="","",INDEX('All Data'!$X:$X,MATCH(F42,'All Data'!$O:$O,0))) ->  | L42: =IF(F42="","",INDEX('All Data'!$Y:$Y,MATCH(F42,'All Data'!$O:$O,0))) ->  | M42: =IF(F42="","",INDEX('All Data'!$Z:$Z,MATCH(F42,'All Data'!$O:$O,0))) ->  | N42: =IF(F42="","",INDEX('All Data'!$AA:$AA,MATCH(F42,'All Data'!$O:$O,0))) ->  | O42: =IF(F42="","",INDEX('All Data'!$U:$U,MATCH(F42,'All Data'!$O:$O,0))) ->  | P42: =IF(F42="","",INDEX('All Data'!$V:$V,MATCH(F42,'All Data'!$O:$O,0))) ->  | Q42: =IF(F42="","",INDEX('All Data'!$AK:$AK,MATCH(F42,'All Data'!$O:$O,0))) ->  | R42: =IF(F42="","",INDEX('All Data'!$I:$I,MATCH(F42,'All Data'!$O:$O,0))) ->  | S42: =IF(F42="","",INDEX('All Data'!$K:$K,MATCH(F42,'All Data'!$O:$O,0))) ->  | T42: =IF(F42="","",INDEX('All Data'!$AS:$AS,MATCH(F42,'All Data'!$O:$O,0))) -> 
D43: =IF(F43="","",INDEX('All Data'!$F:$F,MATCH(F43,'All Data'!$O:$O,0))) ->  | E43: =IF(F43<>"",COUNTIF($F$7:F43,"*")&".","") ->  | G43: =IF(F43="","",INDEX('All Data'!$N:$N,MATCH(F43,'All Data'!$O:$O,0))) ->  | H43: =IF(F43="","",INDEX('All Data'!$Q:$Q,MATCH(F43,'All Data'!$O:$O,0))) ->  | I43: =IF(F43="","",INDEX('All Data'!$AF:$AF,MATCH(F43,'All Data'!$O:$O,0))) ->  | J43: =IF(F43="","",INDEX('All Data'!$AD:$AD,MATCH(F43,'All Data'!$O:$O,0))) ->  | K43: =IF(F43="","",INDEX('All Data'!$X:$X,MATCH(F43,'All Data'!$O:$O,0))) ->  | L43: =IF(F43="","",INDEX('All Data'!$Y:$Y,MATCH(F43,'All Data'!$O:$O,0))) ->  | M43: =IF(F43="","",INDEX('All Data'!$Z:$Z,MATCH(F43,'All Data'!$O:$O,0))) ->  | N43: =IF(F43="","",INDEX('All Data'!$AA:$AA,MATCH(F43,'All Data'!$O:$O,0))) ->  | O43: =IF(F43="","",INDEX('All Data'!$U:$U,MATCH(F43,'All Data'!$O:$O,0))) ->  | P43: =IF(F43="","",INDEX('All Data'!$V:$V,MATCH(F43,'All Data'!$O:$O,0))) ->  | Q43: =IF(F43="","",INDEX('All Data'!$AK:$AK,MATCH(F43,'All Data'!$O:$O,0))) ->  | R43: =IF(F43="","",INDEX('All Data'!$I:$I,MATCH(F43,'All Data'!$O:$O,0))) ->  | S43: =IF(F43="","",INDEX('All Data'!$K:$K,MATCH(F43,'All Data'!$O:$O,0))) ->  | T43: =IF(F43="","",INDEX('All Data'!$AS:$AS,MATCH(F43,'All Data'!$O:$O,0))) -> 
D44: =IF(F44="","",INDEX('All Data'!$F:$F,MATCH(F44,'All Data'!$O:$O,0))) ->  | E44: =IF(F44<>"",COUNTIF($F$7:F44,"*")&".","") ->  | G44: =IF(F44="","",INDEX('All Data'!$N:$N,MATCH(F44,'All Data'!$O:$O,0))) ->  | H44: =IF(F44="","",INDEX('All Data'!$Q:$Q,MATCH(F44,'All Data'!$O:$O,0))) ->  | I44: =IF(F44="","",INDEX('All Data'!$AF:$AF,MATCH(F44,'All Data'!$O:$O,0))) ->  | J44: =IF(F44="","",INDEX('All Data'!$AD:$AD,MATCH(F44,'All Data'!$O:$O,0))) ->  | K44: =IF(F44="","",INDEX('All Data'!$X:$X,MATCH(F44,'All Data'!$O:$O,0))) ->  | L44: =IF(F44="","",INDEX('All Data'!$Y:$Y,MATCH(F44,'All Data'!$O:$O,0))) ->  | M44: =IF(F44="","",INDEX('All Data'!$Z:$Z,MATCH(F44,'All Data'!$O:$O,0))) ->  | N44: =IF(F44="","",INDEX('All Data'!$AA:$AA,MATCH(F44,'All Data'!$O:$O,0))) ->  | O44: =IF(F44="","",INDEX('All Data'!$U:$U,MATCH(F44,'All Data'!$O:$O,0))) ->  | P44: =IF(F44="","",INDEX('All Data'!$V:$V,MATCH(F44,'All Data'!$O:$O,0))) ->  | Q44: =IF(F44="","",INDEX('All Data'!$AK:$AK,MATCH(F44,'All Data'!$O:$O,0))) ->  | R44: =IF(F44="","",INDEX('All Data'!$I:$I,MATCH(F44,'All Data'!$O:$O,0))) ->  | S44: =IF(F44="","",INDEX('All Data'!$K:$K,MATCH(F44,'All Data'!$O:$O,0))) ->  | T44: =IF(F44="","",INDEX('All Data'!$AS:$AS,MATCH(F44,'All Data'!$O:$O,0))) -> 
D45: =IF(F45="","",INDEX('All Data'!$F:$F,MATCH(F45,'All Data'!$O:$O,0))) ->  | E45: =IF(F45<>"",COUNTIF($F$7:F45,"*")&".","") ->  | G45: =IF(F45="","",INDEX('All Data'!$N:$N,MATCH(F45,'All Data'!$O:$O,0))) ->  | H45: =IF(F45="","",INDEX('All Data'!$Q:$Q,MATCH(F45,'All Data'!$O:$O,0))) ->  | I45: =IF(F45="","",INDEX('All Data'!$AF:$AF,MATCH(F45,'All Data'!$O:$O,0))) ->  | J45: =IF(F45="","",INDEX('All Data'!$AD:$AD,MATCH(F45,'All Data'!$O:$O,0))) ->  | K45: =IF(F45="","",INDEX('All Data'!$X:$X,MATCH(F45,'All Data'!$O:$O,0))) ->  | L45: =IF(F45="","",INDEX('All Data'!$Y:$Y,MATCH(F45,'All Data'!$O:$O,0))) ->  | M45: =IF(F45="","",INDEX('All Data'!$Z:$Z,MATCH(F45,'All Data'!$O:$O,0))) ->  | N45: =IF(F45="","",INDEX('All Data'!$AA:$AA,MATCH(F45,'All Data'!$O:$O,0))) ->  | O45: =IF(F45="","",INDEX('All Data'!$U:$U,MATCH(F45,'All Data'!$O:$O,0))) ->  | P45: =IF(F45="","",INDEX('All Data'!$V:$V,MATCH(F45,'All Data'!$O:$O,0))) ->  | Q45: =IF(F45="","",INDEX('All Data'!$AK:$AK,MATCH(F45,'All Data'!$O:$O,0))) ->  | R45: =IF(F45="","",INDEX('All Data'!$I:$I,MATCH(F45,'All Data'!$O:$O,0))) ->  | S45: =IF(F45="","",INDEX('All Data'!$K:$K,MATCH(F45,'All Data'!$O:$O,0))) ->  | T45: =IF(F45="","",INDEX('All Data'!$AS:$AS,MATCH(F45,'All Data'!$O:$O,0))) -> 
D46: =IF(F46="","",INDEX('All Data'!$F:$F,MATCH(F46,'All Data'!$O:$O,0))) ->  | E46: =IF(F46<>"",COUNTIF($F$7:F46,"*")&".","") ->  | G46: =IF(F46="","",INDEX('All Data'!$N:$N,MATCH(F46,'All Data'!$O:$O,0))) ->  | H46: =IF(F46="","",INDEX('All Data'!$Q:$Q,MATCH(F46,'All Data'!$O:$O,0))) ->  | I46: =IF(F46="","",INDEX('All Data'!$AF:$AF,MATCH(F46,'All Data'!$O:$O,0))) ->  | J46: =IF(F46="","",INDEX('All Data'!$AD:$AD,MATCH(F46,'All Data'!$O:$O,0))) ->  | K46: =IF(F46="","",INDEX('All Data'!$X:$X,MATCH(F46,'All Data'!$O:$O,0))) ->  | L46: =IF(F46="","",INDEX('All Data'!$Y:$Y,MATCH(F46,'All Data'!$O:$O,0))) ->  | M46: =IF(F46="","",INDEX('All Data'!$Z:$Z,MATCH(F46,'All Data'!$O:$O,0))) ->  | N46: =IF(F46="","",INDEX('All Data'!$AA:$AA,MATCH(F46,'All Data'!$O:$O,0))) ->  | O46: =IF(F46="","",INDEX('All Data'!$U:$U,MATCH(F46,'All Data'!$O:$O,0))) ->  | P46: =IF(F46="","",INDEX('All Data'!$V:$V,MATCH(F46,'All Data'!$O:$O,0))) ->  | Q46: =IF(F46="","",INDEX('All Data'!$AK:$AK,MATCH(F46,'All Data'!$O:$O,0))) ->  | R46: =IF(F46="","",INDEX('All Data'!$I:$I,MATCH(F46,'All Data'!$O:$O,0))) ->  | S46: =IF(F46="","",INDEX('All Data'!$K:$K,MATCH(F46,'All Data'!$O:$O,0))) ->  | T46: =IF(F46="","",INDEX('All Data'!$AS:$AS,MATCH(F46,'All Data'!$O:$O,0))) -> 
D47: =IF(F47="","",INDEX('All Data'!$F:$F,MATCH(F47,'All Data'!$O:$O,0))) ->  | E47: =IF(F47<>"",COUNTIF($F$7:F47,"*")&".","") ->  | G47: =IF(F47="","",INDEX('All Data'!$N:$N,MATCH(F47,'All Data'!$O:$O,0))) ->  | H47: =IF(F47="","",INDEX('All Data'!$Q:$Q,MATCH(F47,'All Data'!$O:$O,0))) ->  | I47: =IF(F47="","",INDEX('All Data'!$AF:$AF,MATCH(F47,'All Data'!$O:$O,0))) ->  | J47: =IF(F47="","",INDEX('All Data'!$AD:$AD,MATCH(F47,'All Data'!$O:$O,0))) ->  | K47: =IF(F47="","",INDEX('All Data'!$X:$X,MATCH(F47,'All Data'!$O:$O,0))) ->  | L47: =IF(F47="","",INDEX('All Data'!$Y:$Y,MATCH(F47,'All Data'!$O:$O,0))) ->  | M47: =IF(F47="","",INDEX('All Data'!$Z:$Z,MATCH(F47,'All Data'!$O:$O,0))) ->  | N47: =IF(F47="","",INDEX('All Data'!$AA:$AA,MATCH(F47,'All Data'!$O:$O,0))) ->  | O47: =IF(F47="","",INDEX('All Data'!$U:$U,MATCH(F47,'All Data'!$O:$O,0))) ->  | P47: =IF(F47="","",INDEX('All Data'!$V:$V,MATCH(F47,'All Data'!$O:$O,0))) ->  | Q47: =IF(F47="","",INDEX('All Data'!$AK:$AK,MATCH(F47,'All Data'!$O:$O,0))) ->  | R47: =IF(F47="","",INDEX('All Data'!$I:$I,MATCH(F47,'All Data'!$O:$O,0))) ->  | S47: =IF(F47="","",INDEX('All Data'!$K:$K,MATCH(F47,'All Data'!$O:$O,0))) ->  | T47: =IF(F47="","",INDEX('All Data'!$AS:$AS,MATCH(F47,'All Data'!$O:$O,0))) -> 
D48: =IF(F48="","",INDEX('All Data'!$F:$F,MATCH(F48,'All Data'!$O:$O,0))) ->  | E48: =IF(F48<>"",COUNTIF($F$7:F48,"*")&".","") ->  | G48: =IF(F48="","",INDEX('All Data'!$N:$N,MATCH(F48,'All Data'!$O:$O,0))) ->  | H48: =IF(F48="","",INDEX('All Data'!$Q:$Q,MATCH(F48,'All Data'!$O:$O,0))) ->  | I48: =IF(F48="","",INDEX('All Data'!$AF:$AF,MATCH(F48,'All Data'!$O:$O,0))) ->  | J48: =IF(F48="","",INDEX('All Data'!$AD:$AD,MATCH(F48,'All Data'!$O:$O,0))) ->  | K48: =IF(F48="","",INDEX('All Data'!$X:$X,MATCH(F48,'All Data'!$O:$O,0))) ->  | L48: =IF(F48="","",INDEX('All Data'!$Y:$Y,MATCH(F48,'All Data'!$O:$O,0))) ->  | M48: =IF(F48="","",INDEX('All Data'!$Z:$Z,MATCH(F48,'All Data'!$O:$O,0))) ->  | N48: =IF(F48="","",INDEX('All Data'!$AA:$AA,MATCH(F48,'All Data'!$O:$O,0))) ->  | O48: =IF(F48="","",INDEX('All Data'!$U:$U,MATCH(F48,'All Data'!$O:$O,0))) ->  | P48: =IF(F48="","",INDEX('All Data'!$V:$V,MATCH(F48,'All Data'!$O:$O,0))) ->  | Q48: =IF(F48="","",INDEX('All Data'!$AK:$AK,MATCH(F48,'All Data'!$O:$O,0))) ->  | R48: =IF(F48="","",INDEX('All Data'!$I:$I,MATCH(F48,'All Data'!$O:$O,0))) ->  | S48: =IF(F48="","",INDEX('All Data'!$K:$K,MATCH(F48,'All Data'!$O:$O,0))) ->  | T48: =IF(F48="","",INDEX('All Data'!$AS:$AS,MATCH(F48,'All Data'!$O:$O,0))) -> 
D49: =IF(F49="","",INDEX('All Data'!$F:$F,MATCH(F49,'All Data'!$O:$O,0))) ->  | E49: =IF(F49<>"",COUNTIF($F$7:F49,"*")&".","") ->  | G49: =IF(F49="","",INDEX('All Data'!$N:$N,MATCH(F49,'All Data'!$O:$O,0))) ->  | H49: =IF(F49="","",INDEX('All Data'!$Q:$Q,MATCH(F49,'All Data'!$O:$O,0))) ->  | I49: =IF(F49="","",INDEX('All Data'!$AF:$AF,MATCH(F49,'All Data'!$O:$O,0))) ->  | J49: =IF(F49="","",INDEX('All Data'!$AD:$AD,MATCH(F49,'All Data'!$O:$O,0))) ->  | K49: =IF(F49="","",INDEX('All Data'!$X:$X,MATCH(F49,'All Data'!$O:$O,0))) ->  | L49: =IF(F49="","",INDEX('All Data'!$Y:$Y,MATCH(F49,'All Data'!$O:$O,0))) ->  | M49: =IF(F49="","",INDEX('All Data'!$Z:$Z,MATCH(F49,'All Data'!$O:$O,0))) ->  | N49: =IF(F49="","",INDEX('All Data'!$AA:$AA,MATCH(F49,'All Data'!$O:$O,0))) ->  | O49: =IF(F49="","",INDEX('All Data'!$U:$U,MATCH(F49,'All Data'!$O:$O,0))) ->  | P49: =IF(F49="","",INDEX('All Data'!$V:$V,MATCH(F49,'All Data'!$O:$O,0))) ->  | Q49: =IF(F49="","",INDEX('All Data'!$AK:$AK,MATCH(F49,'All Data'!$O:$O,0))) ->  | R49: =IF(F49="","",INDEX('All Data'!$I:$I,MATCH(F49,'All Data'!$O:$O,0))) ->  | S49: =IF(F49="","",INDEX('All Data'!$K:$K,MATCH(F49,'All Data'!$O:$O,0))) ->  | T49: =IF(F49="","",INDEX('All Data'!$AS:$AS,MATCH(F49,'All Data'!$O:$O,0))) -> 
D50: =IF(F50="","",INDEX('All Data'!$F:$F,MATCH(F50,'All Data'!$O:$O,0))) ->  | E50: =IF(F50<>"",COUNTIF($F$7:F50,"*")&".","") ->  | G50: =IF(F50="","",INDEX('All Data'!$N:$N,MATCH(F50,'All Data'!$O:$O,0))) ->  | H50: =IF(F50="","",INDEX('All Data'!$Q:$Q,MATCH(F50,'All Data'!$O:$O,0))) ->  | I50: =IF(F50="","",INDEX('All Data'!$AF:$AF,MATCH(F50,'All Data'!$O:$O,0))) ->  | J50: =IF(F50="","",INDEX('All Data'!$AD:$AD,MATCH(F50,'All Data'!$O:$O,0))) ->  | K50: =IF(F50="","",INDEX('All Data'!$X:$X,MATCH(F50,'All Data'!$O:$O,0))) ->  | L50: =IF(F50="","",INDEX('All Data'!$Y:$Y,MATCH(F50,'All Data'!$O:$O,0))) ->  | M50: =IF(F50="","",INDEX('All Data'!$Z:$Z,MATCH(F50,'All Data'!$O:$O,0))) ->  | N50: =IF(F50="","",INDEX('All Data'!$AA:$AA,MATCH(F50,'All Data'!$O:$O,0))) ->  | O50: =IF(F50="","",INDEX('All Data'!$U:$U,MATCH(F50,'All Data'!$O:$O,0))) ->  | P50: =IF(F50="","",INDEX('All Data'!$V:$V,MATCH(F50,'All Data'!$O:$O,0))) ->  | Q50: =IF(F50="","",INDEX('All Data'!$AK:$AK,MATCH(F50,'All Data'!$O:$O,0))) ->  | R50: =IF(F50="","",INDEX('All Data'!$I:$I,MATCH(F50,'All Data'!$O:$O,0))) ->  | S50: =IF(F50="","",INDEX('All Data'!$K:$K,MATCH(F50,'All Data'!$O:$O,0))) ->  | T50: =IF(F50="","",INDEX('All Data'!$AS:$AS,MATCH(F50,'All Data'!$O:$O,0))) -> 
D51: =IF(F51="","",INDEX('All Data'!$F:$F,MATCH(F51,'All Data'!$O:$O,0))) ->  | E51: =IF(F51<>"",COUNTIF($F$7:F51,"*")&".","") ->  | G51: =IF(F51="","",INDEX('All Data'!$N:$N,MATCH(F51,'All Data'!$O:$O,0))) ->  | H51: =IF(F51="","",INDEX('All Data'!$Q:$Q,MATCH(F51,'All Data'!$O:$O,0))) ->  | I51: =IF(F51="","",INDEX('All Data'!$AF:$AF,MATCH(F51,'All Data'!$O:$O,0))) ->  | J51: =IF(F51="","",INDEX('All Data'!$AD:$AD,MATCH(F51,'All Data'!$O:$O,0))) ->  | K51: =IF(F51="","",INDEX('All Data'!$X:$X,MATCH(F51,'All Data'!$O:$O,0))) ->  | L51: =IF(F51="","",INDEX('All Data'!$Y:$Y,MATCH(F51,'All Data'!$O:$O,0))) ->  | M51: =IF(F51="","",INDEX('All Data'!$Z:$Z,MATCH(F51,'All Data'!$O:$O,0))) ->  | N51: =IF(F51="","",INDEX('All Data'!$AA:$AA,MATCH(F51,'All Data'!$O:$O,0))) ->  | O51: =IF(F51="","",INDEX('All Data'!$U:$U,MATCH(F51,'All Data'!$O:$O,0))) ->  | P51: =IF(F51="","",INDEX('All Data'!$V:$V,MATCH(F51,'All Data'!$O:$O,0))) ->  | Q51: =IF(F51="","",INDEX('All Data'!$AK:$AK,MATCH(F51,'All Data'!$O:$O,0))) ->  | R51: =IF(F51="","",INDEX('All Data'!$I:$I,MATCH(F51,'All Data'!$O:$O,0))) ->  | S51: =IF(F51="","",INDEX('All Data'!$K:$K,MATCH(F51,'All Data'!$O:$O,0))) ->  | T51: =IF(F51="","",INDEX('All Data'!$AS:$AS,MATCH(F51,'All Data'!$O:$O,0))) -> 
D52: =IF(F52="","",INDEX('All Data'!$F:$F,MATCH(F52,'All Data'!$O:$O,0))) ->  | E52: =IF(F52<>"",COUNTIF($F$7:F52,"*")&".","") ->  | G52: =IF(F52="","",INDEX('All Data'!$N:$N,MATCH(F52,'All Data'!$O:$O,0))) ->  | H52: =IF(F52="","",INDEX('All Data'!$Q:$Q,MATCH(F52,'All Data'!$O:$O,0))) ->  | I52: =IF(F52="","",INDEX('All Data'!$AF:$AF,MATCH(F52,'All Data'!$O:$O,0))) ->  | J52: =IF(F52="","",INDEX('All Data'!$AD:$AD,MATCH(F52,'All Data'!$O:$O,0))) ->  | K52: =IF(F52="","",INDEX('All Data'!$X:$X,MATCH(F52,'All Data'!$O:$O,0))) ->  | L52: =IF(F52="","",INDEX('All Data'!$Y:$Y,MATCH(F52,'All Data'!$O:$O,0))) ->  | M52: =IF(F52="","",INDEX('All Data'!$Z:$Z,MATCH(F52,'All Data'!$O:$O,0))) ->  | N52: =IF(F52="","",INDEX('All Data'!$AA:$AA,MATCH(F52,'All Data'!$O:$O,0))) ->  | O52: =IF(F52="","",INDEX('All Data'!$U:$U,MATCH(F52,'All Data'!$O:$O,0))) ->  | P52: =IF(F52="","",INDEX('All Data'!$V:$V,MATCH(F52,'All Data'!$O:$O,0))) ->  | Q52: =IF(F52="","",INDEX('All Data'!$AK:$AK,MATCH(F52,'All Data'!$O:$O,0))) ->  | R52: =IF(F52="","",INDEX('All Data'!$I:$I,MATCH(F52,'All Data'!$O:$O,0))) ->  | S52: =IF(F52="","",INDEX('All Data'!$K:$K,MATCH(F52,'All Data'!$O:$O,0))) ->  | T52: =IF(F52="","",INDEX('All Data'!$AS:$AS,MATCH(F52,'All Data'!$O:$O,0))) -> 
D53: =IF(F53="","",INDEX('All Data'!$F:$F,MATCH(F53,'All Data'!$O:$O,0))) ->  | E53: =IF(F53<>"",COUNTIF($F$7:F53,"*")&".","") ->  | G53: =IF(F53="","",INDEX('All Data'!$N:$N,MATCH(F53,'All Data'!$O:$O,0))) ->  | H53: =IF(F53="","",INDEX('All Data'!$Q:$Q,MATCH(F53,'All Data'!$O:$O,0))) ->  | I53: =IF(F53="","",INDEX('All Data'!$AF:$AF,MATCH(F53,'All Data'!$O:$O,0))) ->  | J53: =IF(F53="","",INDEX('All Data'!$AD:$AD,MATCH(F53,'All Data'!$O:$O,0))) ->  | K53: =IF(F53="","",INDEX('All Data'!$X:$X,MATCH(F53,'All Data'!$O:$O,0))) ->  | L53: =IF(F53="","",INDEX('All Data'!$Y:$Y,MATCH(F53,'All Data'!$O:$O,0))) ->  | M53: =IF(F53="","",INDEX('All Data'!$Z:$Z,MATCH(F53,'All Data'!$O:$O,0))) ->  | N53: =IF(F53="","",INDEX('All Data'!$AA:$AA,MATCH(F53,'All Data'!$O:$O,0))) ->  | O53: =IF(F53="","",INDEX('All Data'!$U:$U,MATCH(F53,'All Data'!$O:$O,0))) ->  | P53: =IF(F53="","",INDEX('All Data'!$V:$V,MATCH(F53,'All Data'!$O:$O,0))) ->  | Q53: =IF(F53="","",INDEX('All Data'!$AK:$AK,MATCH(F53,'All Data'!$O:$O,0))) ->  | R53: =IF(F53="","",INDEX('All Data'!$I:$I,MATCH(F53,'All Data'!$O:$O,0))) ->  | S53: =IF(F53="","",INDEX('All Data'!$K:$K,MATCH(F53,'All Data'!$O:$O,0))) ->  | T53: =IF(F53="","",INDEX('All Data'!$AS:$AS,MATCH(F53,'All Data'!$O:$O,0))) -> 
D54: =IF(F54="","",INDEX('All Data'!$F:$F,MATCH(F54,'All Data'!$O:$O,0))) ->  | E54: =IF(F54<>"",COUNTIF($F$7:F54,"*")&".","") ->  | G54: =IF(F54="","",INDEX('All Data'!$N:$N,MATCH(F54,'All Data'!$O:$O,0))) ->  | H54: =IF(F54="","",INDEX('All Data'!$Q:$Q,MATCH(F54,'All Data'!$O:$O,0))) ->  | I54: =IF(F54="","",INDEX('All Data'!$AF:$AF,MATCH(F54,'All Data'!$O:$O,0))) ->  | J54: =IF(F54="","",INDEX('All Data'!$AD:$AD,MATCH(F54,'All Data'!$O:$O,0))) ->  | K54: =IF(F54="","",INDEX('All Data'!$X:$X,MATCH(F54,'All Data'!$O:$O,0))) ->  | L54: =IF(F54="","",INDEX('All Data'!$Y:$Y,MATCH(F54,'All Data'!$O:$O,0))) ->  | M54: =IF(F54="","",INDEX('All Data'!$Z:$Z,MATCH(F54,'All Data'!$O:$O,0))) ->  | N54: =IF(F54="","",INDEX('All Data'!$AA:$AA,MATCH(F54,'All Data'!$O:$O,0))) ->  | O54: =IF(F54="","",INDEX('All Data'!$U:$U,MATCH(F54,'All Data'!$O:$O,0))) ->  | P54: =IF(F54="","",INDEX('All Data'!$V:$V,MATCH(F54,'All Data'!$O:$O,0))) ->  | Q54: =IF(F54="","",INDEX('All Data'!$AK:$AK,MATCH(F54,'All Data'!$O:$O,0))) ->  | R54: =IF(F54="","",INDEX('All Data'!$I:$I,MATCH(F54,'All Data'!$O:$O,0))) ->  | S54: =IF(F54="","",INDEX('All Data'!$K:$K,MATCH(F54,'All Data'!$O:$O,0))) ->  | T54: =IF(F54="","",INDEX('All Data'!$AS:$AS,MATCH(F54,'All Data'!$O:$O,0))) -> 
D55: =IF(F55="","",INDEX('All Data'!$F:$F,MATCH(F55,'All Data'!$O:$O,0))) ->  | E55: =IF(F55<>"",COUNTIF($F$7:F55,"*")&".","") ->  | G55: =IF(F55="","",INDEX('All Data'!$N:$N,MATCH(F55,'All Data'!$O:$O,0))) ->  | H55: =IF(F55="","",INDEX('All Data'!$Q:$Q,MATCH(F55,'All Data'!$O:$O,0))) ->  | I55: =IF(F55="","",INDEX('All Data'!$AF:$AF,MATCH(F55,'All Data'!$O:$O,0))) ->  | J55: =IF(F55="","",INDEX('All Data'!$AD:$AD,MATCH(F55,'All Data'!$O:$O,0))) ->  | K55: =IF(F55="","",INDEX('All Data'!$X:$X,MATCH(F55,'All Data'!$O:$O,0))) ->  | L55: =IF(F55="","",INDEX('All Data'!$Y:$Y,MATCH(F55,'All Data'!$O:$O,0))) ->  | M55: =IF(F55="","",INDEX('All Data'!$Z:$Z,MATCH(F55,'All Data'!$O:$O,0))) ->  | N55: =IF(F55="","",INDEX('All Data'!$AA:$AA,MATCH(F55,'All Data'!$O:$O,0))) ->  | O55: =IF(F55="","",INDEX('All Data'!$U:$U,MATCH(F55,'All Data'!$O:$O,0))) ->  | P55: =IF(F55="","",INDEX('All Data'!$V:$V,MATCH(F55,'All Data'!$O:$O,0))) ->  | Q55: =IF(F55="","",INDEX('All Data'!$AK:$AK,MATCH(F55,'All Data'!$O:$O,0))) ->  | R55: =IF(F55="","",INDEX('All Data'!$I:$I,MATCH(F55,'All Data'!$O:$O,0))) ->  | S55: =IF(F55="","",INDEX('All Data'!$K:$K,MATCH(F55,'All Data'!$O:$O,0))) ->  | T55: =IF(F55="","",INDEX('All Data'!$AS:$AS,MATCH(F55,'All Data'!$O:$O,0))) -> 
D56: =IF(F56="","",INDEX('All Data'!$F:$F,MATCH(F56,'All Data'!$O:$O,0))) ->  | E56: =IF(F56<>"",COUNTIF($F$7:F56,"*")&".","") ->  | G56: =IF(F56="","",INDEX('All Data'!$N:$N,MATCH(F56,'All Data'!$O:$O,0))) ->  | H56: =IF(F56="","",INDEX('All Data'!$Q:$Q,MATCH(F56,'All Data'!$O:$O,0))) ->  | I56: =IF(F56="","",INDEX('All Data'!$AF:$AF,MATCH(F56,'All Data'!$O:$O,0))) ->  | J56: =IF(F56="","",INDEX('All Data'!$AD:$AD,MATCH(F56,'All Data'!$O:$O,0))) ->  | K56: =IF(F56="","",INDEX('All Data'!$X:$X,MATCH(F56,'All Data'!$O:$O,0))) ->  | L56: =IF(F56="","",INDEX('All Data'!$Y:$Y,MATCH(F56,'All Data'!$O:$O,0))) ->  | M56: =IF(F56="","",INDEX('All Data'!$Z:$Z,MATCH(F56,'All Data'!$O:$O,0))) ->  | N56: =IF(F56="","",INDEX('All Data'!$AA:$AA,MATCH(F56,'All Data'!$O:$O,0))) ->  | O56: =IF(F56="","",INDEX('All Data'!$U:$U,MATCH(F56,'All Data'!$O:$O,0))) ->  | P56: =IF(F56="","",INDEX('All Data'!$V:$V,MATCH(F56,'All Data'!$O:$O,0))) ->  | Q56: =IF(F56="","",INDEX('All Data'!$AK:$AK,MATCH(F56,'All Data'!$O:$O,0))) ->  | R56: =IF(F56="","",INDEX('All Data'!$I:$I,MATCH(F56,'All Data'!$O:$O,0))) ->  | S56: =IF(F56="","",INDEX('All Data'!$K:$K,MATCH(F56,'All Data'!$O:$O,0))) ->  | T56: =IF(F56="","",INDEX('All Data'!$AS:$AS,MATCH(F56,'All Data'!$O:$O,0))) -> 
D57: =IF(F57="","",INDEX('All Data'!$F:$F,MATCH(F57,'All Data'!$O:$O,0))) ->  | E57: =IF(F57<>"",COUNTIF($F$7:F57,"*")&".","") ->  | G57: =IF(F57="","",INDEX('All Data'!$N:$N,MATCH(F57,'All Data'!$O:$O,0))) ->  | H57: =IF(F57="","",INDEX('All Data'!$Q:$Q,MATCH(F57,'All Data'!$O:$O,0))) ->  | I57: =IF(F57="","",INDEX('All Data'!$AF:$AF,MATCH(F57,'All Data'!$O:$O,0))) ->  | J57: =IF(F57="","",INDEX('All Data'!$AD:$AD,MATCH(F57,'All Data'!$O:$O,0))) ->  | K57: =IF(F57="","",INDEX('All Data'!$X:$X,MATCH(F57,'All Data'!$O:$O,0))) ->  | L57: =IF(F57="","",INDEX('All Data'!$Y:$Y,MATCH(F57,'All Data'!$O:$O,0))) ->  | M57: =IF(F57="","",INDEX('All Data'!$Z:$Z,MATCH(F57,'All Data'!$O:$O,0))) ->  | N57: =IF(F57="","",INDEX('All Data'!$AA:$AA,MATCH(F57,'All Data'!$O:$O,0))) ->  | O57: =IF(F57="","",INDEX('All Data'!$U:$U,MATCH(F57,'All Data'!$O:$O,0))) ->  | P57: =IF(F57="","",INDEX('All Data'!$V:$V,MATCH(F57,'All Data'!$O:$O,0))) ->  | Q57: =IF(F57="","",INDEX('All Data'!$AK:$AK,MATCH(F57,'All Data'!$O:$O,0))) ->  | R57: =IF(F57="","",INDEX('All Data'!$I:$I,MATCH(F57,'All Data'!$O:$O,0))) ->  | S57: =IF(F57="","",INDEX('All Data'!$K:$K,MATCH(F57,'All Data'!$O:$O,0))) ->  | T57: =IF(F57="","",INDEX('All Data'!$AS:$AS,MATCH(F57,'All Data'!$O:$O,0))) -> 
D58: =IF(F58="","",INDEX('All Data'!$F:$F,MATCH(F58,'All Data'!$O:$O,0))) ->  | E58: =IF(F58<>"",COUNTIF($F$7:F58,"*")&".","") ->  | G58: =IF(F58="","",INDEX('All Data'!$N:$N,MATCH(F58,'All Data'!$O:$O,0))) ->  | H58: =IF(F58="","",INDEX('All Data'!$Q:$Q,MATCH(F58,'All Data'!$O:$O,0))) ->  | I58: =IF(F58="","",INDEX('All Data'!$AF:$AF,MATCH(F58,'All Data'!$O:$O,0))) ->  | J58: =IF(F58="","",INDEX('All Data'!$AD:$AD,MATCH(F58,'All Data'!$O:$O,0))) ->  | K58: =IF(F58="","",INDEX('All Data'!$X:$X,MATCH(F58,'All Data'!$O:$O,0))) ->  | L58: =IF(F58="","",INDEX('All Data'!$Y:$Y,MATCH(F58,'All Data'!$O:$O,0))) ->  | M58: =IF(F58="","",INDEX('All Data'!$Z:$Z,MATCH(F58,'All Data'!$O:$O,0))) ->  | N58: =IF(F58="","",INDEX('All Data'!$AA:$AA,MATCH(F58,'All Data'!$O:$O,0))) ->  | O58: =IF(F58="","",INDEX('All Data'!$U:$U,MATCH(F58,'All Data'!$O:$O,0))) ->  | P58: =IF(F58="","",INDEX('All Data'!$V:$V,MATCH(F58,'All Data'!$O:$O,0))) ->  | Q58: =IF(F58="","",INDEX('All Data'!$AK:$AK,MATCH(F58,'All Data'!$O:$O,0))) ->  | R58: =IF(F58="","",INDEX('All Data'!$I:$I,MATCH(F58,'All Data'!$O:$O,0))) ->  | S58: =IF(F58="","",INDEX('All Data'!$K:$K,MATCH(F58,'All Data'!$O:$O,0))) ->  | T58: =IF(F58="","",INDEX('All Data'!$AS:$AS,MATCH(F58,'All Data'!$O:$O,0))) -> 
D59: =IF(F59="","",INDEX('All Data'!$F:$F,MATCH(F59,'All Data'!$O:$O,0))) ->  | E59: =IF(F59<>"",COUNTIF($F$7:F59,"*")&".","") ->  | G59: =IF(F59="","",INDEX('All Data'!$N:$N,MATCH(F59,'All Data'!$O:$O,0))) ->  | H59: =IF(F59="","",INDEX('All Data'!$Q:$Q,MATCH(F59,'All Data'!$O:$O,0))) ->  | I59: =IF(F59="","",INDEX('All Data'!$AF:$AF,MATCH(F59,'All Data'!$O:$O,0))) ->  | J59: =IF(F59="","",INDEX('All Data'!$AD:$AD,MATCH(F59,'All Data'!$O:$O,0))) ->  | K59: =IF(F59="","",INDEX('All Data'!$X:$X,MATCH(F59,'All Data'!$O:$O,0))) ->  | L59: =IF(F59="","",INDEX('All Data'!$Y:$Y,MATCH(F59,'All Data'!$O:$O,0))) ->  | M59: =IF(F59="","",INDEX('All Data'!$Z:$Z,MATCH(F59,'All Data'!$O:$O,0))) ->  | N59: =IF(F59="","",INDEX('All Data'!$AA:$AA,MATCH(F59,'All Data'!$O:$O,0))) ->  | O59: =IF(F59="","",INDEX('All Data'!$U:$U,MATCH(F59,'All Data'!$O:$O,0))) ->  | P59: =IF(F59="","",INDEX('All Data'!$V:$V,MATCH(F59,'All Data'!$O:$O,0))) ->  | Q59: =IF(F59="","",INDEX('All Data'!$AK:$AK,MATCH(F59,'All Data'!$O:$O,0))) ->  | R59: =IF(F59="","",INDEX('All Data'!$I:$I,MATCH(F59,'All Data'!$O:$O,0))) ->  | S59: =IF(F59="","",INDEX('All Data'!$K:$K,MATCH(F59,'All Data'!$O:$O,0))) ->  | T59: =IF(F59="","",INDEX('All Data'!$AS:$AS,MATCH(F59,'All Data'!$O:$O,0))) -> 
D60: =IF(F60="","",INDEX('All Data'!$F:$F,MATCH(F60,'All Data'!$O:$O,0))) ->  | E60: =IF(F60<>"",COUNTIF($F$7:F60,"*")&".","") ->  | G60: =IF(F60="","",INDEX('All Data'!$N:$N,MATCH(F60,'All Data'!$O:$O,0))) ->  | H60: =IF(F60="","",INDEX('All Data'!$Q:$Q,MATCH(F60,'All Data'!$O:$O,0))) ->  | I60: =IF(F60="","",INDEX('All Data'!$AF:$AF,MATCH(F60,'All Data'!$O:$O,0))) ->  | J60: =IF(F60="","",INDEX('All Data'!$AD:$AD,MATCH(F60,'All Data'!$O:$O,0))) ->  | K60: =IF(F60="","",INDEX('All Data'!$X:$X,MATCH(F60,'All Data'!$O:$O,0))) ->  | L60: =IF(F60="","",INDEX('All Data'!$Y:$Y,MATCH(F60,'All Data'!$O:$O,0))) ->  | M60: =IF(F60="","",INDEX('All Data'!$Z:$Z,MATCH(F60,'All Data'!$O:$O,0))) ->  | N60: =IF(F60="","",INDEX('All Data'!$AA:$AA,MATCH(F60,'All Data'!$O:$O,0))) ->  | O60: =IF(F60="","",INDEX('All Data'!$U:$U,MATCH(F60,'All Data'!$O:$O,0))) ->  | P60: =IF(F60="","",INDEX('All Data'!$V:$V,MATCH(F60,'All Data'!$O:$O,0))) ->  | Q60: =IF(F60="","",INDEX('All Data'!$AK:$AK,MATCH(F60,'All Data'!$O:$O,0))) ->  | R60: =IF(F60="","",INDEX('All Data'!$I:$I,MATCH(F60,'All Data'!$O:$O,0))) ->  | S60: =IF(F60="","",INDEX('All Data'!$K:$K,MATCH(F60,'All Data'!$O:$O,0))) ->  | T60: =IF(F60="","",INDEX('All Data'!$AS:$AS,MATCH(F60,'All Data'!$O:$O,0))) -> 
D61: =IF(F61="","",INDEX('All Data'!$F:$F,MATCH(F61,'All Data'!$O:$O,0))) ->  | E61: =IF(F61<>"",COUNTIF($F$7:F61,"*")&".","") ->  | G61: =IF(F61="","",INDEX('All Data'!$N:$N,MATCH(F61,'All Data'!$O:$O,0))) ->  | H61: =IF(F61="","",INDEX('All Data'!$Q:$Q,MATCH(F61,'All Data'!$O:$O,0))) ->  | I61: =IF(F61="","",INDEX('All Data'!$AF:$AF,MATCH(F61,'All Data'!$O:$O,0))) ->  | J61: =IF(F61="","",INDEX('All Data'!$AD:$AD,MATCH(F61,'All Data'!$O:$O,0))) ->  | K61: =IF(F61="","",INDEX('All Data'!$X:$X,MATCH(F61,'All Data'!$O:$O,0))) ->  | L61: =IF(F61="","",INDEX('All Data'!$Y:$Y,MATCH(F61,'All Data'!$O:$O,0))) ->  | M61: =IF(F61="","",INDEX('All Data'!$Z:$Z,MATCH(F61,'All Data'!$O:$O,0))) ->  | N61: =IF(F61="","",INDEX('All Data'!$AA:$AA,MATCH(F61,'All Data'!$O:$O,0))) ->  | O61: =IF(F61="","",INDEX('All Data'!$U:$U,MATCH(F61,'All Data'!$O:$O,0))) ->  | P61: =IF(F61="","",INDEX('All Data'!$V:$V,MATCH(F61,'All Data'!$O:$O,0))) ->  | Q61: =IF(F61="","",INDEX('All Data'!$AK:$AK,MATCH(F61,'All Data'!$O:$O,0))) ->  | R61: =IF(F61="","",INDEX('All Data'!$I:$I,MATCH(F61,'All Data'!$O:$O,0))) ->  | S61: =IF(F61="","",INDEX('All Data'!$K:$K,MATCH(F61,'All Data'!$O:$O,0))) ->  | T61: =IF(F61="","",INDEX('All Data'!$AS:$AS,MATCH(F61,'All Data'!$O:$O,0))) -> 
D62: =IF(F62="","",INDEX('All Data'!$F:$F,MATCH(F62,'All Data'!$O:$O,0))) ->  | E62: =IF(F62<>"",COUNTIF($F$7:F62,"*")&".","") ->  | G62: =IF(F62="","",INDEX('All Data'!$N:$N,MATCH(F62,'All Data'!$O:$O,0))) ->  | H62: =IF(F62="","",INDEX('All Data'!$Q:$Q,MATCH(F62,'All Data'!$O:$O,0))) ->  | I62: =IF(F62="","",INDEX('All Data'!$AF:$AF,MATCH(F62,'All Data'!$O:$O,0))) ->  | J62: =IF(F62="","",INDEX('All Data'!$AD:$AD,MATCH(F62,'All Data'!$O:$O,0))) ->  | K62: =IF(F62="","",INDEX('All Data'!$X:$X,MATCH(F62,'All Data'!$O:$O,0))) ->  | L62: =IF(F62="","",INDEX('All Data'!$Y:$Y,MATCH(F62,'All Data'!$O:$O,0))) ->  | M62: =IF(F62="","",INDEX('All Data'!$Z:$Z,MATCH(F62,'All Data'!$O:$O,0))) ->  | N62: =IF(F62="","",INDEX('All Data'!$AA:$AA,MATCH(F62,'All Data'!$O:$O,0))) ->  | O62: =IF(F62="","",INDEX('All Data'!$U:$U,MATCH(F62,'All Data'!$O:$O,0))) ->  | P62: =IF(F62="","",INDEX('All Data'!$V:$V,MATCH(F62,'All Data'!$O:$O,0))) ->  | Q62: =IF(F62="","",INDEX('All Data'!$AK:$AK,MATCH(F62,'All Data'!$O:$O,0))) ->  | R62: =IF(F62="","",INDEX('All Data'!$I:$I,MATCH(F62,'All Data'!$O:$O,0))) ->  | S62: =IF(F62="","",INDEX('All Data'!$K:$K,MATCH(F62,'All Data'!$O:$O,0))) ->  | T62: =IF(F62="","",INDEX('All Data'!$AS:$AS,MATCH(F62,'All Data'!$O:$O,0))) -> 
D63: =IF(F63="","",INDEX('All Data'!$F:$F,MATCH(F63,'All Data'!$O:$O,0))) ->  | E63: =IF(F63<>"",COUNTIF($F$7:F63,"*")&".","") ->  | G63: =IF(F63="","",INDEX('All Data'!$N:$N,MATCH(F63,'All Data'!$O:$O,0))) ->  | H63: =IF(F63="","",INDEX('All Data'!$Q:$Q,MATCH(F63,'All Data'!$O:$O,0))) ->  | I63: =IF(F63="","",INDEX('All Data'!$AF:$AF,MATCH(F63,'All Data'!$O:$O,0))) ->  | J63: =IF(F63="","",INDEX('All Data'!$AD:$AD,MATCH(F63,'All Data'!$O:$O,0))) ->  | K63: =IF(F63="","",INDEX('All Data'!$X:$X,MATCH(F63,'All Data'!$O:$O,0))) ->  | L63: =IF(F63="","",INDEX('All Data'!$Y:$Y,MATCH(F63,'All Data'!$O:$O,0))) ->  | M63: =IF(F63="","",INDEX('All Data'!$Z:$Z,MATCH(F63,'All Data'!$O:$O,0))) ->  | N63: =IF(F63="","",INDEX('All Data'!$AA:$AA,MATCH(F63,'All Data'!$O:$O,0))) ->  | O63: =IF(F63="","",INDEX('All Data'!$U:$U,MATCH(F63,'All Data'!$O:$O,0))) ->  | P63: =IF(F63="","",INDEX('All Data'!$V:$V,MATCH(F63,'All Data'!$O:$O,0))) ->  | Q63: =IF(F63="","",INDEX('All Data'!$AK:$AK,MATCH(F63,'All Data'!$O:$O,0))) ->  | R63: =IF(F63="","",INDEX('All Data'!$I:$I,MATCH(F63,'All Data'!$O:$O,0))) ->  | S63: =IF(F63="","",INDEX('All Data'!$K:$K,MATCH(F63,'All Data'!$O:$O,0))) ->  | T63: =IF(F63="","",INDEX('All Data'!$AS:$AS,MATCH(F63,'All Data'!$O:$O,0))) -> 
D64: =IF(F64="","",INDEX('All Data'!$F:$F,MATCH(F64,'All Data'!$O:$O,0))) ->  | E64: =IF(F64<>"",COUNTIF($F$7:F64,"*")&".","") ->  | G64: =IF(F64="","",INDEX('All Data'!$N:$N,MATCH(F64,'All Data'!$O:$O,0))) ->  | H64: =IF(F64="","",INDEX('All Data'!$Q:$Q,MATCH(F64,'All Data'!$O:$O,0))) ->  | I64: =IF(F64="","",INDEX('All Data'!$AF:$AF,MATCH(F64,'All Data'!$O:$O,0))) ->  | J64: =IF(F64="","",INDEX('All Data'!$AD:$AD,MATCH(F64,'All Data'!$O:$O,0))) ->  | K64: =IF(F64="","",INDEX('All Data'!$X:$X,MATCH(F64,'All Data'!$O:$O,0))) ->  | L64: =IF(F64="","",INDEX('All Data'!$Y:$Y,MATCH(F64,'All Data'!$O:$O,0))) ->  | M64: =IF(F64="","",INDEX('All Data'!$Z:$Z,MATCH(F64,'All Data'!$O:$O,0))) ->  | N64: =IF(F64="","",INDEX('All Data'!$AA:$AA,MATCH(F64,'All Data'!$O:$O,0))) ->  | O64: =IF(F64="","",INDEX('All Data'!$U:$U,MATCH(F64,'All Data'!$O:$O,0))) ->  | P64: =IF(F64="","",INDEX('All Data'!$V:$V,MATCH(F64,'All Data'!$O:$O,0))) ->  | Q64: =IF(F64="","",INDEX('All Data'!$AK:$AK,MATCH(F64,'All Data'!$O:$O,0))) ->  | R64: =IF(F64="","",INDEX('All Data'!$I:$I,MATCH(F64,'All Data'!$O:$O,0))) ->  | S64: =IF(F64="","",INDEX('All Data'!$K:$K,MATCH(F64,'All Data'!$O:$O,0))) ->  | T64: =IF(F64="","",INDEX('All Data'!$AS:$AS,MATCH(F64,'All Data'!$O:$O,0))) -> 
D65: =IF(F65="","",INDEX('All Data'!$F:$F,MATCH(F65,'All Data'!$O:$O,0))) ->  | E65: =IF(F65<>"",COUNTIF($F$7:F65,"*")&".","") ->  | G65: =IF(F65="","",INDEX('All Data'!$N:$N,MATCH(F65,'All Data'!$O:$O,0))) ->  | H65: =IF(F65="","",INDEX('All Data'!$Q:$Q,MATCH(F65,'All Data'!$O:$O,0))) ->  | I65: =IF(F65="","",INDEX('All Data'!$AF:$AF,MATCH(F65,'All Data'!$O:$O,0))) ->  | J65: =IF(F65="","",INDEX('All Data'!$AD:$AD,MATCH(F65,'All Data'!$O:$O,0))) ->  | K65: =IF(F65="","",INDEX('All Data'!$X:$X,MATCH(F65,'All Data'!$O:$O,0))) ->  | L65: =IF(F65="","",INDEX('All Data'!$Y:$Y,MATCH(F65,'All Data'!$O:$O,0))) ->  | M65: =IF(F65="","",INDEX('All Data'!$Z:$Z,MATCH(F65,'All Data'!$O:$O,0))) ->  | N65: =IF(F65="","",INDEX('All Data'!$AA:$AA,MATCH(F65,'All Data'!$O:$O,0))) ->  | O65: =IF(F65="","",INDEX('All Data'!$U:$U,MATCH(F65,'All Data'!$O:$O,0))) ->  | P65: =IF(F65="","",INDEX('All Data'!$V:$V,MATCH(F65,'All Data'!$O:$O,0))) ->  | Q65: =IF(F65="","",INDEX('All Data'!$AK:$AK,MATCH(F65,'All Data'!$O:$O,0))) ->  | R65: =IF(F65="","",INDEX('All Data'!$I:$I,MATCH(F65,'All Data'!$O:$O,0))) ->  | S65: =IF(F65="","",INDEX('All Data'!$K:$K,MATCH(F65,'All Data'!$O:$O,0))) ->  | T65: =IF(F65="","",INDEX('All Data'!$AS:$AS,MATCH(F65,'All Data'!$O:$O,0))) -> 
D66: =IF(F66="","",INDEX('All Data'!$F:$F,MATCH(F66,'All Data'!$O:$O,0))) ->  | E66: =IF(F66<>"",COUNTIF($F$7:F66,"*")&".","") ->  | G66: =IF(F66="","",INDEX('All Data'!$N:$N,MATCH(F66,'All Data'!$O:$O,0))) ->  | H66: =IF(F66="","",INDEX('All Data'!$Q:$Q,MATCH(F66,'All Data'!$O:$O,0))) ->  | I66: =IF(F66="","",INDEX('All Data'!$AF:$AF,MATCH(F66,'All Data'!$O:$O,0))) ->  | J66: =IF(F66="","",INDEX('All Data'!$AD:$AD,MATCH(F66,'All Data'!$O:$O,0))) ->  | K66: =IF(F66="","",INDEX('All Data'!$X:$X,MATCH(F66,'All Data'!$O:$O,0))) ->  | L66: =IF(F66="","",INDEX('All Data'!$Y:$Y,MATCH(F66,'All Data'!$O:$O,0))) ->  | M66: =IF(F66="","",INDEX('All Data'!$Z:$Z,MATCH(F66,'All Data'!$O:$O,0))) ->  | N66: =IF(F66="","",INDEX('All Data'!$AA:$AA,MATCH(F66,'All Data'!$O:$O,0))) ->  | O66: =IF(F66="","",INDEX('All Data'!$U:$U,MATCH(F66,'All Data'!$O:$O,0))) ->  | P66: =IF(F66="","",INDEX('All Data'!$V:$V,MATCH(F66,'All Data'!$O:$O,0))) ->  | Q66: =IF(F66="","",INDEX('All Data'!$AK:$AK,MATCH(F66,'All Data'!$O:$O,0))) ->  | R66: =IF(F66="","",INDEX('All Data'!$I:$I,MATCH(F66,'All Data'!$O:$O,0))) ->  | S66: =IF(F66="","",INDEX('All Data'!$K:$K,MATCH(F66,'All Data'!$O:$O,0))) ->  | T66: =IF(F66="","",INDEX('All Data'!$AS:$AS,MATCH(F66,'All Data'!$O:$O,0))) -> 
D67: =IF(F67="","",INDEX('All Data'!$F:$F,MATCH(F67,'All Data'!$O:$O,0))) ->  | E67: =IF(F67<>"",COUNTIF($F$7:F67,"*")&".","") ->  | G67: =IF(F67="","",INDEX('All Data'!$N:$N,MATCH(F67,'All Data'!$O:$O,0))) ->  | H67: =IF(F67="","",INDEX('All Data'!$Q:$Q,MATCH(F67,'All Data'!$O:$O,0))) ->  | I67: =IF(F67="","",INDEX('All Data'!$AF:$AF,MATCH(F67,'All Data'!$O:$O,0))) ->  | J67: =IF(F67="","",INDEX('All Data'!$AD:$AD,MATCH(F67,'All Data'!$O:$O,0))) ->  | K67: =IF(F67="","",INDEX('All Data'!$X:$X,MATCH(F67,'All Data'!$O:$O,0))) ->  | L67: =IF(F67="","",INDEX('All Data'!$Y:$Y,MATCH(F67,'All Data'!$O:$O,0))) ->  | M67: =IF(F67="","",INDEX('All Data'!$Z:$Z,MATCH(F67,'All Data'!$O:$O,0))) ->  | N67: =IF(F67="","",INDEX('All Data'!$AA:$AA,MATCH(F67,'All Data'!$O:$O,0))) ->  | O67: =IF(F67="","",INDEX('All Data'!$U:$U,MATCH(F67,'All Data'!$O:$O,0))) ->  | P67: =IF(F67="","",INDEX('All Data'!$V:$V,MATCH(F67,'All Data'!$O:$O,0))) ->  | Q67: =IF(F67="","",INDEX('All Data'!$AK:$AK,MATCH(F67,'All Data'!$O:$O,0))) ->  | R67: =IF(F67="","",INDEX('All Data'!$I:$I,MATCH(F67,'All Data'!$O:$O,0))) ->  | S67: =IF(F67="","",INDEX('All Data'!$K:$K,MATCH(F67,'All Data'!$O:$O,0))) ->  | T67: =IF(F67="","",INDEX('All Data'!$AS:$AS,MATCH(F67,'All Data'!$O:$O,0))) -> 
D68: =IF(F68="","",INDEX('All Data'!$F:$F,MATCH(F68,'All Data'!$O:$O,0))) ->  | E68: =IF(F68<>"",COUNTIF($F$7:F68,"*")&".","") ->  | G68: =IF(F68="","",INDEX('All Data'!$N:$N,MATCH(F68,'All Data'!$O:$O,0))) ->  | H68: =IF(F68="","",INDEX('All Data'!$Q:$Q,MATCH(F68,'All Data'!$O:$O,0))) ->  | I68: =IF(F68="","",INDEX('All Data'!$AF:$AF,MATCH(F68,'All Data'!$O:$O,0))) ->  | J68: =IF(F68="","",INDEX('All Data'!$AD:$AD,MATCH(F68,'All Data'!$O:$O,0))) ->  | K68: =IF(F68="","",INDEX('All Data'!$X:$X,MATCH(F68,'All Data'!$O:$O,0))) ->  | L68: =IF(F68="","",INDEX('All Data'!$Y:$Y,MATCH(F68,'All Data'!$O:$O,0))) ->  | M68: =IF(F68="","",INDEX('All Data'!$Z:$Z,MATCH(F68,'All Data'!$O:$O,0))) ->  | N68: =IF(F68="","",INDEX('All Data'!$AA:$AA,MATCH(F68,'All Data'!$O:$O,0))) ->  | O68: =IF(F68="","",INDEX('All Data'!$U:$U,MATCH(F68,'All Data'!$O:$O,0))) ->  | P68: =IF(F68="","",INDEX('All Data'!$V:$V,MATCH(F68,'All Data'!$O:$O,0))) ->  | Q68: =IF(F68="","",INDEX('All Data'!$AK:$AK,MATCH(F68,'All Data'!$O:$O,0))) ->  | R68: =IF(F68="","",INDEX('All Data'!$I:$I,MATCH(F68,'All Data'!$O:$O,0))) ->  | S68: =IF(F68="","",INDEX('All Data'!$K:$K,MATCH(F68,'All Data'!$O:$O,0))) ->  | T68: =IF(F68="","",INDEX('All Data'!$AS:$AS,MATCH(F68,'All Data'!$O:$O,0))) -> 
D69: =IF(F69="","",INDEX('All Data'!$F:$F,MATCH(F69,'All Data'!$O:$O,0))) ->  | E69: =IF(F69<>"",COUNTIF($F$7:F69,"*")&".","") ->  | G69: =IF(F69="","",INDEX('All Data'!$N:$N,MATCH(F69,'All Data'!$O:$O,0))) ->  | H69: =IF(F69="","",INDEX('All Data'!$Q:$Q,MATCH(F69,'All Data'!$O:$O,0))) ->  | I69: =IF(F69="","",INDEX('All Data'!$AF:$AF,MATCH(F69,'All Data'!$O:$O,0))) ->  | J69: =IF(F69="","",INDEX('All Data'!$AD:$AD,MATCH(F69,'All Data'!$O:$O,0))) ->  | K69: =IF(F69="","",INDEX('All Data'!$X:$X,MATCH(F69,'All Data'!$O:$O,0))) ->  | L69: =IF(F69="","",INDEX('All Data'!$Y:$Y,MATCH(F69,'All Data'!$O:$O,0))) ->  | M69: =IF(F69="","",INDEX('All Data'!$Z:$Z,MATCH(F69,'All Data'!$O:$O,0))) ->  | N69: =IF(F69="","",INDEX('All Data'!$AA:$AA,MATCH(F69,'All Data'!$O:$O,0))) ->  | O69: =IF(F69="","",INDEX('All Data'!$U:$U,MATCH(F69,'All Data'!$O:$O,0))) ->  | P69: =IF(F69="","",INDEX('All Data'!$V:$V,MATCH(F69,'All Data'!$O:$O,0))) ->  | Q69: =IF(F69="","",INDEX('All Data'!$AK:$AK,MATCH(F69,'All Data'!$O:$O,0))) ->  | R69: =IF(F69="","",INDEX('All Data'!$I:$I,MATCH(F69,'All Data'!$O:$O,0))) ->  | S69: =IF(F69="","",INDEX('All Data'!$K:$K,MATCH(F69,'All Data'!$O:$O,0))) ->  | T69: =IF(F69="","",INDEX('All Data'!$AS:$AS,MATCH(F69,'All Data'!$O:$O,0))) -> 
D70: =IF(F70="","",INDEX('All Data'!$F:$F,MATCH(F70,'All Data'!$O:$O,0))) ->  | E70: =IF(F70<>"",COUNTIF($F$7:F70,"*")&".","") ->  | G70: =IF(F70="","",INDEX('All Data'!$N:$N,MATCH(F70,'All Data'!$O:$O,0))) ->  | H70: =IF(F70="","",INDEX('All Data'!$Q:$Q,MATCH(F70,'All Data'!$O:$O,0))) ->  | I70: =IF(F70="","",INDEX('All Data'!$AF:$AF,MATCH(F70,'All Data'!$O:$O,0))) ->  | J70: =IF(F70="","",INDEX('All Data'!$AD:$AD,MATCH(F70,'All Data'!$O:$O,0))) ->  | K70: =IF(F70="","",INDEX('All Data'!$X:$X,MATCH(F70,'All Data'!$O:$O,0))) ->  | L70: =IF(F70="","",INDEX('All Data'!$Y:$Y,MATCH(F70,'All Data'!$O:$O,0))) ->  | M70: =IF(F70="","",INDEX('All Data'!$Z:$Z,MATCH(F70,'All Data'!$O:$O,0))) ->  | N70: =IF(F70="","",INDEX('All Data'!$AA:$AA,MATCH(F70,'All Data'!$O:$O,0))) ->  | O70: =IF(F70="","",INDEX('All Data'!$U:$U,MATCH(F70,'All Data'!$O:$O,0))) ->  | P70: =IF(F70="","",INDEX('All Data'!$V:$V,MATCH(F70,'All Data'!$O:$O,0))) ->  | Q70: =IF(F70="","",INDEX('All Data'!$AK:$AK,MATCH(F70,'All Data'!$O:$O,0))) ->  | R70: =IF(F70="","",INDEX('All Data'!$I:$I,MATCH(F70,'All Data'!$O:$O,0))) ->  | S70: =IF(F70="","",INDEX('All Data'!$K:$K,MATCH(F70,'All Data'!$O:$O,0))) ->  | T70: =IF(F70="","",INDEX('All Data'!$AS:$AS,MATCH(F70,'All Data'!$O:$O,0))) -> 
D71: =IF(F71="","",INDEX('All Data'!$F:$F,MATCH(F71,'All Data'!$O:$O,0))) ->  | E71: =IF(F71<>"",COUNTIF($F$7:F71,"*")&".","") ->  | G71: =IF(F71="","",INDEX('All Data'!$N:$N,MATCH(F71,'All Data'!$O:$O,0))) ->  | H71: =IF(F71="","",INDEX('All Data'!$Q:$Q,MATCH(F71,'All Data'!$O:$O,0))) ->  | I71: =IF(F71="","",INDEX('All Data'!$AF:$AF,MATCH(F71,'All Data'!$O:$O,0))) ->  | J71: =IF(F71="","",INDEX('All Data'!$AD:$AD,MATCH(F71,'All Data'!$O:$O,0))) ->  | K71: =IF(F71="","",INDEX('All Data'!$X:$X,MATCH(F71,'All Data'!$O:$O,0))) ->  | L71: =IF(F71="","",INDEX('All Data'!$Y:$Y,MATCH(F71,'All Data'!$O:$O,0))) ->  | M71: =IF(F71="","",INDEX('All Data'!$Z:$Z,MATCH(F71,'All Data'!$O:$O,0))) ->  | N71: =IF(F71="","",INDEX('All Data'!$AA:$AA,MATCH(F71,'All Data'!$O:$O,0))) ->  | O71: =IF(F71="","",INDEX('All Data'!$U:$U,MATCH(F71,'All Data'!$O:$O,0))) ->  | P71: =IF(F71="","",INDEX('All Data'!$V:$V,MATCH(F71,'All Data'!$O:$O,0))) ->  | Q71: =IF(F71="","",INDEX('All Data'!$AK:$AK,MATCH(F71,'All Data'!$O:$O,0))) ->  | R71: =IF(F71="","",INDEX('All Data'!$I:$I,MATCH(F71,'All Data'!$O:$O,0))) ->  | S71: =IF(F71="","",INDEX('All Data'!$K:$K,MATCH(F71,'All Data'!$O:$O,0))) ->  | T71: =IF(F71="","",INDEX('All Data'!$AS:$AS,MATCH(F71,'All Data'!$O:$O,0))) ->  | U71: =IF(F71="","",H71&"uH, "&I71&" x "&J71&"mm, "&K71&"A(40C), "&M71&"A(L-30%), "&P71&"mΩ max") -> 
D72: =IF(F72="","",INDEX('All Data'!$F:$F,MATCH(F72,'All Data'!$O:$O,0))) ->  | E72: =IF(F72<>"",COUNTIF($F$7:F72,"*")&".","") ->  | G72: =IF(F72="","",INDEX('All Data'!$N:$N,MATCH(F72,'All Data'!$O:$O,0))) ->  | H72: =IF(F72="","",INDEX('All Data'!$Q:$Q,MATCH(F72,'All Data'!$O:$O,0))) ->  | I72: =IF(F72="","",INDEX('All Data'!$AF:$AF,MATCH(F72,'All Data'!$O:$O,0))) ->  | J72: =IF(F72="","",INDEX('All Data'!$AD:$AD,MATCH(F72,'All Data'!$O:$O,0))) ->  | K72: =IF(F72="","",INDEX('All Data'!$X:$X,MATCH(F72,'All Data'!$O:$O,0))) ->  | L72: =IF(F72="","",INDEX('All Data'!$Y:$Y,MATCH(F72,'All Data'!$O:$O,0))) ->  | M72: =IF(F72="","",INDEX('All Data'!$Z:$Z,MATCH(F72,'All Data'!$O:$O,0))) ->  | N72: =IF(F72="","",INDEX('All Data'!$AA:$AA,MATCH(F72,'All Data'!$O:$O,0))) ->  | O72: =IF(F72="","",INDEX('All Data'!$U:$U,MATCH(F72,'All Data'!$O:$O,0))) ->  | P72: =IF(F72="","",INDEX('All Data'!$V:$V,MATCH(F72,'All Data'!$O:$O,0))) ->  | Q72: =IF(F72="","",INDEX('All Data'!$AK:$AK,MATCH(F72,'All Data'!$O:$O,0))) ->  | R72: =IF(F72="","",INDEX('All Data'!$I:$I,MATCH(F72,'All Data'!$O:$O,0))) ->  | S72: =IF(F72="","",INDEX('All Data'!$K:$K,MATCH(F72,'All Data'!$O:$O,0))) ->  | T72: =IF(F72="","",INDEX('All Data'!$AS:$AS,MATCH(F72,'All Data'!$O:$O,0))) -> 
D73: =IF(F73="","",INDEX('All Data'!$F:$F,MATCH(F73,'All Data'!$O:$O,0))) ->  | E73: =IF(F73<>"",COUNTIF($F$7:F73,"*")&".","") ->  | G73: =IF(F73="","",INDEX('All Data'!$N:$N,MATCH(F73,'All Data'!$O:$O,0))) ->  | H73: =IF(F73="","",INDEX('All Data'!$Q:$Q,MATCH(F73,'All Data'!$O:$O,0))) ->  | I73: =IF(F73="","",INDEX('All Data'!$AF:$AF,MATCH(F73,'All Data'!$O:$O,0))) ->  | J73: =IF(F73="","",INDEX('All Data'!$AD:$AD,MATCH(F73,'All Data'!$O:$O,0))) ->  | K73: =IF(F73="","",INDEX('All Data'!$X:$X,MATCH(F73,'All Data'!$O:$O,0))) ->  | L73: =IF(F73="","",INDEX('All Data'!$Y:$Y,MATCH(F73,'All Data'!$O:$O,0))) ->  | M73: =IF(F73="","",INDEX('All Data'!$Z:$Z,MATCH(F73,'All Data'!$O:$O,0))) ->  | N73: =IF(F73="","",INDEX('All Data'!$AA:$AA,MATCH(F73,'All Data'!$O:$O,0))) ->  | O73: =IF(F73="","",INDEX('All Data'!$U:$U,MATCH(F73,'All Data'!$O:$O,0))) ->  | P73: =IF(F73="","",INDEX('All Data'!$V:$V,MATCH(F73,'All Data'!$O:$O,0))) ->  | Q73: =IF(F73="","",INDEX('All Data'!$AK:$AK,MATCH(F73,'All Data'!$O:$O,0))) ->  | R73: =IF(F73="","",INDEX('All Data'!$I:$I,MATCH(F73,'All Data'!$O:$O,0))) ->  | S73: =IF(F73="","",INDEX('All Data'!$K:$K,MATCH(F73,'All Data'!$O:$O,0))) ->  | T73: =IF(F73="","",INDEX('All Data'!$AS:$AS,MATCH(F73,'All Data'!$O:$O,0))) -> 
D74: =IF(F74="","",INDEX('All Data'!$F:$F,MATCH(F74,'All Data'!$O:$O,0))) ->  | E74: =IF(F74<>"",COUNTIF($F$7:F74,"*")&".","") ->  | G74: =IF(F74="","",INDEX('All Data'!$N:$N,MATCH(F74,'All Data'!$O:$O,0))) ->  | H74: =IF(F74="","",INDEX('All Data'!$Q:$Q,MATCH(F74,'All Data'!$O:$O,0))) ->  | I74: =IF(F74="","",INDEX('All Data'!$AF:$AF,MATCH(F74,'All Data'!$O:$O,0))) ->  | J74: =IF(F74="","",INDEX('All Data'!$AD:$AD,MATCH(F74,'All Data'!$O:$O,0))) ->  | K74: =IF(F74="","",INDEX('All Data'!$X:$X,MATCH(F74,'All Data'!$O:$O,0))) ->  | L74: =IF(F74="","",INDEX('All Data'!$Y:$Y,MATCH(F74,'All Data'!$O:$O,0))) ->  | M74: =IF(F74="","",INDEX('All Data'!$Z:$Z,MATCH(F74,'All Data'!$O:$O,0))) ->  | N74: =IF(F74="","",INDEX('All Data'!$AA:$AA,MATCH(F74,'All Data'!$O:$O,0))) ->  | O74: =IF(F74="","",INDEX('All Data'!$U:$U,MATCH(F74,'All Data'!$O:$O,0))) ->  | P74: =IF(F74="","",INDEX('All Data'!$V:$V,MATCH(F74,'All Data'!$O:$O,0))) ->  | Q74: =IF(F74="","",INDEX('All Data'!$AK:$AK,MATCH(F74,'All Data'!$O:$O,0))) ->  | R74: =IF(F74="","",INDEX('All Data'!$I:$I,MATCH(F74,'All Data'!$O:$O,0))) ->  | S74: =IF(F74="","",INDEX('All Data'!$K:$K,MATCH(F74,'All Data'!$O:$O,0))) ->  | T74: =IF(F74="","",INDEX('All Data'!$AS:$AS,MATCH(F74,'All Data'!$O:$O,0))) -> 
D75: =IF(F75="","",INDEX('All Data'!$F:$F,MATCH(F75,'All Data'!$O:$O,0))) ->  | E75: =IF(F75<>"",COUNTIF($F$7:F75,"*")&".","") ->  | G75: =IF(F75="","",INDEX('All Data'!$N:$N,MATCH(F75,'All Data'!$O:$O,0))) ->  | H75: =IF(F75="","",INDEX('All Data'!$Q:$Q,MATCH(F75,'All Data'!$O:$O,0))) ->  | I75: =IF(F75="","",INDEX('All Data'!$AF:$AF,MATCH(F75,'All Data'!$O:$O,0))) ->  | J75: =IF(F75="","",INDEX('All Data'!$AD:$AD,MATCH(F75,'All Data'!$O:$O,0))) ->  | K75: =IF(F75="","",INDEX('All Data'!$X:$X,MATCH(F75,'All Data'!$O:$O,0))) ->  | L75: =IF(F75="","",INDEX('All Data'!$Y:$Y,MATCH(F75,'All Data'!$O:$O,0))) ->  | M75: =IF(F75="","",INDEX('All Data'!$Z:$Z,MATCH(F75,'All Data'!$O:$O,0))) ->  | N75: =IF(F75="","",INDEX('All Data'!$AA:$AA,MATCH(F75,'All Data'!$O:$O,0))) ->  | O75: =IF(F75="","",INDEX('All Data'!$U:$U,MATCH(F75,'All Data'!$O:$O,0))) ->  | P75: =IF(F75="","",INDEX('All Data'!$V:$V,MATCH(F75,'All Data'!$O:$O,0))) ->  | Q75: =IF(F75="","",INDEX('All Data'!$AK:$AK,MATCH(F75,'All Data'!$O:$O,0))) ->  | R75: =IF(F75="","",INDEX('All Data'!$I:$I,MATCH(F75,'All Data'!$O:$O,0))) ->  | S75: =IF(F75="","",INDEX('All Data'!$K:$K,MATCH(F75,'All Data'!$O:$O,0))) ->  | T75: =IF(F75="","",INDEX('All Data'!$AS:$AS,MATCH(F75,'All Data'!$O:$O,0))) -> 
D76: =IF(F76="","",INDEX('All Data'!$F:$F,MATCH(F76,'All Data'!$O:$O,0))) ->  | E76: =IF(F76<>"",COUNTIF($F$7:F76,"*")&".","") ->  | G76: =IF(F76="","",INDEX('All Data'!$N:$N,MATCH(F76,'All Data'!$O:$O,0))) ->  | H76: =IF(F76="","",INDEX('All Data'!$Q:$Q,MATCH(F76,'All Data'!$O:$O,0))) ->  | I76: =IF(F76="","",INDEX('All Data'!$AF:$AF,MATCH(F76,'All Data'!$O:$O,0))) ->  | J76: =IF(F76="","",INDEX('All Data'!$AD:$AD,MATCH(F76,'All Data'!$O:$O,0))) ->  | K76: =IF(F76="","",INDEX('All Data'!$X:$X,MATCH(F76,'All Data'!$O:$O,0))) ->  | L76: =IF(F76="","",INDEX('All Data'!$Y:$Y,MATCH(F76,'All Data'!$O:$O,0))) ->  | M76: =IF(F76="","",INDEX('All Data'!$Z:$Z,MATCH(F76,'All Data'!$O:$O,0))) ->  | N76: =IF(F76="","",INDEX('All Data'!$AA:$AA,MATCH(F76,'All Data'!$O:$O,0))) ->  | O76: =IF(F76="","",INDEX('All Data'!$U:$U,MATCH(F76,'All Data'!$O:$O,0))) ->  | P76: =IF(F76="","",INDEX('All Data'!$V:$V,MATCH(F76,'All Data'!$O:$O,0))) ->  | Q76: =IF(F76="","",INDEX('All Data'!$AK:$AK,MATCH(F76,'All Data'!$O:$O,0))) ->  | R76: =IF(F76="","",INDEX('All Data'!$I:$I,MATCH(F76,'All Data'!$O:$O,0))) ->  | S76: =IF(F76="","",INDEX('All Data'!$K:$K,MATCH(F76,'All Data'!$O:$O,0))) ->  | T76: =IF(F76="","",INDEX('All Data'!$AS:$AS,MATCH(F76,'All Data'!$O:$O,0))) -> 
D77: =IF(F77="","",INDEX('All Data'!$F:$F,MATCH(F77,'All Data'!$O:$O,0))) ->  | E77: =IF(F77<>"",COUNTIF($F$7:F77,"*")&".","") ->  | G77: =IF(F77="","",INDEX('All Data'!$N:$N,MATCH(F77,'All Data'!$O:$O,0))) ->  | H77: =IF(F77="","",INDEX('All Data'!$Q:$Q,MATCH(F77,'All Data'!$O:$O,0))) ->  | I77: =IF(F77="","",INDEX('All Data'!$AF:$AF,MATCH(F77,'All Data'!$O:$O,0))) ->  | J77: =IF(F77="","",INDEX('All Data'!$AD:$AD,MATCH(F77,'All Data'!$O:$O,0))) ->  | K77: =IF(F77="","",INDEX('All Data'!$X:$X,MATCH(F77,'All Data'!$O:$O,0))) ->  | L77: =IF(F77="","",INDEX('All Data'!$Y:$Y,MATCH(F77,'All Data'!$O:$O,0))) ->  | M77: =IF(F77="","",INDEX('All Data'!$Z:$Z,MATCH(F77,'All Data'!$O:$O,0))) ->  | N77: =IF(F77="","",INDEX('All Data'!$AA:$AA,MATCH(F77,'All Data'!$O:$O,0))) ->  | O77: =IF(F77="","",INDEX('All Data'!$U:$U,MATCH(F77,'All Data'!$O:$O,0))) ->  | P77: =IF(F77="","",INDEX('All Data'!$V:$V,MATCH(F77,'All Data'!$O:$O,0))) ->  | Q77: =IF(F77="","",INDEX('All Data'!$AK:$AK,MATCH(F77,'All Data'!$O:$O,0))) ->  | R77: =IF(F77="","",INDEX('All Data'!$I:$I,MATCH(F77,'All Data'!$O:$O,0))) ->  | S77: =IF(F77="","",INDEX('All Data'!$K:$K,MATCH(F77,'All Data'!$O:$O,0))) ->  | T77: =IF(F77="","",INDEX('All Data'!$AS:$AS,MATCH(F77,'All Data'!$O:$O,0))) -> 
D78: =IF(F78="","",INDEX('All Data'!$F:$F,MATCH(F78,'All Data'!$O:$O,0))) ->  | E78: =IF(F78<>"",COUNTIF($F$7:F78,"*")&".","") ->  | G78: =IF(F78="","",INDEX('All Data'!$N:$N,MATCH(F78,'All Data'!$O:$O,0))) ->  | H78: =IF(F78="","",INDEX('All Data'!$Q:$Q,MATCH(F78,'All Data'!$O:$O,0))) ->  | I78: =IF(F78="","",INDEX('All Data'!$AF:$AF,MATCH(F78,'All Data'!$O:$O,0))) ->  | J78: =IF(F78="","",INDEX('All Data'!$AD:$AD,MATCH(F78,'All Data'!$O:$O,0))) ->  | K78: =IF(F78="","",INDEX('All Data'!$X:$X,MATCH(F78,'All Data'!$O:$O,0))) ->  | L78: =IF(F78="","",INDEX('All Data'!$Y:$Y,MATCH(F78,'All Data'!$O:$O,0))) ->  | M78: =IF(F78="","",INDEX('All Data'!$Z:$Z,MATCH(F78,'All Data'!$O:$O,0))) ->  | N78: =IF(F78="","",INDEX('All Data'!$AA:$AA,MATCH(F78,'All Data'!$O:$O,0))) ->  | O78: =IF(F78="","",INDEX('All Data'!$U:$U,MATCH(F78,'All Data'!$O:$O,0))) ->  | P78: =IF(F78="","",INDEX('All Data'!$V:$V,MATCH(F78,'All Data'!$O:$O,0))) ->  | Q78: =IF(F78="","",INDEX('All Data'!$AK:$AK,MATCH(F78,'All Data'!$O:$O,0))) ->  | R78: =IF(F78="","",INDEX('All Data'!$I:$I,MATCH(F78,'All Data'!$O:$O,0))) ->  | S78: =IF(F78="","",INDEX('All Data'!$K:$K,MATCH(F78,'All Data'!$O:$O,0))) ->  | T78: =IF(F78="","",INDEX('All Data'!$AS:$AS,MATCH(F78,'All Data'!$O:$O,0))) -> 
D79: =IF(F79="","",INDEX('All Data'!$F:$F,MATCH(F79,'All Data'!$O:$O,0))) ->  | E79: =IF(F79<>"",COUNTIF($F$7:F79,"*")&".","") ->  | G79: =IF(F79="","",INDEX('All Data'!$N:$N,MATCH(F79,'All Data'!$O:$O,0))) ->  | H79: =IF(F79="","",INDEX('All Data'!$Q:$Q,MATCH(F79,'All Data'!$O:$O,0))) ->  | I79: =IF(F79="","",INDEX('All Data'!$AF:$AF,MATCH(F79,'All Data'!$O:$O,0))) ->  | J79: =IF(F79="","",INDEX('All Data'!$AD:$AD,MATCH(F79,'All Data'!$O:$O,0))) ->  | K79: =IF(F79="","",INDEX('All Data'!$X:$X,MATCH(F79,'All Data'!$O:$O,0))) ->  | L79: =IF(F79="","",INDEX('All Data'!$Y:$Y,MATCH(F79,'All Data'!$O:$O,0))) ->  | M79: =IF(F79="","",INDEX('All Data'!$Z:$Z,MATCH(F79,'All Data'!$O:$O,0))) ->  | N79: =IF(F79="","",INDEX('All Data'!$AA:$AA,MATCH(F79,'All Data'!$O:$O,0))) ->  | O79: =IF(F79="","",INDEX('All Data'!$U:$U,MATCH(F79,'All Data'!$O:$O,0))) ->  | P79: =IF(F79="","",INDEX('All Data'!$V:$V,MATCH(F79,'All Data'!$O:$O,0))) ->  | Q79: =IF(F79="","",INDEX('All Data'!$AK:$AK,MATCH(F79,'All Data'!$O:$O,0))) ->  | R79: =IF(F79="","",INDEX('All Data'!$I:$I,MATCH(F79,'All Data'!$O:$O,0))) ->  | S79: =IF(F79="","",INDEX('All Data'!$K:$K,MATCH(F79,'All Data'!$O:$O,0))) ->  | T79: =IF(F79="","",INDEX('All Data'!$AS:$AS,MATCH(F79,'All Data'!$O:$O,0))) -> 
D80: =IF(F80="","",INDEX('All Data'!$F:$F,MATCH(F80,'All Data'!$O:$O,0))) ->  | E80: =IF(F80<>"",COUNTIF($F$7:F80,"*")&".","") ->  | G80: =IF(F80="","",INDEX('All Data'!$N:$N,MATCH(F80,'All Data'!$O:$O,0))) ->  | H80: =IF(F80="","",INDEX('All Data'!$Q:$Q,MATCH(F80,'All Data'!$O:$O,0))) ->  | I80: =IF(F80="","",INDEX('All Data'!$AF:$AF,MATCH(F80,'All Data'!$O:$O,0))) ->  | J80: =IF(F80="","",INDEX('All Data'!$AD:$AD,MATCH(F80,'All Data'!$O:$O,0))) ->  | K80: =IF(F80="","",INDEX('All Data'!$X:$X,MATCH(F80,'All Data'!$O:$O,0))) ->  | L80: =IF(F80="","",INDEX('All Data'!$Y:$Y,MATCH(F80,'All Data'!$O:$O,0))) ->  | M80: =IF(F80="","",INDEX('All Data'!$Z:$Z,MATCH(F80,'All Data'!$O:$O,0))) ->  | N80: =IF(F80="","",INDEX('All Data'!$AA:$AA,MATCH(F80,'All Data'!$O:$O,0))) ->  | O80: =IF(F80="","",INDEX('All Data'!$U:$U,MATCH(F80,'All Data'!$O:$O,0))) ->  | P80: =IF(F80="","",INDEX('All Data'!$V:$V,MATCH(F80,'All Data'!$O:$O,0))) ->  | Q80: =IF(F80="","",INDEX('All Data'!$AK:$AK,MATCH(F80,'All Data'!$O:$O,0))) ->  | R80: =IF(F80="","",INDEX('All Data'!$I:$I,MATCH(F80,'All Data'!$O:$O,0))) ->  | S80: =IF(F80="","",INDEX('All Data'!$K:$K,MATCH(F80,'All Data'!$O:$O,0))) ->  | T80: =IF(F80="","",INDEX('All Data'!$AS:$AS,MATCH(F80,'All Data'!$O:$O,0))) -> 
D81: =IF(F81="","",INDEX('All Data'!$F:$F,MATCH(F81,'All Data'!$O:$O,0))) ->  | E81: =IF(F81<>"",COUNTIF($F$7:F81,"*")&".","") ->  | G81: =IF(F81="","",INDEX('All Data'!$N:$N,MATCH(F81,'All Data'!$O:$O,0))) ->  | H81: =IF(F81="","",INDEX('All Data'!$Q:$Q,MATCH(F81,'All Data'!$O:$O,0))) ->  | I81: =IF(F81="","",INDEX('All Data'!$AF:$AF,MATCH(F81,'All Data'!$O:$O,0))) ->  | J81: =IF(F81="","",INDEX('All Data'!$AD:$AD,MATCH(F81,'All Data'!$O:$O,0))) ->  | K81: =IF(F81="","",INDEX('All Data'!$X:$X,MATCH(F81,'All Data'!$O:$O,0))) ->  | L81: =IF(F81="","",INDEX('All Data'!$Y:$Y,MATCH(F81,'All Data'!$O:$O,0))) ->  | M81: =IF(F81="","",INDEX('All Data'!$Z:$Z,MATCH(F81,'All Data'!$O:$O,0))) ->  | N81: =IF(F81="","",INDEX('All Data'!$AA:$AA,MATCH(F81,'All Data'!$O:$O,0))) ->  | O81: =IF(F81="","",INDEX('All Data'!$U:$U,MATCH(F81,'All Data'!$O:$O,0))) ->  | P81: =IF(F81="","",INDEX('All Data'!$V:$V,MATCH(F81,'All Data'!$O:$O,0))) ->  | Q81: =IF(F81="","",INDEX('All Data'!$AK:$AK,MATCH(F81,'All Data'!$O:$O,0))) ->  | R81: =IF(F81="","",INDEX('All Data'!$I:$I,MATCH(F81,'All Data'!$O:$O,0))) ->  | S81: =IF(F81="","",INDEX('All Data'!$K:$K,MATCH(F81,'All Data'!$O:$O,0))) ->  | T81: =IF(F81="","",INDEX('All Data'!$AS:$AS,MATCH(F81,'All Data'!$O:$O,0))) -> 
D82: =IF(F82="","",INDEX('All Data'!$F:$F,MATCH(F82,'All Data'!$O:$O,0))) ->  | E82: =IF(F82<>"",COUNTIF($F$7:F82,"*")&".","") ->  | G82: =IF(F82="","",INDEX('All Data'!$N:$N,MATCH(F82,'All Data'!$O:$O,0))) ->  | H82: =IF(F82="","",INDEX('All Data'!$Q:$Q,MATCH(F82,'All Data'!$O:$O,0))) ->  | I82: =IF(F82="","",INDEX('All Data'!$AF:$AF,MATCH(F82,'All Data'!$O:$O,0))) ->  | J82: =IF(F82="","",INDEX('All Data'!$AD:$AD,MATCH(F82,'All Data'!$O:$O,0))) ->  | K82: =IF(F82="","",INDEX('All Data'!$X:$X,MATCH(F82,'All Data'!$O:$O,0))) ->  | L82: =IF(F82="","",INDEX('All Data'!$Y:$Y,MATCH(F82,'All Data'!$O:$O,0))) ->  | M82: =IF(F82="","",INDEX('All Data'!$Z:$Z,MATCH(F82,'All Data'!$O:$O,0))) ->  | N82: =IF(F82="","",INDEX('All Data'!$AA:$AA,MATCH(F82,'All Data'!$O:$O,0))) ->  | O82: =IF(F82="","",INDEX('All Data'!$U:$U,MATCH(F82,'All Data'!$O:$O,0))) ->  | P82: =IF(F82="","",INDEX('All Data'!$V:$V,MATCH(F82,'All Data'!$O:$O,0))) ->  | Q82: =IF(F82="","",INDEX('All Data'!$AK:$AK,MATCH(F82,'All Data'!$O:$O,0))) ->  | R82: =IF(F82="","",INDEX('All Data'!$I:$I,MATCH(F82,'All Data'!$O:$O,0))) ->  | S82: =IF(F82="","",INDEX('All Data'!$K:$K,MATCH(F82,'All Data'!$O:$O,0))) ->  | T82: =IF(F82="","",INDEX('All Data'!$AS:$AS,MATCH(F82,'All Data'!$O:$O,0))) -> 
D83: =IF(F83="","",INDEX('All Data'!$F:$F,MATCH(F83,'All Data'!$O:$O,0))) ->  | E83: =IF(F83<>"",COUNTIF($F$7:F83,"*")&".","") ->  | G83: =IF(F83="","",INDEX('All Data'!$N:$N,MATCH(F83,'All Data'!$O:$O,0))) ->  | H83: =IF(F83="","",INDEX('All Data'!$Q:$Q,MATCH(F83,'All Data'!$O:$O,0))) ->  | I83: =IF(F83="","",INDEX('All Data'!$AF:$AF,MATCH(F83,'All Data'!$O:$O,0))) ->  | J83: =IF(F83="","",INDEX('All Data'!$AD:$AD,MATCH(F83,'All Data'!$O:$O,0))) ->  | K83: =IF(F83="","",INDEX('All Data'!$X:$X,MATCH(F83,'All Data'!$O:$O,0))) ->  | L83: =IF(F83="","",INDEX('All Data'!$Y:$Y,MATCH(F83,'All Data'!$O:$O,0))) ->  | M83: =IF(F83="","",INDEX('All Data'!$Z:$Z,MATCH(F83,'All Data'!$O:$O,0))) ->  | N83: =IF(F83="","",INDEX('All Data'!$AA:$AA,MATCH(F83,'All Data'!$O:$O,0))) ->  | O83: =IF(F83="","",INDEX('All Data'!$U:$U,MATCH(F83,'All Data'!$O:$O,0))) ->  | P83: =IF(F83="","",INDEX('All Data'!$V:$V,MATCH(F83,'All Data'!$O:$O,0))) ->  | Q83: =IF(F83="","",INDEX('All Data'!$AK:$AK,MATCH(F83,'All Data'!$O:$O,0))) ->  | R83: =IF(F83="","",INDEX('All Data'!$I:$I,MATCH(F83,'All Data'!$O:$O,0))) ->  | S83: =IF(F83="","",INDEX('All Data'!$K:$K,MATCH(F83,'All Data'!$O:$O,0))) ->  | T83: =IF(F83="","",INDEX('All Data'!$AS:$AS,MATCH(F83,'All Data'!$O:$O,0))) -> 
D84: =IF(F84="","",INDEX('All Data'!$F:$F,MATCH(F84,'All Data'!$O:$O,0))) ->  | E84: =IF(F84<>"",COUNTIF($F$7:F84,"*")&".","") ->  | G84: =IF(F84="","",INDEX('All Data'!$N:$N,MATCH(F84,'All Data'!$O:$O,0))) ->  | H84: =IF(F84="","",INDEX('All Data'!$Q:$Q,MATCH(F84,'All Data'!$O:$O,0))) ->  | I84: =IF(F84="","",INDEX('All Data'!$AF:$AF,MATCH(F84,'All Data'!$O:$O,0))) ->  | J84: =IF(F84="","",INDEX('All Data'!$AD:$AD,MATCH(F84,'All Data'!$O:$O,0))) ->  | K84: =IF(F84="","",INDEX('All Data'!$X:$X,MATCH(F84,'All Data'!$O:$O,0))) ->  | L84: =IF(F84="","",INDEX('All Data'!$Y:$Y,MATCH(F84,'All Data'!$O:$O,0))) ->  | M84: =IF(F84="","",INDEX('All Data'!$Z:$Z,MATCH(F84,'All Data'!$O:$O,0))) ->  | N84: =IF(F84="","",INDEX('All Data'!$AA:$AA,MATCH(F84,'All Data'!$O:$O,0))) ->  | O84: =IF(F84="","",INDEX('All Data'!$U:$U,MATCH(F84,'All Data'!$O:$O,0))) ->  | P84: =IF(F84="","",INDEX('All Data'!$V:$V,MATCH(F84,'All Data'!$O:$O,0))) ->  | Q84: =IF(F84="","",INDEX('All Data'!$AK:$AK,MATCH(F84,'All Data'!$O:$O,0))) ->  | R84: =IF(F84="","",INDEX('All Data'!$I:$I,MATCH(F84,'All Data'!$O:$O,0))) ->  | S84: =IF(F84="","",INDEX('All Data'!$K:$K,MATCH(F84,'All Data'!$O:$O,0))) ->  | T84: =IF(F84="","",INDEX('All Data'!$AS:$AS,MATCH(F84,'All Data'!$O:$O,0))) -> 
D85: =IF(F85="","",INDEX('All Data'!$F:$F,MATCH(F85,'All Data'!$O:$O,0))) ->  | E85: =IF(F85<>"",COUNTIF($F$7:F85,"*")&".","") ->  | G85: =IF(F85="","",INDEX('All Data'!$N:$N,MATCH(F85,'All Data'!$O:$O,0))) ->  | H85: =IF(F85="","",INDEX('All Data'!$Q:$Q,MATCH(F85,'All Data'!$O:$O,0))) ->  | I85: =IF(F85="","",INDEX('All Data'!$AF:$AF,MATCH(F85,'All Data'!$O:$O,0))) ->  | J85: =IF(F85="","",INDEX('All Data'!$AD:$AD,MATCH(F85,'All Data'!$O:$O,0))) ->  | K85: =IF(F85="","",INDEX('All Data'!$X:$X,MATCH(F85,'All Data'!$O:$O,0))) ->  | L85: =IF(F85="","",INDEX('All Data'!$Y:$Y,MATCH(F85,'All Data'!$O:$O,0))) ->  | M85: =IF(F85="","",INDEX('All Data'!$Z:$Z,MATCH(F85,'All Data'!$O:$O,0))) ->  | N85: =IF(F85="","",INDEX('All Data'!$AA:$AA,MATCH(F85,'All Data'!$O:$O,0))) ->  | O85: =IF(F85="","",INDEX('All Data'!$U:$U,MATCH(F85,'All Data'!$O:$O,0))) ->  | P85: =IF(F85="","",INDEX('All Data'!$V:$V,MATCH(F85,'All Data'!$O:$O,0))) ->  | Q85: =IF(F85="","",INDEX('All Data'!$AK:$AK,MATCH(F85,'All Data'!$O:$O,0))) ->  | R85: =IF(F85="","",INDEX('All Data'!$I:$I,MATCH(F85,'All Data'!$O:$O,0))) ->  | S85: =IF(F85="","",INDEX('All Data'!$K:$K,MATCH(F85,'All Data'!$O:$O,0))) ->  | T85: =IF(F85="","",INDEX('All Data'!$AS:$AS,MATCH(F85,'All Data'!$O:$O,0))) -> 
D86: =IF(F86="","",INDEX('All Data'!$F:$F,MATCH(F86,'All Data'!$O:$O,0))) ->  | E86: =IF(F86<>"",COUNTIF($F$7:F86,"*")&".","") ->  | G86: =IF(F86="","",INDEX('All Data'!$N:$N,MATCH(F86,'All Data'!$O:$O,0))) ->  | H86: =IF(F86="","",INDEX('All Data'!$Q:$Q,MATCH(F86,'All Data'!$O:$O,0))) ->  | I86: =IF(F86="","",INDEX('All Data'!$AF:$AF,MATCH(F86,'All Data'!$O:$O,0))) ->  | J86: =IF(F86="","",INDEX('All Data'!$AD:$AD,MATCH(F86,'All Data'!$O:$O,0))) ->  | K86: =IF(F86="","",INDEX('All Data'!$X:$X,MATCH(F86,'All Data'!$O:$O,0))) ->  | L86: =IF(F86="","",INDEX('All Data'!$Y:$Y,MATCH(F86,'All Data'!$O:$O,0))) ->  | M86: =IF(F86="","",INDEX('All Data'!$Z:$Z,MATCH(F86,'All Data'!$O:$O,0))) ->  | N86: =IF(F86="","",INDEX('All Data'!$AA:$AA,MATCH(F86,'All Data'!$O:$O,0))) ->  | O86: =IF(F86="","",INDEX('All Data'!$U:$U,MATCH(F86,'All Data'!$O:$O,0))) ->  | P86: =IF(F86="","",INDEX('All Data'!$V:$V,MATCH(F86,'All Data'!$O:$O,0))) ->  | Q86: =IF(F86="","",INDEX('All Data'!$AK:$AK,MATCH(F86,'All Data'!$O:$O,0))) ->  | R86: =IF(F86="","",INDEX('All Data'!$I:$I,MATCH(F86,'All Data'!$O:$O,0))) ->  | S86: =IF(F86="","",INDEX('All Data'!$K:$K,MATCH(F86,'All Data'!$O:$O,0))) ->  | T86: =IF(F86="","",INDEX('All Data'!$AS:$AS,MATCH(F86,'All Data'!$O:$O,0))) -> 
D87: =IF(F87="","",INDEX('All Data'!$F:$F,MATCH(F87,'All Data'!$O:$O,0))) ->  | E87: =IF(F87<>"",COUNTIF($F$7:F87,"*")&".","") ->  | G87: =IF(F87="","",INDEX('All Data'!$N:$N,MATCH(F87,'All Data'!$O:$O,0))) ->  | H87: =IF(F87="","",INDEX('All Data'!$Q:$Q,MATCH(F87,'All Data'!$O:$O,0))) ->  | I87: =IF(F87="","",INDEX('All Data'!$AF:$AF,MATCH(F87,'All Data'!$O:$O,0))) ->  | J87: =IF(F87="","",INDEX('All Data'!$AD:$AD,MATCH(F87,'All Data'!$O:$O,0))) ->  | K87: =IF(F87="","",INDEX('All Data'!$X:$X,MATCH(F87,'All Data'!$O:$O,0))) ->  | L87: =IF(F87="","",INDEX('All Data'!$Y:$Y,MATCH(F87,'All Data'!$O:$O,0))) ->  | M87: =IF(F87="","",INDEX('All Data'!$Z:$Z,MATCH(F87,'All Data'!$O:$O,0))) ->  | N87: =IF(F87="","",INDEX('All Data'!$AA:$AA,MATCH(F87,'All Data'!$O:$O,0))) ->  | O87: =IF(F87="","",INDEX('All Data'!$U:$U,MATCH(F87,'All Data'!$O:$O,0))) ->  | P87: =IF(F87="","",INDEX('All Data'!$V:$V,MATCH(F87,'All Data'!$O:$O,0))) ->  | Q87: =IF(F87="","",INDEX('All Data'!$AK:$AK,MATCH(F87,'All Data'!$O:$O,0))) ->  | R87: =IF(F87="","",INDEX('All Data'!$I:$I,MATCH(F87,'All Data'!$O:$O,0))) ->  | S87: =IF(F87="","",INDEX('All Data'!$K:$K,MATCH(F87,'All Data'!$O:$O,0))) ->  | T87: =IF(F87="","",INDEX('All Data'!$AS:$AS,MATCH(F87,'All Data'!$O:$O,0))) -> 
D88: =IF(F88="","",INDEX('All Data'!$F:$F,MATCH(F88,'All Data'!$O:$O,0))) ->  | E88: =IF(F88<>"",COUNTIF($F$7:F88,"*")&".","") ->  | G88: =IF(F88="","",INDEX('All Data'!$N:$N,MATCH(F88,'All Data'!$O:$O,0))) ->  | H88: =IF(F88="","",INDEX('All Data'!$Q:$Q,MATCH(F88,'All Data'!$O:$O,0))) ->  | I88: =IF(F88="","",INDEX('All Data'!$AF:$AF,MATCH(F88,'All Data'!$O:$O,0))) ->  | J88: =IF(F88="","",INDEX('All Data'!$AD:$AD,MATCH(F88,'All Data'!$O:$O,0))) ->  | K88: =IF(F88="","",INDEX('All Data'!$X:$X,MATCH(F88,'All Data'!$O:$O,0))) ->  | L88: =IF(F88="","",INDEX('All Data'!$Y:$Y,MATCH(F88,'All Data'!$O:$O,0))) ->  | M88: =IF(F88="","",INDEX('All Data'!$Z:$Z,MATCH(F88,'All Data'!$O:$O,0))) ->  | N88: =IF(F88="","",INDEX('All Data'!$AA:$AA,MATCH(F88,'All Data'!$O:$O,0))) ->  | O88: =IF(F88="","",INDEX('All Data'!$U:$U,MATCH(F88,'All Data'!$O:$O,0))) ->  | P88: =IF(F88="","",INDEX('All Data'!$V:$V,MATCH(F88,'All Data'!$O:$O,0))) ->  | Q88: =IF(F88="","",INDEX('All Data'!$AK:$AK,MATCH(F88,'All Data'!$O:$O,0))) ->  | R88: =IF(F88="","",INDEX('All Data'!$I:$I,MATCH(F88,'All Data'!$O:$O,0))) ->  | S88: =IF(F88="","",INDEX('All Data'!$K:$K,MATCH(F88,'All Data'!$O:$O,0))) ->  | T88: =IF(F88="","",INDEX('All Data'!$AS:$AS,MATCH(F88,'All Data'!$O:$O,0))) -> 
D89: =IF(F89="","",INDEX('All Data'!$F:$F,MATCH(F89,'All Data'!$O:$O,0))) ->  | E89: =IF(F89<>"",COUNTIF($F$7:F89,"*")&".","") ->  | G89: =IF(F89="","",INDEX('All Data'!$N:$N,MATCH(F89,'All Data'!$O:$O,0))) ->  | H89: =IF(F89="","",INDEX('All Data'!$Q:$Q,MATCH(F89,'All Data'!$O:$O,0))) ->  | I89: =IF(F89="","",INDEX('All Data'!$AF:$AF,MATCH(F89,'All Data'!$O:$O,0))) ->  | J89: =IF(F89="","",INDEX('All Data'!$AD:$AD,MATCH(F89,'All Data'!$O:$O,0))) ->  | K89: =IF(F89="","",INDEX('All Data'!$X:$X,MATCH(F89,'All Data'!$O:$O,0))) ->  | L89: =IF(F89="","",INDEX('All Data'!$Y:$Y,MATCH(F89,'All Data'!$O:$O,0))) ->  | M89: =IF(F89="","",INDEX('All Data'!$Z:$Z,MATCH(F89,'All Data'!$O:$O,0))) ->  | N89: =IF(F89="","",INDEX('All Data'!$AA:$AA,MATCH(F89,'All Data'!$O:$O,0))) ->  | O89: =IF(F89="","",INDEX('All Data'!$U:$U,MATCH(F89,'All Data'!$O:$O,0))) ->  | P89: =IF(F89="","",INDEX('All Data'!$V:$V,MATCH(F89,'All Data'!$O:$O,0))) ->  | Q89: =IF(F89="","",INDEX('All Data'!$AK:$AK,MATCH(F89,'All Data'!$O:$O,0))) ->  | R89: =IF(F89="","",INDEX('All Data'!$I:$I,MATCH(F89,'All Data'!$O:$O,0))) ->  | S89: =IF(F89="","",INDEX('All Data'!$K:$K,MATCH(F89,'All Data'!$O:$O,0))) ->  | T89: =IF(F89="","",INDEX('All Data'!$AS:$AS,MATCH(F89,'All Data'!$O:$O,0))) -> 
D90: =IF(F90="","",INDEX('All Data'!$F:$F,MATCH(F90,'All Data'!$O:$O,0))) ->  | E90: =IF(F90<>"",COUNTIF($F$7:F90,"*")&".","") ->  | G90: =IF(F90="","",INDEX('All Data'!$N:$N,MATCH(F90,'All Data'!$O:$O,0))) ->  | H90: =IF(F90="","",INDEX('All Data'!$Q:$Q,MATCH(F90,'All Data'!$O:$O,0))) ->  | I90: =IF(F90="","",INDEX('All Data'!$AF:$AF,MATCH(F90,'All Data'!$O:$O,0))) ->  | J90: =IF(F90="","",INDEX('All Data'!$AD:$AD,MATCH(F90,'All Data'!$O:$O,0))) ->  | K90: =IF(F90="","",INDEX('All Data'!$X:$X,MATCH(F90,'All Data'!$O:$O,0))) ->  | L90: =IF(F90="","",INDEX('All Data'!$Y:$Y,MATCH(F90,'All Data'!$O:$O,0))) ->  | M90: =IF(F90="","",INDEX('All Data'!$Z:$Z,MATCH(F90,'All Data'!$O:$O,0))) ->  | N90: =IF(F90="","",INDEX('All Data'!$AA:$AA,MATCH(F90,'All Data'!$O:$O,0))) ->  | O90: =IF(F90="","",INDEX('All Data'!$U:$U,MATCH(F90,'All Data'!$O:$O,0))) ->  | P90: =IF(F90="","",INDEX('All Data'!$V:$V,MATCH(F90,'All Data'!$O:$O,0))) ->  | Q90: =IF(F90="","",INDEX('All Data'!$AK:$AK,MATCH(F90,'All Data'!$O:$O,0))) ->  | R90: =IF(F90="","",INDEX('All Data'!$I:$I,MATCH(F90,'All Data'!$O:$O,0))) ->  | S90: =IF(F90="","",INDEX('All Data'!$K:$K,MATCH(F90,'All Data'!$O:$O,0))) ->  | T90: =IF(F90="","",INDEX('All Data'!$AS:$AS,MATCH(F90,'All Data'!$O:$O,0))) -> 
D91: =IF(F91="","",INDEX('All Data'!$F:$F,MATCH(F91,'All Data'!$O:$O,0))) ->  | E91: =IF(F91<>"",COUNTIF($F$7:F91,"*")&".","") ->  | G91: =IF(F91="","",INDEX('All Data'!$N:$N,MATCH(F91,'All Data'!$O:$O,0))) ->  | H91: =IF(F91="","",INDEX('All Data'!$Q:$Q,MATCH(F91,'All Data'!$O:$O,0))) ->  | I91: =IF(F91="","",INDEX('All Data'!$AF:$AF,MATCH(F91,'All Data'!$O:$O,0))) ->  | J91: =IF(F91="","",INDEX('All Data'!$AD:$AD,MATCH(F91,'All Data'!$O:$O,0))) ->  | K91: =IF(F91="","",INDEX('All Data'!$X:$X,MATCH(F91,'All Data'!$O:$O,0))) ->  | L91: =IF(F91="","",INDEX('All Data'!$Y:$Y,MATCH(F91,'All Data'!$O:$O,0))) ->  | M91: =IF(F91="","",INDEX('All Data'!$Z:$Z,MATCH(F91,'All Data'!$O:$O,0))) ->  | N91: =IF(F91="","",INDEX('All Data'!$AA:$AA,MATCH(F91,'All Data'!$O:$O,0))) ->  | O91: =IF(F91="","",INDEX('All Data'!$U:$U,MATCH(F91,'All Data'!$O:$O,0))) ->  | P91: =IF(F91="","",INDEX('All Data'!$V:$V,MATCH(F91,'All Data'!$O:$O,0))) ->  | Q91: =IF(F91="","",INDEX('All Data'!$AK:$AK,MATCH(F91,'All Data'!$O:$O,0))) ->  | R91: =IF(F91="","",INDEX('All Data'!$I:$I,MATCH(F91,'All Data'!$O:$O,0))) ->  | S91: =IF(F91="","",INDEX('All Data'!$K:$K,MATCH(F91,'All Data'!$O:$O,0))) ->  | T91: =IF(F91="","",INDEX('All Data'!$AS:$AS,MATCH(F91,'All Data'!$O:$O,0))) -> 
D92: =IF(F92="","",INDEX('All Data'!$F:$F,MATCH(F92,'All Data'!$O:$O,0))) ->  | E92: =IF(F92<>"",COUNTIF($F$7:F92,"*")&".","") ->  | G92: =IF(F92="","",INDEX('All Data'!$N:$N,MATCH(F92,'All Data'!$O:$O,0))) ->  | H92: =IF(F92="","",INDEX('All Data'!$Q:$Q,MATCH(F92,'All Data'!$O:$O,0))) ->  | I92: =IF(F92="","",INDEX('All Data'!$AF:$AF,MATCH(F92,'All Data'!$O:$O,0))) ->  | J92: =IF(F92="","",INDEX('All Data'!$AD:$AD,MATCH(F92,'All Data'!$O:$O,0))) ->  | K92: =IF(F92="","",INDEX('All Data'!$X:$X,MATCH(F92,'All Data'!$O:$O,0))) ->  | L92: =IF(F92="","",INDEX('All Data'!$Y:$Y,MATCH(F92,'All Data'!$O:$O,0))) ->  | M92: =IF(F92="","",INDEX('All Data'!$Z:$Z,MATCH(F92,'All Data'!$O:$O,0))) ->  | N92: =IF(F92="","",INDEX('All Data'!$AA:$AA,MATCH(F92,'All Data'!$O:$O,0))) ->  | O92: =IF(F92="","",INDEX('All Data'!$U:$U,MATCH(F92,'All Data'!$O:$O,0))) ->  | P92: =IF(F92="","",INDEX('All Data'!$V:$V,MATCH(F92,'All Data'!$O:$O,0))) ->  | Q92: =IF(F92="","",INDEX('All Data'!$AK:$AK,MATCH(F92,'All Data'!$O:$O,0))) ->  | R92: =IF(F92="","",INDEX('All Data'!$I:$I,MATCH(F92,'All Data'!$O:$O,0))) ->  | S92: =IF(F92="","",INDEX('All Data'!$K:$K,MATCH(F92,'All Data'!$O:$O,0))) ->  | T92: =IF(F92="","",INDEX('All Data'!$AS:$AS,MATCH(F92,'All Data'!$O:$O,0))) -> 
D93: =IF(F93="","",INDEX('All Data'!$F:$F,MATCH(F93,'All Data'!$O:$O,0))) ->  | E93: =IF(F93<>"",COUNTIF($F$7:F93,"*")&".","") ->  | G93: =IF(F93="","",INDEX('All Data'!$N:$N,MATCH(F93,'All Data'!$O:$O,0))) ->  | H93: =IF(F93="","",INDEX('All Data'!$Q:$Q,MATCH(F93,'All Data'!$O:$O,0))) ->  | I93: =IF(F93="","",INDEX('All Data'!$AF:$AF,MATCH(F93,'All Data'!$O:$O,0))) ->  | J93: =IF(F93="","",INDEX('All Data'!$AD:$AD,MATCH(F93,'All Data'!$O:$O,0))) ->  | K93: =IF(F93="","",INDEX('All Data'!$X:$X,MATCH(F93,'All Data'!$O:$O,0))) ->  | L93: =IF(F93="","",INDEX('All Data'!$Y:$Y,MATCH(F93,'All Data'!$O:$O,0))) ->  | M93: =IF(F93="","",INDEX('All Data'!$Z:$Z,MATCH(F93,'All Data'!$O:$O,0))) ->  | N93: =IF(F93="","",INDEX('All Data'!$AA:$AA,MATCH(F93,'All Data'!$O:$O,0))) ->  | O93: =IF(F93="","",INDEX('All Data'!$U:$U,MATCH(F93,'All Data'!$O:$O,0))) ->  | P93: =IF(F93="","",INDEX('All Data'!$V:$V,MATCH(F93,'All Data'!$O:$O,0))) ->  | Q93: =IF(F93="","",INDEX('All Data'!$AK:$AK,MATCH(F93,'All Data'!$O:$O,0))) ->  | R93: =IF(F93="","",INDEX('All Data'!$I:$I,MATCH(F93,'All Data'!$O:$O,0))) ->  | S93: =IF(F93="","",INDEX('All Data'!$K:$K,MATCH(F93,'All Data'!$O:$O,0))) ->  | T93: =IF(F93="","",INDEX('All Data'!$AS:$AS,MATCH(F93,'All Data'!$O:$O,0))) -> 
D94: =IF(F94="","",INDEX('All Data'!$F:$F,MATCH(F94,'All Data'!$O:$O,0))) ->  | E94: =IF(F94<>"",COUNTIF($F$7:F94,"*")&".","") ->  | G94: =IF(F94="","",INDEX('All Data'!$N:$N,MATCH(F94,'All Data'!$O:$O,0))) ->  | H94: =IF(F94="","",INDEX('All Data'!$Q:$Q,MATCH(F94,'All Data'!$O:$O,0))) ->  | I94: =IF(F94="","",INDEX('All Data'!$AF:$AF,MATCH(F94,'All Data'!$O:$O,0))) ->  | J94: =IF(F94="","",INDEX('All Data'!$AD:$AD,MATCH(F94,'All Data'!$O:$O,0))) ->  | K94: =IF(F94="","",INDEX('All Data'!$X:$X,MATCH(F94,'All Data'!$O:$O,0))) ->  | L94: =IF(F94="","",INDEX('All Data'!$Y:$Y,MATCH(F94,'All Data'!$O:$O,0))) ->  | M94: =IF(F94="","",INDEX('All Data'!$Z:$Z,MATCH(F94,'All Data'!$O:$O,0))) ->  | N94: =IF(F94="","",INDEX('All Data'!$AA:$AA,MATCH(F94,'All Data'!$O:$O,0))) ->  | O94: =IF(F94="","",INDEX('All Data'!$U:$U,MATCH(F94,'All Data'!$O:$O,0))) ->  | P94: =IF(F94="","",INDEX('All Data'!$V:$V,MATCH(F94,'All Data'!$O:$O,0))) ->  | Q94: =IF(F94="","",INDEX('All Data'!$AK:$AK,MATCH(F94,'All Data'!$O:$O,0))) ->  | R94: =IF(F94="","",INDEX('All Data'!$I:$I,MATCH(F94,'All Data'!$O:$O,0))) ->  | S94: =IF(F94="","",INDEX('All Data'!$K:$K,MATCH(F94,'All Data'!$O:$O,0))) ->  | T94: =IF(F94="","",INDEX('All Data'!$AS:$AS,MATCH(F94,'All Data'!$O:$O,0))) -> 
D95: =IF(F95="","",INDEX('All Data'!$F:$F,MATCH(F95,'All Data'!$O:$O,0))) ->  | E95: =IF(F95<>"",COUNTIF($F$7:F95,"*")&".","") ->  | G95: =IF(F95="","",INDEX('All Data'!$N:$N,MATCH(F95,'All Data'!$O:$O,0))) ->  | H95: =IF(F95="","",INDEX('All Data'!$Q:$Q,MATCH(F95,'All Data'!$O:$O,0))) ->  | I95: =IF(F95="","",INDEX('All Data'!$AF:$AF,MATCH(F95,'All Data'!$O:$O,0))) ->  | J95: =IF(F95="","",INDEX('All Data'!$AD:$AD,MATCH(F95,'All Data'!$O:$O,0))) ->  | K95: =IF(F95="","",INDEX('All Data'!$X:$X,MATCH(F95,'All Data'!$O:$O,0))) ->  | L95: =IF(F95="","",INDEX('All Data'!$Y:$Y,MATCH(F95,'All Data'!$O:$O,0))) ->  | M95: =IF(F95="","",INDEX('All Data'!$Z:$Z,MATCH(F95,'All Data'!$O:$O,0))) ->  | N95: =IF(F95="","",INDEX('All Data'!$AA:$AA,MATCH(F95,'All Data'!$O:$O,0))) ->  | O95: =IF(F95="","",INDEX('All Data'!$U:$U,MATCH(F95,'All Data'!$O:$O,0))) ->  | P95: =IF(F95="","",INDEX('All Data'!$V:$V,MATCH(F95,'All Data'!$O:$O,0))) ->  | Q95: =IF(F95="","",INDEX('All Data'!$AK:$AK,MATCH(F95,'All Data'!$O:$O,0))) ->  | R95: =IF(F95="","",INDEX('All Data'!$I:$I,MATCH(F95,'All Data'!$O:$O,0))) ->  | S95: =IF(F95="","",INDEX('All Data'!$K:$K,MATCH(F95,'All Data'!$O:$O,0))) ->  | T95: =IF(F95="","",INDEX('All Data'!$AS:$AS,MATCH(F95,'All Data'!$O:$O,0))) -> 
D96: =IF(F96="","",INDEX('All Data'!$F:$F,MATCH(F96,'All Data'!$O:$O,0))) ->  | E96: =IF(F96<>"",COUNTIF($F$7:F96,"*")&".","") ->  | G96: =IF(F96="","",INDEX('All Data'!$N:$N,MATCH(F96,'All Data'!$O:$O,0))) ->  | H96: =IF(F96="","",INDEX('All Data'!$Q:$Q,MATCH(F96,'All Data'!$O:$O,0))) ->  | I96: =IF(F96="","",INDEX('All Data'!$AF:$AF,MATCH(F96,'All Data'!$O:$O,0))) ->  | J96: =IF(F96="","",INDEX('All Data'!$AD:$AD,MATCH(F96,'All Data'!$O:$O,0))) ->  | K96: =IF(F96="","",INDEX('All Data'!$X:$X,MATCH(F96,'All Data'!$O:$O,0))) ->  | L96: =IF(F96="","",INDEX('All Data'!$Y:$Y,MATCH(F96,'All Data'!$O:$O,0))) ->  | M96: =IF(F96="","",INDEX('All Data'!$Z:$Z,MATCH(F96,'All Data'!$O:$O,0))) ->  | N96: =IF(F96="","",INDEX('All Data'!$AA:$AA,MATCH(F96,'All Data'!$O:$O,0))) ->  | O96: =IF(F96="","",INDEX('All Data'!$U:$U,MATCH(F96,'All Data'!$O:$O,0))) ->  | P96: =IF(F96="","",INDEX('All Data'!$V:$V,MATCH(F96,'All Data'!$O:$O,0))) ->  | Q96: =IF(F96="","",INDEX('All Data'!$AK:$AK,MATCH(F96,'All Data'!$O:$O,0))) ->  | R96: =IF(F96="","",INDEX('All Data'!$I:$I,MATCH(F96,'All Data'!$O:$O,0))) ->  | S96: =IF(F96="","",INDEX('All Data'!$K:$K,MATCH(F96,'All Data'!$O:$O,0))) ->  | T96: =IF(F96="","",INDEX('All Data'!$AS:$AS,MATCH(F96,'All Data'!$O:$O,0))) -> 
D97: =IF(F97="","",INDEX('All Data'!$F:$F,MATCH(F97,'All Data'!$O:$O,0))) ->  | E97: =IF(F97<>"",COUNTIF($F$7:F97,"*")&".","") ->  | G97: =IF(F97="","",INDEX('All Data'!$N:$N,MATCH(F97,'All Data'!$O:$O,0))) ->  | H97: =IF(F97="","",INDEX('All Data'!$Q:$Q,MATCH(F97,'All Data'!$O:$O,0))) ->  | I97: =IF(F97="","",INDEX('All Data'!$AF:$AF,MATCH(F97,'All Data'!$O:$O,0))) ->  | J97: =IF(F97="","",INDEX('All Data'!$AD:$AD,MATCH(F97,'All Data'!$O:$O,0))) ->  | K97: =IF(F97="","",INDEX('All Data'!$X:$X,MATCH(F97,'All Data'!$O:$O,0))) ->  | L97: =IF(F97="","",INDEX('All Data'!$Y:$Y,MATCH(F97,'All Data'!$O:$O,0))) ->  | M97: =IF(F97="","",INDEX('All Data'!$Z:$Z,MATCH(F97,'All Data'!$O:$O,0))) ->  | N97: =IF(F97="","",INDEX('All Data'!$AA:$AA,MATCH(F97,'All Data'!$O:$O,0))) ->  | O97: =IF(F97="","",INDEX('All Data'!$U:$U,MATCH(F97,'All Data'!$O:$O,0))) ->  | P97: =IF(F97="","",INDEX('All Data'!$V:$V,MATCH(F97,'All Data'!$O:$O,0))) ->  | Q97: =IF(F97="","",INDEX('All Data'!$AK:$AK,MATCH(F97,'All Data'!$O:$O,0))) ->  | R97: =IF(F97="","",INDEX('All Data'!$I:$I,MATCH(F97,'All Data'!$O:$O,0))) ->  | S97: =IF(F97="","",INDEX('All Data'!$K:$K,MATCH(F97,'All Data'!$O:$O,0))) ->  | T97: =IF(F97="","",INDEX('All Data'!$AS:$AS,MATCH(F97,'All Data'!$O:$O,0))) -> 
D98: =IF(F98="","",INDEX('All Data'!$F:$F,MATCH(F98,'All Data'!$O:$O,0))) ->  | E98: =IF(F98<>"",COUNTIF($F$7:F98,"*")&".","") ->  | G98: =IF(F98="","",INDEX('All Data'!$N:$N,MATCH(F98,'All Data'!$O:$O,0))) ->  | H98: =IF(F98="","",INDEX('All Data'!$Q:$Q,MATCH(F98,'All Data'!$O:$O,0))) ->  | I98: =IF(F98="","",INDEX('All Data'!$AF:$AF,MATCH(F98,'All Data'!$O:$O,0))) ->  | J98: =IF(F98="","",INDEX('All Data'!$AD:$AD,MATCH(F98,'All Data'!$O:$O,0))) ->  | K98: =IF(F98="","",INDEX('All Data'!$X:$X,MATCH(F98,'All Data'!$O:$O,0))) ->  | L98: =IF(F98="","",INDEX('All Data'!$Y:$Y,MATCH(F98,'All Data'!$O:$O,0))) ->  | M98: =IF(F98="","",INDEX('All Data'!$Z:$Z,MATCH(F98,'All Data'!$O:$O,0))) ->  | N98: =IF(F98="","",INDEX('All Data'!$AA:$AA,MATCH(F98,'All Data'!$O:$O,0))) ->  | O98: =IF(F98="","",INDEX('All Data'!$U:$U,MATCH(F98,'All Data'!$O:$O,0))) ->  | P98: =IF(F98="","",INDEX('All Data'!$V:$V,MATCH(F98,'All Data'!$O:$O,0))) ->  | Q98: =IF(F98="","",INDEX('All Data'!$AK:$AK,MATCH(F98,'All Data'!$O:$O,0))) ->  | R98: =IF(F98="","",INDEX('All Data'!$I:$I,MATCH(F98,'All Data'!$O:$O,0))) ->  | S98: =IF(F98="","",INDEX('All Data'!$K:$K,MATCH(F98,'All Data'!$O:$O,0))) ->  | T98: =IF(F98="","",INDEX('All Data'!$AS:$AS,MATCH(F98,'All Data'!$O:$O,0))) -> 
D99: =IF(F99="","",INDEX('All Data'!$F:$F,MATCH(F99,'All Data'!$O:$O,0))) ->  | E99: =IF(F99<>"",COUNTIF($F$7:F99,"*")&".","") ->  | G99: =IF(F99="","",INDEX('All Data'!$N:$N,MATCH(F99,'All Data'!$O:$O,0))) ->  | H99: =IF(F99="","",INDEX('All Data'!$Q:$Q,MATCH(F99,'All Data'!$O:$O,0))) ->  | I99: =IF(F99="","",INDEX('All Data'!$AF:$AF,MATCH(F99,'All Data'!$O:$O,0))) ->  | J99: =IF(F99="","",INDEX('All Data'!$AD:$AD,MATCH(F99,'All Data'!$O:$O,0))) ->  | K99: =IF(F99="","",INDEX('All Data'!$X:$X,MATCH(F99,'All Data'!$O:$O,0))) ->  | L99: =IF(F99="","",INDEX('All Data'!$Y:$Y,MATCH(F99,'All Data'!$O:$O,0))) ->  | M99: =IF(F99="","",INDEX('All Data'!$Z:$Z,MATCH(F99,'All Data'!$O:$O,0))) ->  | N99: =IF(F99="","",INDEX('All Data'!$AA:$AA,MATCH(F99,'All Data'!$O:$O,0))) ->  | O99: =IF(F99="","",INDEX('All Data'!$U:$U,MATCH(F99,'All Data'!$O:$O,0))) ->  | P99: =IF(F99="","",INDEX('All Data'!$V:$V,MATCH(F99,'All Data'!$O:$O,0))) ->  | Q99: =IF(F99="","",INDEX('All Data'!$AK:$AK,MATCH(F99,'All Data'!$O:$O,0))) ->  | R99: =IF(F99="","",INDEX('All Data'!$I:$I,MATCH(F99,'All Data'!$O:$O,0))) ->  | S99: =IF(F99="","",INDEX('All Data'!$K:$K,MATCH(F99,'All Data'!$O:$O,0))) ->  | T99: =IF(F99="","",INDEX('All Data'!$AS:$AS,MATCH(F99,'All Data'!$O:$O,0))) -> 
D100: =IF(F100="","",INDEX('All Data'!$F:$F,MATCH(F100,'All Data'!$O:$O,0))) ->  | E100: =IF(F100<>"",COUNTIF($F$7:F100,"*")&".","") ->  | G100: =IF(F100="","",INDEX('All Data'!$N:$N,MATCH(F100,'All Data'!$O:$O,0))) ->  | H100: =IF(F100="","",INDEX('All Data'!$Q:$Q,MATCH(F100,'All Data'!$O:$O,0))) ->  | I100: =IF(F100="","",INDEX('All Data'!$AF:$AF,MATCH(F100,'All Data'!$O:$O,0))) ->  | J100: =IF(F100="","",INDEX('All Data'!$AD:$AD,MATCH(F100,'All Data'!$O:$O,0))) ->  | K100: =IF(F100="","",INDEX('All Data'!$X:$X,MATCH(F100,'All Data'!$O:$O,0))) ->  | L100: =IF(F100="","",INDEX('All Data'!$Y:$Y,MATCH(F100,'All Data'!$O:$O,0))) ->  | M100: =IF(F100="","",INDEX('All Data'!$Z:$Z,MATCH(F100,'All Data'!$O:$O,0))) ->  | N100: =IF(F100="","",INDEX('All Data'!$AA:$AA,MATCH(F100,'All Data'!$O:$O,0))) ->  | O100: =IF(F100="","",INDEX('All Data'!$U:$U,MATCH(F100,'All Data'!$O:$O,0))) ->  | P100: =IF(F100="","",INDEX('All Data'!$V:$V,MATCH(F100,'All Data'!$O:$O,0))) ->  | Q100: =IF(F100="","",INDEX('All Data'!$AK:$AK,MATCH(F100,'All Data'!$O:$O,0))) ->  | R100: =IF(F100="","",INDEX('All Data'!$I:$I,MATCH(F100,'All Data'!$O:$O,0))) ->  | S100: =IF(F100="","",INDEX('All Data'!$K:$K,MATCH(F100,'All Data'!$O:$O,0))) ->  | T100: =IF(F100="","",INDEX('All Data'!$AS:$AS,MATCH(F100,'All Data'!$O:$O,0))) -> 
D101: =IF(F101="","",INDEX('All Data'!$F:$F,MATCH(F101,'All Data'!$O:$O,0))) ->  | E101: =IF(F101<>"",COUNTIF($F$7:F101,"*")&".","") ->  | G101: =IF(F101="","",INDEX('All Data'!$N:$N,MATCH(F101,'All Data'!$O:$O,0))) ->  | H101: =IF(F101="","",INDEX('All Data'!$Q:$Q,MATCH(F101,'All Data'!$O:$O,0))) ->  | I101: =IF(F101="","",INDEX('All Data'!$AF:$AF,MATCH(F101,'All Data'!$O:$O,0))) ->  | J101: =IF(F101="","",INDEX('All Data'!$AD:$AD,MATCH(F101,'All Data'!$O:$O,0))) ->  | K101: =IF(F101="","",INDEX('All Data'!$X:$X,MATCH(F101,'All Data'!$O:$O,0))) ->  | L101: =IF(F101="","",INDEX('All Data'!$Y:$Y,MATCH(F101,'All Data'!$O:$O,0))) ->  | M101: =IF(F101="","",INDEX('All Data'!$Z:$Z,MATCH(F101,'All Data'!$O:$O,0))) ->  | N101: =IF(F101="","",INDEX('All Data'!$AA:$AA,MATCH(F101,'All Data'!$O:$O,0))) ->  | O101: =IF(F101="","",INDEX('All Data'!$U:$U,MATCH(F101,'All Data'!$O:$O,0))) ->  | P101: =IF(F101="","",INDEX('All Data'!$V:$V,MATCH(F101,'All Data'!$O:$O,0))) ->  | Q101: =IF(F101="","",INDEX('All Data'!$AK:$AK,MATCH(F101,'All Data'!$O:$O,0))) ->  | R101: =IF(F101="","",INDEX('All Data'!$I:$I,MATCH(F101,'All Data'!$O:$O,0))) ->  | S101: =IF(F101="","",INDEX('All Data'!$K:$K,MATCH(F101,'All Data'!$O:$O,0))) ->  | T101: =IF(F101="","",INDEX('All Data'!$AS:$AS,MATCH(F101,'All Data'!$O:$O,0))) -> 
D102: =IF(F102="","",INDEX('All Data'!$F:$F,MATCH(F102,'All Data'!$O:$O,0))) ->  | E102: =IF(F102<>"",COUNTIF($F$7:F102,"*")&".","") ->  | G102: =IF(F102="","",INDEX('All Data'!$N:$N,MATCH(F102,'All Data'!$O:$O,0))) ->  | H102: =IF(F102="","",INDEX('All Data'!$Q:$Q,MATCH(F102,'All Data'!$O:$O,0))) ->  | I102: =IF(F102="","",INDEX('All Data'!$AF:$AF,MATCH(F102,'All Data'!$O:$O,0))) ->  | J102: =IF(F102="","",INDEX('All Data'!$AD:$AD,MATCH(F102,'All Data'!$O:$O,0))) ->  | K102: =IF(F102="","",INDEX('All Data'!$X:$X,MATCH(F102,'All Data'!$O:$O,0))) ->  | L102: =IF(F102="","",INDEX('All Data'!$Y:$Y,MATCH(F102,'All Data'!$O:$O,0))) ->  | M102: =IF(F102="","",INDEX('All Data'!$Z:$Z,MATCH(F102,'All Data'!$O:$O,0))) ->  | N102: =IF(F102="","",INDEX('All Data'!$AA:$AA,MATCH(F102,'All Data'!$O:$O,0))) ->  | O102: =IF(F102="","",INDEX('All Data'!$U:$U,MATCH(F102,'All Data'!$O:$O,0))) ->  | P102: =IF(F102="","",INDEX('All Data'!$V:$V,MATCH(F102,'All Data'!$O:$O,0))) ->  | Q102: =IF(F102="","",INDEX('All Data'!$AK:$AK,MATCH(F102,'All Data'!$O:$O,0))) ->  | R102: =IF(F102="","",INDEX('All Data'!$I:$I,MATCH(F102,'All Data'!$O:$O,0))) ->  | S102: =IF(F102="","",INDEX('All Data'!$K:$K,MATCH(F102,'All Data'!$O:$O,0))) ->  | T102: =IF(F102="","",INDEX('All Data'!$AS:$AS,MATCH(F102,'All Data'!$O:$O,0))) -> 
D103: =IF(F103="","",INDEX('All Data'!$F:$F,MATCH(F103,'All Data'!$O:$O,0))) ->  | E103: =IF(F103<>"",COUNTIF($F$7:F103,"*")&".","") ->  | G103: =IF(F103="","",INDEX('All Data'!$N:$N,MATCH(F103,'All Data'!$O:$O,0))) ->  | H103: =IF(F103="","",INDEX('All Data'!$Q:$Q,MATCH(F103,'All Data'!$O:$O,0))) ->  | I103: =IF(F103="","",INDEX('All Data'!$AF:$AF,MATCH(F103,'All Data'!$O:$O,0))) ->  | J103: =IF(F103="","",INDEX('All Data'!$AD:$AD,MATCH(F103,'All Data'!$O:$O,0))) ->  | K103: =IF(F103="","",INDEX('All Data'!$X:$X,MATCH(F103,'All Data'!$O:$O,0))) ->  | L103: =IF(F103="","",INDEX('All Data'!$Y:$Y,MATCH(F103,'All Data'!$O:$O,0))) ->  | M103: =IF(F103="","",INDEX('All Data'!$Z:$Z,MATCH(F103,'All Data'!$O:$O,0))) ->  | N103: =IF(F103="","",INDEX('All Data'!$AA:$AA,MATCH(F103,'All Data'!$O:$O,0))) ->  | O103: =IF(F103="","",INDEX('All Data'!$U:$U,MATCH(F103,'All Data'!$O:$O,0))) ->  | P103: =IF(F103="","",INDEX('All Data'!$V:$V,MATCH(F103,'All Data'!$O:$O,0))) ->  | Q103: =IF(F103="","",INDEX('All Data'!$AK:$AK,MATCH(F103,'All Data'!$O:$O,0))) ->  | R103: =IF(F103="","",INDEX('All Data'!$I:$I,MATCH(F103,'All Data'!$O:$O,0))) ->  | S103: =IF(F103="","",INDEX('All Data'!$K:$K,MATCH(F103,'All Data'!$O:$O,0))) ->  | T103: =IF(F103="","",INDEX('All Data'!$AS:$AS,MATCH(F103,'All Data'!$O:$O,0))) -> 
D104: =IF(F104="","",INDEX('All Data'!$F:$F,MATCH(F104,'All Data'!$O:$O,0))) ->  | E104: =IF(F104<>"",COUNTIF($F$7:F104,"*")&".","") ->  | G104: =IF(F104="","",INDEX('All Data'!$N:$N,MATCH(F104,'All Data'!$O:$O,0))) ->  | H104: =IF(F104="","",INDEX('All Data'!$Q:$Q,MATCH(F104,'All Data'!$O:$O,0))) ->  | I104: =IF(F104="","",INDEX('All Data'!$AF:$AF,MATCH(F104,'All Data'!$O:$O,0))) ->  | J104: =IF(F104="","",INDEX('All Data'!$AD:$AD,MATCH(F104,'All Data'!$O:$O,0))) ->  | K104: =IF(F104="","",INDEX('All Data'!$X:$X,MATCH(F104,'All Data'!$O:$O,0))) ->  | L104: =IF(F104="","",INDEX('All Data'!$Y:$Y,MATCH(F104,'All Data'!$O:$O,0))) ->  | M104: =IF(F104="","",INDEX('All Data'!$Z:$Z,MATCH(F104,'All Data'!$O:$O,0))) ->  | N104: =IF(F104="","",INDEX('All Data'!$AA:$AA,MATCH(F104,'All Data'!$O:$O,0))) ->  | O104: =IF(F104="","",INDEX('All Data'!$U:$U,MATCH(F104,'All Data'!$O:$O,0))) ->  | P104: =IF(F104="","",INDEX('All Data'!$V:$V,MATCH(F104,'All Data'!$O:$O,0))) ->  | Q104: =IF(F104="","",INDEX('All Data'!$AK:$AK,MATCH(F104,'All Data'!$O:$O,0))) ->  | R104: =IF(F104="","",INDEX('All Data'!$I:$I,MATCH(F104,'All Data'!$O:$O,0))) ->  | S104: =IF(F104="","",INDEX('All Data'!$K:$K,MATCH(F104,'All Data'!$O:$O,0))) ->  | T104: =IF(F104="","",INDEX('All Data'!$AS:$AS,MATCH(F104,'All Data'!$O:$O,0))) -> 
D105: =IF(F105="","",INDEX('All Data'!$F:$F,MATCH(F105,'All Data'!$O:$O,0))) ->  | E105: =IF(F105<>"",COUNTIF($F$7:F105,"*")&".","") ->  | G105: =IF(F105="","",INDEX('All Data'!$N:$N,MATCH(F105,'All Data'!$O:$O,0))) ->  | H105: =IF(F105="","",INDEX('All Data'!$Q:$Q,MATCH(F105,'All Data'!$O:$O,0))) ->  | I105: =IF(F105="","",INDEX('All Data'!$AF:$AF,MATCH(F105,'All Data'!$O:$O,0))) ->  | J105: =IF(F105="","",INDEX('All Data'!$AD:$AD,MATCH(F105,'All Data'!$O:$O,0))) ->  | K105: =IF(F105="","",INDEX('All Data'!$X:$X,MATCH(F105,'All Data'!$O:$O,0))) ->  | L105: =IF(F105="","",INDEX('All Data'!$Y:$Y,MATCH(F105,'All Data'!$O:$O,0))) ->  | M105: =IF(F105="","",INDEX('All Data'!$Z:$Z,MATCH(F105,'All Data'!$O:$O,0))) ->  | N105: =IF(F105="","",INDEX('All Data'!$AA:$AA,MATCH(F105,'All Data'!$O:$O,0))) ->  | O105: =IF(F105="","",INDEX('All Data'!$U:$U,MATCH(F105,'All Data'!$O:$O,0))) ->  | P105: =IF(F105="","",INDEX('All Data'!$V:$V,MATCH(F105,'All Data'!$O:$O,0))) ->  | Q105: =IF(F105="","",INDEX('All Data'!$AK:$AK,MATCH(F105,'All Data'!$O:$O,0))) ->  | R105: =IF(F105="","",INDEX('All Data'!$I:$I,MATCH(F105,'All Data'!$O:$O,0))) ->  | S105: =IF(F105="","",INDEX('All Data'!$K:$K,MATCH(F105,'All Data'!$O:$O,0))) ->  | T105: =IF(F105="","",INDEX('All Data'!$AS:$AS,MATCH(F105,'All Data'!$O:$O,0))) -> 
D106: =IF(F106="","",INDEX('All Data'!$F:$F,MATCH(F106,'All Data'!$O:$O,0))) ->  | E106: =IF(F106<>"",COUNTIF($F$7:F106,"*")&".","") ->  | G106: =IF(F106="","",INDEX('All Data'!$N:$N,MATCH(F106,'All Data'!$O:$O,0))) ->  | H106: =IF(F106="","",INDEX('All Data'!$Q:$Q,MATCH(F106,'All Data'!$O:$O,0))) ->  | I106: =IF(F106="","",INDEX('All Data'!$AF:$AF,MATCH(F106,'All Data'!$O:$O,0))) ->  | J106: =IF(F106="","",INDEX('All Data'!$AD:$AD,MATCH(F106,'All Data'!$O:$O,0))) ->  | K106: =IF(F106="","",INDEX('All Data'!$X:$X,MATCH(F106,'All Data'!$O:$O,0))) ->  | L106: =IF(F106="","",INDEX('All Data'!$Y:$Y,MATCH(F106,'All Data'!$O:$O,0))) ->  | M106: =IF(F106="","",INDEX('All Data'!$Z:$Z,MATCH(F106,'All Data'!$O:$O,0))) ->  | N106: =IF(F106="","",INDEX('All Data'!$AA:$AA,MATCH(F106,'All Data'!$O:$O,0))) ->  | O106: =IF(F106="","",INDEX('All Data'!$U:$U,MATCH(F106,'All Data'!$O:$O,0))) ->  | P106: =IF(F106="","",INDEX('All Data'!$V:$V,MATCH(F106,'All Data'!$O:$O,0))) ->  | Q106: =IF(F106="","",INDEX('All Data'!$AK:$AK,MATCH(F106,'All Data'!$O:$O,0))) ->  | R106: =IF(F106="","",INDEX('All Data'!$I:$I,MATCH(F106,'All Data'!$O:$O,0))) ->  | S106: =IF(F106="","",INDEX('All Data'!$K:$K,MATCH(F106,'All Data'!$O:$O,0))) ->  | T106: =IF(F106="","",INDEX('All Data'!$AS:$AS,MATCH(F106,'All Data'!$O:$O,0))) -> 

Sheet DCDC Ref
D1: Panasonic Automotive Inductor Quick Search with DC/DC Conditions
D19: - | H19: Conditions | N19: Diagrams
J20: Select or enter values↓ | X20: View typical designs↓
H21: Vin | J21: 12 | L21: V | O21: =IF(J25="","","Fsw = "&J25&"kHz") -> Fsw = 100kHz | T21: Typical design example of … | W21: (Select here)
H22: Vout | J22: 5 | L22: V | N22: =IF(J21="",""," "&J21&"V") -> 12V | P22: =IF(J22="","",J22&"V ") -> 5V | T22: app image | X22: design values
H23: Mode | J23: =IF(J21=J22,"",IF(J21>J22,"Buck","Boost")) -> Buck | K23: - | M23: =(J22*(J21-J22))/(M26*M28*(J24/J26)*J21)*M30 -> 6.319444444e-06 | N23: fbuck-boost option | P23: =IF(OR(J24="",J26=""),"",J24&"A / "&J26&"ph") -> 20A / 1ph | X23: =INDEX(Utility!AD:AD,MATCH('DCDC Ref'!$W$21,Utility!O:O,0)) -> 12
H24: Iout | J24: 20 | L24: A | M24: =(J21^2*(J22-J21))/(M26*M28*(J24/J26)*J22^2)*M30 -> -8.736e-05 | P24: =IF(OR(J21="",J22="",J24="",J25=""),"","(Ripple "&J27&"%)") -> (Ripple 30%) | X24: =INDEX(Utility!AE:AE,MATCH('DCDC Ref'!$W$21,Utility!O:O,0)) -> 5
H25: Fsw | J25: 100 | L25: kHz | M25: =(J22^2*(J23-J22))/(M27*M30*(J28/J27)*J23^2)*M31 ->  | X25: =INDEX(Utility!AF:AF,MATCH('DCDC Ref'!$W$21,Utility!O:O,0)) -> 5
H26: Phase | J26: 1 | L26: ph | M26: =J25*1000 -> 100000 | X26: =INDEX(Utility!AG:AG,MATCH('DCDC Ref'!$W$21,Utility!O:O,0)) -> 400
H27: Ripple | J27: 30 | L27: % | O27: =IFERROR(""&ROUND(J30*J31/100,2)&" - "&ROUND(J30*J32/100,2)&"uH","") -> 8.22 - 4.42uH | X27: =INDEX(Utility!AH:AH,MATCH('DCDC Ref'!$W$21,Utility!O:O,0)) -> 1
H28: IL(peak) | J28: =計算sheet!AA26 -> 22.30769231 | L28: A | M28: =J27*0.01 -> 0.3 | O28: =IF(OR(J21="",J22="",J28="",J25=""),"",IFERROR("Isat(-30%): ≥"&ROUND(J28*($J$29/100),2)&"A","")) -> Isat(-30%): ≥22.31A | T28: board image
I29: Margin | J29: 100 | L29: % | O29: =IF(OR(J21="",J22="",J24="",J25=""),"","x "&J26) -> x 1
H30: L | J30: =IFERROR(IF(J23="Buck",M23,M24)*10^6,"") -> 6.319444444 | L30: uH | M30: =IF(COUNTIF(N30,"*sat*"),1.3,1) -> 1.3 | N30: Consider sat.(x1.3)
I31: Margin | J31: 130 | L31: % | N31: *130% default
I32: Margin | J32: 70 | L32: % | N32: *70% default
H33: Amient Temp. | J33: 20 | L33: ℃
T37: =" "&HYPERLINK(Utility!L5,"design example") -> design example
P48: *LxW x ph
D49: - | H49: Panasonic Inductor Proposals
G50: Size Rough (mm) | H50: # | I50: Status | J50: Automotive Grade | K50: ■ | L50: pcs | M50: 列1 | N50: Part Number | O50: Lo (uH) | P50: Total Area* (mm2) | Q50: LxW (mm) | R50: Height (mm) | S50: Method B typ (A) | T50: Method A typ (A) | U50: L=-30% typ (A) | V50: L=-20% typ (A) | W50: typ (mΩ) | X50: max (mΩ) | Y50: ~ | Z50: Temp. Range | AA50: Feature | AB50: URL | AC50: 列2
G51: =IF(N51="","",INDEX('All Data'!$AG:$AG,MATCH(N51,'All Data'!$O:$O,0))) -> _6 x 6 | H51: =IF(N51<>"",COUNTIF($N$51:N51,"*")&".","") -> 1. | I51: =IF(N51="","",INDEX('All Data'!$F:$F,MATCH(N51,'All Data'!$O:$O,0))) -> MP | J51: =IF(N51="","",INDEX('All Data'!$N:$N,MATCH(N51,'All Data'!$O:$O,0))) -> Yes | K51: =_xlfn.IMAGE(IF(N51="","",INDEX('All Data'!AT:AT,MATCH(N51,'All Data'!$O:$O,0))),"--") ->  | L51: =IF(テーブル3[[#This Row],[Part Number]]="","","x "&$J$26) -> x 1 | N51: ='All Data'!BU11 -> ETQP4M6R8YFN | O51: =IF(N51="","",INDEX('All Data'!$Q:$Q,MATCH(N51,'All Data'!$O:$O,0))) -> 6.8 | P51: =IF(N51="","",INDEX('All Data'!AE:AE,MATCH(N51,'All Data'!$O:$O,0))*$J$26) -> 39 | Q51: =IF(N51="","",INDEX('All Data'!AF:AF,MATCH(N51,'All Data'!$O:$O,0))) -> 6.5 x 6 | R51: =IF(N51="","",INDEX('All Data'!AD:AD,MATCH(N51,'All Data'!$O:$O,0))) -> 4.5 | S51: =IF(N51="","",INDEX('All Data'!X:X,MATCH(N51,'All Data'!$O:$O,0))) -> 5.2 | T51: =IF(N51="","",INDEX('All Data'!Y:Y,MATCH(N51,'All Data'!$O:$O,0))) -> 4.1 | U51: =IF(N51="","",INDEX('All Data'!Z:Z,MATCH(N51,'All Data'!$O:$O,0))) -> 10 | V51: =IF(N51="","",INDEX('All Data'!AA:AA,MATCH(N51,'All Data'!$O:$O,0))) -> 7.2 | W51: =IF(N51="","",INDEX('All Data'!U:U,MATCH(N51,'All Data'!$O:$O,0))) -> 39.3 | X51: =IF(N51="","",INDEX('All Data'!V:V,MATCH(N51,'All Data'!$O:$O,0))) -> 43.23 | Z51: =IF(N51="","",INDEX('All Data'!AK:AK,MATCH(N51,'All Data'!$O:$O,0))) -> -40 to +150 | AA51: =IF(N51="","",INDEX('All Data'!$K:$K,MATCH(N51,'All Data'!$O:$O,0))) -> High Isat (Standard) | AB51: =IF(N51="","",HYPERLINK(INDEX('All Data'!$AS:$AS,MATCH(N51,'All Data'!$O:$O,0)),"More Info")) -> More Info
G52: =IF(N52="","",INDEX('All Data'!$AG:$AG,MATCH(N52,'All Data'!$O:$O,0))) -> _7 x 7 | H52: =IF(N52<>"",COUNTIF($N$51:N52,"*")&".","") -> 2. | I52: =IF(N52="","",INDEX('All Data'!$F:$F,MATCH(N52,'All Data'!$O:$O,0))) -> MP | J52: =IF(N52="","",INDEX('All Data'!$N:$N,MATCH(N52,'All Data'!$O:$O,0))) -> Yes | K52: =_xlfn.IMAGE(IF(N52="","",INDEX('All Data'!AT:AT,MATCH(N52,'All Data'!$O:$O,0))),"--") ->  | L52: =IF(テーブル3[[#This Row],[Part Number]]="","","x "&$J$26) -> x 1 | N52: ='All Data'!BU12 -> ETQP5M6R8YFM | O52: =IF(N52="","",INDEX('All Data'!$Q:$Q,MATCH(N52,'All Data'!$O:$O,0))) -> 6.8 | P52: =IF(N52="","",INDEX('All Data'!AE:AE,MATCH(N52,'All Data'!$O:$O,0))*$J$26) -> 52.5 | Q52: =IF(N52="","",INDEX('All Data'!AF:AF,MATCH(N52,'All Data'!$O:$O,0))) -> 7.5 x 7 | R52: =IF(N52="","",INDEX('All Data'!AD:AD,MATCH(N52,'All Data'!$O:$O,0))) -> 5.4 | S52: =IF(N52="","",INDEX('All Data'!X:X,MATCH(N52,'All Data'!$O:$O,0))) -> 6.9 | T52: =IF(N52="","",INDEX('All Data'!Y:Y,MATCH(N52,'All Data'!$O:$O,0))) -> 5.5 | U52: =IF(N52="","",INDEX('All Data'!Z:Z,MATCH(N52,'All Data'!$O:$O,0))) -> 12.1 | V52: =IF(N52="","",INDEX('All Data'!AA:AA,MATCH(N52,'All Data'!$O:$O,0))) -> 8.6 | W52: =IF(N52="","",INDEX('All Data'!U:U,MATCH(N52,'All Data'!$O:$O,0))) -> 26.7 | X52: =IF(N52="","",INDEX('All Data'!V:V,MATCH(N52,'All Data'!$O:$O,0))) -> 29.4 | Z52: =IF(N52="","",INDEX('All Data'!AK:AK,MATCH(N52,'All Data'!$O:$O,0))) -> -40 to +150 | AA52: =IF(N52="","",INDEX('All Data'!$K:$K,MATCH(N52,'All Data'!$O:$O,0))) -> High Isat (Standard) | AB52: =IF(N52="","",HYPERLINK(INDEX('All Data'!$AS:$AS,MATCH(N52,'All Data'!$O:$O,0)),"More Info")) -> More Info
G53: =IF(N53="","",INDEX('All Data'!$AG:$AG,MATCH(N53,'All Data'!$O:$O,0))) -> _5 x 5 | H53: =IF(N53<>"",COUNTIF($N$51:N53,"*")&".","") -> 3. | I53: =IF(N53="","",INDEX('All Data'!$F:$F,MATCH(N53,'All Data'!$O:$O,0))) -> MP | J53: =IF(N53="","",INDEX('All Data'!$N:$N,MATCH(N53,'All Data'!$O:$O,0))) -> Yes | K53: =_xlfn.IMAGE(IF(N53="","",INDEX('All Data'!AT:AT,MATCH(N53,'All Data'!$O:$O,0))),"--") ->  | L53: =IF(テーブル3[[#This Row],[Part Number]]="","","x "&$J$26) -> x 1 | N53: ='All Data'!BU13 -> ETQP3M6R8KVP | O53: =IF(N53="","",INDEX('All Data'!$Q:$Q,MATCH(N53,'All Data'!$O:$O,0))) -> 6.8 | P53: =IF(N53="","",INDEX('All Data'!AE:AE,MATCH(N53,'All Data'!$O:$O,0))*$J$26) -> 27.5 | Q53: =IF(N53="","",INDEX('All Data'!AF:AF,MATCH(N53,'All Data'!$O:$O,0))) -> 5.5 x 5 | R53: =IF(N53="","",INDEX('All Data'!AD:AD,MATCH(N53,'All Data'!$O:$O,0))) -> 3 | S53: =IF(N53="","",INDEX('All Data'!X:X,MATCH(N53,'All Data'!$O:$O,0))) -> 3.5 | T53: =IF(N53="","",INDEX('All Data'!Y:Y,MATCH(N53,'All Data'!$O:$O,0))) -> 2.9 | U53: =IF(N53="","",INDEX('All Data'!Z:Z,MATCH(N53,'All Data'!$O:$O,0))) -> 6.1 | V53: =IF(N53="","",INDEX('All Data'!AA:AA,MATCH(N53,'All Data'!$O:$O,0))) -> 4.54 | W53: =IF(N53="","",INDEX('All Data'!U:U,MATCH(N53,'All Data'!$O:$O,0))) -> 65.7 | X53: =IF(N53="","",INDEX('All Data'!V:V,MATCH(N53,'All Data'!$O:$O,0))) -> 72.27 | Z53: =IF(N53="","",INDEX('All Data'!AK:AK,MATCH(N53,'All Data'!$O:$O,0))) -> -55 to +155 | AA53: =IF(N53="","",INDEX('All Data'!$K:$K,MATCH(N53,'All Data'!$O:$O,0))) -> LP (Low Profile) | AB53: =IF(N53="","",HYPERLINK(INDEX('All Data'!$AS:$AS,MATCH(N53,'All Data'!$O:$O,0)),"More Info")) -> More Info
G54: =IF(N54="","",INDEX('All Data'!$AG:$AG,MATCH(N54,'All Data'!$O:$O,0))) -> _6 x 6 | H54: =IF(N54<>"",COUNTIF($N$51:N54,"*")&".","") -> 4. | I54: =IF(N54="","",INDEX('All Data'!$F:$F,MATCH(N54,'All Data'!$O:$O,0))) -> MP | J54: =IF(N54="","",INDEX('All Data'!$N:$N,MATCH(N54,'All Data'!$O:$O,0))) -> Yes | K54: =_xlfn.IMAGE(IF(N54="","",INDEX('All Data'!AT:AT,MATCH(N54,'All Data'!$O:$O,0))),"--") ->  | L54: =IF(テーブル3[[#This Row],[Part Number]]="","","x "&$J$26) -> x 1 | N54: ='All Data'!BU14 -> ETQP3M6R8KVN | O54: =IF(N54="","",INDEX('All Data'!$Q:$Q,MATCH(N54,'All Data'!$O:$O,0))) -> 6.8 | P54: =IF(N54="","",INDEX('All Data'!AE:AE,MATCH(N54,'All Data'!$O:$O,0))*$J$26) -> 38.4 | Q54: =IF(N54="","",INDEX('All Data'!AF:AF,MATCH(N54,'All Data'!$O:$O,0))) -> 6.4 x 6 | R54: =IF(N54="","",INDEX('All Data'!AD:AD,MATCH(N54,'All Data'!$O:$O,0))) -> 3 | S54: =IF(N54="","",INDEX('All Data'!X:X,MATCH(N54,'All Data'!$O:$O,0))) -> 4.5 | T54: =IF(N54="","",INDEX('All Data'!Y:Y,MATCH(N54,'All Data'!$O:$O,0))) -> 3.6 | U54: =IF(N54="","",INDEX('All Data'!Z:Z,MATCH(N54,'All Data'!$O:$O,0))) -> 8.1 | V54: =IF(N54="","",INDEX('All Data'!AA:AA,MATCH(N54,'All Data'!$O:$O,0))) -> 5.48 | W54: =IF(N54="","",INDEX('All Data'!U:U,MATCH(N54,'All Data'!$O:$O,0))) -> 45.6 | X54: =IF(N54="","",INDEX('All Data'!V:V,MATCH(N54,'All Data'!$O:$O,0))) -> 50.16 | Z54: =IF(N54="","",INDEX('All Data'!AK:AK,MATCH(N54,'All Data'!$O:$O,0))) -> -55 to +155 | AA54: =IF(N54="","",INDEX('All Data'!$K:$K,MATCH(N54,'All Data'!$O:$O,0))) -> LP (Low Profile) | AB54: =IF(N54="","",HYPERLINK(INDEX('All Data'!$AS:$AS,MATCH(N54,'All Data'!$O:$O,0)),"More Info")) -> More Info
G55: =IF(N55="","",INDEX('All Data'!$AG:$AG,MATCH(N55,'All Data'!$O:$O,0))) -> _8 x 8 | H55: =IF(N55<>"",COUNTIF($N$51:N55,"*")&".","") -> 5. | I55: =IF(N55="","",INDEX('All Data'!$F:$F,MATCH(N55,'All Data'!$O:$O,0))) -> MP | J55: =IF(N55="","",INDEX('All Data'!$N:$N,MATCH(N55,'All Data'!$O:$O,0))) -> Yes | K55: =_xlfn.IMAGE(IF(N55="","",INDEX('All Data'!AT:AT,MATCH(N55,'All Data'!$O:$O,0))),"--") ->  | L55: =IF(テーブル3[[#This Row],[Part Number]]="","","x "&$J$26) -> x 1 | N55: ='All Data'!BU15 -> ETQP4M6R8KVK | O55: =IF(N55="","",INDEX('All Data'!$Q:$Q,MATCH(N55,'All Data'!$O:$O,0))) -> 6.8 | P55: =IF(N55="","",INDEX('All Data'!AE:AE,MATCH(N55,'All Data'!$O:$O,0))*$J$26) -> 68 | Q55: =IF(N55="","",INDEX('All Data'!AF:AF,MATCH(N55,'All Data'!$O:$O,0))) -> 8.5 x 8 | R55: =IF(N55="","",INDEX('All Data'!AD:AD,MATCH(N55,'All Data'!$O:$O,0))) -> 4 | S55: =IF(N55="","",INDEX('All Data'!X:X,MATCH(N55,'All Data'!$O:$O,0))) -> 6.9 | T55: =IF(N55="","",INDEX('All Data'!Y:Y,MATCH(N55,'All Data'!$O:$O,0))) -> 5.9 | U55: =IF(N55="","",INDEX('All Data'!Z:Z,MATCH(N55,'All Data'!$O:$O,0))) -> 11 | V55: =IF(N55="","",INDEX('All Data'!AA:AA,MATCH(N55,'All Data'!$O:$O,0))) -> 7.59 | W55: =IF(N55="","",INDEX('All Data'!U:U,MATCH(N55,'All Data'!$O:$O,0))) -> 23.5 | X55: =IF(N55="","",INDEX('All Data'!V:V,MATCH(N55,'All Data'!$O:$O,0))) -> 25.85 | Z55: =IF(N55="","",INDEX('All Data'!AK:AK,MATCH(N55,'All Data'!$O:$O,0))) -> -55 to +155 | AA55: =IF(N55="","",INDEX('All Data'!$K:$K,MATCH(N55,'All Data'!$O:$O,0))) -> LP (Low Profile) | AB55: =IF(N55="","",HYPERLINK(INDEX('All Data'!$AS:$AS,MATCH(N55,'All Data'!$O:$O,0)),"More Info")) -> More Info
G56: =IF(N56="","",INDEX('All Data'!$AG:$AG,MATCH(N56,'All Data'!$O:$O,0))) -> 10 x 10 | H56: =IF(N56<>"",COUNTIF($N$51:N56,"*")&".","") -> 6. | I56: =IF(N56="","",INDEX('All Data'!$F:$F,MATCH(N56,'All Data'!$O:$O,0))) -> MP | J56: =IF(N56="","",INDEX('All Data'!$N:$N,MATCH(N56,'All Data'!$O:$O,0))) -> Yes | K56: =_xlfn.IMAGE(IF(N56="","",INDEX('All Data'!AT:AT,MATCH(N56,'All Data'!$O:$O,0))),"--") ->  | L56: =IF(テーブル3[[#This Row],[Part Number]]="","","x "&$J$26) -> x 1 | N56: ='All Data'!BU16 -> ETQP4M6R8KVC | O56: =IF(N56="","",INDEX('All Data'!$Q:$Q,MATCH(N56,'All Data'!$O:$O,0))) -> 6.8 | P56: =IF(N56="","",INDEX('All Data'!AE:AE,MATCH(N56,'All Data'!$O:$O,0))*$J$26) -> 107 | Q56: =IF(N56="","",INDEX('All Data'!AF:AF,MATCH(N56,'All Data'!$O:$O,0))) -> 10.7 x 10 | R56: =IF(N56="","",INDEX('All Data'!AD:AD,MATCH(N56,'All Data'!$O:$O,0))) -> 4 | S56: =IF(N56="","",INDEX('All Data'!X:X,MATCH(N56,'All Data'!$O:$O,0))) -> 8.9 | T56: =IF(N56="","",INDEX('All Data'!Y:Y,MATCH(N56,'All Data'!$O:$O,0))) -> 7.4 | U56: =IF(N56="","",INDEX('All Data'!Z:Z,MATCH(N56,'All Data'!$O:$O,0))) -> 12.1 | V56: =IF(N56="","",INDEX('All Data'!AA:AA,MATCH(N56,'All Data'!$O:$O,0))) -> 8.92 | W56: =IF(N56="","",INDEX('All Data'!U:U,MATCH(N56,'All Data'!$O:$O,0))) -> 18.5 | X56: =IF(N56="","",INDEX('All Data'!V:V,MATCH(N56,'All Data'!$O:$O,0))) -> 20.35 | Z56: =IF(N56="","",INDEX('All Data'!AK:AK,MATCH(N56,'All Data'!$O:$O,0))) -> -55 to +155 | AA56: =IF(N56="","",INDEX('All Data'!$K:$K,MATCH(N56,'All Data'!$O:$O,0))) -> LP (Low Profile) | AB56: =IF(N56="","",HYPERLINK(INDEX('All Data'!$AS:$AS,MATCH(N56,'All Data'!$O:$O,0)),"More Info")) -> More Info
G57: =IF(N57="","",INDEX('All Data'!$AG:$AG,MATCH(N57,'All Data'!$O:$O,0))) -> _6 x 6 | H57: =IF(N57<>"",COUNTIF($N$51:N57,"*")&".","") -> 7. | I57: =IF(N57="","",INDEX('All Data'!$F:$F,MATCH(N57,'All Data'!$O:$O,0))) -> MP | J57: =IF(N57="","",INDEX('All Data'!$N:$N,MATCH(N57,'All Data'!$O:$O,0))) -> Yes | K57: =_xlfn.IMAGE(IF(N57="","",INDEX('All Data'!AT:AT,MATCH(N57,'All Data'!$O:$O,0))),"--") ->  | L57: =IF(テーブル3[[#This Row],[Part Number]]="","","x "&$J$26) -> x 1 | N57: ='All Data'!BU17 -> ETQP4M6R8KFN | O57: =IF(N57="","",INDEX('All Data'!$Q:$Q,MATCH(N57,'All Data'!$O:$O,0))) -> 6.8 | P57: =IF(N57="","",INDEX('All Data'!AE:AE,MATCH(N57,'All Data'!$O:$O,0))*$J$26) -> 38.4 | Q57: =IF(N57="","",INDEX('All Data'!AF:AF,MATCH(N57,'All Data'!$O:$O,0))) -> 6.4 x 6 | R57: =IF(N57="","",INDEX('All Data'!AD:AD,MATCH(N57,'All Data'!$O:$O,0))) -> 4.8 | S57: =IF(N57="","",INDEX('All Data'!X:X,MATCH(N57,'All Data'!$O:$O,0))) -> 5.9 | T57: =IF(N57="","",INDEX('All Data'!Y:Y,MATCH(N57,'All Data'!$O:$O,0))) -> 4.6 | U57: =IF(N57="","",INDEX('All Data'!Z:Z,MATCH(N57,'All Data'!$O:$O,0))) -> 9.9 | V57: =IF(N57="","",INDEX('All Data'!AA:AA,MATCH(N57,'All Data'!$O:$O,0))) -> 7.1 | W57: =IF(N57="","",INDEX('All Data'!U:U,MATCH(N57,'All Data'!$O:$O,0))) -> 32.1 | X57: =IF(N57="","",INDEX('All Data'!V:V,MATCH(N57,'All Data'!$O:$O,0))) -> 35.31 | Z57: =IF(N57="","",INDEX('All Data'!AK:AK,MATCH(N57,'All Data'!$O:$O,0))) -> -40 to +150 | AA57: =IF(N57="","",INDEX('All Data'!$K:$K,MATCH(N57,'All Data'!$O:$O,0))) -> LE (Low Price) | AB57: =IF(N57="","",HYPERLINK(INDEX('All Data'!$AS:$AS,MATCH(N57,'All Data'!$O:$O,0)),"More Info")) -> More Info
G58: =IF(N58="","",INDEX('All Data'!$AG:$AG,MATCH(N58,'All Data'!$O:$O,0))) -> 10 x 10 | H58: =IF(N58<>"",COUNTIF($N$51:N58,"*")&".","") -> 8. | I58: =IF(N58="","",INDEX('All Data'!$F:$F,MATCH(N58,'All Data'!$O:$O,0))) -> MP | J58: =IF(N58="","",INDEX('All Data'!$N:$N,MATCH(N58,'All Data'!$O:$O,0))) -> Yes | K58: =_xlfn.IMAGE(IF(N58="","",INDEX('All Data'!AT:AT,MATCH(N58,'All Data'!$O:$O,0))),"--") ->  | L58: =IF(テーブル3[[#This Row],[Part Number]]="","","x "&$J$26) -> x 1 | N58: ='All Data'!BU18 -> ETQP6M4R7YLC | O58: =IF(N58="","",INDEX('All Data'!$Q:$Q,MATCH(N58,'All Data'!$O:$O,0))) -> 4.7 | P58: =IF(N58="","",INDEX('All Data'!AE:AE,MATCH(N58,'All Data'!$O:$O,0))*$J$26) -> 109 | Q58: =IF(N58="","",INDEX('All Data'!AF:AF,MATCH(N58,'All Data'!$O:$O,0))) -> 10.9 x 10 | R58: =IF(N58="","",INDEX('All Data'!AD:AD,MATCH(N58,'All Data'!$O:$O,0))) -> 6 | S58: =IF(N58="","",INDEX('All Data'!X:X,MATCH(N58,'All Data'!$O:$O,0))) -> 14.1 | T58: =IF(N58="","",INDEX('All Data'!Y:Y,MATCH(N58,'All Data'!$O:$O,0))) -> 11.8 | U58: =IF(N58="","",INDEX('All Data'!Z:Z,MATCH(N58,'All Data'!$O:$O,0))) -> 22.5 | V58: =IF(N58="","",INDEX('All Data'!AA:AA,MATCH(N58,'All Data'!$O:$O,0))) -> 15.17 | W58: =IF(N58="","",INDEX('All Data'!U:U,MATCH(N58,'All Data'!$O:$O,0))) -> 8.7 | X58: =IF(N58="","",INDEX('All Data'!V:V,MATCH(N58,'All Data'!$O:$O,0))) -> 9.57 | Z58: =IF(N58="","",INDEX('All Data'!AK:AK,MATCH(N58,'All Data'!$O:$O,0))) -> -40 to +150 | AA58: =IF(N58="","",INDEX('All Data'!$K:$K,MATCH(N58,'All Data'!$O:$O,0))) -> High Isat (Standard) | AB58: =IF(N58="","",HYPERLINK(INDEX('All Data'!$AS:$AS,MATCH(N58,'All Data'!$O:$O,0)),"More Info")) -> More Info
G59: =IF(N59="","",INDEX('All Data'!$AG:$AG,MATCH(N59,'All Data'!$O:$O,0))) -> 12 x 12 | H59: =IF(N59<>"",COUNTIF($N$51:N59,"*")&".","") -> 9. | I59: =IF(N59="","",INDEX('All Data'!$F:$F,MATCH(N59,'All Data'!$O:$O,0))) -> MP | J59: =IF(N59="","",INDEX('All Data'!$N:$N,MATCH(N59,'All Data'!$O:$O,0))) -> Yes | K59: =_xlfn.IMAGE(IF(N59="","",INDEX('All Data'!AT:AT,MATCH(N59,'All Data'!$O:$O,0))),"--") ->  | L59: =IF(テーブル3[[#This Row],[Part Number]]="","","x "&$J$26) -> x 1 | N59: ='All Data'!BU19 -> ETQP8M4R7JFA | O59: =IF(N59="","",INDEX('All Data'!$Q:$Q,MATCH(N59,'All Data'!$O:$O,0))) -> 4.7 | P59: =IF(N59="","",INDEX('All Data'!AE:AE,MATCH(N59,'All Data'!$O:$O,0))*$J$26) -> 165.1 | Q59: =IF(N59="","",INDEX('All Data'!AF:AF,MATCH(N59,'All Data'!$O:$O,0))) -> 12.6 x 13.1 | R59: =IF(N59="","",INDEX('All Data'!AD:AD,MATCH(N59,'All Data'!$O:$O,0))) -> 8 | S59: =IF(N59="","",INDEX('All Data'!X:X,MATCH(N59,'All Data'!$O:$O,0))) -> 20.2 | T59: =IF(N59="","",INDEX('All Data'!Y:Y,MATCH(N59,'All Data'!$O:$O,0))) -> 16.8 | U59: =IF(N59="","",INDEX('All Data'!Z:Z,MATCH(N59,'All Data'!$O:$O,0))) -> 24.7 | V59: =IF(N59="","",INDEX('All Data'!AA:AA,MATCH(N59,'All Data'!$O:$O,0))) -> 17.6 | W59: =IF(N59="","",INDEX('All Data'!U:U,MATCH(N59,'All Data'!$O:$O,0))) -> 4.9 | X59: =IF(N59="","",INDEX('All Data'!V:V,MATCH(N59,'All Data'!$O:$O,0))) -> 5.39 | Z59: =IF(N59="","",INDEX('All Data'!AK:AK,MATCH(N59,'All Data'!$O:$O,0))) -> -40 to +160 | AA59: =IF(N59="","",INDEX('All Data'!$K:$K,MATCH(N59,'All Data'!$O:$O,0))) -> High Current (≥□12) | AB59: =IF(N59="","",HYPERLINK(INDEX('All Data'!$AS:$AS,MATCH(N59,'All Data'!$O:$O,0)),"More Info")) -> More Info
G60: =IF(N60="","",INDEX('All Data'!$AG:$AG,MATCH(N60,'All Data'!$O:$O,0))) -> 15 x 15 | H60: =IF(N60<>"",COUNTIF($N$51:N60,"*")&".","") -> 10. | I60: =IF(N60="","",INDEX('All Data'!$F:$F,MATCH(N60,'All Data'!$O:$O,0))) -> MP | J60: =IF(N60="","",INDEX('All Data'!$N:$N,MATCH(N60,'All Data'!$O:$O,0))) -> Yes | K60: =_xlfn.IMAGE(IF(N60="","",INDEX('All Data'!AT:AT,MATCH(N60,'All Data'!$O:$O,0))),"--") ->  | L60: =IF(テーブル3[[#This Row],[Part Number]]="","","x "&$J$26) -> x 1 | N60: ='All Data'!BU20 -> ETQPAM4R7JFW | O60: =IF(N60="","",INDEX('All Data'!$Q:$Q,MATCH(N60,'All Data'!$O:$O,0))) -> 4.7 | P60: =IF(N60="","",INDEX('All Data'!AE:AE,MATCH(N60,'All Data'!$O:$O,0))*$J$26) -> 268.3 | Q60: =IF(N60="","",INDEX('All Data'!AF:AF,MATCH(N60,'All Data'!$O:$O,0))) -> 15.6 x 17.2 | R60: =IF(N60="","",INDEX('All Data'!AD:AD,MATCH(N60,'All Data'!$O:$O,0))) -> 10.5 | S60: =IF(N60="","",INDEX('All Data'!X:X,MATCH(N60,'All Data'!$O:$O,0))) -> 31 | T60: =IF(N60="","",INDEX('All Data'!Y:Y,MATCH(N60,'All Data'!$O:$O,0))) -> 26 | U60: =IF(N60="","",INDEX('All Data'!Z:Z,MATCH(N60,'All Data'!$O:$O,0))) -> 30 | V60: =IF(N60="","",INDEX('All Data'!AA:AA,MATCH(N60,'All Data'!$O:$O,0))) -> 21.1 | W60: =IF(N60="","",INDEX('All Data'!U:U,MATCH(N60,'All Data'!$O:$O,0))) -> 3.1 | X60: =IF(N60="","",INDEX('All Data'!V:V,MATCH(N60,'All Data'!$O:$O,0))) -> 3.41 | Z60: =IF(N60="","",INDEX('All Data'!AK:AK,MATCH(N60,'All Data'!$O:$O,0))) -> -40 to +160 | AA60: =IF(N60="","",INDEX('All Data'!$K:$K,MATCH(N60,'All Data'!$O:$O,0))) -> High Current (≥□12) | AB60: =IF(N60="","",HYPERLINK(INDEX('All Data'!$AS:$AS,MATCH(N60,'All Data'!$O:$O,0)),"More Info")) -> More Info
D61: -
D70: - | I70: Ref: http://www4.hcmut.edu.vn/~ndtuyen/Dowload/slva535a.pdf
BX110: ='DCDC Ref'!AF41AM98+BS110+BU110 -> 

Sheet All Data (hidden)
AS1: 新 (全ての品番に共通するようになっていた)↓下記$AO$2で関数参照する。 | BZ1: Vin | CA1: ='DCDC Ref'!J21 -> 12 | CC1: V
AS2: https://industrial.panasonic.com/ww/products/inductors/automotive-inductors/automotive-inductors/models/ | BZ2: Vout | CA2: ='DCDC Ref'!J22 -> 5 | CC2: V
BC3: L範囲とI範囲で表示絞る …却下。L値が何も出ないと気付きが得られない。条件書式設定でNGを示す。 | BZ3: Mode | CA3: =IF(CA1=CA2,"",IF(CA1>CA2,"Buck","Boost")) -> Buck
BC4: =IF(Q11>='DCDC Ref'!$J$29*'DCDC Ref'!$J$30/100,0, IF(Q11<='DCDC Ref'!$J$29*'DCDC Ref'!$J$31/100,0, IF(X11<('DCDC Ref'!$J$24/'DCDC Ref'!$J$27)*'DCDC Ref'!$J$25/100,0,1))) | BZ4: Iout | CA4: ='DCDC Ref'!J24 -> 20 | CC4: A
BC5: I範囲で表示絞る …適用中。多少Lずれてもいいが、電流値は必須要件。 | BZ5: Fsw | CA5: ='DCDC Ref'!J25 -> 100 | CC5: kHz
BC6: =IF(X11<('DCDC Ref'!$J$24/'DCDC Ref'!$J$27)*'DCDC Ref'!$J$25/100,0,1) | BO6: L Weight | BP6: 5000 | BZ6: Phase | CA6: ='DCDC Ref'!J26 -> 1 | CC6: ph
BD7: o | BG7: x | BJ7: o | BO7: I1,I2 Weight | BP7: 5 | BZ7: Ripple | CA7: ='DCDC Ref'!J27 -> 30 | CC7: %
B8: 上記からcsvでWeb公開品(カタログ品)の品番リストをDLし、Part Number列の最下に貼り付け氏、重複条件付き書式でカタログ品のみへフィルタリングした。 | U8: DCR | X8: I (⊿T) | Y8: I (⊿T) | Z8: Isat ⊿L=-30% | AA8: Isat ⊿L=-20% | AB8: Max Operating Voltage (V) | AG8: Dimmension (mm) | AM8: Vibration | AO8: L1(at Ir) *Consumer product only | BC8: ※Isat(-30%)選択中 | BD8: L | BG8: I1 | BJ8: I2 | BZ8: L | CA8: ='DCDC Ref'!J30 -> 6.319444444 | CC8: uH
B9: ↓ | O9: Part Number | Q9: L(uH) | T9: % | U9: typ(mΩ) | V9: max(mΩ) | W9: Tol. (%) | X9: method B | Y9: method A | Z9: typ(A) | AA9: typ(A) | AO9: L(uH) | AQ9: % | AR9: at Ir | BC9: ↓ | BD9: L値 | BG9: I rated値 (Method B) | BJ9: Isat値 (-30%)
A10: Original Order | B10: カタログ品 | C10: 確認メモ | D10: Check | E10: Renewal Date | F10: Status | G10: Maker | H10: Type | I10: Core | J10: Category | K10: Feature | L10: Series | M10: Series (Size) | N10: Automotive Grade | O10: Part Number | P10: 仮1 | Q10: Lo (uH) | R10: Lo RangeXX | S10: Lo Range (uH) | T10: Lo Tol. (%) | U10: DCR Typ (mOhm) | V10: DCR Max (mOhm) | W10: DCR Tol. (%) | X10: Method B (A typ at 40℃) | Y10: Method A (A typ at 40℃) | Z10: ⊿L=-30% typ (A) | AA10: ⊿L=-20% typ (A) | AB10: L (mm) | AC10: W (mm) | AD10: Max Height (mm) | AE10: Area (mm2) | AF10: Size (mm) | AG10: Rough Size (mm) | AH10: Max Height Range (mm) | AI10: Min Temp (deg.C) | AJ10: Max Temp (deg.C) | AK10: Temp Range (deg.C) | AL10: Max Voltage (V) | AM10: Vibration | AN10: MPQ | AO10: L1 (uH) | AP10: Rough L1 (uH) | AQ10: L1 Tol. (%) | AR10: Ir (A) | AS10: URL | AT10: Image URL | AU10: add3 | AV10: add4 | AW10: add5 | BC10: 該非判定 | BD10: %_Diff_L | BE10: ABS | BG10: %_Diff_I | BH10: NegaDown | BJ10: %_Diff_I | BK10: NegaDown | BQ10: L+I Weighted | BR10: 小差順位(同一値も連番) | BS10: 除外後順位 | BT10: 一致一覧 | BU10: 提案表示
A11: 37 | B11: 〇 | D11: OK | F11: MP | G11: Panasonic | H11: SMD | I11: Metal Composite | J11: PCC | K11: High Isat (Standard) | L11: 5M-YLC | M11: PCC-M1050ML | N11: Yes | O11: ETQP5MR33YLC | P11: =MID(All_PCC_a[[#This Row],[Part Number]],7,3) -> R33 | Q11: 0.33 | R11: =IF(All_PCC_a[[#This Row],[Lo (uH)]]<1,"<1",IF(All_PCC_a[[#This Row],[Lo (uH)]]<10,"<10",IF(All_PCC_a[[#This Row],[Lo (uH)]]<100,"<100",IF(All_PCC_a[[#This Row],[Lo (uH)]]<2000,"<2000","")))) -> <1 | S11: =IFERROR(VLOOKUP(All_PCC_a[[#This Row],[Lo (uH)]],Utility!$D$5:$E$43,2,1),"-") -> ≤ 0.4 | T11: 0.2 | U11: 1.1 | V11: 1.21 | W11: 10 | X11: 39.7 | Y11: 33.2 | Z11: 56.7 | AA11: 42.63 | AB11: 10.9 | AC11: 10 | AD11: 5 | AE11: =ROUND(All_PCC_a[[#This Row],[L (mm)]]*All_PCC_a[[#This Row],[W (mm)]],1) -> 109 | AF11: =All_PCC_a[[#This Row],[L (mm)]]&" x "&All_PCC_a[[#This Row],[W (mm)]] -> 10.9 x 10 | AG11: 10 x 10 | AH11: =IF(All_PCC_a[[#This Row],[Max Height (mm)]]<=9,"≤ "&ROUNDUP(AD11,0),"≤"&ROUNDUP(AD11,0)) -> ≤ 5 | AI11: -40 | AJ11: 150 | AK11: =All_PCC_a[[#This Row],[Min Temp (deg.C)]]&" to +"&All_PCC_a[[#This Row],[Max Temp (deg.C)]] -> -40 to +150 | AO11: - | AP11: =IFERROR(IF(L1Round>1,ROUND(L1Round,1),L1Round),"-") -> - | AQ11: - | AR11: - | AS11: https://industrial.panasonic.com/ww/products/pt/automotive-inductors/models/ETQP5MR33YLC | AT11: https://industrial.panasonic.com/content/data/CC/pictures/lineup-Metal-core.gif | AU11: =_xlfn.IMAGE(All_PCC_a[[#This Row],[Image URL]]) ->  | AY11: =--ISNUMBER(IFERROR(SEARCH(#REF!,'[1]All Data'!M40,1),"no match")) -> 0 | AZ11: =IF(AY11=1,COUNTIF($AY$11:AY11,1),"") ->  | BC11: =IF(Z11<('DCDC Ref'!$J$24/'DCDC Ref'!$J$26)*'DCDC Ref'!$J$28/100,0,1) -> 1 | BD11: =IF(BC11=1000000000,"",('All Data'!Q11-'DCDC Ref'!$J$30)/'DCDC Ref'!$J$30*100) -> -94.77802198 | BE11: =ABS(BD11) -> 94.77802198 | BH11: =IF(BG11<0,10000,BG11) -> 0 | BJ11: =IF(BC11=0,"",('All Data'!Z11-'DCDC Ref'!$J$28*('DCDC Ref'!$J$29/100))/'DCDC Ref'!$J$28*('DCDC Ref'!$J$29/100)*100) -> 154.1724138 | BK11: =IF(BJ11<0,10000,BJ11) -> 154.1724138 | BQ11: =IFERROR(BE11*$BP$6+BK11*$BP$7,"") -> 474660.972 | BR11: =IF(BQ11="","",RANK(BQ11,BQ$11:BQ$9927,1)+COUNTIF(BQ$11:BQ11,BQ11)-1) -> 84 | BS11: =RANK(BR11,BR$11:BR$9927,1) -> 84 | BT11: =IFERROR(INDEX($O$11:$O$1004,MATCH(ROWS($BS$11:BS11),$BS$11:$BS$1002,0)),"") -> ETQP4M6R8YFN | BU11: =IF(BT11<>"",BT11,"") -> ETQP4M6R8YFN
A12: 45 | B12: 〇 | C12: 2023/3/10MP, 2022/5/27 UD扱いへ(誤記だったとのこと)。2022/1/12 MPカタログ扱いへ。2021/11/12カタログUD 扱い。2021/3/23追加。 | D12: OK | F12: MP | G12: Panasonic | H12: SMD | I12: Metal Composite | J12: PCC | K12: High Current (≥□12) | L12: 8M-JFA | M12: PCC-M1280MF | N12: Yes | O12: ETQP8MR33JFA | P12: =MID(All_PCC_a[[#This Row],[Part Number]],7,3) -> R33 | Q12: 0.33 | R12: =IF(All_PCC_a[[#This Row],[Lo (uH)]]<1,"<1",IF(All_PCC_a[[#This Row],[Lo (uH)]]<10,"<10",IF(All_PCC_a[[#This Row],[Lo (uH)]]<100,"<100",IF(All_PCC_a[[#This Row],[Lo (uH)]]<2000,"<2000","")))) -> <1 | S12: =IFERROR(VLOOKUP(All_PCC_a[[#This Row],[Lo (uH)]],Utility!$D$5:$E$43,2,1),"-") -> ≤ 0.4 | T12: 0.2 | U12: 0.7 | V12: 0.77 | W12: 10 | X12: 53.5 | Y12: 44.4 | Z12: 84.5 | AA12: =ROUND(55.8461538461538,2) -> 55.85 | AB12: 12.6 | AC12: 13.2 | AD12: 8 | AE12: =ROUND(All_PCC_a[[#This Row],[L (mm)]]*All_PCC_a[[#This Row],[W (mm)]],1) -> 166.3 | AF12: =All_PCC_a[[#This Row],[L (mm)]]&" x "&All_PCC_a[[#This Row],[W (mm)]] -> 12.6 x 13.2 | AG12: 12 x 12 | AH12: =IF(All_PCC_a[[#This Row],[Max Height (mm)]]<=9,"≤ "&ROUNDUP(AD12,0),"≤"&ROUNDUP(AD12,0)) -> ≤ 8 | AI12: -40 | AJ12: 160 | AK12: =All_PCC_a[[#This Row],[Min Temp (deg.C)]]&" to +"&All_PCC_a[[#This Row],[Max Temp (deg.C)]] -> -40 to +160 | AN12: 15Gと聞いたがカタログは30G | AO12: - | AP12: =IFERROR(IF(L1Round>1,ROUND(L1Round,1),L1Round),"-") -> - | AQ12: - | AR12: - | AS12: https://industrial.panasonic.com/ww/products/pt/automotive-inductors/models/ETQP8MR33JFA | AT12: https://industrial.panasonic.com/content/data/CC/pictures/lineup-Large%20current.gif | AU12: =_xlfn.IMAGE(All_PCC_a[[#This Row],[Image URL]]) ->  | AY12: =--ISNUMBER(IFERROR(SEARCH(#REF!,'[1]All Data'!M41,1),"no match")) -> 0 | AZ12: =IF(AY12=1,COUNTIF($AY$11:AY12,1),"") ->  | BC12: =IF(Z12<('DCDC Ref'!$J$24/'DCDC Ref'!$J$26)*'DCDC Ref'!$J$28/100,0,1) -> 1 | BD12: =IF(BC12=0,"",('All Data'!Q12-'DCDC Ref'!$J$30)/'DCDC Ref'!$J$30*100) -> -94.77802198 | BE12: =ABS(BD12) -> 94.77802198 | BH12: 0 | BJ12: =IF(BC12=0,"",('All Data'!Z12-'DCDC Ref'!$J$28*('DCDC Ref'!$J$29/100))/'DCDC Ref'!$J$28*('DCDC Ref'!$J$29/100)*100) -> 278.7931034 | BK12: 278.7931034 | BQ12: =IFERROR(BE12*$BP$6+BK12*$BP$7,"") -> 475284.0754 | BR12: =IF(BQ12="","",RANK(BQ12,BQ$11:BQ$9927,1)+COUNTIF(BQ$11:BQ12,BQ12)-1) -> 85 | BS12: 85 | BT12: =IFERROR(INDEX($O$11:$O$1004,MATCH(ROWS($BS$11:BS12),$BS$11:$BS$1002,0)),"") -> ETQP5M6R8YFM | BU12: =IF(BT12<>"",BT12,"") -> ETQP5M6R8YFM
A13: 106 | B13: 〇 | D13: OK | F13: MP | G13: Panasonic | H13: SMD | I13: Metal Composite | J13: PCC | K13: LP (Low Profile) | L13: 3M-KVP | M13: PCC-M0530M-LP | N13: Yes | O13: ETQP3MR33KVP | P13: =MID(All_PCC_a[[#This Row],[Part Number]],7,3) -> R33 | Q13: 0.33 | R13: =IF(All_PCC_a[[#This Row],[Lo (uH)]]<1,"<1",IF(All_PCC_a[[#This Row],[Lo (uH)]]<10,"<10",IF(All_PCC_a[[#This Row],[Lo (uH)]]<100,"<100",IF(All_PCC_a[[#This Row],[Lo (uH)]]<2000,"<2000","")))) -> <1 | S13: =IFERROR(VLOOKUP(All_PCC_a[[#This Row],[Lo (uH)]],Utility!$D$5:$E$43,2,1),"-") -> ≤ 0.4 | T13: 0.2 | U13: 4.85 | V13: 5.34 | W13: 10 | X13: 12.7 | Y13: 10.6 | Z13: 21.8 | AA13: 14.5 | AB13: 5.5 | AC13: 5 | AD13: 3 | AE13: =ROUND(All_PCC_a[[#This Row],[L (mm)]]*All_PCC_a[[#This Row],[W (mm)]],1) -> 27.5 | AF13: =All_PCC_a[[#This Row],[L (mm)]]&" x "&All_PCC_a[[#This Row],[W (mm)]] -> 5.5 x 5 | AG13: _5 x 5 | AH13: =IF(All_PCC_a[[#This Row],[Max Height (mm)]]<=9,"≤ "&ROUNDUP(AD13,0),"≤"&ROUNDUP(AD13,0)) -> ≤ 3 | AI13: -55 | AJ13: 155 | AK13: =All_PCC_a[[#This Row],[Min Temp (deg.C)]]&" to +"&All_PCC_a[[#This Row],[Max Temp (deg.C)]] -> -55 to +155 | AO13: - | AP13: =IFERROR(IF(L1Round>1,ROUND(L1Round,1),L1Round),"-") -> - | AQ13: - | AR13: - | AS13: https://industrial.panasonic.com/ww/products/pt/automotive-inductors/models/ETQP3MR33KVP | AT13: https://industrial.panasonic.com/content/data/CC/pictures/lineup-LP.gif | AU13: =_xlfn.IMAGE(All_PCC_a[[#This Row],[Image URL]]) ->  | BC13: =IF(Z13<('DCDC Ref'!$J$24/'DCDC Ref'!$J$26)*'DCDC Ref'!$J$28/100,0,1) -> 1 | BD13: =IF(BC13=0,"",('All Data'!Q13-'DCDC Ref'!$J$30)/'DCDC Ref'!$J$30*100) -> -94.77802198 | BE13: 94.77802198 | BH13: 0 | BJ13: =IF(BC13=0,"",('All Data'!Z13-'DCDC Ref'!$J$28*('DCDC Ref'!$J$29/100))/'DCDC Ref'!$J$28*('DCDC Ref'!$J$29/100)*100) -> -2.275862069 | BK13: 10000 | BQ13: 523890.1099 | BR13: =IF(BQ13="","",RANK(BQ13,BQ$11:BQ$9927,1)+COUNTIF(BQ$11:BQ13,BQ13)-1) -> 90 | BS13: 90 | BT13: =IFERROR(INDEX($O$11:$O$1004,MATCH(ROWS($BS$11:BS13),$BS$11:$BS$1002,0)),"") -> ETQP3M6R8KVP | BU13: ETQP3M6R8KVP
A14: 116 | B14: 〇 | C14: 2022-04-26 | D14: OK | F14: MP | G14: Panasonic | H14: SMD | I14: Metal Composite | J14: PCC | K14: LP (Low Profile) | L14: 3M-KVP | M14: PCC-M0530M-LP | N14: Yes | O14: ETQP3MR47KVP | P14: =MID(All_PCC_a[[#This Row],[Part Number]],7,3) -> R47 | Q14: 0.47 | R14: =IF(All_PCC_a[[#This Row],[Lo (uH)]]<1,"<1",IF(All_PCC_a[[#This Row],[Lo (uH)]]<10,"<10",IF(All_PCC_a[[#This Row],[Lo (uH)]]<100,"<100",IF(All_PCC_a[[#This Row],[Lo (uH)]]<2000,"<2000","")))) -> <1 | S14: =IFERROR(VLOOKUP(All_PCC_a[[#This Row],[Lo (uH)]],Utility!$D$5:$E$43,2,1),"-") -> ≤ 0.5 | T14: 0.2 | U14: 5.8 | V14: 6.38 | W14: 10 | X14: 11.6 | Y14: 9.6 | Z14: 17.9 | AA14: 12.9 | AB14: 5.5 | AC14: 5 | AD14: 3 | AE14: =ROUND(All_PCC_a[[#This Row],[L (mm)]]*All_PCC_a[[#This Row],[W (mm)]],1) -> 27.5 | AF14: =All_PCC_a[[#This Row],[L (mm)]]&" x "&All_PCC_a[[#This Row],[W (mm)]] -> 5.5 x 5 | AG14: _5 x 5 | AH14: =IF(All_PCC_a[[#This Row],[Max Height (mm)]]<=9,"≤ "&ROUNDUP(AD14,0),"≤"&ROUNDUP(AD14,0)) -> ≤ 3 | AI14: -55 | AJ14: 155 | AK14: =All_PCC_a[[#This Row],[Min Temp (deg.C)]]&" to +"&All_PCC_a[[#This Row],[Max Temp (deg.C)]] -> -55 to +155 | AO14: - | AP14: - | AQ14: - | AR14: - | AS14: https://industrial.panasonic.com/ww/products/pt/automotive-inductors/models/ETQP3MR47KVP | AT14: https://industrial.panasonic.com/content/data/CC/pictures/lineup-LP.gif | AU14: =_xlfn.IMAGE(All_PCC_a[[#This Row],[Image URL]]) ->  | AY14: =--ISNUMBER(IFERROR(SEARCH(#REF!,'[1]All Data'!M42,1),"no match")) -> 0 | AZ14: =IF(AY14=1,COUNTIF($AY$11:AY14,1),"") ->  | BC14: =IF(Z14<('DCDC Ref'!$J$24/'DCDC Ref'!$J$26)*'DCDC Ref'!$J$28/100,0,1) -> 1 | BD14: =IF(BC14=0,"",('All Data'!Q14-'DCDC Ref'!$J$30)/'DCDC Ref'!$J$30*100) -> -92.56263736 | BE14: 92.56263736 | BH14: 0 | BJ14: =IF(BC14=0,"",('All Data'!Z14-'DCDC Ref'!$J$28*('DCDC Ref'!$J$29/100))/'DCDC Ref'!$J$28*('DCDC Ref'!$J$29/100)*100) -> -19.75862069 | BK14: 10000 | BQ14: 512813.1868 | BR14: =IF(BQ14="","",RANK(BQ14,BQ$11:BQ$9927,1)+COUNTIF(BQ$11:BQ14,BQ14)-1) -> 89 | BS14: 89 | BT14: =IFERROR(INDEX($O$11:$O$1004,MATCH(ROWS($BS$11:BS14),$BS$11:$BS$1002,0)),"") -> ETQP3M6R8KVN | BU14: ETQP3M6R8KVN
A15: 119 | B15: 〇 | C15: 2022/6/30カタログ追加 | D15: OK | F15: MP | G15: Panasonic | H15: SMD | I15: Metal Composite | J15: PCC | K15: High Isat (Standard) | L15: 4M-KLC | M15: PCC-M1040ML | N15: Yes | O15: ETQP4MR47KLC | P15: =MID(All_PCC_a[[#This Row],[Part Number]],7,3) -> R47 | Q15: 0.47 | R15: =IF(All_PCC_a[[#This Row],[Lo (uH)]]<1,"<1",IF(All_PCC_a[[#This Row],[Lo (uH)]]<10,"<10",IF(All_PCC_a[[#This Row],[Lo (uH)]]<100,"<100",IF(All_PCC_a[[#This Row],[Lo (uH)]]<2000,"<2000","")))) -> <1 | S15: =IFERROR(VLOOKUP(All_PCC_a[[#This Row],[Lo (uH)]],Utility!$D$5:$E$43,2,1),"-") -> ≤ 0.5 | T15: 0.2 | U15: 1.53 | V15: 1.68 | W15: 10 | X15: 31.1 | Y15: 24.9 | Z15: 47.3 | AA15: 33.2 | AB15: 10.9 | AC15: 10 | AD15: 4 | AE15: =ROUND(All_PCC_a[[#This Row],[L (mm)]]*All_PCC_a[[#This Row],[W (mm)]],1) -> 109 | AF15: =All_PCC_a[[#This Row],[L (mm)]]&" x "&All_PCC_a[[#This Row],[W (mm)]] -> 10.9 x 10 | AG15: 10 x 10 | AH15: =IF(All_PCC_a[[#This Row],[Max Height (mm)]]<=9,"≤ "&ROUNDUP(AD15,0),"≤"&ROUNDUP(AD15,0)) -> ≤ 4 | AI15: -40 | AJ15: 150 | AK15: =All_PCC_a[[#This Row],[Min Temp (deg.C)]]&" to +"&All_PCC_a[[#This Row],[Max Temp (deg.C)]] -> -40 to +150 | AO15: - | AP15: =IFERROR(IF(L1Round>1,ROUND(L1Round,1),L1Round),"-") -> - | AQ15: - | AR15: - | AS15: https://industrial.panasonic.com/ww/products/pt/automotive-inductors/models/ETQP4MR47KLC | AT15: https://industrial.panasonic.com/content/data/CC/pictures/lineup-Metal-core.gif | AU15: =_xlfn.IMAGE(All_PCC_a[[#This Row],[Image URL]]) ->  | AY15: =--ISNUMBER(IFERROR(SEARCH(#REF!,'[1]All Data'!M43,1),"no match")) -> 0 | AZ15: =IF(AY15=1,COUNTIF($AY$11:AY15,1),"") ->  | BC15: =IF(Z15<('DCDC Ref'!$J$24/'DCDC Ref'!$J$26)*'DCDC Ref'!$J$28/100,0,1) -> 1 | BD15: =IF(BC15=0,"",('All Data'!Q15-'DCDC Ref'!$J$30)/'DCDC Ref'!$J$30*100) -> -92.56263736 | BE15: 92.56263736 | BH15: 0 | BJ15: =IF(BC15=0,"",('All Data'!Z15-'DCDC Ref'!$J$28*('DCDC Ref'!$J$29/100))/'DCDC Ref'!$J$28*('DCDC Ref'!$J$29/100)*100) -> 112.0344828 | BK15: 112.0344828 | BQ15: 463373.3592 | BR15: =IF(BQ15="","",RANK(BQ15,BQ$11:BQ$9927,1)+COUNTIF(BQ$11:BQ15,BQ15)-1) -> 80 | BS15: 80 | BT15: =IFERROR(INDEX($O$11:$O$1004,MATCH(ROWS($BS$11:BS15),$BS$11:$BS$1002,0)),"") -> ETQP4M6R8KVK | BU15: ETQP4M6R8KVK
A16: 1 | B16: 〇 | D16: OK | F16: MP | G16: Panasonic | H16: SMD | I16: Metal Composite | J16: PCC | K16: High Isat (Standard) | L16: 3M-YFN | M16: PCC-M0630M | N16: Yes | O16: ETQP3MR68YFN | P16: =MID(All_PCC_a[[#This Row],[Part Number]],7,3) -> R68 | Q16: 0.68 | R16: =IF(All_PCC_a[[#This Row],[Lo (uH)]]<1,"<1",IF(All_PCC_a[[#This Row],[Lo (uH)]]<10,"<10",IF(All_PCC_a[[#This Row],[Lo (uH)]]<100,"<100",IF(All_PCC_a[[#This Row],[Lo (uH)]]<2000,"<2000","")))) -> <1 | S16: =IFERROR(VLOOKUP(All_PCC_a[[#This Row],[Lo (uH)]],Utility!$D$5:$E$43,2,1),"-") -> ≤ 0.7 | T16: 0.2 | U16: 6.3 | V16: 6.93 | W16: 10 | X16: 12 | Y16: 9.8 | Z16: 24 | AA16: 17.66 | AB16: 6.5 | AC16: 6 | AD16: 3 | AE16: =ROUND(All_PCC_a[[#This Row],[L (mm)]]*All_PCC_a[[#This Row],[W (mm)]],1) -> 39 | AF16: =All_PCC_a[[#This Row],[L (mm)]]&" x "&All_PCC_a[[#This Row],[W (mm)]] -> 6.5 x 6 | AG16: _6 x 6 | AH16: =IF(All_PCC_a[[#This Row],[Max Height (mm)]]<=9,"≤ "&ROUNDUP(AD16,0),"≤"&ROUNDUP(AD16,0)) -> ≤ 3 | AI16: -40 | AJ16: 150 | AK16: =All_PCC_a[[#This Row],[Min Temp (deg.C)]]&" to +"&All_PCC_a[[#This Row],[Max Temp (deg.C)]] -> -40 to +150 | AO16: - | AP16: - | AQ16: - | AR16: - | AS16: https://industrial.panasonic.com/ww/products/pt/automotive-inductors/models/ETQP3MR68YFN | AT16: https://industrial.panasonic.com/content/data/CC/pictures/lineup-Metal-core.gif | AU16: =_xlfn.IMAGE(All_PCC_a[[#This Row],[Image URL]]) ->  | BC16: =IF(Z16<('DCDC Ref'!$J$24/'DCDC Ref'!$J$26)*'DCDC Ref'!$J$28/100,0,1) -> 1 | BD16: =IF(BC16=0,"",('All Data'!Q16-'DCDC Ref'!$J$30)/'DCDC Ref'!$J$30*100) -> -89.23956044 | BE16: 89.23956044 | BH16: 0 | BJ16: =IF(BC16=0,"",('All Data'!Z16-'DCDC Ref'!$J$28*('DCDC Ref'!$J$29/100))/'DCDC Ref'!$J$28*('DCDC Ref'!$J$29/100)*100) -> 7.586206897 | BK16: 7.586206897 | BQ16: 446235.7332 | BR16: =IF(BQ16="","",RANK(BQ16,BQ$11:BQ$9927,1)+COUNTIF(BQ$11:BQ16,BQ16)-1) -> 74 | BS16: 74 | BT16: =IFERROR(INDEX($O$11:$O$1004,MATCH(ROWS($BS$11:BS16),$BS$11:$BS$1002,0)),"") -> ETQP4M6R8KVC | BU16: ETQP4M6R8KVC
A17: 38 | B17: 〇 | D17: OK | F17: MP | G17: Panasonic | H17: SMD | I17: Metal Composite | J17: PCC | K17: High Isat (Standard) | L17: 5M-YLC | M17: PCC-M1050ML | N17: Yes | O17: ETQP5MR68YLC | P17: =MID(All_PCC_a[[#This Row],[Part Number]],7,3) -> R68 | Q17: 0.68 | R17: =IF(All_PCC_a[[#This Row],[Lo (uH)]]<1,"<1",IF(All_PCC_a[[#This Row],[Lo (uH)]]<10,"<10",IF(All_PCC_a[[#This Row],[Lo (uH)]]<100,"<100",IF(All_PCC_a[[#This Row],[Lo (uH)]]<2000,"<2000","")))) -> <1 | S17: =IFERROR(VLOOKUP(All_PCC_a[[#This Row],[Lo (uH)]],Utility!$D$5:$E$43,2,1),"-") -> ≤ 0.7 | T17: 0.2 | U17: 1.75 | V17: 1.93 | W17: 10 | X17: 31.5 | Y17: 26.3 | Z17: 40 | AA17: 28.37 | AB17: 10.9 | AC17: 10 | AD17: 5 | AE17: =ROUND(All_PCC_a[[#This Row],[L (mm)]]*All_PCC_a[[#This Row],[W (mm)]],1) -> 109 | AF17: =All_PCC_a[[#This Row],[L (mm)]]&" x "&All_PCC_a[[#This Row],[W (mm)]] -> 10.9 x 10 | AG17: 10 x 10 | AH17: =IF(All_PCC_a[[#This Row],[Max Height (mm)]]<=9,"≤ "&ROUNDUP(AD17,0),"≤"&ROUNDUP(AD17,0)) -> ≤ 5 | AI17: -40 | AJ17: 150 | AK17: =All_PCC_a[[#This Row],[Min Temp (deg.C)]]&" to +"&All_PCC_a[[#This Row],[Max Temp (deg.C)]] -> -40 to +150 | AO17: - | AP17: - | AQ17: - | AR17: - | AS17: https://industrial.panasonic.com/ww/products/pt/automotive-inductors/models/ETQP5MR68YLC | AT17: https://industrial.panasonic.com/content/data/CC/pictures/lineup-Metal-core.gif | AU17: =_xlfn.IMAGE(All_PCC_a[[#This Row],[Image URL]]) ->  | BC17: =IF(Z17<('DCDC Ref'!$J$24/'DCDC Ref'!$J$26)*'DCDC Ref'!$J$28/100,0,1) -> 1 | BD17: =IF(BC17=0,"",('All Data'!Q17-'DCDC Ref'!$J$30)/'DCDC Ref'!$J$30*100) -> -89.23956044 | BE17: 89.23956044 | BH17: 0 | BJ17: =IF(BC17=0,"",('All Data'!Z17-'DCDC Ref'!$J$28*('DCDC Ref'!$J$29/100))/'DCDC Ref'!$J$28*('DCDC Ref'!$J$29/100)*100) -> 79.31034483 | BK17: 79.31034483 | BQ17: 446594.3539 | BR17: =IF(BQ17="","",RANK(BQ17,BQ$11:BQ$9927,1)+COUNTIF(BQ$11:BQ17,BQ17)-1) -> 76 | BS17: 76 | BT17: =IFERROR(INDEX($O$11:$O$1004,MATCH(ROWS($BS$11:BS17),$BS$11:$BS$1002,0)),"") -> ETQP4M6R8KFN | BU17: ETQP4M6R8KFN
A18: 46 | B18: 〇 | D18: OK | F18: MP | G18: Panasonic | H18: SMD | I18: Metal Composite | J18: PCC | K18: High Current (≥□12) | L18: 8M-JFA | M18: PCC-M1280MF | N18: Yes | O18: ETQP8MR68JFA | P18: =MID(All_PCC_a[[#This Row],[Part Number]],7,3) -> R68 | Q18: 0.68 | R18: =IF(All_PCC_a[[#This Row],[Lo (uH)]]<1,"<1",IF(All_PCC_a[[#This Row],[Lo (uH)]]<10,"<10",IF(All_PCC_a[[#This Row],[Lo (uH)]]<100,"<100",IF(All_PCC_a[[#This Row],[Lo (uH)]]<2000,"<2000","")))) -> <1 | S18: =IFERROR(VLOOKUP(All_PCC_a[[#This Row],[Lo (uH)]],Utility!$D$5:$E$43,2,1),"-") -> ≤ 0.7 | T18: 0.2 | U18: 1.1 | V18: 1.21 | W18: 10 | X18: 42.6 | Y18: 35.4 | Z18: 56.9 | AA18: =ROUND(40.3333333333333,2) -> 40.33 | AB18: 12.6 | AC18: 13.2 | AD18: 8 | AE18: =ROUND(All_PCC_a[[#This Row],[L (mm)]]*All_PCC_a[[#This Row],[W (mm)]],1) -> 166.3 | AF18: =All_PCC_a[[#This Row],[L (mm)]]&" x "&All_PCC_a[[#This Row],[W (mm)]] -> 12.6 x 13.2 | AG18: 12 x 12 | AH18: =IF(All_PCC_a[[#This Row],[Max Height (mm)]]<=9,"≤ "&ROUNDUP(AD18,0),"≤"&ROUNDUP(AD18,0)) -> ≤ 8 | AI18: -40 | AJ18: 160 | AK18: =All_PCC_a[[#This Row],[Min Temp (deg.C)]]&" to +"&All_PCC_a[[#This Row],[Max Temp (deg.C)]] -> -40 to +160 | AN18: 15Gと聞いたがカタログは30G | AO18: - | AP18: - | AQ18: - | AR18: - | AS18: https://industrial.panasonic.com/ww/products/pt/automotive-inductors/models/ETQP8MR68JFA | AT18: https://industrial.panasonic.com/content/data/CC/pictures/lineup-Large%20current.gif | AU18: =_xlfn.IMAGE(All_PCC_a[[#This Row],[Image URL]]) ->  | AY18: =--ISNUMBER(IFERROR(SEARCH(#REF!,'[1]All Data'!M44,1),"no match")) -> 0 | AZ18: =IF(AY18=1,COUNTIF($AY$11:AY18,1),"") ->  | BC18: =IF(Z18<('DCDC Ref'!$J$24/'DCDC Ref'!$J$26)*'DCDC Ref'!$J$28/100,0,1) -> 1 | BD18: =IF(BC18=0,"",('All Data'!Q18-'DCDC Ref'!$J$30)/'DCDC Ref'!$J$30*100) -> -89.23956044 | BE18: 89.23956044 | BH18: 0 | BJ18: =IF(BC18=0,"",('All Data'!Z18-'DCDC Ref'!$J$28*('DCDC Ref'!$J$29/100))/'DCDC Ref'!$J$28*('DCDC Ref'!$J$29/100)*100) -> 155.0689655 | BK18: 155.0689655 | BQ18: 446973.147 | BR18: =IF(BQ18="","",RANK(BQ18,BQ$11:BQ$9927,1)+COUNTIF(BQ$11:BQ18,BQ18)-1) -> 78 | BS18: 78 | BT18: =IFERROR(INDEX($O$11:$O$1004,MATCH(ROWS($BS$11:BS18),$BS$11:$BS$1002,0)),"") -> ETQP6M4R7YLC | BU18: ETQP6M4R7YLC
A19: 59 | B19: 〇 | D19: OK | F19: MP | G19: Panasonic | H19: SMD | I19: Metal Composite | J19: PCC | K19: LP (Low Profile) | L19: 3M-KVP | M19: PCC-M0530M-LP | N19: Yes | O19: ETQP3MR68KVP | P19: =MID(All_PCC_a[[#This Row],[Part Number]],7,3) -> R68 | Q19: 0.68 | R19: =IF(All_PCC_a[[#This Row],[Lo (uH)]]<1,"<1",IF(All_PCC_a[[#This Row],[Lo (uH)]]<10,"<10",IF(All_PCC_a[[#This Row],[Lo (uH)]]<100,"<100",IF(All_PCC_a[[#This Row],[Lo (uH)]]<2000,"<2000","")))) -> <1 | S19: =IFERROR(VLOOKUP(All_PCC_a[[#This Row],[Lo (uH)]],Utility!$D$5:$E$43,2,1),"-") -> ≤ 0.7 | T19: 0.2 | U19: 7.6 | V19: 8.36 | W19: 10 | X19: 10.2 | Y19: 8.4 | Z19: 15.9 | AA19: 10.4 | AB19: 5.5 | AC19: 5 | AD19: 3 | AE19: =ROUND(All_PCC_a[[#This Row],[L (mm)]]*All_PCC_a[[#This Row],[W (mm)]],1) -> 27.5 | AF19: =All_PCC_a[[#This Row],[L (mm)]]&" x "&All_PCC_a[[#This Row],[W (mm)]] -> 5.5 x 5 | AG19: _5 x 5 | AH19: =IF(All_PCC_a[[#This Row],[Max Height (mm)]]<=9,"≤ "&ROUNDUP(AD19,0),"≤"&ROUNDUP(AD19,0)) -> ≤ 3 | AI19: -55 | AJ19: 155 | AK19: =All_PCC_a[[#This Row],[Min Temp (deg.C)]]&" to +"&All_PCC_a[[#This Row],[Max Temp (deg.C)]] -> -55 to +155 | AO19: - | AP19: - | AQ19: - | AR19: - | AS19: https://industrial.panasonic.com/ww/products/pt/automotive-inductors/models/ETQP3MR68KVP | AT19: https://industrial.panasonic.com/content/data/CC/pictures/lineup-LP.gif | AU19: =_xlfn.IMAGE(All_PCC_a[[#This Row],[Image URL]]) ->  | AY19: =--ISNUMBER(IFERROR(SEARCH(#REF!,'[1]All Data'!M45,1),"no match")) -> 0 | AZ19: =IF(AY19=1,COUNTIF($AY$11:AY19,1),"") ->  | BC19: =IF(Z19<('DCDC Ref'!$J$24/'DCDC Ref'!$J$26)*'DCDC Ref'!$J$28/100,0,1) -> 1 | BD19: =IF(BC19=0,"",('All Data'!Q19-'DCDC Ref'!$J$30)/'DCDC Ref'!$J$30*100) -> -89.23956044 | BE19: 89.23956044 | BH19: 0 | BJ19: =IF(BC19=0,"",('All Data'!Z19-'DCDC Ref'!$J$28*('DCDC Ref'!$J$29/100))/'DCDC Ref'!$J$28*('DCDC Ref'!$J$29/100)*100) -> -28.72413793 | BK19: 10000 | BQ19: 496197.8022 | BR19: =IF(BQ19="","",RANK(BQ19,BQ$11:BQ$9927,1)+COUNTIF(BQ$11:BQ19,BQ19)-1) -> 87 | BS19: 87 | BT19: =IFERROR(INDEX($O$11:$O$1004,MATCH(ROWS($BS$11:BS19),$BS$11:$BS$1002,0)),"") -> ETQP8M4R7JFA | BU19: ETQP8M4R7JFA
A20: 70 | B20: 〇 | D20: OK | F20: MP | G20: Panasonic | H20: SMD | I20: Metal Composite | J20: PCC | K20: LP (Low Profile) | L20: 3M-KVN | M20: PCC-M0630M-LP | N20: Yes | O20: ETQP3MR68KVN | P20: =MID(All_PCC_a[[#This Row],[Part Number]],7,3) -> R68 | Q20: 0.68 | R20: =IF(All_PCC_a[[#This Row],[Lo (uH)]]<1,"<1",IF(All_PCC_a[[#This Row],[Lo (uH)]]<10,"<10",IF(All_PCC_a[[#This Row],[Lo (uH)]]<100,"<100",IF(All_PCC_a[[#This Row],[Lo (uH)]]<2000,"<2000","")))) -> <1 | S20: =IFERROR(VLOOKUP(All_PCC_a[[#This Row],[Lo (uH)]],Utility!$D$5:$E$43,2,1),"-") -> ≤ 0.7 | T20: 0.2 | U20: 5.2 | V20: 5.72 | W20: 10 | X20: 13.2 | Y20: 10.8 | Z20: 20.2 | AA20: 14.25 | AB20: 6.4 | AC20: 6 | AD20: 3 | AE20: =ROUND(All_PCC_a[[#This Row],[L (mm)]]*All_PCC_a[[#This Row],[W (mm)]],1) -> 38.4 | AF20: =All_PCC_a[[#This Row],[L (mm)]]&" x "&All_PCC_a[[#This Row],[W (mm)]] -> 6.4 x 6 | AG20: _6 x 6 | AH20: =IF(All_PCC_a[[#This Row],[Max Height (mm)]]<=9,"≤ "&ROUNDUP(AD20,0),"≤"&ROUNDUP(AD20,0)) -> ≤ 3 | AI20: -55 | AJ20: 155 | AK20: =All_PCC_a[[#This Row],[Min Temp (deg.C)]]&" to +"&All_PCC_a[[#This Row],[Max Temp (deg.C)]] -> -55 to +155 | AO20: - | AP20: - | AQ20: - | AR20: - | AS20: https://industrial.panasonic.com/ww/products/pt/automotive-inductors/models/ETQP3MR68KVN | AT20: https://industrial.panasonic.com/content/data/CC/pictures/lineup-LP.gif | AU20: =_xlfn.IMAGE(All_PCC_a[[#This Row],[Image URL]]) ->  | AY20: =--ISNUMBER(IFERROR(SEARCH(#REF!,'[1]All Data'!M46,1),"no match")) -> 0 | AZ20: =IF(AY20=1,COUNTIF($AY$11:AY20,1),"") ->  | BC20: =IF(Z20<('DCDC Ref'!$J$24/'DCDC Ref'!$J$26)*'DCDC Ref'!$J$28/100,0,1) -> 1 | BD20: =IF(BC20=0,"",('All Data'!Q20-'DCDC Ref'!$J$30)/'DCDC Ref'!$J$30*100) -> -89.23956044 | BE20: 89.23956044 | BH20: 0 | BJ20: =IF(BC20=0,"",('All Data'!Z20-'DCDC Ref'!$J$28*('DCDC Ref'!$J$29/100))/'DCDC Ref'!$J$28*('DCDC Ref'!$J$29/100)*100) -> -9.448275862 | BK20: 10000 | BQ20: 496197.8022 | BR20: =IF(BQ20="","",RANK(BQ20,BQ$11:BQ$9927,1)+COUNTIF(BQ$11:BQ20,BQ20)-1) -> 88 | BS20: 88 | BT20: =IFERROR(INDEX($O$11:$O$1004,MATCH(ROWS($BS$11:BS20),$BS$11:$BS$1002,0)),"") -> ETQPAM4R7JFW | BU20: ETQPAM4R7JFW
A21: 81 | B21: 〇 | D21: OK | F21: MP | G21: Panasonic | H21: SMD | I21: Metal Composite | J21: PCC | K21: LP (Low Profile) | L21: 4M-KVK | M21: PCC-M0840M-LP | N21: Yes | O21: ETQP4MR68KVK | P21: =MID(All_PCC_a[[#This Row],[Part Number]],7,3) -> R68 | Q21: 0.68 | R21: =IF(All_PCC_a[[#This Row],[Lo (uH)]]<1,"<1",IF(All_PCC_a[[#This Row],[Lo (uH)]]<10,"<10",IF(All_PCC_a[[#This Row],[Lo (uH)]]<100,"<100",IF(All_PCC_a[[#This Row],[Lo (uH)]]<2000,"<2000","")))) -> <1 | S21: =IFERROR(VLOOKUP(All_PCC_a[[#This Row],[Lo (uH)]],Utility!$D$5:$E$43,2,1),"-") -> ≤ 0.7 | T21: 0.2 | U21: 2.92 | V21: 3.21 | W21: 10 | X21: 19.5 | Y21: 16.6 | Z21: 29 | AA21: 20.99 | AB21: 8.5 | AC21: 8 | AD21: 4 | AE21: =ROUND(All_PCC_a[[#This Row],[L (mm)]]*All_PCC_a[[#This Row],[W (mm)]],1) -> 68 | AF21: =All_PCC_a[[#This Row],[L (mm)]]&" x "&All_PCC_a[[#This Row],[W (mm)]] -> 8.5 x 8 | AG21: _8 x 8 | AH21: =IF(All_PCC_a[[#This Row],[Max Height (mm)]]<=9,"≤ "&ROUNDUP(AD21,0),"≤"&ROUNDUP(AD21,0)) -> ≤ 4 | AI21: -55 | AJ21: 155 | AK21: =All_PCC_a[[#This Row],[Min Temp (deg.C)]]&" to +"&All_PCC_a[[#This Row],[Max Temp (deg.C)]] -> -55 to +155 | AO21: - | AP21: - | AQ21: - | AR21: - | AS21: https://industrial.panasonic.com/ww/products/pt/automotive-inductors/models/ETQP4MR68KVK | AT21: https://industrial.panasonic.com/content/data/CC/pictures/lineup-LP.gif | AU21: =_xlfn.IMAGE(All_PCC_a[[#This Row],[Image URL]]) ->  | AY21: =--ISNUMBER(IFERROR(SEARCH(#REF!,'[1]All Data'!M47,1),"no match")) -> 0 | AZ21: =IF(AY21=1,COUNTIF($AY$11:AY21,1),"") ->  | BC21: =IF(Z21<('DCDC Ref'!$J$24/'DCDC Ref'!$J$26)*'DCDC Ref'!$J$28/100,0,1) -> 1 | BD21: =IF(BC21=0,"",('All Data'!Q21-'DCDC Ref'!$J$30)/'DCDC Ref'!$J$30*100) -> -89.23956044 | BE21: 89.23956044 | BH21: 0 | BJ21: =IF(BC21=0,"",('All Data'!Z21-'DCDC Ref'!$J$28*('DCDC Ref'!$J$29/100))/'DCDC Ref'!$J$28*('DCDC Ref'!$J$29/100)*100) -> 30 | BK21: 30 | BQ21: 446347.8022 | BR21: =IF(BQ21="","",RANK(BQ21,BQ$11:BQ$9927,1)+COUNTIF(BQ$11:BQ21,BQ21)-1) -> 75 | BS21: 75 | BT21: =IFERROR(INDEX($O$11:$O$1004,MATCH(ROWS($BS$11:BS21),$BS$11:$BS$1002,0)),"") -> ETQP4M4R7YFP | BU21: ETQP4M4R7YFP
A22: 96 | B22: 〇 | D22: OK | F22: MP | G22: Panasonic | H22: SMD | I22: Metal Composite | J22: PCC | K22: High Anti-vibration | L22: 5M-YSC | M22: PCC-M1050MS | N22: Yes | O22: ETQP5MR68YSC | P22: =MID(All_PCC_a[[#This Row],[Part Number]],7,3) -> R68 | Q22: 0.68 | R22: =IF(All_PCC_a[[#This Row],[Lo (uH)]]<1,"<1",IF(All_PCC_a[[#This Row],[Lo (uH)]]<10,"<10",IF(All_PCC_a[[#This Row],[Lo (uH)]]<100,"<100",IF(All_PCC_a[[#This Row],[Lo (uH)]]<2000,"<2000","")))) -> <1 | S22: =IFERROR(VLOOKUP(All_PCC_a[[#This Row],[Lo (uH)]],Utility!$D$5:$E$43,2,1),"-") -> ≤ 0.7 | T22: 0.2 | U22: 1.66 | V22: 1.83 | W22: 10 | X22: 32.3 | Y22: 27 | Z22: 40 | AA22: 28.1 | AB22: 10.9 | AC22: 10 | AD22: 5 | AE22: =ROUND(All_PCC_a[[#This Row],[L (mm)]]*All_PCC_a[[#This Row],[W (mm)]],1) -> 109 | AF22: =All_PCC_a[[#This Row],[L (mm)]]&" x "&All_PCC_a[[#This Row],[W (mm)]] -> 10.9 x 10 | AG22: 10 x 10 | AH22: =IF(All_PCC_a[[#This Row],[Max Height (mm)]]<=9,"≤ "&ROUNDUP(AD22,0),"≤"&ROUNDUP(AD22,0)) -> ≤ 5 | AI22: -40 | AJ22: 150 | AK22: =All_PCC_a[[#This Row],[Min Temp (deg.C)]]&" to +"&All_PCC_a[[#This Row],[Max Temp (deg.C)]] -> -40 to +150 | AO22: - | AP22: - | AQ22: - | AR22: - | AS22: https://industrial.panasonic.com/ww/products/pt/automotive-inductors/models/ETQP5MR68YSC | AT22: https://industrial.panasonic.com/content/data/CC/pictures/lineup-High%20Vibration%20Acceleration.gif | AU22: =_xlfn.IMAGE(All_PCC_a[[#This Row],[Image URL]]) ->  | AY22: =--ISNUMBER(IFERROR(SEARCH(#REF!,'[1]All Data'!M48,1),"no match")) -> 0 | AZ22: =IF(AY22=1,COUNTIF($AY$11:AY22,1),"") ->  | BC22: =IF(Z22<('DCDC Ref'!$J$24/'DCDC Ref'!$J$26)*'DCDC Ref'!$J$28/100,0,1) -> 1 | BD22: =IF(BC22=0,"",('All Data'!Q22-'DCDC Ref'!$J$30)/'DCDC Ref'!$J$30*100) -> -89.23956044 | BE22: 89.23956044 | BH22: 0 | BJ22: =IF(BC22=0,"",('All Data'!Z22-'DCDC Ref'!$J$28*('DCDC Ref'!$J$29/100))/'DCDC Ref'!$J$28*('DCDC Ref'!$J$29/100)*100) -> 79.31034483 | BK22: 79.31034483 | BQ22: 446594.3539 | BR22: =IF(BQ22="","",RANK(BQ22,BQ$11:BQ$9927,1)+COUNTIF(BQ$11:BQ22,BQ22)-1) -> 77 | BS22: 77 | BT22: =IFERROR(INDEX($O$11:$O$1004,MATCH(ROWS($BS$11:BS22),$BS$11:$BS$1002,0)),"") -> ETQP5M4R7YFC | BU22: ETQP5M4R7YFC
A23: 2 | B23: 〇 | D23: OK | F23: MP | G23: Panasonic | H23: SMD | I23: Metal Composite | J23: PCC | K23: High Isat (Standard) | L23: 3M-YFN | M23: PCC-M0630M | N23: Yes | O23: ETQP3M1R0YFN | P23: =MID(All_PCC_a[[#This Row],[Part Number]],7,3) -> 1R0 | Q23: 1 | R23: =IF(All_PCC_a[[#This Row],[Lo (uH)]]<1,"<1",IF(All_PCC_a[[#This Row],[Lo (uH)]]<10,"<10",IF(All_PCC_a[[#This Row],[Lo (uH)]]<100,"<100",IF(All_PCC_a[[#This Row],[Lo (uH)]]<2000,"<2000","")))) -> <10 | S23: =IFERROR(VLOOKUP(All_PCC_a[[#This Row],[Lo (uH)]],Utility!$D$5:$E$43,2,1),"-") -> ≤ 1 | T23: 0.2 | U23: 7.9 | V23: 8.69 | W23: 10 | X23: 10.7 | Y23: 8.8 | Z23: 20 | AA23: 14.47 | AB23: 6.5 | AC23: 6 | AD23: 3 | AE23: =ROUND(All_PCC_a[[#This Row],[L (mm)]]*All_PCC_a[[#This Row],[W (mm)]],1) -> 39 | AF23: =All_PCC_a[[#This Row],[L (mm)]]&" x "&All_PCC_a[[#This Row],[W (mm)]] -> 6.5 x 6 | AG23: _6 x 6 | AH23: =IF(All_PCC_a[[#This Row],[Max Height (mm)]]<=9,"≤ "&ROUNDUP(AD23,0),"≤"&ROUNDUP(AD23,0)) -> ≤ 3 | AI23: -40 | AJ23: 150 | AK23: =All_PCC_a[[#This Row],[Min Temp (deg.C)]]&" to +"&All_PCC_a[[#This Row],[Max Temp (deg.C)]] -> -40 to +150 | AO23: - | AP23: - | AQ23: - | AR23: - | AS23: https://industrial.panasonic.com/ww/products/pt/automotive-inductors/models/ETQP3M1R0YFN | AT23: https://industrial.panasonic.com/content/data/CC/pictures/lineup-Metal-core.gif | AU23: =_xlfn.IMAGE(All_PCC_a[[#This Row],[Image URL]]) ->  | AY23: =--ISNUMBER(IFERROR(SEARCH(#REF!,'[1]All Data'!M49,1),"no match")) -> 0 | AZ23: =IF(AY23=1,COUNTIF($AY$11:AY23,1),"") ->  | BC23: =IF(Z23<('DCDC Ref'!$J$24/'DCDC Ref'!$J$26)*'DCDC Ref'!$J$28/100,0,1) -> 1 | BD23: =IF(BC23=0,"",('All Data'!Q23-'DCDC Ref'!$J$30)/'DCDC Ref'!$J$30*100) -> -84.17582418 | BE23: 84.17582418 | BH23: 0 | BJ23: =IF(BC23=0,"",('All Data'!Z23-'DCDC Ref'!$J$28*('DCDC Ref'!$J$29/100))/'DCDC Ref'!$J$28*('DCDC Ref'!$J$29/100)*100) -> -10.34482759 | BK23: 10000 | BQ23: 470879.1209 | BR23: =IF(BQ23="","",RANK(BQ23,BQ$11:BQ$9927,1)+COUNTIF(BQ$11:BQ23,BQ23)-1) -> 81 | BS23: 81 | BT23: =IFERROR(INDEX($O$11:$O$1004,MATCH(ROWS($BS$11:BS23),$BS$11:$BS$1002,0)),"") -> ETQP5M4R7YFM | BU23: ETQP5M4R7YFM
A24: 39 | B24: 〇 | D24: OK | F24: MP | G24: Panasonic | H24: SMD | I24: Metal Composite | J24: PCC | K24: High Isat (Standard) | L24: 5M-YLC | M24: PCC-M1050ML | N24: Yes | O24: ETQP5M1R0YLC | P24: =MID(All_PCC_a[[#This Row],[Part Number]],7,3) -> 1R0 | Q24: 1 | R24: =IF(All_PCC_a[[#This Row],[Lo (uH)]]<1,"<1",IF(All_PCC_a[[#This Row],[Lo (uH)]]<10,"<10",IF(All_PCC_a[[#This Row],[Lo (uH)]]<100,"<100",IF(All_PCC_a[[#This Row],[Lo (uH)]]<2000,"<2000","")))) -> <10 | S24: =IFERROR(VLOOKUP(All_PCC_a[[#This Row],[Lo (uH)]],Utility!$D$5:$E$43,2,1),"-") -> ≤ 1 | T24: 0.2 | U24: 2.3 | V24: 2.53 | W24: 10 | X24: 27.5 | Y24: 23 | Z24: 37.8 | AA24: 24.6 | AB24: 10.9 | AC24: 10 | AD24: 5 | AE24: =ROUND(All_PCC_a[[#This Row],[L (mm)]]*All_PCC_a[[#This Row],[W (mm)]],1) -> 109 | AF24: =All_PCC_a[[#This Row],[L (mm)]]&" x "&All_PCC_a[[#This Row],[W (mm)]] -> 10.9 x 10 | AG24: 10 x 10 | AH24: =IF(All_PCC_a[[#This Row],[Max Height (mm)]]<=9,"≤ "&ROUNDUP(AD24,0),"≤"&ROUNDUP(AD24,0)) -> ≤ 5 | AI24: -40 | AJ24: 150 | AK24: =All_PCC_a[[#This Row],[Min Temp (deg.C)]]&" to +"&All_PCC_a[[#This Row],[Max Temp (deg.C)]] -> -40 to +150 | AO24: - | AP24: - | AQ24: - | AR24: - | AS24: https://industrial.panasonic.com/ww/products/pt/automotive-inductors/models/ETQP5M1R0YLC | AT24: https://industrial.panasonic.com/content/data/CC/pictures/lineup-Metal-core.gif | AU24: =_xlfn.IMAGE(All_PCC_a[[#This Row],[Image URL]]) ->  | BC24: =IF(Z24<('DCDC Ref'!$J$24/'DCDC Ref'!$J$26)*'DCDC Ref'!$J$28/100,0,1) -> 1 | BD24: =IF(BC24=0,"",('All Data'!Q24-'DCDC Ref'!$J$30)/'DCDC Ref'!$J$30*100) -> -84.17582418 | BE24: 84.17582418 | BH24: 0 | BJ24: =IF(BC24=0,"",('All Data'!Z24-'DCDC Ref'!$J$28*('DCDC Ref'!$J$29/100))/'DCDC Ref'!$J$28*('DCDC Ref'!$J$29/100)*100) -> 69.44827586 | BK24: 69.44827586 | BQ24: 421226.3623 | BR24: =IF(BQ24="","",RANK(BQ24,BQ$11:BQ$9927,1)+COUNTIF(BQ$11:BQ24,BQ24)-1) -> 69 | BS24: 69 | BT24: =IFERROR(INDEX($O$11:$O$1004,MATCH(ROWS($BS$11:BS24),$BS$11:$BS$1002,0)),"") -> ETQP3M4R7KVP | BU24: ETQP3M4R7KVP
A25: 47 | B25: 〇 | D25: OK | F25: MP | G25: Panasonic | H25: SMD | I25: Metal Composite | J25: PCC | K25: High Current (≥□12) | L25: 8M-JFA | M25: PCC-M1280MF | N25: Yes | O25: ETQP8M1R0JFA | P25: =MID(All_PCC_a[[#This Row],[Part Number]],7,3) -> 1R0 | Q25: 1 | R25: =IF(All_PCC_a[[#This Row],[Lo (uH)]]<1,"<1",IF(All_PCC_a[[#This Row],[Lo (uH)]]<10,"<10",IF(All_PCC_a[[#This Row],[Lo (uH)]]<100,"<100",IF(All_PCC_a[[#This Row],[Lo (uH)]]<2000,"<2000","")))) -> <10 | S25: =IFERROR(VLOOKUP(All_PCC_a[[#This Row],[Lo (uH)]],Utility!$D$5:$E$43,2,1),"-") -> ≤ 1 | T25: 0.2 | U25: 1.36 | V25: 1.5 | W25: 10 | X25: 38.3 | Y25: 31.8 | Z25: 44.4 | AA25: =ROUND(31.5641025641026,2) -> 31.56 | AB25: 12.6 | AC25: 13.2 | AD25: 8 | AE25: =ROUND(All_PCC_a[[#This Row],[L (mm)]]*All_PCC_a[[#This Row],[W (mm)]],1) -> 166.3 | AF25: =All_PCC_a[[#This Row],[L (mm)]]&" x "&All_PCC_a[[#This Row],[W (mm)]] -> 12.6 x 13.2 | AG25: 12 x 12 | AH25: =IF(All_PCC_a[[#This Row],[Max Height (mm)]]<=9,"≤ "&ROUNDUP(AD25,0),"≤"&ROUNDUP(AD25,0)) -> ≤ 8 | AI25: -40 | AJ25: 160 | AK25: =All_PCC_a[[#This Row],[Min Temp (deg.C)]]&" to +"&All_PCC_a[[#This Row],[Max Temp (deg.C)]] -> -40 to +160 | AN25: 15Gと聞いたがカタログは30G | AO25: - | AP25: - | AQ25: - | AR25: - | AS25: https://industrial.panasonic.com/ww/products/pt/automotive-inductors/models/ETQP8M1R0JFA | AT25: https://industrial.panasonic.com/content/data/CC/pictures/lineup-Large%20current.gif | AU25: =_xlfn.IMAGE(All_PCC_a[[#This Row],[Image URL]]) ->  | AY25: =--ISNUMBER(IFERROR(SEARCH(#REF!,'[1]All Data'!M50,1),"no match")) -> 0 | AZ25: =IF(AY25=1,COUNTIF($AY$11:AY25,1),"") ->  | BC25: =IF(Z25<('DCDC Ref'!$J$24/'DCDC Ref'!$J$26)*'DCDC Ref'!$J$28/100,0,1) -> 1 | BD25: =IF(BC25=0,"",('All Data'!Q25-'DCDC Ref'!$J$30)/'DCDC Ref'!$J$30*100) -> -84.17582418 | BE25: 84.17582418 | BH25: 0 | BJ25: =IF(BC25=0,"",('All Data'!Z25-'DCDC Ref'!$J$28*('DCDC Ref'!$J$29/100))/'DCDC Ref'!$J$28*('DCDC Ref'!$J$29/100)*100) -> 99.03448276 | BK25: 99.03448276 | BQ25: 421374.2933 | BR25: =IF(BQ25="","",RANK(BQ25,BQ$11:BQ$9927,1)+COUNTIF(BQ$11:BQ25,BQ25)-1) -> 70 | BS25: 70 | BT25: =IFERROR(INDEX($O$11:$O$1004,MATCH(ROWS($BS$11:BS25),$BS$11:$BS$1002,0)),"") -> ETQP3M4R7KVN | BU25: ETQP3M4R7KVN
A26: 58 | B26: 〇 | D26: OK | F26: MP | G26: Panasonic | H26: SMD | I26: Metal Composite | J26: PCC | K26: LP (Low Profile) | L26: 3M-KVP | M26: PCC-M0530M-LP | N26: Yes | O26: ETQP3M1R0KVP | P26: =MID(All_PCC_a[[#This Row],[Part Number]],7,3) -> 1R0 | Q26: 1 | R26: =IF(All_PCC_a[[#This Row],[Lo (uH)]]<1,"<1",IF(All_PCC_a[[#This Row],[Lo (uH)]]<10,"<10",IF(All_PCC_a[[#This Row],[Lo (uH)]]<100,"<100",IF(All_PCC_a[[#This Row],[Lo (uH)]]<2000,"<2000","")))) -> <10 | S26: =IFERROR(VLOOKUP(All_PCC_a[[#This Row],[Lo (uH)]],Utility!$D$5:$E$43,2,1),"-") -> ≤ 1 | T26: 0.2 | U26: 9.6 | V26: 10.56 | W26: 10 | X26: 9 | Y26: 7.5 | Z26: 14.1 | AA26: 10.4 | AB26: 5.5 | AC26: 5 | AD26: 3 | AE26: =ROUND(All_PCC_a[[#This Row],[L (mm)]]*All_PCC_a[[#This Row],[W (mm)]],1) -> 27.5 | AF26: =All_PCC_a[[#This Row],[L (mm)]]&" x "&All_PCC_a[[#This Row],[W (mm)]] -> 5.5 x 5 | AG26: _5 x 5 | AH26: =IF(All_PCC_a[[#This Row],[Max Height (mm)]]<=9,"≤ "&ROUNDUP(AD26,0),"≤"&ROUNDUP(AD26,0)) -> ≤ 3 | AI26: -55 | AJ26: 155 | AK26: =All_PCC_a[[#This Row],[Min Temp (deg.C)]]&" to +"&All_PCC_a[[#This Row],[Max Temp (deg.C)]] -> -55 to +155 | AO26: - | AP26: - | AQ26: - | AR26: - | AS26: https://industrial.panasonic.com/ww/products/pt/automotive-inductors/models/ETQP3M1R0KVP | AT26: https://industrial.panasonic.com/content/data/CC/pictures/lineup-LP.gif | AU26: =_xlfn.IMAGE(All_PCC_a[[#This Row],[Image URL]]) ->  | AY26: =--ISNUMBER(IFERROR(SEARCH(#REF!,'[1]All Data'!M51,1),"no match")) -> 0 | AZ26: =IF(AY26=1,COUNTIF($AY$11:AY26,1),"") ->  | BC26: =IF(Z26<('DCDC Ref'!$J$24/'DCDC Ref'!$J$26)*'DCDC Ref'!$J$28/100,0,1) -> 1 | BD26: =IF(BC26=0,"",('All Data'!Q26-'DCDC Ref'!$J$30)/'DCDC Ref'!$J$30*100) -> -84.17582418 | BE26: 84.17582418 | BH26: 0 | BJ26: =IF(BC26=0,"",('All Data'!Z26-'DCDC Ref'!$J$28*('DCDC Ref'!$J$29/100))/'DCDC Ref'!$J$28*('DCDC Ref'!$J$29/100)*100) -> -36.79310345 | BK26: 10000 | BQ26: 470879.1209 | BR26: =IF(BQ26="","",RANK(BQ26,BQ$11:BQ$9927,1)+COUNTIF(BQ$11:BQ26,BQ26)-1) -> 82 | BS26: 82 | BT26: =IFERROR(INDEX($O$11:$O$1004,MATCH(ROWS($BS$11:BS26),$BS$11:$BS$1002,0)),"") -> ETQP4M4R7KVK | BU26: ETQP4M4R7KVK
A27: 69 | B27: 〇 | D27: OK | F27: MP | G27: Panasonic | H27: SMD | I27: Metal Composite | J27: PCC | K27: LP (Low Profile) | L27: 3M-KVN | M27: PCC-M0630M-LP | N27: Yes | O27: ETQP3M1R0KVN | P27: =MID(All_PCC_a[[#This Row],[Part Number]],7,3) -> 1R0 | Q27: 1 | R27: =IF(All_PCC_a[[#This Row],[Lo (uH)]]<1,"<1",IF(All_PCC_a[[#This Row],[Lo (uH)]]<10,"<10",IF(All_PCC_a[[#This Row],[Lo (uH)]]<100,"<100",IF(All_PCC_a[[#This Row],[Lo (uH)]]<2000,"<2000","")))) -> <10 | S27: =IFERROR(VLOOKUP(All_PCC_a[[#This Row],[Lo (uH)]],Utility!$D$5:$E$43,2,1),"-") -> ≤ 1 | T27: 0.2 | U27: 6.2 | V27: 6.82 | W27: 10 | X27: 12.1 | Y27: 9.9 | Z27: 16 | AA27: 10.65 | AB27: 6.4 | AC27: 6 | AD27: 3 | AE27: =ROUND(All_PCC_a[[#This Row],[L (mm)]]*All_PCC_a[[#This Row],[W (mm)]],1) -> 38.4 | AF27: =All_PCC_a[[#This Row],[L (mm)]]&" x "&All_PCC_a[[#This Row],[W (mm)]] -> 6.4 x 6 | AG27: _6 x 6 | AH27: =IF(All_PCC_a[[#This Row],[Max Height (mm)]]<=9,"≤ "&ROUNDUP(AD27,0),"≤"&ROUNDUP(AD27,0)) -> ≤ 3 | AI27: -55 | AJ27: 155 | AK27: =All_PCC_a[[#This Row],[Min Temp (deg.C)]]&" to +"&All_PCC_a[[#This Row],[Max Temp (deg.C)]] -> -55 to +155 | AO27: - | AP27: - | AQ27: - | AR27: - | AS27: https://industrial.panasonic.com/ww/products/pt/automotive-inductors/models/ETQP3M1R0KVN | AT27: https://industrial.panasonic.com/content/data/CC/pictures/lineup-LP.gif | AU27: =_xlfn.IMAGE(All_PCC_a[[#This Row],[Image URL]]) ->  | AY27: =--ISNUMBER(IFERROR(SEARCH(#REF!,'[1]All Data'!M52,1),"no match")) -> 0 | AZ27: =IF(AY27=1,COUNTIF($AY$11:AY27,1),"") ->  | BC27: =IF(Z27<('DCDC Ref'!$J$24/'DCDC Ref'!$J$26)*'DCDC Ref'!$J$28/100,0,1) -> 1 | BD27: =IF(BC27=0,"",('All Data'!Q27-'DCDC Ref'!$J$30)/'DCDC Ref'!$J$30*100) -> -84.17582418 | BE27: 84.17582418 | BH27: 0 | BJ27: =IF(BC27=0,"",('All Data'!Z27-'DCDC Ref'!$J$28*('DCDC Ref'!$J$29/100))/'DCDC Ref'!$J$28*('DCDC Ref'!$J$29/100)*100) -> -28.27586207 | BK27: 10000 | BQ27: 470879.1209 | BR27: =IF(BQ27="","",RANK(BQ27,BQ$11:BQ$9927,1)+COUNTIF(BQ$11:BQ27,BQ27)-1) -> 83 | BS27: 83 | BT27: =IFERROR(INDEX($O$11:$O$1004,MATCH(ROWS($BS$11:BS27),$BS$11:$BS$1002,0)),"") -> ETQP4M4R7KVC | BU27: ETQP4M4R7KVC
A28: 80 | B28: 〇 | D28: OK | F28: MP | G28: Panasonic | H28: SMD | I28: Metal Composite | J28: PCC | K28: LP (Low Profile) | L28: 4M-KVK | M28: PCC-M0840M-LP | N28: Yes | O28: ETQP4M1R0KVK | P28: =MID(All_PCC_a[[#This Row],[Part Number]],7,3) -> 1R0 | Q28: 1 | R28: =IF(All_PCC_a[[#This Row],[Lo (uH)]]<1,"<1",IF(All_PCC_a[[#This Row],[Lo (uH)]]<10,"<10",IF(All_PCC_a[[#This Row],[Lo (uH)]]<100,"<100",IF(All_PCC_a[[#This Row],[Lo (uH)]]<2000,"<2000","")))) -> <10 | S28: =IFERROR(VLOOKUP(All_PCC_a[[#This Row],[Lo (uH)]],Utility!$D$5:$E$43,2,1),"-") -> ≤ 1 | T28: 0.2 | U28: 3.7 | V28: 4.07 | W28: 10 | X28: 17.3 | Y28: 14.8 | Z28: 24.4 | AA28: 19.06 | AB28: 8.5 | AC28: 8 | AD28: 4 | AE28: =ROUND(All_PCC_a[[#This Row],[L (mm)]]*All_PCC_a[[#This Row],[W (mm)]],1) -> 68 | AF28: =All_PCC_a[[#This Row],[L (mm)]]&" x "&All_PCC_a[[#This Row],[W (mm)]] -> 8.5 x 8 | AG28: _8 x 8 | AH28: =IF(All_PCC_a[[#This Row],[Max Height (mm)]]<=9,"≤ "&ROUNDUP(AD28,0),"≤"&ROUNDUP(AD28,0)) -> ≤ 4 | AI28: -55 | AJ28: 155 | AK28: =All_PCC_a[[#This Row],[Min Temp (deg.C)]]&" to +"&All_PCC_a[[#This Row],[Max Temp (deg.C)]] -> -55 to +155 | AO28: - | AP28: - | AQ28: - | AR28: - | AS28: https://industrial.panasonic.com/ww/products/pt/automotive-inductors/models/ETQP4M1R0KVK | AT28: https://industrial.panasonic.com/content/data/CC/pictures/lineup-LP.gif | AU28: =_xlfn.IMAGE(All_PCC_a[[#This Row],[Image URL]]) ->  | BC28: =IF(Z28<('DCDC Ref'!$J$24/'DCDC Ref'!$J$26)*'DCDC Ref'!$J$28/100,0,1) -> 1 | BD28: =IF(BC28=0,"",('All Data'!Q28-'DCDC Ref'!$J$30)/'DCDC Ref'!$J$30*100) -> -84.17582418 | BE28: 84.17582418 | BH28: 0 | BJ28: =IF(BC28=0,"",('All Data'!Z28-'DCDC Ref'!$J$28*('DCDC Ref'!$J$29/100))/'DCDC Ref'!$J$28*('DCDC Ref'!$J$29/100)*100) -> 9.379310345 | BK28: 9.379310345 | BQ28: 420926.0174 | BR28: =IF(BQ28="","",RANK(BQ28,BQ$11:BQ$9927,1)+COUNTIF(BQ$11:BQ28,BQ28)-1) -> 67 | BS28: 67 | BT28: =IFERROR(INDEX($O$11:$O$1004,MATCH(ROWS($BS$11:BS28),$BS$11:$BS$1002,0)),"") -> ETQP4M4R7KFN | BU28: ETQP4M4R7KFN
A29: 92 | B29: 〇 | D29: OK | F29: MP | G29: Panasonic | H29: SMD | I29: Metal Composite | J29: PCC | K29: LP (Low Profile) | L29: 4M-KVC | M29: PCC-M1040M-LP | N29: Yes | O29: ETQP4M1R0KVC | P29: =MID(All_PCC_a[[#This Row],[Part Number]],7,3) -> 1R0 | Q29: 1 | R29: =IF(All_PCC_a[[#This Row],[Lo (uH)]]<1,"<1",IF(All_PCC_a[[#This Row],[Lo (uH)]]<10,"<10",IF(All_PCC_a[[#This Row],[Lo (uH)]]<100,"<100",IF(All_PCC_a[[#This Row],[Lo (uH)]]<2000,"<2000","")))) -> <10 | S29: =IFERROR(VLOOKUP(All_PCC_a[[#This Row],[Lo (uH)]],Utility!$D$5:$E$43,2,1),"-") -> ≤ 1 | T29: 0.2 | U29: 2.6 | V29: 2.86 | W29: 10 | X29: 23.9 | Y29: 19.6 | Z29: 34.6 | AA29: 24 | AB29: 10.7 | AC29: 10 | AD29: 4 | AE29: =ROUND(All_PCC_a[[#This Row],[L (mm)]]*All_PCC_a[[#This Row],[W (mm)]],1) -> 107 | AF29: =All_PCC_a[[#This Row],[L (mm)]]&" x "&All_PCC_a[[#This Row],[W (mm)]] -> 10.7 x 10 | AG29: 10 x 10 | AH29: =IF(All_PCC_a[[#This Row],[Max Height (mm)]]<=9,"≤ "&ROUNDUP(AD29,0),"≤"&ROUNDUP(AD29,0)) -> ≤ 4 | AI29: -55 | AJ29: 155 | AK29: =All_PCC_a[[#This Row],[Min Temp (deg.C)]]&" to +"&All_PCC_a[[#This Row],[Max Temp (deg.C)]] -> -55 to +155 | AO29: - | AP29: - | AQ29: - | AR29: - | AS29: https://industrial.panasonic.com/ww/products/pt/automotive-inductors/models/ETQP4M1R0KVC | AT29: https://industrial.panasonic.com/content/data/CC/pictures/lineup-LP.gif | AU29: =_xlfn.IMAGE(All_PCC_a[[#This Row],[Image URL]]) ->  | AY29: =--ISNUMBER(IFERROR(SEARCH(#REF!,'[1]All Data'!M53,1),"no match")) -> 0 | AZ29: =IF(AY29=1,COUNTIF($AY$11:AY29,1),"") ->  | BC29: =IF(Z29<('DCDC Ref'!$J$24/'DCDC Ref'!$J$26)*'DCDC Ref'!$J$28/100,0,1) -> 1 | BD29: =IF(BC29=0,"",('All Data'!Q29-'DCDC Ref'!$J$30)/'DCDC Ref'!$J$30*100) -> -84.17582418 | BE29: 84.17582418 | BH29: 0 | BJ29: =IF(BC29=0,"",('All Data'!Z29-'DCDC Ref'!$J$28*('DCDC Ref'!$J$29/100))/'DCDC Ref'!$J$28*('DCDC Ref'!$J$29/100)*100) -> 55.10344828 | BK29: 55.10344828 | BQ29: 421154.6381 | BR29: =IF(BQ29="","",RANK(BQ29,BQ$11:BQ$9927,1)+COUNTIF(BQ$11:BQ29,BQ29)-1) -> 68 | BS29: 68 | BT29: =IFERROR(INDEX($O$11:$O$1004,MATCH(ROWS($BS$11:BS29),$BS$11:$BS$1002,0)),"") -> ETQP4M4R7KFM | BU29: ETQP4M4R7KFM
A30: 13 | B30: 〇 | D30: OK | F30: MP | G30: Panasonic | H30: SMD | I30: Metal Composite | J30: PCC | K30: High Isat (Standard) | L30: 5M-YFC | M30: PCC-M1054M | N30: Yes | O30: ETQP5M1R5YFC | P30: =MID(All_PCC_a[[#This Row],[Part Number]],7,3) -> 1R5 | Q30: 1.5 | R30: =IF(All_PCC_a[[#This Row],[Lo (uH)]]<1,"<1",IF(All_PCC_a[[#This Row],[Lo (uH)]]<10,"<10",IF(All_PCC_a[[#This Row],[Lo (uH)]]<100,"<100",IF(All_PCC_a[[#This Row],[Lo (uH)]]<2000,"<2000","")))) -> <10 | S30: =IFERROR(VLOOKUP(All_PCC_a[[#This Row],[Lo (uH)]],Utility!$D$5:$E$43,2,1),"-") -> ≤ 2 | T30: 0.2 | U30: 3.8 | V30: 4.18 | W30: 10 | X30: 21.4 | Y30: 17.9 | Z30: 35.1 | AA30: 25.52 | AB30: 10.7 | AC30: 10 | AD30: 5.4 | AE30: =ROUND(All_PCC_a[[#This Row],[L (mm)]]*All_PCC_a[[#This Row],[W (mm)]],1) -> 107 | AF30: =All_PCC_a[[#This Row],[L (mm)]]&" x "&All_PCC_a[[#This Row],[W (mm)]] -> 10.7 x 10 | AG30: 10 x 10 | AH30: =IF(All_PCC_a[[#This Row],[Max Height (mm)]]<=9,"≤ "&ROUNDUP(AD30,0),"≤"&ROUNDUP(AD30,0)) -> ≤ 6 | AI30: -40 | AJ30: 150 | AK30: =All_PCC_a[[#This Row],[Min Temp (deg.C)]]&" to +"&All_PCC_a[[#This Row],[Max Temp (deg.C)]] -> -40 to +150 | AO30: - | AP30: - | AQ30: - | AR30: - | AS30: https://industrial.panasonic.com/ww/products/pt/automotive-inductors/models/ETQP5M1R5YFC | AT30: https://industrial.panasonic.com/content/data/CC/pictures/lineup-Metal-core.gif | AU30: =_xlfn.IMAGE(All_PCC_a[[#This Row],[Image URL]]) ->  | AY30: =--ISNUMBER(IFERROR(SEARCH(#REF!,'[1]All Data'!M54,1),"no match")) -> 0 | AZ30: =IF(AY30=1,COUNTIF($AY$11:AY30,1),"") ->  | BC30: =IF(Z30<('DCDC Ref'!$J$24/'DCDC Ref'!$J$26)*'DCDC Ref'!$J$28/100,0,1) -> 1 | BD30: =IF(BC30=0,"",('All Data'!Q30-'DCDC Ref'!$J$30)/'DCDC Ref'!$J$30*100) -> -76.26373626 | BE30: 76.26373626 | BH30: 0 | BJ30: =IF(BC30=0,"",('All Data'!Z30-'DCDC Ref'!$J$28*('DCDC Ref'!$J$29/100))/'DCDC Ref'!$J$28*('DCDC Ref'!$J$29/100)*100) -> 57.34482759 | BK30: 57.34482759 | BQ30: 381605.4055 | BR30: =IF(BQ30="","",RANK(BQ30,BQ$11:BQ$9927,1)+COUNTIF(BQ$11:BQ30,BQ30)-1) -> 65 | BS30: 65 | BT30: =IFERROR(INDEX($O$11:$O$1004,MATCH(ROWS($BS$11:BS30),$BS$11:$BS$1002,0)),"") -> ETQP5M3R3YFC | BU30: ETQP5M3R3YFC
A31: 41 | B31: 〇 | D31: OK | F31: MP | G31: Panasonic | H31: SMD | I31: Metal Composite | J31: PCC | K31: High Isat (Standard) | L31: 6M-YLC | M31: PCC-M1060ML | N31: Yes | O31: ETQP6M1R5YLC | P31: =MID(All_PCC_a[[#This Row],[Part Number]],7,3) -> 1R5 | Q31: 1.5 | R31: =IF(All_PCC_a[[#This Row],[Lo (uH)]]<1,"<1",IF(All_PCC_a[[#This Row],[Lo (uH)]]<10,"<10",IF(All_PCC_a[[#This Row],[Lo (uH)]]<100,"<100",IF(All_PCC_a[[#This Row],[Lo (uH)]]<2000,"<2000","")))) -> <10 | S31: =IFERROR(VLOOKUP(All_PCC_a[[#This Row],[Lo (uH)]],Utility!$D$5:$E$43,2,1),"-") -> ≤ 2 | T31: 0.2 | U31: 3.2 | V31: 3.52 | W31: 10 | X31: 23.3 | Y31: 19.5 | Z31: 32 | AA31: 22.19 | AB31: 10.9 | AC31: 10 | AD31: 6 | AE31: =ROUND(All_PCC_a[[#This Row],[L (mm)]]*All_PCC_a[[#This Row],[W (mm)]],1) -> 109 | AF31: =All_PCC_a[[#This Row],[L (mm)]]&" x "&All_PCC_a[[#This Row],[W (mm)]] -> 10.9 x 10 | AG31: 10 x 10 | AH31: =IF(All_PCC_a[[#This Row],[Max Height (mm)]]<=9,"≤ "&ROUNDUP(AD31,0),"≤"&ROUNDUP(AD31,0)) -> ≤ 6 | AI31: -40 | AJ31: 150 | AK31: =All_PCC_a[[#This Row],[Min Temp (deg.C)]]&" to +"&All_PCC_a[[#This Row],[Max Temp (deg.C)]] -> -40 to +150 | AO31: - | AP31: - | AQ31: - | AR31: - | AS31: https://industrial.panasonic.com/ww/products/pt/automotive-inductors/models/ETQP6M1R5YLC | AT31: https://industrial.panasonic.com/content/data/CC/pictures/lineup-Metal-core.gif | AU31: =_xlfn.IMAGE(All_PCC_a[[#This Row],[Image URL]]) ->  | BC31: =IF(Z31<('DCDC Ref'!$J$24/'DCDC Ref'!$J$26)*'DCDC Ref'!$J$28/100,0,1) -> 1 | BD31: =IF(BC31=0,"",('All Data'!Q31-'DCDC Ref'!$J$30)/'DCDC Ref'!$J$30*100) -> -76.26373626 | BE31: 76.26373626 | BH31: 0 | BJ31: =IF(BC31=0,"",('All Data'!Z31-'DCDC Ref'!$J$28*('DCDC Ref'!$J$29/100))/'DCDC Ref'!$J$28*('DCDC Ref'!$J$29/100)*100) -> 43.44827586 | BK31: 43.44827586 | BQ31: 381535.9227 | BR31: =IF(BQ31="","",RANK(BQ31,BQ$11:BQ$9927,1)+COUNTIF(BQ$11:BQ31,BQ31)-1) -> 64 | BS31: 64 | BT31: =IFERROR(INDEX($O$11:$O$1004,MATCH(ROWS($BS$11:BS31),$BS$11:$BS$1002,0)),"") -> ETQP5M3R3YGC | BU31: ETQP5M3R3YGC
A32: 48 | B32: 〇 | D32: OK | F32: MP | G32: Panasonic | H32: SMD | I32: Metal Composite | J32: PCC | K32: High Current (≥□12) | L32: 8M-JFA | M32: PCC-M1280MF | N32: Yes | O32: ETQP8M1R5JFA | P32: =MID(All_PCC_a[[#This Row],[Part Number]],7,3) -> 1R5 | Q32: 1.5 | R32: =IF(All_PCC_a[[#This Row],[Lo (uH)]]<1,"<1",IF(All_PCC_a[[#This Row],[Lo (uH)]]<10,"<10",IF(All_PCC_a[[#This Row],[Lo (uH)]]<100,"<100",IF(All_PCC_a[[#This Row],[Lo (uH)]]<2000,"<2000","")))) -> <10 | S32: =IFERROR(VLOOKUP(All_PCC_a[[#This Row],[Lo (uH)]],Utility!$D$5:$E$43,2,1),"-") -> ≤ 2 | T32: 0.2 | U32: 1.8 | V32: 1.98 | W32: 10 | X32: 33.3 | Y32: 27.7 | Z32: 29.9 | AA32: 21.51 | AB32: 12.6 | AC32: 13.2 | AD32: 8 | AE32: =ROUND(All_PCC_a[[#This Row],[L (mm)]]*All_PCC_a[[#This Row],[W (mm)]],1) -> 166.3 | AF32: =All_PCC_a[[#This Row],[L (mm)]]&" x "&All_PCC_a[[#This Row],[W (mm)]] -> 12.6 x 13.2 | AG32: 12 x 12 | AH32: =IF(All_PCC_a[[#This Row],[Max Height (mm)]]<=9,"≤ "&ROUNDUP(AD32,0),"≤"&ROUNDUP(AD32,0)) -> ≤ 8 | AI32: -40 | AJ32: 160 | AK32: =All_PCC_a[[#This Row],[Min Temp (deg.C)]]&" to +"&All_PCC_a[[#This Row],[Max Temp (deg.C)]] -> -40 to +160 | AN32: 15Gと聞いたがカタログは30G | AO32: - | AP32: - | AQ32: - | AR32: - | AS32: https://industrial.panasonic.com/ww/products/pt/automotive-inductors/models/ETQP8M1R5JFA | AT32: https://industrial.panasonic.com/content/data/CC/pictures/lineup-Large%20current.gif | AU32: =_xlfn.IMAGE(All_PCC_a[[#This Row],[Image URL]]) ->  | BC32: =IF(Z32<('DCDC Ref'!$J$24/'DCDC Ref'!$J$26)*'DCDC Ref'!$J$28/100,0,1) -> 1 | BD32: =IF(BC32=0,"",('All Data'!Q32-'DCDC Ref'!$J$30)/'DCDC Ref'!$J$30*100) -> -76.26373626 | BE32: 76.26373626 | BH32: 0 | BJ32: =IF(BC32=0,"",('All Data'!Z32-'DCDC Ref'!$J$28*('DCDC Ref'!$J$29/100))/'DCDC Ref'!$J$28*('DCDC Ref'!$J$29/100)*100) -> 34.03448276 | BK32: 34.03448276 | BQ32: 381488.8537 | BR32: =IF(BQ32="","",RANK(BQ32,BQ$11:BQ$9927,1)+COUNTIF(BQ$11:BQ32,BQ32)-1) -> 63 | BS32: 63 | BT32: =IFERROR(INDEX($O$11:$O$1004,MATCH(ROWS($BS$11:BS32),$BS$11:$BS$1002,0)),"") -> ETQP6M3R3YLC | BU32: ETQP6M3R3YLC
A33: 57 | B33: 〇 | D33: OK | F33: MP | G33: Panasonic | H33: SMD | I33: Metal Composite | J33: PCC | K33: LP (Low Profile) | L33: 3M-KVP | M33: PCC-M0530M-LP | N33: Yes | O33: ETQP3M1R5KVP | P33: =MID(All_PCC_a[[#This Row],[Part Number]],7,3) -> 1R5 | Q33: 1.5 | R33: =IF(All_PCC_a[[#This Row],[Lo (uH)]]<1,"<1",IF(All_PCC_a[[#This Row],[Lo (uH)]]<10,"<10",IF(All_PCC_a[[#This Row],[Lo (uH)]]<100,"<100",IF(All_PCC_a[[#This Row],[Lo (uH)]]<2000,"<2000","")))) -> <10 | S33: =IFERROR(VLOOKUP(All_PCC_a[[#This Row],[Lo (uH)]],Utility!$D$5:$E$43,2,1),"-") -> ≤ 2 | T33: 0.2 | U33: 12 | V33: 13.2 | W33: 10 | X33: 8.1 | Y33: 6.7 | Z33: 12 | AA33: 9.61 | AB33: 5.5 | AC33: 5 | AD33: 3 | AE33: =ROUND(All_PCC_a[[#This Row],[L (mm)]]*All_PCC_a[[#This Row],[W (mm)]],1) -> 27.5 | AF33: =All_PCC_a[[#This Row],[L (mm)]]&" x "&All_PCC_a[[#This Row],[W (mm)]] -> 5.5 x 5 | AG33: _5 x 5 | AH33: =IF(All_PCC_a[[#This Row],[Max Height (mm)]]<=9,"≤ "&ROUNDUP(AD33,0),"≤"&ROUNDUP(AD33,0)) -> ≤ 3 | AI33: -55 | AJ33: 155 | AK33: =All_PCC_a[[#This Row],[Min Temp (deg.C)]]&" to +"&All_PCC_a[[#This Row],[Max Temp (deg.C)]] -> -55 to +155 | AO33: - | AP33: - | AQ33: - | AR33: - | AS33: https://industrial.panasonic.com/ww/products/pt/automotive-inductors/models/ETQP3M1R5KVP | AT33: https://industrial.panasonic.com/content/data/CC/pictures/lineup-LP.gif | AU33: =_xlfn.IMAGE(All_PCC_a[[#This Row],[Image URL]]) ->  | AY33: =--ISNUMBER(IFERROR(SEARCH(#REF!,'[1]All Data'!M55,1),"no match")) -> 0 | AZ33: =IF(AY33=1,COUNTIF($AY$11:AY33,1),"") ->  | BC33: =IF(Z33<('DCDC Ref'!$J$24/'DCDC Ref'!$J$26)*'DCDC Ref'!$J$28/100,0,1) -> 1 | BD33: =IF(BC33=0,"",('All Data'!Q33-'DCDC Ref'!$J$30)/'DCDC Ref'!$J$30*100) -> -76.26373626 | BE33: 76.26373626 | BH33: 0 | BJ33: =IF(BC33=0,"",('All Data'!Z33-'DCDC Ref'!$J$28*('DCDC Ref'!$J$29/100))/'DCDC Ref'!$J$28*('DCDC Ref'!$J$29/100)*100) -> -46.20689655 | BK33: 10000 | BQ33: 431318.6813 | BR33: =IF(BQ33="","",RANK(BQ33,BQ$11:BQ$9927,1)+COUNTIF(BQ$11:BQ33,BQ33)-1) -> 72 | BS33: 72 | BT33: =IFERROR(INDEX($O$11:$O$1004,MATCH(ROWS($BS$11:BS33),$BS$11:$BS$1002,0)),"") -> ETQP8M3R3JFA | BU33: ETQP8M3R3JFA
A34: 68 | B34: 〇 | D34: OK | F34: MP | G34: Panasonic | H34: SMD | I34: Metal Composite | J34: PCC | K34: LP (Low Profile) | L34: 3M-KVN | M34: PCC-M0630M-LP | N34: Yes | O34: ETQP3M1R5KVN | P34: =MID(All_PCC_a[[#This Row],[Part Number]],7,3) -> 1R5 | Q34: 1.5 | R34: =IF(All_PCC_a[[#This Row],[Lo (uH)]]<1,"<1",IF(All_PCC_a[[#This Row],[Lo (uH)]]<10,"<10",IF(All_PCC_a[[#This Row],[Lo (uH)]]<100,"<100",IF(All_PCC_a[[#This Row],[Lo (uH)]]<2000,"<2000","")))) -> <10 | S34: =IFERROR(VLOOKUP(All_PCC_a[[#This Row],[Lo (uH)]],Utility!$D$5:$E$43,2,1),"-") -> ≤ 2 | T34: 0.2 | U34: 11 | V34: 12.1 | W34: 10 | X34: 9.1 | Y34: 7.4 | Z34: 14.2 | AA34: 10.37 | AB34: 6.4 | AC34: 6 | AD34: 3 | AE34: =ROUND(All_PCC_a[[#This Row],[L (mm)]]*All_PCC_a[[#This Row],[W (mm)]],1) -> 38.4 | AF34: =All_PCC_a[[#This Row],[L (mm)]]&" x "&All_PCC_a[[#This Row],[W (mm)]] -> 6.4 x 6 | AG34: _6 x 6 | AH34: =IF(All_PCC_a[[#This Row],[Max Height (mm)]]<=9,"≤ "&ROUNDUP(AD34,0),"≤"&ROUNDUP(AD34,0)) -> ≤ 3 | AI34: -55 | AJ34: 155 | AK34: =All_PCC_a[[#This Row],[Min Temp (deg.C)]]&" to +"&All_PCC_a[[#This Row],[Max Temp (deg.C)]] -> -55 to +155 | AO34: - | AP34: - | AQ34: - | AR34: - | AS34: https://industrial.panasonic.com/ww/products/pt/automotive-inductors/models/ETQP3M1R5KVN | AT34: https://industrial.panasonic.com/content/data/CC/pictures/lineup-LP.gif | AU34: =_xlfn.IMAGE(All_PCC_a[[#This Row],[Image URL]]) ->  | AY34: =--ISNUMBER(IFERROR(SEARCH(#REF!,'[1]All Data'!M56,1),"no match")) -> 0 | AZ34: =IF(AY34=1,COUNTIF($AY$11:AY34,1),"") ->  | BC34: =IF(Z34<('DCDC Ref'!$J$24/'DCDC Ref'!$J$26)*'DCDC Ref'!$J$28/100,0,1) -> 1 | BD34: =IF(BC34=0,"",('All Data'!Q34-'DCDC Ref'!$J$30)/'DCDC Ref'!$J$30*100) -> -76.26373626 | BE34: 76.26373626 | BH34: 0 | BJ34: =IF(BC34=0,"",('All Data'!Z34-'DCDC Ref'!$J$28*('DCDC Ref'!$J$29/100))/'DCDC Ref'!$J$28*('DCDC Ref'!$J$29/100)*100) -> -36.34482759 | BK34: 10000 | BQ34: 431318.6813 | BR34: =IF(BQ34="","",RANK(BQ34,BQ$11:BQ$9927,1)+COUNTIF(BQ$11:BQ34,BQ34)-1) -> 73 | BS34: 73 | BT34: =IFERROR(INDEX($O$11:$O$1004,MATCH(ROWS($BS$11:BS34),$BS$11:$BS$1002,0)),"") -> ETQPAM3R3JFW | BU34: ETQPAM3R3JFW
A35: 79 | B35: 〇 | D35: OK | F35: MP | G35: Panasonic | H35: SMD | I35: Metal Composite | J35: PCC | K35: LP (Low Profile) | L35: 4M-KVK | M35: PCC-M0840M-LP | N35: Yes | O35: ETQP4M1R5KVK | P35: =MID(All_PCC_a[[#This Row],[Part Number]],7,3) -> 1R5 | Q35: 1.5 | R35: =IF(All_PCC_a[[#This Row],[Lo (uH)]]<1,"<1",IF(All_PCC_a[[#This Row],[Lo (uH)]]<10,"<10",IF(All_PCC_a[[#This Row],[Lo (uH)]]<100,"<100",IF(All_PCC_a[[#This Row],[Lo (uH)]]<2000,"<2000","")))) -> <10 | S35: =IFERROR(VLOOKUP(All_PCC_a[[#This Row],[Lo (uH)]],Utility!$D$5:$E$43,2,1),"-") -> ≤ 2 | T35: 0.2 | U35: 4.9 | V35: 5.39 | W35: 10 | X35: 15.1 | Y35: 12.8 | Z35: 22.5 | AA35: 17.56 | AB35: 8.5 | AC35: 8 | AD35: 4 | AE35: =ROUND(All_PCC_a[[#This Row],[L (mm)]]*All_PCC_a[[#This Row],[W (mm)]],1) -> 68 | AF35: =All_PCC_a[[#This Row],[L (mm)]]&" x "&All_PCC_a[[#This Row],[W (mm)]] -> 8.5 x 8 | AG35: _8 x 8 | AH35: =IF(All_PCC_a[[#This Row],[Max Height (mm)]]<=9,"≤ "&ROUNDUP(AD35,0),"≤"&ROUNDUP(AD35,0)) -> ≤ 4 | AI35: -55 | AJ35: 155 | AK35: =All_PCC_a[[#This Row],[Min Temp (deg.C)]]&" to +"&All_PCC_a[[#This Row],[Max Temp (deg.C)]] -> -55 to +155 | AO35: - | AP35: - | AQ35: - | AR35: - | AS35: https://industrial.panasonic.com/ww/products/pt/automotive-inductors/models/ETQP4M1R5KVK | AT35: https://industrial.panasonic.com/content/data/CC/pictures/lineup-LP.gif | AU35: =_xlfn.IMAGE(All_PCC_a[[#This Row],[Image URL]]) ->  | AY35: =--ISNUMBER(IFERROR(SEARCH(#REF!,'[1]All Data'!M57,1),"no match")) -> 0 | AZ35: =IF(AY35=1,COUNTIF($AY$11:AY35,1),"") ->  | BC35: =IF(Z35<('DCDC Ref'!$J$24/'DCDC Ref'!$J$26)*'DCDC Ref'!$J$28/100,0,1) -> 1 | BD35: =IF(BC35=0,"",('All Data'!Q35-'DCDC Ref'!$J$30)/'DCDC Ref'!$J$30*100) -> -76.26373626 | BE35: 76.26373626 | BH35: 0 | BJ35: =IF(BC35=0,"",('All Data'!Z35-'DCDC Ref'!$J$28*('DCDC Ref'!$J$29/100))/'DCDC Ref'!$J$28*('DCDC Ref'!$J$29/100)*100) -> 0.8620689655 | BK35: 0.8620689655 | BQ35: 381322.9917 | BR35: =IF(BQ35="","",RANK(BQ35,BQ$11:BQ$9927,1)+COUNTIF(BQ$11:BQ35,BQ35)-1) -> 61 | BS35: 61 | BT35: =IFERROR(INDEX($O$11:$O$1004,MATCH(ROWS($BS$11:BS35),$BS$11:$BS$1002,0)),"") -> ETQP4M3R3YFN | BU35: ETQP4M3R3YFN
A36: 91 | B36: 〇 | D36: OK | F36: MP | G36: Panasonic | H36: SMD | I36: Metal Composite | J36: PCC | K36: LP (Low Profile) | L36: 4M-KVC | M36: PCC-M1040M-LP | N36: Yes | O36: ETQP4M1R5KVC | P36: =MID(All_PCC_a[[#This Row],[Part Number]],7,3) -> 1R5 | Q36: 1.5 | R36: =IF(All_PCC_a[[#This Row],[Lo (uH)]]<1,"<1",IF(All_PCC_a[[#This Row],[Lo (uH)]]<10,"<10",IF(All_PCC_a[[#This Row],[Lo (uH)]]<100,"<100",IF(All_PCC_a[[#This Row],[Lo (uH)]]<2000,"<2000","")))) -> <10 | S36: =IFERROR(VLOOKUP(All_PCC_a[[#This Row],[Lo (uH)]],Utility!$D$5:$E$43,2,1),"-") -> ≤ 2 | T36: 0.2 | U36: 4.9 | V36: 5.39 | W36: 10 | X36: 17.4 | Y36: 14.3 | Z36: 25 | AA36: 19.36 | AB36: 10.7 | AC36: 10 | AD36: 4 | AE36: =ROUND(All_PCC_a[[#This Row],[L (mm)]]*All_PCC_a[[#This Row],[W (mm)]],1) -> 107 | AF36: =All_PCC_a[[#This Row],[L (mm)]]&" x "&All_PCC_a[[#This Row],[W (mm)]] -> 10.7 x 10 | AG36: 10 x 10 | AH36: =IF(All_PCC_a[[#This Row],[Max Height (mm)]]<=9,"≤ "&ROUNDUP(AD36,0),"≤"&ROUNDUP(AD36,0)) -> ≤ 4 | AI36: -55 | AJ36: 155 | AK36: =All_PCC_a[[#This Row],[Min Temp (deg.C)]]&" to +"&All_PCC_a[[#This Row],[Max Temp (deg.C)]] -> -55 to +155 | AO36: - | AP36: - | AQ36: - | AR36: - | AS36: https://industrial.panasonic.com/ww/products/pt/automotive-inductors/models/ETQP4M1R5KVC | AT36: https://industrial.panasonic.com/content/data/CC/pictures/lineup-LP.gif | AU36: =_xlfn.IMAGE(All_PCC_a[[#This Row],[Image URL]]) ->  | BC36: =IF(Z36<('DCDC Ref'!$J$24/'DCDC Ref'!$J$26)*'DCDC Ref'!$J$28/100,0,1) -> 1 | BD36: =IF(BC36=0,"",('All Data'!Q36-'DCDC Ref'!$J$30)/'DCDC Ref'!$J$30*100) -> -76.26373626 | BE36: 76.26373626 | BH36: 0 | BJ36: =IF(BC36=0,"",('All Data'!Z36-'DCDC Ref'!$J$28*('DCDC Ref'!$J$29/100))/'DCDC Ref'!$J$28*('DCDC Ref'!$J$29/100)*100) -> 12.06896552 | BK36: 12.06896552 | BQ36: 381379.0261 | BR36: =IF(BQ36="","",RANK(BQ36,BQ$11:BQ$9927,1)+COUNTIF(BQ$11:BQ36,BQ36)-1) -> 62 | BS36: 62 | BT36: =IFERROR(INDEX($O$11:$O$1004,MATCH(ROWS($BS$11:BS36),$BS$11:$BS$1002,0)),"") -> ETQP3M3R3YFP | BU36: ETQP3M3R3YFP
A37: 113 | B37: 〇 | C37: 2021/11/12 カタログ追加。2021/3/23追加。 | D37: OK | F37: MP | G37: Panasonic | H37: SMD | I37: Metal Composite | J37: PCC | K37: High Anti-vibration | L37: 5M-YSC | M37: PCC-M1050MS | N37: Yes | O37: ETQP5M2R0YSC | P37: =MID(All_PCC_a[[#This Row],[Part Number]],7,3) -> 2R0 | Q37: 1.9 | R37: =IF(All_PCC_a[[#This Row],[Lo (uH)]]<1,"<1",IF(All_PCC_a[[#This Row],[Lo (uH)]]<10,"<10",IF(All_PCC_a[[#This Row],[Lo (uH)]]<100,"<100",IF(All_PCC_a[[#This Row],[Lo (uH)]]<2000,"<2000","")))) -> <10 | S37: =IFERROR(VLOOKUP(All_PCC_a[[#This Row],[Lo (uH)]],Utility!$D$5:$E$43,2,1),"-") -> ≤ 2 | T37: 0.2 | U37: 4.45 | V37: 4.9 | W37: 10 | X37: 19.8 | Y37: 16.5 | Z37: 29.8 | AA37: 21 | AB37: 10.9 | AC37: 10 | AD37: 5 | AE37: =ROUND(All_PCC_a[[#This Row],[L (mm)]]*All_PCC_a[[#This Row],[W (mm)]],1) -> 109 | AF37: =All_PCC_a[[#This Row],[L (mm)]]&" x "&All_PCC_a[[#This Row],[W (mm)]] -> 10.9 x 10 | AG37: 10 x 10 | AH37: =IF(All_PCC_a[[#This Row],[Max Height (mm)]]<=9,"≤ "&ROUNDUP(AD37,0),"≤"&ROUNDUP(AD37,0)) -> ≤ 5 | AI37: -40 | AJ37: 150 | AK37: =All_PCC_a[[#This Row],[Min Temp (deg.C)]]&" to +"&All_PCC_a[[#This Row],[Max Temp (deg.C)]] -> -40 to +150 | AO37: - | AP37: - | AQ37: - | AR37: - | AS37: https://industrial.panasonic.com/ww/products/pt/automotive-inductors/models/ETQP5M2R0YSC | AT37: https://industrial.panasonic.com/content/data/CC/pictures/lineup-Metal-core.gif | AU37: =_xlfn.IMAGE(All_PCC_a[[#This Row],[Image URL]]) ->  | AY37: =--ISNUMBER(IFERROR(SEARCH(#REF!,'[1]All Data'!M58,1),"no match")) -> 0 | AZ37: =IF(AY37=1,COUNTIF($AY$11:AY37,1),"") ->  | BC37: =IF(Z37<('DCDC Ref'!$J$24/'DCDC Ref'!$J$26)*'DCDC Ref'!$J$28/100,0,1) -> 1 | BD37: =IF(BC37=0,"",('All Data'!Q37-'DCDC Ref'!$J$30)/'DCDC Ref'!$J$30*100) -> -69.93406593 | BE37: 69.93406593 | BH37: 0 | BJ37: =IF(BC37=0,"",('All Data'!Z37-'DCDC Ref'!$J$28*('DCDC Ref'!$J$29/100))/'DCDC Ref'!$J$28*('DCDC Ref'!$J$29/100)*100) -> 33.5862069 | BK37: 33.5862069 | BQ37: 349838.2607 | BR37: =IF(BQ37="","",RANK(BQ37,BQ$11:BQ$9927,1)+COUNTIF(BQ$11:BQ37,BQ37)-1) -> 51 | BS37: 51 | BT37: =IFERROR(INDEX($O$11:$O$1004,MATCH(ROWS($BS$11:BS37),$BS$11:$BS$1002,0)),"") -> ETQP3M3R3KVP | BU37: ETQP3M3R3KVP
A38: 40 | B38: 〇 | D38: OK | F38: MP | G38: Panasonic | H38: SMD | I38: Metal Composite | J38: PCC | K38: High Isat (Standard) | L38: 5M-YLC | M38: PCC-M1050ML | N38: Yes | O38: ETQP5M2R0YLC | P38: =MID(All_PCC_a[[#This Row],[Part Number]],7,3) -> 2R0 | Q38: 2 | R38: =IF(All_PCC_a[[#This Row],[Lo (uH)]]<1,"<1",IF(All_PCC_a[[#This Row],[Lo (uH)]]<10,"<10",IF(All_PCC_a[[#This Row],[Lo (uH)]]<100,"<100",IF(All_PCC_a[[#This Row],[Lo (uH)]]<2000,"<2000","")))) -> <10 | S38: =IFERROR(VLOOKUP(All_PCC_a[[#This Row],[Lo (uH)]],Utility!$D$5:$E$43,2,1),"-") -> ≤ 2 | T38: 0.2 | U38: 4.6 | V38: 5.06 | W38: 10 | X38: 19.4 | Y38: 16.2 | Z38: 31.3 | AA38: 22.17 | AB38: 10.9 | AC38: 10 | AD38: 5 | AE38: =ROUND(All_PCC_a[[#This Row],[L (mm)]]*All_PCC_a[[#This Row],[W (mm)]],1) -> 109 | AF38: =All_PCC_a[[#This Row],[L (mm)]]&" x "&All_PCC_a[[#This Row],[W (mm)]] -> 10.9 x 10 | AG38: 10 x 10 | AH38: =IF(All_PCC_a[[#This Row],[Max Height (mm)]]<=9,"≤ "&ROUNDUP(AD38,0),"≤"&ROUNDUP(AD38,0)) -> ≤ 5 | AI38: -40 | AJ38: 150 | AK38: =All_PCC_a[[#This Row],[Min Temp (deg.C)]]&" to +"&All_PCC_a[[#This Row],[Max Temp (deg.C)]] -> -40 to +150 | AO38: - | AP38: - | AQ38: - | AR38: - | AS38: https://industrial.panasonic.com/ww/products/pt/automotive-inductors/models/ETQP5M2R0YLC | AT38: https://industrial.panasonic.com/content/data/CC/pictures/lineup-Metal-core.gif | AU38: =_xlfn.IMAGE(All_PCC_a[[#This Row],[Image URL]]) ->  | AY38: =--ISNUMBER(IFERROR(SEARCH(#REF!,'[1]All Data'!M60,1),"no match")) -> 0 | AZ38: =IF(AY38=1,COUNTIF($AY$11:AY38,1),"") ->  | BC38: =IF(Z38<('DCDC Ref'!$J$24/'DCDC Ref'!$J$26)*'DCDC Ref'!$J$28/100,0,1) -> 1 | BD38: =IF(BC38=0,"",('All Data'!Q38-'DCDC Ref'!$J$30)/'DCDC Ref'!$J$30*100) -> -68.35164835 | BE38: 68.35164835 | BH38: 0 | BJ38: =IF(BC38=0,"",('All Data'!Z38-'DCDC Ref'!$J$28*('DCDC Ref'!$J$29/100))/'DCDC Ref'!$J$28*('DCDC Ref'!$J$29/100)*100) -> 40.31034483 | BK38: 40.31034483 | BQ38: 341959.7935 | BR38: =IF(BQ38="","",RANK(BQ38,BQ$11:BQ$9927,1)+COUNTIF(BQ$11:BQ38,BQ38)-1) -> 50 | BS38: 50 | BT38: =IFERROR(INDEX($O$11:$O$1004,MATCH(ROWS($BS$11:BS38),$BS$11:$BS$1002,0)),"") -> ETQP3M3R3KVN | BU38: ETQP3M3R3KVN
A39: 9 | B39: 〇 | D39: OK | F39: MP | G39: Panasonic | H39: SMD | I39: Metal Composite | J39: PCC | K39: High Isat (Standard) | L39: 3M-YFP | M39: PCC-M0530M | N39: Yes | O39: ETQP3M2R2YFP | P39: =MID(All_PCC_a[[#This Row],[Part Number]],7,3) -> 2R2 | Q39: 2.2 | R39: =IF(All_PCC_a[[#This Row],[Lo (uH)]]<1,"<1",IF(All_PCC_a[[#This Row],[Lo (uH)]]<10,"<10",IF(All_PCC_a[[#This Row],[Lo (uH)]]<100,"<100",IF(All_PCC_a[[#This Row],[Lo (uH)]]<2000,"<2000","")))) -> <10 | S39: =IFERROR(VLOOKUP(All_PCC_a[[#This Row],[Lo (uH)]],Utility!$D$5:$E$43,2,1),"-") -> ≤ 3 | T39: 0.2 | U39: 22.6 | V39: 24.8 | W39: 10 | X39: 5.8 | Y39: 4.8 | Z39: 10.9 | AA39: =ROUND(7.95610619469026,2) -> 7.96 | AB39: 5.5 | AC39: 5 | AD39: 3 | AE39: =ROUND(All_PCC_a[[#This Row],[L (mm)]]*All_PCC_a[[#This Row],[W (mm)]],1) -> 27.5 | AF39: =All_PCC_a[[#This Row],[L (mm)]]&" x "&All_PCC_a[[#This Row],[W (mm)]] -> 5.5 x 5 | AG39: _5 x 5 | AH39: =IF(All_PCC_a[[#This Row],[Max Height (mm)]]<=9,"≤ "&ROUNDUP(AD39,0),"≤"&ROUNDUP(AD39,0)) -> ≤ 3 | AI39: -40 | AJ39: 150 | AK39: =All_PCC_a[[#This Row],[Min Temp (deg.C)]]&" to +"&All_PCC_a[[#This Row],[Max Temp (deg.C)]] -> -40 to +150 | AO39: - | AP39: - | AQ39: - | AR39: - | AS39: https://industrial.panasonic.com/ww/products/pt/automotive-inductors/models/ETQP3M2R2YFP | AT39: https://industrial.panasonic.com/content/data/CC/pictures/lineup-Metal-core.gif | AU39: =_xlfn.IMAGE(All_PCC_a[[#This Row],[Image URL]]) ->  | AY39: =--ISNUMBER(IFERROR(SEARCH(#REF!,'[1]All Data'!M61,1),"no match")) -> 0 | AZ39: =IF(AY39=1,COUNTIF($AY$11:AY39,1),"") ->  | BC39: =IF(Z39<('DCDC Ref'!$J$24/'DCDC Ref'!$J$26)*'DCDC Ref'!$J$28/100,0,1) -> 1 | BD39: =IF(BC39=0,"",('All Data'!Q39-'DCDC Ref'!$J$30)/'DCDC Ref'!$J$30*100) -> -65.18681319 | BE39: 65.18681319 | BH39: 0 | BJ39: =IF(BC39=0,"",('All Data'!Z39-'DCDC Ref'!$J$28*('DCDC Ref'!$J$29/100))/'DCDC Ref'!$J$28*('DCDC Ref'!$J$29/100)*100) -> -51.13793103 | BK39: 10000 | BQ39: 375934.0659 | BR39: =IF(BQ39="","",RANK(BQ39,BQ$11:BQ$9927,1)+COUNTIF(BQ$11:BQ39,BQ39)-1) -> 54 | BS39: 54 | BT39: =IFERROR(INDEX($O$11:$O$1004,MATCH(ROWS($BS$11:BS39),$BS$11:$BS$1002,0)),"") -> ETQP4M3R3KVK | BU39: ETQP4M3R3KVK
A40: 56 | B40: 〇 | D40: OK | F40: MP | G40: Panasonic | H40: SMD | I40: Metal Composite | J40: PCC | K40: LP (Low Profile) | L40: 3M-KVP | M40: PCC-M0530M-LP | N40: Yes | O40: ETQP3M2R2KVP | P40: =MID(All_PCC_a[[#This Row],[Part Number]],7,3) -> 2R2 | Q40: 2.2 | R40: =IF(All_PCC_a[[#This Row],[Lo (uH)]]<1,"<1",IF(All_PCC_a[[#This Row],[Lo (uH)]]<10,"<10",IF(All_PCC_a[[#This Row],[Lo (uH)]]<100,"<100",IF(All_PCC_a[[#This Row],[Lo (uH)]]<2000,"<2000","")))) -> <10 | S40: =IFERROR(VLOOKUP(All_PCC_a[[#This Row],[Lo (uH)]],Utility!$D$5:$E$43,2,1),"-") -> ≤ 3 | T40: 0.2 | U40: 20 | V40: 22 | W40: 10 | X40: 6.3 | Y40: 5.2 | Z40: 10.1 | AA40: 7.38 | AB40: 5.5 | AC40: 5 | AD40: 3 | AE40: =ROUND(All_PCC_a[[#This Row],[L (mm)]]*All_PCC_a[[#This Row],[W (mm)]],1) -> 27.5 | AF40: =All_PCC_a[[#This Row],[L (mm)]]&" x "&All_PCC_a[[#This Row],[W (mm)]] -> 5.5 x 5 | AG40: _5 x 5 | AH40: =IF(All_PCC_a[[#This Row],[Max Height (mm)]]<=9,"≤ "&ROUNDUP(AD40,0),"≤"&ROUNDUP(AD40,0)) -> ≤ 3 | AI40: -55 | AJ40: 155 | AK40: =All_PCC_a[[#This Row],[Min Temp (deg.C)]]&" to +"&All_PCC_a[[#This Row],[Max Temp (deg.C)]] -> -55 to +155 | AO40: - | AP40: - | AQ40: - | AR40: - | AS40: https://industrial.panasonic.com/ww/products/pt/automotive-inductors/models/ETQP3M2R2KVP | AT40: https://industrial.panasonic.com/content/data/CC/pictures/lineup-LP.gif | AU40: =_xlfn.IMAGE(All_PCC_a[[#This Row],[Image URL]]) ->  | BC40: =IF(Z40<('DCDC Ref'!$J$24/'DCDC Ref'!$J$26)*'DCDC Ref'!$J$28/100,0,1) -> 1 | BD40: =IF(BC40=0,"",('All Data'!Q40-'DCDC Ref'!$J$30)/'DCDC Ref'!$J$30*100) -> -65.18681319 | BE40: 65.18681319 | BH40: 0 | BJ40: =IF(BC40=0,"",('All Data'!Z40-'DCDC Ref'!$J$28*('DCDC Ref'!$J$29/100))/'DCDC Ref'!$J$28*('DCDC Ref'!$J$29/100)*100) -> -54.72413793 | BK40: 10000 | BQ40: 375934.0659 | BR40: =IF(BQ40="","",RANK(BQ40,BQ$11:BQ$9927,1)+COUNTIF(BQ$11:BQ40,BQ40)-1) -> 55 | BS40: 55 | BT40: =IFERROR(INDEX($O$11:$O$1004,MATCH(ROWS($BS$11:BS40),$BS$11:$BS$1002,0)),"") -> ETQP4M3R3KVC | BU40: ETQP4M3R3KVC
A41: 67 | B41: 〇 | D41: OK | F41: MP | G41: Panasonic | H41: SMD | I41: Metal Composite | J41: PCC | K41: LP (Low Profile) | L41: 3M-KVN | M41: PCC-M0630M-LP | N41: Yes | O41: ETQP3M2R2KVN | P41: =MID(All_PCC_a[[#This Row],[Part Number]],7,3) -> 2R2 | Q41: 2.2 | R41: =IF(All_PCC_a[[#This Row],[Lo (uH)]]<1,"<1",IF(All_PCC_a[[#This Row],[Lo (uH)]]<10,"<10",IF(All_PCC_a[[#This Row],[Lo (uH)]]<100,"<100",IF(All_PCC_a[[#This Row],[Lo (uH)]]<2000,"<2000","")))) -> <10 | S41: =IFERROR(VLOOKUP(All_PCC_a[[#This Row],[Lo (uH)]],Utility!$D$5:$E$43,2,1),"-") -> ≤ 3 | T41: 0.2 | U41: 14.5 | V41: 15.95 | W41: 10 | X41: 7.9 | Y41: 6.5 | Z41: 12.8 | AA41: 8.9 | AB41: 6.4 | AC41: 6 | AD41: 3 | AE41: =ROUND(All_PCC_a[[#This Row],[L (mm)]]*All_PCC_a[[#This Row],[W (mm)]],1) -> 38.4 | AF41: =All_PCC_a[[#This Row],[L (mm)]]&" x "&All_PCC_a[[#This Row],[W (mm)]] -> 6.4 x 6 | AG41: _6 x 6 | AH41: =IF(All_PCC_a[[#This Row],[Max Height (mm)]]<=9,"≤ "&ROUNDUP(AD41,0),"≤"&ROUNDUP(AD41,0)) -> ≤ 3 | AI41: -55 | AJ41: 155 | AK41: =All_PCC_a[[#This Row],[Min Temp (deg.C)]]&" to +"&All_PCC_a[[#This Row],[Max Temp (deg.C)]] -> -55 to +155 | AO41: - | AP41: - | AQ41: - | AR41: - | AS41: https://industrial.panasonic.com/ww/products/pt/automotive-inductors/models/ETQP3M2R2KVN | AT41: https://industrial.panasonic.com/content/data/CC/pictures/lineup-LP.gif | AU41: =_xlfn.IMAGE(All_PCC_a[[#This Row],[Image URL]]) ->  | AY41: =--ISNUMBER(IFERROR(SEARCH(#REF!,'[1]All Data'!M62,1),"no match")) -> 0 | AZ41: =IF(AY41=1,COUNTIF($AY$11:AY41,1),"") ->  | BC41: =IF(Z41<('DCDC Ref'!$J$24/'DCDC Ref'!$J$26)*'DCDC Ref'!$J$28/100,0,1) -> 1 | BD41: =IF(BC41=0,"",('All Data'!Q41-'DCDC Ref'!$J$30)/'DCDC Ref'!$J$30*100) -> -65.18681319 | BE41: 65.18681319 | BH41: 0 | BJ41: =IF(BC41=0,"",('All Data'!Z41-'DCDC Ref'!$J$28*('DCDC Ref'!$J$29/100))/'DCDC Ref'!$J$28*('DCDC Ref'!$J$29/100)*100) -> -42.62068966 | BK41: 10000 | BQ41: 375934.0659 | BR41: =IF(BQ41="","",RANK(BQ41,BQ$11:BQ$9927,1)+COUNTIF(BQ$11:BQ41,BQ41)-1) -> 56 | BS41: 56 | BT41: =IFERROR(INDEX($O$11:$O$1004,MATCH(ROWS($BS$11:BS41),$BS$11:$BS$1002,0)),"") -> ETQP4M3R3KFN | BU41: ETQP4M3R3KFN
A42: 78 | B42: 〇 | D42: OK | F42: MP | G42: Panasonic | H42: SMD | I42: Metal Composite | J42: PCC | K42: LP (Low Profile) | L42: 4M-KVK | M42: PCC-M0840M-LP | N42: Yes | O42: ETQP4M2R2KVK | P42: =MID(All_PCC_a[[#This Row],[Part Number]],7,3) -> 2R2 | Q42: 2.2 | R42: =IF(All_PCC_a[[#This Row],[Lo (uH)]]<1,"<1",IF(All_PCC_a[[#This Row],[Lo (uH)]]<10,"<10",IF(All_PCC_a[[#This Row],[Lo (uH)]]<100,"<100",IF(All_PCC_a[[#This Row],[Lo (uH)]]<2000,"<2000","")))) -> <10 | S42: =IFERROR(VLOOKUP(All_PCC_a[[#This Row],[Lo (uH)]],Utility!$D$5:$E$43,2,1),"-") -> ≤ 3 | T42: 0.2 | U42: 8.5 | V42: 9.35 | W42: 10 | X42: 11.4 | Y42: 9.8 | Z42: 20.4 | AA42: 15.16 | AB42: 8.5 | AC42: 8 | AD42: 4 | AE42: =ROUND(All_PCC_a[[#This Row],[L (mm)]]*All_PCC_a[[#This Row],[W (mm)]],1) -> 68 | AF42: =All_PCC_a[[#This Row],[L (mm)]]&" x "&All_PCC_a[[#This Row],[W (mm)]] -> 8.5 x 8 | AG42: _8 x 8 | AH42: =IF(All_PCC_a[[#This Row],[Max Height (mm)]]<=9,"≤ "&ROUNDUP(AD42,0),"≤"&ROUNDUP(AD42,0)) -> ≤ 4 | AI42: -55 | AJ42: 155 | AK42: =All_PCC_a[[#This Row],[Min Temp (deg.C)]]&" to +"&All_PCC_a[[#This Row],[Max Temp (deg.C)]] -> -55 to +155 | AO42: - | AP42: - | AQ42: - | AR42: - | AS42: https://industrial.panasonic.com/ww/products/pt/automotive-inductors/models/ETQP4M2R2KVK | AT42: https://industrial.panasonic.com/content/data/CC/pictures/lineup-LP.gif | AU42: =_xlfn.IMAGE(All_PCC_a[[#This Row],[Image URL]]) ->  | AY42: =--ISNUMBER(IFERROR(SEARCH(#REF!,'[1]All Data'!M63,1),"no match")) -> 0 | AZ42: =IF(AY42=1,COUNTIF($AY$11:AY42,1),"") ->  | BC42: =IF(Z42<('DCDC Ref'!$J$24/'DCDC Ref'!$J$26)*'DCDC Ref'!$J$28/100,0,1) -> 1 | BD42: =IF(BC42=0,"",('All Data'!Q42-'DCDC Ref'!$J$30)/'DCDC Ref'!$J$30*100) -> -65.18681319 | BE42: 65.18681319 | BH42: 0 | BJ42: =IF(BC42=0,"",('All Data'!Z42-'DCDC Ref'!$J$28*('DCDC Ref'!$J$29/100))/'DCDC Ref'!$J$28*('DCDC Ref'!$J$29/100)*100) -> -8.551724138 | BK42: 10000 | BQ42: 375934.0659 | BR42: =IF(BQ42="","",RANK(BQ42,BQ$11:BQ$9927,1)+COUNTIF(BQ$11:BQ42,BQ42)-1) -> 57 | BS42: 57 | BT42: =IFERROR(INDEX($O$11:$O$1004,MATCH(ROWS($BS$11:BS42),$BS$11:$BS$1002,0)),"") -> ETQP5M3R3YFM | BU42: ETQP5M3R3YFM
A43: 90 | B43: 〇 | D43: OK | F43: MP | G43: Panasonic | H43: SMD | I43: Metal Composite | J43: PCC | K43: LP (Low Profile) | L43: 4M-KVC | M43: PCC-M1040M-LP | N43: Yes | O43: ETQP4M2R2KVC | P43: =MID(All_PCC_a[[#This Row],[Part Number]],7,3) -> 2R2 | Q43: 2.2 | R43: =IF(All_PCC_a[[#This Row],[Lo (uH)]]<1,"<1",IF(All_PCC_a[[#This Row],[Lo (uH)]]<10,"<10",IF(All_PCC_a[[#This Row],[Lo (uH)]]<100,"<100",IF(All_PCC_a[[#This Row],[Lo (uH)]]<2000,"<2000","")))) -> <10 | S43: =IFERROR(VLOOKUP(All_PCC_a[[#This Row],[Lo (uH)]],Utility!$D$5:$E$43,2,1),"-") -> ≤ 3 | T43: 0.2 | U43: 6.8 | V43: 7.48 | W43: 10 | X43: 14.8 | Y43: 12.1 | Z43: 21 | AA43: 16.92 | AB43: 10.7 | AC43: 10 | AD43: 4 | AE43: =ROUND(All_PCC_a[[#This Row],[L (mm)]]*All_PCC_a[[#This Row],[W (mm)]],1) -> 107 | AF43: =All_PCC_a[[#This Row],[L (mm)]]&" x "&All_PCC_a[[#This Row],[W (mm)]] -> 10.7 x 10 | AG43: 10 x 10 | AH43: =IF(All_PCC_a[[#This Row],[Max Height (mm)]]<=9,"≤ "&ROUNDUP(AD43,0),"≤"&ROUNDUP(AD43,0)) -> ≤ 4 | AI43: -55 | AJ43: 155 | AK43: =All_PCC_a[[#This Row],[Min Temp (deg.C)]]&" to +"&All_PCC_a[[#This Row],[Max Temp (deg.C)]] -> -55 to +155 | AO43: - | AP43: - | AQ43: - | AR43: - | AS43: https://industrial.panasonic.com/ww/products/pt/automotive-inductors/models/ETQP4M2R2KVC | AT43: https://industrial.panasonic.com/content/data/CC/pictures/lineup-LP.gif | AU43: =_xlfn.IMAGE(All_PCC_a[[#This Row],[Image URL]]) ->  | AY43: =--ISNUMBER(IFERROR(SEARCH(#REF!,'[1]All Data'!M64,1),"no match")) -> 0 | AZ43: =IF(AY43=1,COUNTIF($AY$11:AY43,1),"") ->  | BC43: =IF(Z43<('DCDC Ref'!$J$24/'DCDC Ref'!$J$26)*'DCDC Ref'!$J$28/100,0,1) -> 1 | BD43: =IF(BC43=0,"",('All Data'!Q43-'DCDC Ref'!$J$30)/'DCDC Ref'!$J$30*100) -> -65.18681319 | BE43: 65.18681319 | BH43: 0 | BJ43: =IF(BC43=0,"",('All Data'!Z43-'DCDC Ref'!$J$28*('DCDC Ref'!$J$29/100))/'DCDC Ref'!$J$28*('DCDC Ref'!$J$29/100)*100) -> -5.862068966 | BK43: 10000 | BQ43: 375934.0659 | BR43: =IF(BQ43="","",RANK(BQ43,BQ$11:BQ$9927,1)+COUNTIF(BQ$11:BQ43,BQ43)-1) -> 58 | BS43: =RANK(BR43,BR$11:BR$9927,1) -> 58 | BT43: =IFERROR(INDEX($O$11:$O$1004,MATCH(ROWS($BS$11:BS43),$BS$11:$BS$1002,0)),"") -> ETQP5M3R3YFK | BU43: ETQP5M3R3YFK
A44: 93 | B44: 〇 | D44: OK | F44: MP | G44: Panasonic | H44: SMD | I44: Metal Composite | J44: PCC | K44: High Frequency | L44: 3M-HFP | M44: PCC-M0530M-H | N44: Yes | O44: ETQP3M2R2HFP | P44: =MID(All_PCC_a[[#This Row],[Part Number]],7,3) -> 2R2 | Q44: 2.2 | R44: =IF(All_PCC_a[[#This Row],[Lo (uH)]]<1,"<1",IF(All_PCC_a[[#This Row],[Lo (uH)]]<10,"<10",IF(All_PCC_a[[#This Row],[Lo (uH)]]<100,"<100",IF(All_PCC_a[[#This Row],[Lo (uH)]]<2000,"<2000","")))) -> <10 | S44: =IFERROR(VLOOKUP(All_PCC_a[[#This Row],[Lo (uH)]],Utility!$D$5:$E$43,2,1),"-") -> ≤ 3 | T44: 0.2 | U44: 19.5 | V44: 21.45 | W44: 20 | X44: 6.3 | Y44: 5.2 | Z44: 9 | AA44: 6.4 | AB44: 5.5 | AC44: 5 | AD44: 3 | AE44: =ROUND(All_PCC_a[[#This Row],[L (mm)]]*All_PCC_a[[#This Row],[W (mm)]],1) -> 27.5 | AF44: =All_PCC_a[[#This Row],[L (mm)]]&" x "&All_PCC_a[[#This Row],[W (mm)]] -> 5.5 x 5 | AG44: _5 x 5 | AH44: =IF(All_PCC_a[[#This Row],[Max Height (mm)]]<=9,"≤ "&ROUNDUP(AD44,0),"≤"&ROUNDUP(AD44,0)) -> ≤ 3 | AI44: -40 | AJ44: 150 | AK44: =All_PCC_a[[#This Row],[Min Temp (deg.C)]]&" to +"&All_PCC_a[[#This Row],[Max Temp (deg.C)]] -> -40 to +150 | AO44: - | AP44: - | AQ44: - | AR44: - | AS44: https://industrial.panasonic.com/ww/products/pt/automotive-inductors/models/ETQP3M2R2HFP | AT44: https://industrial.panasonic.com/content/data/CC/pictures/lineup-H.gif | AU44: =_xlfn.IMAGE(All_PCC_a[[#This Row],[Image URL]]) ->  | AY44: =--ISNUMBER(IFERROR(SEARCH(#REF!,'[1]All Data'!M65,1),"no match")) -> 0 | AZ44: =IF(AY44=1,COUNTIF($AY$11:AY44,1),"") ->  | BC44: =IF(Z44<('DCDC Ref'!$J$24/'DCDC Ref'!$J$26)*'DCDC Ref'!$J$28/100,0,1) -> 1 | BD44: =IF(BC44=0,"",('All Data'!Q44-'DCDC Ref'!$J$30)/'DCDC Ref'!$J$30*100) -> -65.18681319 | BE44: 65.18681319 | BH44: 0 | BJ44: =IF(BC44=0,"",('All Data'!Z44-'DCDC Ref'!$J$28*('DCDC Ref'!$J$29/100))/'DCDC Ref'!$J$28*('DCDC Ref'!$J$29/100)*100) -> -59.65517241 | BK44: 10000 | BQ44: 375934.0659 | BR44: =IF(BQ44="","",RANK(BQ44,BQ$11:BQ$9927,1)+COUNTIF(BQ$11:BQ44,BQ44)-1) -> 59 | BS44: 59 | BT44: =IFERROR(INDEX($O$11:$O$1004,MATCH(ROWS($BS$11:BS44),$BS$11:$BS$1002,0)),"") -> ETQP6M2R5YSC | BU44: ETQP6M2R5YSC
A45: 107 | B45: 〇 | D45: OK | F45: MP | G45: Panasonic | H45: SMD | I45: Metal Composite | J45: PCC | K45: High Isat (Standard) | L45: 4M-YFN | M45: PCC-M0645M | N45: Yes | O45: ETQP4M2R2YFN | P45: =MID(All_PCC_a[[#This Row],[Part Number]],7,3) -> 2R2 | Q45: 2.2 | R45: =IF(All_PCC_a[[#This Row],[Lo (uH)]]<1,"<1",IF(All_PCC_a[[#This Row],[Lo (uH)]]<10,"<10",IF(All_PCC_a[[#This Row],[Lo (uH)]]<100,"<100",IF(All_PCC_a[[#This Row],[Lo (uH)]]<2000,"<2000","")))) -> <10 | S45: =IFERROR(VLOOKUP(All_PCC_a[[#This Row],[Lo (uH)]],Utility!$D$5:$E$43,2,1),"-") -> ≤ 3 | T45: 0.2 | U45: 10.4 | V45: =All_PCC_a[[#This Row],[DCR Typ (mOhm)]]*1.1 -> 11.44 | W45: 10 | X45: 10.2 | Y45: 8 | Z45: 14.4 | AA45: 10.41 | AB45: 6.5 | AC45: 6 | AD45: 4.5 | AE45: =ROUND(All_PCC_a[[#This Row],[L (mm)]]*All_PCC_a[[#This Row],[W (mm)]],1) -> 39 | AF45: =All_PCC_a[[#This Row],[L (mm)]]&" x "&All_PCC_a[[#This Row],[W (mm)]] -> 6.5 x 6 | AG45: _6 x 6 | AH45: =IF(All_PCC_a[[#This Row],[Max Height (mm)]]<=9,"≤ "&ROUNDUP(AD45,0),"≤"&ROUNDUP(AD45,0)) -> ≤ 5 | AI45: -40 | AJ45: 150 | AK45: =All_PCC_a[[#This Row],[Min Temp (deg.C)]]&" to +"&All_PCC_a[[#This Row],[Max Temp (deg.C)]] -> -40 to +150 | AO45: - | AP45: - | AQ45: - | AR45: - | AS45: https://industrial.panasonic.com/ww/products/pt/automotive-inductors/models/ETQP4M2R2YFN | AT45: https://industrial.panasonic.com/content/data/CC/pictures/lineup-Metal-core.gif | AU45: =_xlfn.IMAGE(All_PCC_a[[#This Row],[Image URL]]) ->  | BC45: =IF(Z45<('DCDC Ref'!$J$24/'DCDC Ref'!$J$26)*'DCDC Ref'!$J$28/100,0,1) -> 1 | BD45: =IF(BC45=0,"",('All Data'!Q45-'DCDC Ref'!$J$30)/'DCDC Ref'!$J$30*100) -> -65.18681319 | BE45: 65.18681319 | BH45: 0 | BJ45: =IF(BC45=0,"",('All Data'!Z45-'DCDC Ref'!$J$28*('DCDC Ref'!$J$29/100))/'DCDC Ref'!$J$28*('DCDC Ref'!$J$29/100)*100) -> -35.44827586 | BK45: 10000 | BQ45: 375934.0659 | BR45: =IF(BQ45="","",RANK(BQ45,BQ$11:BQ$9927,1)+COUNTIF(BQ$11:BQ45,BQ45)-1) -> 60 | BS45: 60 | BT45: =IFERROR(INDEX($O$11:$O$1004,MATCH(ROWS($BS$11:BS45),$BS$11:$BS$1002,0)),"") -> ETQP6M2R5YLC | BU45: ETQP6M2R5YLC
A46: 105 | B46: 〇 | D46: OK | F46: MP | G46: Panasonic | H46: SMD | I46: Metal Composite | J46: PCC | K46: High Anti-vibration | L46: 5M-YSK | M46: PCC-M0854MS | N46: Yes | O46: ETQP5M2R5YSK | P46: =MID(All_PCC_a[[#This Row],[Part Number]],7,3) -> 2R5 | Q46: 2.45 | R46: =IF(All_PCC_a[[#This Row],[Lo (uH)]]<1,"<1",IF(All_PCC_a[[#This Row],[Lo (uH)]]<10,"<10",IF(All_PCC_a[[#This Row],[Lo (uH)]]<100,"<100",IF(All_PCC_a[[#This Row],[Lo (uH)]]<2000,"<2000","")))) -> <10 | S46: =IFERROR(VLOOKUP(All_PCC_a[[#This Row],[Lo (uH)]],Utility!$D$5:$E$43,2,1),"-") -> ≤ 3 | T46: 0.2 | U46: 7.4 | V46: 8.14 | W46: 10 | X46: 14.1 | Y46: 12 | Z46: 19.3 | AA46: 13.7 | AB46: 8.5 | AC46: 8 | AD46: 5.4 | AE46: =ROUND(All_PCC_a[[#This Row],[L (mm)]]*All_PCC_a[[#This Row],[W (mm)]],1) -> 68 | AF46: =All_PCC_a[[#This Row],[L (mm)]]&" x "&All_PCC_a[[#This Row],[W (mm)]] -> 8.5 x 8 | AG46: _8 x 8 | AH46: =IF(All_PCC_a[[#This Row],[Max Height (mm)]]<=9,"≤ "&ROUNDUP(AD46,0),"≤"&ROUNDUP(AD46,0)) -> ≤ 6 | AI46: -40 | AJ46: 150 | AK46: =All_PCC_a[[#This Row],[Min Temp (deg.C)]]&" to +"&All_PCC_a[[#This Row],[Max Temp (deg.C)]] -> -40 to +150 | AO46: - | AP46: =IFERROR(IF(L1Round>1,ROUND(L1Round,1),L1Round),"-") -> - | AQ46: - | AR46: - | AS46: https://industrial.panasonic.com/ww/products/pt/automotive-inductors/models/ETQP5M2R5YSK | AT46: https://industrial.panasonic.com/content/data/CC/pictures/lineup-High%20Vibration%20Acceleration.gif | AU46: =_xlfn.IMAGE(All_PCC_a[[#This Row],[Image URL]]) ->  | BC46: =IF(Z46<('DCDC Ref'!$J$24/'DCDC Ref'!$J$26)*'DCDC Ref'!$J$28/100,0,1) -> 1 | BD46: =IF(BC46=0,"",('All Data'!Q46-'DCDC Ref'!$J$30)/'DCDC Ref'!$J$30*100) -> -61.23076923 | BE46: 61.23076923 | BH46: 0 | BJ46: =IF(BC46=0,"",('All Data'!Z46-'DCDC Ref'!$J$28*('DCDC Ref'!$J$29/100))/'DCDC Ref'!$J$28*('DCDC Ref'!$J$29/100)*100) -> -13.48275862 | BK46: 10000 | BQ46: 356153.8462 | BR46: =IF(BQ46="","",RANK(BQ46,BQ$11:BQ$9927,1)+COUNTIF(BQ$11:BQ46,BQ46)-1) -> 53 | BS46: 53 | BT46: =IFERROR(INDEX($O$11:$O$1004,MATCH(ROWS($BS$11:BS46),$BS$11:$BS$1002,0)),"") -> ETQP5M2R5YFC | BU46: ETQP5M2R5YFC
A47: 14 | B47: 〇 | D47: OK | F47: MP | G47: Panasonic | H47: SMD | I47: Metal Composite | J47: PCC | K47: High Isat (Standard) | L47: 5M-YFC | M47: PCC-M1054M | N47: Yes | O47: ETQP5M2R5YFC | P47: =MID(All_PCC_a[[#This Row],[Part Number]],7,3) -> 2R5 | Q47: 2.5 | R47: =IF(All_PCC_a[[#This Row],[Lo (uH)]]<1,"<1",IF(All_PCC_a[[#This Row],[Lo (uH)]]<10,"<10",IF(All_PCC_a[[#This Row],[Lo (uH)]]<100,"<100",IF(All_PCC_a[[#This Row],[Lo (uH)]]<2000,"<2000","")))) -> <10 | S47: =IFERROR(VLOOKUP(All_PCC_a[[#This Row],[Lo (uH)]],Utility!$D$5:$E$43,2,1),"-") -> ≤ 3 | T47: 0.2 | U47: 5.3 | V47: 5.9 | W47: 10 | X47: 18.1 | Y47: 15.1 | Z47: 27.2 | AA47: 19.74 | AB47: 10.7 | AC47: 10 | AD47: 5.4 | AE47: =ROUND(All_PCC_a[[#This Row],[L (mm)]]*All_PCC_a[[#This Row],[W (mm)]],1) -> 107 | AF47: =All_PCC_a[[#This Row],[L (mm)]]&" x "&All_PCC_a[[#This Row],[W (mm)]] -> 10.7 x 10 | AG47: 10 x 10 | AH47: =IF(All_PCC_a[[#This Row],[Max Height (mm)]]<=9,"≤ "&ROUNDUP(AD47,0),"≤"&ROUNDUP(AD47,0)) -> ≤ 6 | AI47: -40 | AJ47: 150 | AK47: =All_PCC_a[[#This Row],[Min Temp (deg.C)]]&" to +"&All_PCC_a[[#This Row],[Max Temp (deg.C)]] -> -40 to +150 | AO47: - | AP47: - | AQ47: - | AR47: - | AS47: https://industrial.panasonic.com/ww/products/pt/automotive-inductors/models/ETQP5M2R5YFC | AT47: https://industrial.panasonic.com/content/data/CC/pictures/lineup-Metal-core.gif | AU47: =_xlfn.IMAGE(All_PCC_a[[#This Row],[Image URL]]) ->  | AY47: =--ISNUMBER(IFERROR(SEARCH(#REF!,'[1]All Data'!M66,1),"no match")) -> 0 | AZ47: =IF(AY47=1,COUNTIF($AY$11:AY47,1),"") ->  | BC47: =IF(Z47<('DCDC Ref'!$J$24/'DCDC Ref'!$J$26)*'DCDC Ref'!$J$28/100,0,1) -> 1 | BD47: =IF(BC47=0,"",('All Data'!Q47-'DCDC Ref'!$J$30)/'DCDC Ref'!$J$30*100) -> -60.43956044 | BE47: 60.43956044 | BH47: 0 | BJ47: =IF(BC47=0,"",('All Data'!Z47-'DCDC Ref'!$J$28*('DCDC Ref'!$J$29/100))/'DCDC Ref'!$J$28*('DCDC Ref'!$J$29/100)*100) -> 21.93103448 | BK47: 21.93103448 | BQ47: 302307.4574 | BR47: =IF(BQ47="","",RANK(BQ47,BQ$11:BQ$9927,1)+COUNTIF(BQ$11:BQ47,BQ47)-1) -> 36 | BS47: 36 | BT47: =IFERROR(INDEX($O$11:$O$1004,MATCH(ROWS($BS$11:BS47),$BS$11:$BS$1002,0)),"") -> ETQP8M2R5JFA | BU47: ETQP8M2R5JFA
A48: 24 | B48: 〇 | D48: OK | F48: MP | G48: Panasonic | H48: SMD | I48: Metal Composite | J48: PCC | K48: High Isat (Standard) | L48: 5M-YFK | M48: PCC-M0854M | N48: Yes | O48: ETQP5M2R5YFK | P48: =MID(All_PCC_a[[#This Row],[Part Number]],7,3) -> 2R5 | Q48: 2.5 | R48: =IF(All_PCC_a[[#This Row],[Lo (uH)]]<1,"<1",IF(All_PCC_a[[#This Row],[Lo (uH)]]<10,"<10",IF(All_PCC_a[[#This Row],[Lo (uH)]]<100,"<100",IF(All_PCC_a[[#This Row],[Lo (uH)]]<2000,"<2000","")))) -> <10 | S48: =IFERROR(VLOOKUP(All_PCC_a[[#This Row],[Lo (uH)]],Utility!$D$5:$E$43,2,1),"-") -> ≤ 3 | T48: 0.2 | U48: 7.6 | V48: 8.36 | W48: 10 | X48: 14 | Y48: 11.9 | Z48: 20.1 | AA48: 14.54 | AB48: 8.5 | AC48: 8 | AD48: 5.4 | AE48: =ROUND(All_PCC_a[[#This Row],[L (mm)]]*All_PCC_a[[#This Row],[W (mm)]],1) -> 68 | AF48: =All_PCC_a[[#This Row],[L (mm)]]&" x "&All_PCC_a[[#This Row],[W (mm)]] -> 8.5 x 8 | AG48: _8 x 8 | AH48: =IF(All_PCC_a[[#This Row],[Max Height (mm)]]<=9,"≤ "&ROUNDUP(AD48,0),"≤"&ROUNDUP(AD48,0)) -> ≤ 6 | AI48: -40 | AJ48: 150 | AK48: =All_PCC_a[[#This Row],[Min Temp (deg.C)]]&" to +"&All_PCC_a[[#This Row],[Max Temp (deg.C)]] -> -40 to +150 | AO48: - | AP48: - | AQ48: - | AR48: - | AS48: https://industrial.panasonic.com/ww/products/pt/automotive-inductors/models/ETQP5M2R5YFK | AT48: https://industrial.panasonic.com/content/data/CC/pictures/lineup-Metal-core.gif | AU48: =_xlfn.IMAGE(All_PCC_a[[#This Row],[Image URL]]) ->  | AY48: =--ISNUMBER(IFERROR(SEARCH(#REF!,'[1]All Data'!M67,1),"no match")) -> 0 | AZ48: =IF(AY48=1,COUNTIF($AY$11:AY48,1),"") ->  | BC48: =IF(Z48<('DCDC Ref'!$J$24/'DCDC Ref'!$J$26)*'DCDC Ref'!$J$28/100,0,1) -> 1 | BD48: =IF(BC48=0,"",('All Data'!Q48-'DCDC Ref'!$J$30)/'DCDC Ref'!$J$30*100) -> -60.43956044 | BE48: 60.43956044 | BH48: 0 | BJ48: =IF(BC48=0,"",('All Data'!Z48-'DCDC Ref'!$J$28*('DCDC Ref'!$J$29/100))/'DCDC Ref'!$J$28*('DCDC Ref'!$J$29/100)*100) -> -9.896551724 | BK48: 10000 | BQ48: 352197.8022 | BR48: =IF(BQ48="","",RANK(BQ48,BQ$11:BQ$9927,1)+COUNTIF(BQ$11:BQ48,BQ48)-1) -> 52 | BS48: 52 | BT48: =IFERROR(INDEX($O$11:$O$1004,MATCH(ROWS($BS$11:BS48),$BS$11:$BS$1002,0)),"") -> ETQPAM2R5JFW | BU48: ETQPAM2R5JFW
A49: 42 | B49: 〇 | D49: OK | F49: MP | G49: Panasonic | H49: SMD | I49: Metal Composite | J49: PCC | K49: High Isat (Standard) | L49: 6M-YLC | M49: PCC-M1060ML | N49: Yes | O49: ETQP6M2R5YLC | P49: =MID(All_PCC_a[[#This Row],[Part Number]],7,3) -> 2R5 | Q49: 2.5 | R49: =IF(All_PCC_a[[#This Row],[Lo (uH)]]<1,"<1",IF(All_PCC_a[[#This Row],[Lo (uH)]]<10,"<10",IF(All_PCC_a[[#This Row],[Lo (uH)]]<100,"<100",IF(All_PCC_a[[#This Row],[Lo (uH)]]<2000,"<2000","")))) -> <10 | S49: =IFERROR(VLOOKUP(All_PCC_a[[#This Row],[Lo (uH)]],Utility!$D$5:$E$43,2,1),"-") -> ≤ 3 | T49: 0.2 | U49: 4.55 | V49: 5 | W49: 10 | X49: 19.6 | Y49: 16.3 | Z49: 25.8 | AA49: 17.2 | AB49: 10.9 | AC49: 10 | AD49: 6 | AE49: =ROUND(All_PCC_a[[#This Row],[L (mm)]]*All_PCC_a[[#This Row],[W (mm)]],1) -> 109 | AF49: =All_PCC_a[[#This Row],[L (mm)]]&" x "&All_PCC_a[[#This Row],[W (mm)]] -> 10.9 x 10 | AG49: 10 x 10 | AH49: =IF(All_PCC_a[[#This Row],[Max Height (mm)]]<=9,"≤ "&ROUNDUP(AD49,0),"≤"&ROUNDUP(AD49,0)) -> ≤ 6 | AI49: -40 | AJ49: 150 | AK49: =All_PCC_a[[#This Row],[Min Temp (deg.C)]]&" to +"&All_PCC_a[[#This Row],[Max Temp (deg.C)]] -> -40 to +150 | AO49: - | AP49: - | AQ49: - | AR49: - | AS49: https://industrial.panasonic.com/ww/products/pt/automotive-inductors/models/ETQP6M2R5YLC | AT49: https://industrial.panasonic.com/content/data/CC/pictures/lineup-Metal-core.gif | AU49: =_xlfn.IMAGE(All_PCC_a[[#This Row],[Image URL]]) ->  | BC49: =IF(Z49<('DCDC Ref'!$J$24/'DCDC Ref'!$J$26)*'DCDC Ref'!$J$28/100,0,1) -> 1 | BD49: =IF(BC49=0,"",('All Data'!Q49-'DCDC Ref'!$J$30)/'DCDC Ref'!$J$30*100) -> -60.43956044 | BE49: 60.43956044 | BH49: 0 | BJ49: =IF(BC49=0,"",('All Data'!Z49-'DCDC Ref'!$J$28*('DCDC Ref'!$J$29/100))/'DCDC Ref'!$J$28*('DCDC Ref'!$J$29/100)*100) -> 15.65517241 | BK49: 15.65517241 | BQ49: 302276.0781 | BR49: =IF(BQ49="","",RANK(BQ49,BQ$11:BQ$9927,1)+COUNTIF(BQ$11:BQ49,BQ49)-1) -> 35 | BS49: 35 | BT49: =IFERROR(INDEX($O$11:$O$1004,MATCH(ROWS($BS$11:BS49),$BS$11:$BS$1002,0)),"") -> ETQP4M100YFN | BU49: ETQP4M100YFN
A50: 49 | B50: 〇 | D50: OK | F50: MP | G50: Panasonic | H50: SMD | I50: Metal Composite | J50: PCC | K50: High Current (≥□12) | L50: 8M-JFA | M50: PCC-M1280MF | N50: Yes | O50: ETQP8M2R5JFA | P50: =MID(All_PCC_a[[#This Row],[Part Number]],7,3) -> 2R5 | Q50: 2.5 | R50: =IF(All_PCC_a[[#This Row],[Lo (uH)]]<1,"<1",IF(All_PCC_a[[#This Row],[Lo (uH)]]<10,"<10",IF(All_PCC_a[[#This Row],[Lo (uH)]]<100,"<100",IF(All_PCC_a[[#This Row],[Lo (uH)]]<2000,"<2000","")))) -> <10 | S50: =IFERROR(VLOOKUP(All_PCC_a[[#This Row],[Lo (uH)]],Utility!$D$5:$E$43,2,1),"-") -> ≤ 3 | T50: 0.2 | U50: 2.6 | V50: 2.86 | W50: 10 | X50: 27.7 | Y50: 23 | Z50: 32.1 | AA50: =ROUND(23.0676691729323,2) -> 23.07 | AB50: 12.6 | AC50: 13.2 | AD50: 8 | AE50: =ROUND(All_PCC_a[[#This Row],[L (mm)]]*All_PCC_a[[#This Row],[W (mm)]],1) -> 166.3 | AF50: =All_PCC_a[[#This Row],[L (mm)]]&" x "&All_PCC_a[[#This Row],[W (mm)]] -> 12.6 x 13.2 | AG50: 12 x 12 | AH50: =IF(All_PCC_a[[#This Row],[Max Height (mm)]]<=9,"≤ "&ROUNDUP(AD50,0),"≤"&ROUNDUP(AD50,0)) -> ≤ 8 | AI50: -40 | AJ50: 160 | AK50: =All_PCC_a[[#This Row],[Min Temp (deg.C)]]&" to +"&All_PCC_a[[#This Row],[Max Temp (deg.C)]] -> -40 to +160 | AN50: 15Gと聞いたがカタログは30G | AO50: - | AP50: - | AQ50: - | AR50: - | AS50: https://industrial.panasonic.com/ww/products/pt/automotive-inductors/models/ETQP8M2R5JFA | AT50: https://industrial.panasonic.com/content/data/CC/pictures/lineup-Large%20current.gif | AU50: =_xlfn.IMAGE(All_PCC_a[[#This Row],[Image URL]]) ->  | BC50: =IF(Z50<('DCDC Ref'!$J$24/'DCDC Ref'!$J$26)*'DCDC Ref'!$J$28/100,0,1) -> 1 | BD50: =IF(BC50=0,"",('All Data'!Q50-'DCDC Ref'!$J$30)/'DCDC Ref'!$J$30*100) -> -60.43956044 | BE50: 60.43956044 | BH50: 0 | BJ50: =IF(BC50=0,"",('All Data'!Z50-'DCDC Ref'!$J$28*('DCDC Ref'!$J$29/100))/'DCDC Ref'!$J$28*('DCDC Ref'!$J$29/100)*100) -> 43.89655172 | BK50: 43.89655172 | BQ50: 302417.285 | BR50: =IF(BQ50="","",RANK(BQ50,BQ$11:BQ$9927,1)+COUNTIF(BQ$11:BQ50,BQ50)-1) -> 37 | BS50: 37 | BT50: =IFERROR(INDEX($O$11:$O$1004,MATCH(ROWS($BS$11:BS50),$BS$11:$BS$1002,0)),"") -> ETQP5M100YFC | BU50: ETQP5M100YFC
A51: 3 | B51: 〇 | D51: OK | F51: MP | G51: Panasonic | H51: SMD | I51: Metal Composite | J51: PCC | K51: High Isat (Standard) | L51: 4M-YFN | M51: PCC-M0645M | N51: Yes | O51: ETQP4M3R3YFN | P51: =MID(All_PCC_a[[#This Row],[Part Number]],7,3) -> 3R3 | Q51: 3.3 | R51: =IF(All_PCC_a[[#This Row],[Lo (uH)]]<1,"<1",IF(All_PCC_a[[#This Row],[Lo (uH)]]<10,"<10",IF(All_PCC_a[[#This Row],[Lo (uH)]]<100,"<100",IF(All_PCC_a[[#This Row],[Lo (uH)]]<2000,"<2000","")))) -> <10 | S51: =IFERROR(VLOOKUP(All_PCC_a[[#This Row],[Lo (uH)]],Utility!$D$5:$E$43,2,1),"-") -> ≤ 4 | T51: 0.2 | U51: 16.1 | V51: 17.71 | W51: 10 | X51: 8.2 | Y51: 6.4 | Z51: 13.3 | AA51: 9.28 | AB51: 6.5 | AC51: 6 | AD51: 4.5 | AE51: =ROUND(All_PCC_a[[#This Row],[L (mm)]]*All_PCC_a[[#This Row],[W (mm)]],1) -> 39 | AF51: =All_PCC_a[[#This Row],[L (mm)]]&" x "&All_PCC_a[[#This Row],[W (mm)]] -> 6.5 x 6 | AG51: _6 x 6 | AH51: =IF(All_PCC_a[[#This Row],[Max Height (mm)]]<=9,"≤ "&ROUNDUP(AD51,0),"≤"&ROUNDUP(AD51,0)) -> ≤ 5 | AI51: -40 | AJ51: 150 | AK51: =All_PCC_a[[#This Row],[Min Temp (deg.C)]]&" to +"&All_PCC_a[[#This Row],[Max Temp (deg.C)]] -> -40 to +150 | AO51: - | AP51: - | AQ51: - | AR51: - | AS51: https://industrial.panasonic.com/ww/products/pt/automotive-inductors/models/ETQP4M3R3YFN | AT51: https://industrial.panasonic.com/content/data/CC/pictures/lineup-Metal-core.gif | AU51: =_xlfn.IMAGE(All_PCC_a[[#This Row],[Image URL]]) ->  | AY51: =--ISNUMBER(IFERROR(SEARCH(#REF!,'[1]All Data'!M68,1),"no match")) -> 0 | AZ51: =IF(AY51=1,COUNTIF($AY$11:AY51,1),"") ->  | BC51: =IF(Z51<('DCDC Ref'!$J$24/'DCDC Ref'!$J$26)*'DCDC Ref'!$J$28/100,0,1) -> 1 | BD51: =IF(BC51=0,"",('All Data'!Q51-'DCDC Ref'!$J$30)/'DCDC Ref'!$J$30*100) -> -47.78021978 | BE51: 47.78021978 | BH51: 0 | BJ51: =IF(BC51=0,"",('All Data'!Z51-'DCDC Ref'!$J$28*('DCDC Ref'!$J$29/100))/'DCDC Ref'!$J$28*('DCDC Ref'!$J$29/100)*100) -> -40.37931034 | BK51: 10000 | BQ51: 288901.0989 | BR51: =IF(BQ51="","",RANK(BQ51,BQ$11:BQ$9927,1)+COUNTIF(BQ$11:BQ51,BQ51)-1) -> 25 | BS51: 25 | BT51: =IFERROR(INDEX($O$11:$O$1004,MATCH(ROWS($BS$11:BS51),$BS$11:$BS$1002,0)),"") -> ETQP5M100YFK | BU51: ETQP5M100YFK
A52: 10 | B52: 〇 | D52: OK | F52: MP | G52: Panasonic | H52: SMD | I52: Metal Composite | J52: PCC | K52: High Isat (Standard) | L52: 3M-YFP | M52: PCC-M0530M | N52: Yes | O52: ETQP3M3R3YFP | P52: =MID(All_PCC_a[[#This Row],[Part Number]],7,3) -> 3R3 | Q52: 3.3 | R52: =IF(All_PCC_a[[#This Row],[Lo (uH)]]<1,"<1",IF(All_PCC_a[[#This Row],[Lo (uH)]]<10,"<10",IF(All_PCC_a[[#This Row],[Lo (uH)]]<100,"<100",IF(All_PCC_a[[#This Row],[Lo (uH)]]<2000,"<2000","")))) -> <10 | S52: =IFERROR(VLOOKUP(All_PCC_a[[#This Row],[Lo (uH)]],Utility!$D$5:$E$43,2,1),"-") -> ≤ 4 | T52: 0.2 | U52: 31.3 | V52: 34.43 | W52: 10 | X52: 5 | Y52: 4.1 | Z52: 8.6 | AA52: 6.15 | AB52: 5.5 | AC52: 5 | AD52: 3 | AE52: =ROUND(All_PCC_a[[#This Row],[L (mm)]]*All_PCC_a[[#This Row],[W (mm)]],1) -> 27.5 | AF52: =All_PCC_a[[#This Row],[L (mm)]]&" x "&All_PCC_a[[#This Row],[W (mm)]] -> 5.5 x 5 | AG52: _5 x 5 | AH52: =IF(All_PCC_a[[#This Row],[Max Height (mm)]]<=9,"≤ "&ROUNDUP(AD52,0),"≤"&ROUNDUP(AD52,0)) -> ≤ 3 | AI52: -40 | AJ52: 150 | AK52: =All_PCC_a[[#This Row],[Min Temp (deg.C)]]&" to +"&All_PCC_a[[#This Row],[Max Temp (deg.C)]] -> -40 to +150 | AO52: - | AP52: - | AQ52: - | AR52: - | AS52: https://industrial.panasonic.com/ww/products/pt/automotive-inductors/models/ETQP3M3R3YFP | AT52: https://industrial.panasonic.com/content/data/CC/pictures/lineup-Metal-core.gif | AU52: =_xlfn.IMAGE(All_PCC_a[[#This Row],[Image URL]]) ->  | AY52: =--ISNUMBER(IFERROR(SEARCH(#REF!,'[1]All Data'!M69,1),"no match")) -> 0 | AZ52: =IF(AY52=1,COUNTIF($AY$11:AY52,1),"") ->  | BC52: =IF(Z52<('DCDC Ref'!$J$24/'DCDC Ref'!$J$26)*'DCDC Ref'!$J$28/100,0,1) -> 1 | BD52: =IF(BC52=0,"",('All Data'!Q52-'DCDC Ref'!$J$30)/'DCDC Ref'!$J$30*100) -> -47.78021978 | BE52: 47.78021978 | BH52: 0 | BJ52: =IF(BC52=0,"",('All Data'!Z52-'DCDC Ref'!$J$28*('DCDC Ref'!$J$29/100))/'DCDC Ref'!$J$28*('DCDC Ref'!$J$29/100)*100) -> -61.44827586 | BK52: 10000 | BQ52: 288901.0989 | BR52: =IF(BQ52="","",RANK(BQ52,BQ$11:BQ$9927,1)+COUNTIF(BQ$11:BQ52,BQ52)-1) -> 26 | BS52: 26 | BT52: =IFERROR(INDEX($O$11:$O$1004,MATCH(ROWS($BS$11:BS52),$BS$11:$BS$1002,0)),"") -> ETQP5M100YFM | BU52: ETQP5M100YFM
A53: 15 | B53: 〇 | D53: OK | F53: MP | G53: Panasonic | H53: SMD | I53: Metal Composite | J53: PCC | K53: High Isat (Standard) | L53: 5M-YFC | M53: PCC-M1054M | N53: Yes | O53: ETQP5M3R3YFC | P53: =MID(All_PCC_a[[#This Row],[Part Number]],7,3) -> 3R3 | Q53: 3.3 | R53: =IF(All_PCC_a[[#This Row],[Lo (uH)]]<1,"<1",IF(All_PCC_a[[#This Row],[Lo (uH)]]<10,"<10",IF(All_PCC_a[[#This Row],[Lo (uH)]]<100,"<100",IF(All_PCC_a[[#This Row],[Lo (uH)]]<2000,"<2000","")))) -> <10 | S53: =IFERROR(VLOOKUP(All_PCC_a[[#This Row],[Lo (uH)]],Utility!$D$5:$E$43,2,1),"-") -> ≤ 4 | T53: 0.2 | U53: 7.1 | V53: 7.81 | W53: 10 | X53: 15.7 | Y53: 13.1 | Z53: 22.7 | AA53: 16.27 | AB53: 10.7 | AC53: 10 | AD53: 5.4 | AE53: =ROUND(All_PCC_a[[#This Row],[L (mm)]]*All_PCC_a[[#This Row],[W (mm)]],1) -> 107 | AF53: =All_PCC_a[[#This Row],[L (mm)]]&" x "&All_PCC_a[[#This Row],[W (mm)]] -> 10.7 x 10 | AG53: 10 x 10 | AH53: =IF(All_PCC_a[[#This Row],[Max Height (mm)]]<=9,"≤ "&ROUNDUP(AD53,0),"≤"&ROUNDUP(AD53,0)) -> ≤ 6 | AI53: -40 | AJ53: 150 | AK53: =All_PCC_a[[#This Row],[Min Temp (deg.C)]]&" to +"&All_PCC_a[[#This Row],[Max Temp (deg.C)]] -> -40 to +150 | AO53: - | AP53: - | AQ53: - | AR53: - | AS53: https://industrial.panasonic.com/ww/products/pt/automotive-inductors/models/ETQP5M3R3YFC | AT53: https://industrial.panasonic.com/content/data/CC/pictures/lineup-Metal-core.gif | AU53: =_xlfn.IMAGE(All_PCC_a[[#This Row],[Image URL]]) ->  | BC53: =IF(Z53<('DCDC Ref'!$J$24/'DCDC Ref'!$J$26)*'DCDC Ref'!$J$28/100,0,1) -> 1 | BD53: =IF(BC53=0,"",('All Data'!Q53-'DCDC Ref'!$J$30)/'DCDC Ref'!$J$30*100) -> -47.78021978 | BE53: 47.78021978 | BH53: 0 | BJ53: =IF(BC53=0,"",('All Data'!Z53-'DCDC Ref'!$J$28*('DCDC Ref'!$J$29/100))/'DCDC Ref'!$J$28*('DCDC Ref'!$J$29/100)*100) -> 1.75862069 | BK53: 1.75862069 | BQ53: 238909.892 | BR53: =IF(BQ53="","",RANK(BQ53,BQ$11:BQ$9927,1)+COUNTIF(BQ$11:BQ53,BQ53)-1) -> 20 | BS53: 20 | BT53: =IFERROR(INDEX($O$11:$O$1004,MATCH(ROWS($BS$11:BS53),$BS$11:$BS$1002,0)),"") -> ETQP3M100KVN | BU53: ETQP3M100KVN
